Workbook

Sheet Info

Sheet Beschreibung
A1: Ausgabe-Arbeitsblatt | B1: Arbeitsblatt_Name
A3: Referenzdatenquelle | B3: T_FZ_sta(P,0700,50)
A4: B/C-Kurve | D4: Ja
A5: Berechnung | B5: MedianPunkte
A6: Einteilung | B6: 50%
A7: Suchbereich | B7: Automatisch
B8: Startwerte | C8: Endwerte | D8: Schritte
A9: a | B9: 0.1 | C9: 0.17 | D9: 0.01
A10: b | B10: -0.75 | C10: -0.55 | D10: 0.001
A11: c | B11: 0.006 | C11: 0.015 | D11: 0.0001
A12: A/B-Kurve | D12: Ja
A13: Berechnung | B13: Entfernungsklassen
A14: Einteilung | B14: 25.0%
C15: =IF(B13="Entfernungsklassen","","[km/h]") ->  | D15: =IF(B13="Entfernungsklassen","","[km]") -> 
A16: =IF(B13="Entfernungsklassen","","Abstand [km/h] bei LLW [km]") ->  | C16: 2 | D16: 80
A17: =IF(B13="Entfernungsklassen","","Abstand [km/h] bei LLW [km]") ->  | C17: 4 | D17: 400
A18: C/D; D/E; E/F -Kurven | D18: Ja
A19: Zwischenfunktionen | D19: Ja
A20: Fahrtzeitanpassung | D20: Ja
A21: Analysedatenquelle | B21: G_FZ(Mo-Fr,0700,best)
B22: Startwerte | C22: Endwerte | D22: Schritte
A23: f1 | B23: 0.5 | C23: 2 | D23: 0.01
A24: f2 | B24: -20 | C24: 20 | D24: 0.10
A25: f3 | B25: -0.4 | C25: 0.4 | D25: 0.01
A27: alte RIN-Kurven in Grafiken darstellen | B27: Ja
A28: Gewichtung B/C-Kurve | B28: Nein

Sheet Hauptblatt
A1: Ausgabe-Arbeitsblatt | B1: Arbeitsblatt_Name
A3: Referenzdatenquelle | B3: T_FZ_sta(P,0700,50)
A4: B/C-Kurve | D4: Ja
A5: Berechnung | B5: MedianPunkte
A6: Einteilung | B6: 50%
A7: Suchbereich | B7: Automatisch
B8: Startwerte | C8: Endwerte | D8: Schritte
A9: a | B9: 0.1 | C9: 0.17 | D9: 0.01
A10: b | B10: -0.75 | C10: -0.55 | D10: 0.001
A11: c | B11: 0.006 | C11: 0.015 | D11: 0.0001
A12: A/B-Kurve | D12: Ja
A13: Berechnung | B13: Entfernungsklassen
A14: Einteilung | B14: 25.0%
C15: =IF(B13="Entfernungsklassen","","[km/h]") ->  | D15: =IF(B13="Entfernungsklassen","","[km]") -> 
A16: =IF(B13="Entfernungsklassen","","Abstand [km/h] bei LLW [km]") ->  | C16: 2 | D16: 80
A17: =IF(B13="Entfernungsklassen","","Abstand [km/h] bei LLW [km]") ->  | C17: 4 | D17: 400
A18: C/D; D/E; E/F -Kurven | D18: Ja
A19: Zwischenfunktionen | D19: Ja
A20: Fahrtzeitanpassung | D20: Nein
A21: Analysedatenquelle | B21: G_FZ(Mo-Fr,0700,best)
B22: Startwerte | C22: Endwerte | D22: Schritte
A23: f1 | B23: 0.5 | C23: 2 | D23: 0.01
A24: f2 | B24: -20 | C24: 20 | D24: 0.10
A25: f3 | B25: -0.4 | C25: 0.4 | D25: 0.01
A27: alte RIN-Kurven in Grafiken darstellen | B27: Ja
A28: Gewichtung B/C-Kurve | B28: Nein

Sheet Kurven_Grafikerstellung
A1: Arbeitsblatt | B1: A/B-Kurve | C1: B/C-Kurve | D1: C/D-Kurve | E1: D/E-Kurve | F1: E/F-Kurve | G1: Darstellungsfarbe | H1: Strichtyp | I1: Strichdicke
A2: SVZ | B2: 0 | C2: 1 | D2: 0 | E2: 0 | F2: 0 | H2: Uni | I2: 1.5
A3: HVZ_oS | B3: 0 | C3: 1 | D3: 0 | E3: 0 | F3: 0 | H3: Viereckiger Punkt | I3: 2
A4: HVZ_mS | B4: 0 | C4: 1 | D4: 0 | E4: 0 | F4: 0 | H4: Uni | I4: 2.5
B5: 1 | C5: 1 | D5: 1 | E5: 1 | F5: 1 | H5: Uni | I5: 1.5
B6: 1 | C6: 1 | D6: 1 | E6: 1 | F6: 1 | H6: Uni | I6: 1.5
B7: 1 | C7: 1 | D7: 1 | E7: 1 | F7: 1 | H7: Uni | I7: 1.5
B8: 1 | C8: 1 | D8: 1 | E8: 1 | F8: 1 | H8: Uni | I8: 1.5
B9: 1 | C9: 1 | D9: 1 | E9: 1 | F9: 1 | H9: Uni | I9: 1.5
B10: 1 | C10: 1 | D10: 1 | E10: 1 | F10: 1 | H10: Uni | I10: 1.5
B11: 1 | C11: 1 | D11: 1 | E11: 1 | F11: 1 | H11: Uni | I11: 1.5
B12: 1 | C12: 1 | D12: 1 | E12: 1 | F12: 1 | H12: Uni | I12: 1.5
B13: 1 | C13: 1 | D13: 1 | E13: 1 | F13: 1 | H13: Uni | I13: 1.5
B14: 1 | C14: 1 | D14: 1 | E14: 1 | F14: 1 | H14: Uni | I14: 1.5
B15: 1 | C15: 1 | D15: 1 | E15: 1 | F15: 1 | H15: Uni | I15: 1.5
B16: 1 | C16: 1 | D16: 1 | E16: 1 | F16: 1 | H16: Uni | I16: 1.5
B17: 1 | C17: 1 | D17: 1 | E17: 1 | F17: 1 | H17: Uni | I17: 1.5
B18: 1 | C18: 1 | D18: 1 | E18: 1 | F18: 1 | H18: Uni | I18: 1.5
B19: 1 | C19: 1 | D19: 1 | E19: 1 | F19: 1 | H19: Uni | I19: 1.5
B20: 1 | C20: 1 | D20: 1 | E20: 1 | F20: 1 | H20: Uni | I20: 1.5
B21: 1 | C21: 1 | D21: 1 | E21: 1 | F21: 1 | H21: Uni | I21: 1.5
B22: 1 | C22: 1 | D22: 1 | E22: 1 | F22: 1 | H22: Uni | I22: 1.5
B23: 1 | C23: 1 | D23: 1 | E23: 1 | F23: 1 | H23: Uni | I23: 1.5
B24: 1 | C24: 1 | D24: 1 | E24: 1 | F24: 1 | H24: Uni | I24: 1.5
B25: 1 | C25: 1 | D25: 1 | E25: 1 | F25: 1 | H25: Uni | I25: 1.5
B26: 1 | C26: 1 | D26: 1 | E26: 1 | F26: 1 | H26: Uni | I26: 1.5
B27: 1 | C27: 1 | D27: 1 | E27: 1 | F27: 1 | H27: Uni | I27: 1.5
B28: 1 | C28: 1 | D28: 1 | E28: 1 | F28: 1 | H28: Uni | I28: 1.5
B29: 1 | C29: 1 | D29: 1 | E29: 1 | F29: 1 | H29: Uni | I29: 1.5
B30: 1 | C30: 1 | D30: 1 | E30: 1 | F30: 1 | H30: Uni | I30: 1.5
B31: 1 | C31: 1 | D31: 1 | E31: 1 | F31: 1 | H31: Uni | I31: 1.5
B32: 1 | C32: 1 | D32: 1 | E32: 1 | F32: 1 | H32: Uni | I32: 1.5
B33: 1 | C33: 1 | D33: 1 | E33: 1 | F33: 1 | H33: Uni | I33: 1.5
B34: 1 | C34: 1 | D34: 1 | E34: 1 | F34: 1 | H34: Uni | I34: 1.5
B35: 1 | C35: 1 | D35: 1 | E35: 1 | F35: 1 | H35: Uni | I35: 1.5
B36: 1 | C36: 1 | D36: 1 | E36: 1 | F36: 1 | H36: Uni | I36: 1.5
B37: 1 | C37: 1 | D37: 1 | E37: 1 | F37: 1 | H37: Uni | I37: 1.5
B38: 1 | C38: 1 | D38: 1 | E38: 1 | F38: 1 | H38: Uni | I38: 1.5
B39: 1 | C39: 1 | D39: 1 | E39: 1 | F39: 1 | H39: Uni | I39: 1.5
B40: 1 | C40: 1 | D40: 1 | E40: 1 | F40: 1 | H40: Uni | I40: 1.5
B41: 1 | C41: 1 | D41: 1 | E41: 1 | F41: 1 | H41: Uni | I41: 1.5
B42: 1 | C42: 1 | D42: 1 | E42: 1 | F42: 1 | H42: Uni | I42: 1.5
B43: 1 | C43: 1 | D43: 1 | E43: 1 | F43: 1 | H43: Uni | I43: 1.5
B44: 1 | C44: 1 | D44: 1 | E44: 1 | F44: 1 | H44: Uni | I44: 1.5
B45: 1 | C45: 1 | D45: 1 | E45: 1 | F45: 1 | H45: Uni | I45: 1.5
B46: 1 | C46: 1 | D46: 1 | E46: 1 | F46: 1 | H46: Uni | I46: 1.5
B47: 1 | C47: 1 | D47: 1 | E47: 1 | F47: 1 | H47: Uni | I47: 1.5
B48: 1 | C48: 1 | D48: 1 | E48: 1 | F48: 1 | H48: Uni | I48: 1.5
B49: 1 | C49: 1 | D49: 1 | E49: 1 | F49: 1 | H49: Uni | I49: 1.5
B50: 1 | C50: 1 | D50: 1 | E50: 1 | F50: 1 | H50: Uni | I50: 1.5
B51: 1 | C51: 1 | D51: 1 | E51: 1 | F51: 1 | H51: Uni | I51: 1.5

Sheet Datenbasis
A1: Startort | B1: Zielort | C1: Startort (AGS) | D1: Zielort (AGS) | E1: LLW [m] | F1: Startort (Koordinate) | G1: Zielort (Koordinate) | H1: tAb [min] | I1: tPs [min] | J1: tUN [min] | K1: tZu [min] | L1: Gewichtung | M1: Fahrtweite TomTom [m] | N1: T_L_R(P,0) [m] | O1: T_L_R(P,1) [m] | P1: T_L_R(P,2) [m] | Q1: T_L_R(P,3) [m] | R1: T_L_R(P,4) [m] | S1: T_L_R(P,5) [m] | T1: T_L_R(P,6) [m] | U1: T__L_R(P,7) [m] | V1: T_FZ_FreeFlow (P) | W1: T_FZ_FreeFlow (L) | X1: T_FZ_sta(P,2000,15) | Y1: T_FZ_sta(P,0700,50) | Z1: T_FZ_sta(P,0700,75) | AA1: T_FZ_sta(P,0700,90) | AB1: T_FZ_sta(P,0700,mean) | AC1: T_FZ_sta(P,1000,50) | AD1: T_FZ_sta(P,1000,75) | AE1: T_FZ_sta(P,1000,90) | AF1: T_FZ_sta(P,1000,mean) | AG1: T_FZ_sta(P,1700,50) | AH1: T_FZ_sta(P,1700,75) | AI1: T_FZ_sta(P,1700,90) | AJ1: T_FZ_sta(P,1700,mean) | AK1: T_FZ_sta(P,2000,50) | AL1: T_FZ_sta(P,2000,75) | AM1: T_FZ_sta(P,2000,90) | AN1: T_FZ_sta(P,2000,mean) | AO1: T_FZ_sta(L,2000,15) | AP1: T_FZ_sta(L,0700,50) | AQ1: T_FZ_sta(L,0700,75) | AR1: T_FZ_sta(L,0700,90) | AS1: T_FZ_sta(L,0700,mean) | AT1: T_FZ_sta(L,1000,50) | AU1: T_FZ_sta(L,1000,75) | AV1: T_FZ_sta(L,1000,90) | AW1: T_FZ_sta(L,1000,mean) | AX1: T_FZ_sta(L,1700,50) | AY1: T_FZ_sta(L,1700,75) | AZ1: T_FZ_sta(L,1700,90) | BA1: T_FZ_sta(L,1700,mean) | BB1: T_FZ_sta(L,2000,50) | BC1: T_FZ_sta(L,2000,75) | BD1: T_FZ_sta(L,2000,90) | BE1: T_FZ_sta(L,2000,mean) | BF1: T_FZ_sta_soll(P,2000,50,vzul) | BG1: T_FZ_sta_soll(P,2000,15,vzul) | BH1: T_FZ_FreeFlow_soll (P,vzul) | BI1: T_FZ_sta_soll(L,2000,50,vzul) | BJ1: T_FZ_sta_soll(L,2000,15,vzul) | BK1: T_FZ_FreeFlow_soll (L,vzul) | BL1: V_FZ(P,t0) | BM1: V_FZ_(P,takt) | BN1: V_R(P) | BO1: B_FZ(P,t0) | BP1: B_FZ_(P,takt) | BQ1: B_R(P) | BR1: G_FZ(duration) | BS1: G_FZ(So,0700,best) | BT1: G_FZ(Mo-Fr,0400,best) | BU1: G_FZ(Mo-Fr,0600,best) | BV1: G_FZ(Mo-Fr,0700,best) | BW1: G_FZ(Mo-Fr,0800,best) | BX1: G_FZ(Mo-Fr,1000,best) | BY1: G_FZ(Mo-Fr,1400,best) | BZ1: G_FZ(Mo-Fr,1700,best) | CA1: G_FZ(Mo-Fr,1800,best) | CB1: G_FZ(Mo-Fr,2000,best) | CC1: G_FZ(Di,0400,opt) | CD1: G_FZ(Di,0600,opt) | CE1: G_FZ(Di,0700,opt) | CF1: G_FZ(Di,0800,opt) | CG1: G_FZ(Di,1000,opt) | CH1: G_FZ(Di,1400,opt) | CI1: G_FZ(Di,1700,opt) | CJ1: G_FZ(Di,1800,opt) | CK1: G_FZ(Di,2000,opt) | CL1: G_FZ(Di,0400,pess) | CM1: G_FZ(Di,0600,pess) | CN1: G_FZ(Di,0700,pess) | CO1: G_FZ(Di,0800,pess) | CP1: G_FZ(Di,1000,pess) | CQ1: G_FZ(Di,1400,pess) | CR1: G_FZ(Di,1700,pess) | CS1: G_FZ(Di,1800,pess) | CT1: G_FZ(Di,2000,pess) | CU1: G_VF(So,0700,best) | CV1: G_VF(Mo-Fr,0400,best) | CW1: G_VF(Mo-Fr,0600,best) | CX1: G_VF(Mo-Fr,0700,best) | CY1: G_VF(Mo-Fr,0800,best) | CZ1: G_VF(Mo-Fr,1000,best) | DA1: G_VF(Mo-Fr,1400,best) | DB1: G_VF(Mo-Fr,1700,best) | DC1: G_VF(Mo-Fr,1800,best) | DD1: G_VF(Mo-Fr,2000,best) | DE1: G_VF(Di,0400,opt) | DF1: G_VF(Di,0600,opt) | DG1: G_VF(Di,0700,opt) | DH1: G_VF(Di,0800,opt) | DI1: G_VF(Di,1000,opt) | DJ1: G_VF(Di,1400,opt) | DK1: G_VF(Di,1700,opt) | DL1: G_VF(Di,1800,opt) | DM1: G_VF(Di,2000,opt) | DN1: G_VF(Di,0400,pess) | DO1: G_VF(Di,0600,pess) | DP1: G_VF(Di,0700,pess) | DQ1: G_VF(Di,0800,pess) | DR1: G_VF(Di,1000,pess) | DS1: G_VF(Di,1400,pess) | DT1: G_VF(Di,1700,pess) | DU1: G_VF(Di,1800,pess) | DV1: G_VF(Di,2000,pess) | DW1: ="MAX ("&Y1&" , "&AG1&")" -> MAX (T_FZ_sta(P,0700,50) , T_FZ_sta(P,1700,50)) | DX1: ="MAX ("&BV1&" , "&BZ1&")" -> MAX (G_FZ(Mo-Fr,0700,best) , G_FZ(Mo-Fr,1700,best)) | DY1: ="MAX ("&AA1&" , "&AI1&")" -> MAX (T_FZ_sta(P,0700,90) , T_FZ_sta(P,1700,90)) | DZ1: ="MAX ("&CN1&" , "&CR1&")" -> MAX (G_FZ(Di,0700,pess) , G_FZ(Di,1700,pess)) | EA1: ="MAX ("&AB1&" , "&AJ1&")" -> MAX (T_FZ_sta(P,0700,mean) , T_FZ_sta(P,1700,mean)) | EB1: ="MAX ("&Z1&" , "&AH1&")" -> MAX (T_FZ_sta(P,0700,75) , T_FZ_sta(P,1700,75)) | EC1: =AK1 & "*1.2" -> T_FZ_sta(P,2000,50)*1.2 | ED1: ="MAX ("&AP1&" , "&AX1&")" -> MAX (T_FZ_sta(L,0700,50) , T_FZ_sta(L,1700,50)) | EE1: ="MAX ("&AR1&" , "&AZ1&")" -> MAX (T_FZ_sta(L,0700,90) , T_FZ_sta(L,1700,90)) | EF1: ="MAX ("&AS1&" , "&BA1&")" -> MAX (T_FZ_sta(L,0700,mean) , T_FZ_sta(L,1700,mean)) | EG1: ="MAX ("&AQ1&" , "&AY1&")" -> MAX (T_FZ_sta(L,0700,75) , T_FZ_sta(L,1700,75)) | EH1: eigene Reisezeiten
A2: Flensburg | B2: Kiel | C2: 1001000 | D2: 1002000 | E2: 68,250 | F2: 54.7941,9.44703 | G2: 54.32329,10.12283 | H2: 2.5 | I2: 2.0 | J2: 2.0 | K2: 2.5 | L2: 332,248 | M2: 91,250 | N2: 79,514 | O2: 5,760 | P2: 307 | Q2: 2,574 | R2: 2,776 | S2: 0 | T2: 0 | U2: 320 | V2: 55 | W2: 75 | X2: 44 | Y2: 56 | Z2: 68 | AA2: 93 | AB2: 64 | AC2: 57 | AD2: 70 | AE2: 89 | AF2: 64 | AG2: 57 | AH2: 70 | AI2: 90 | AJ2: 65 | AK2: 54 | AL2: 67 | AM2: 83 | AN2: 60 | AO2: 71 | AP2: 76 | AQ2: 84 | AR2: 100 | AS2: 82 | AT2: 75 | AU2: 81 | AV2: 93 | AW2: 80 | AX2: 75 | AY2: 81 | AZ2: 95 | BA2: 80 | BB2: 74 | BC2: 79 | BD2: 88 | BE2: 78 | BF2: 55 | BG2: 51 | BH2: 56 | BI2: 74 | BJ2: 72 | BK2: 75 | BL2: 47 | BM2: 58 | BN2: 90,720 | BO2: 0 | BP2: 0 | BQ2: 0 | BR2: 67 | BS2: 61 | BT2: 66 | BU2: 66 | BV2: 68 | BW2: 68 | BX2: 70 | BY2: 71 | BZ2: 69 | CA2: 67 | CB2: 65 | CC2: 64 | CD2: 57 | CE2: 59 | CF2: 59 | CG2: 61 | CH2: 62 | CI2: 60 | CJ2: 59 | CK2: 58 | CL2: 75 | CM2: 80 | CN2: 87 | CO2: 85 | CP2: 85 | CQ2: 86 | CR2: 85 | CS2: 82 | CT2: 77 | CU2: 92 | CV2: 83 | CW2: 84 | CX2: 80 | CY2: 81 | CZ2: 79 | DA2: 77 | DB2: 80 | DC2: 82 | DD2: 85 | DE2: 86 | DF2: 96 | DG2: 93 | DH2: 94 | DI2: 90 | DJ2: 89 | DK2: 91 | DL2: 94 | DM2: 95 | DN2: 73 | DO2: 69 | DP2: 64 | DQ2: 65 | DR2: 65 | DS2: 64 | DT2: 65 | DU2: 67 | DV2: 72 | DW2: =MAX(Y2,AG2) -> 57 | DX2: =MAX(BV2,BZ2) -> 69 | DY2: =MAX(AA2,AI2) -> 93 | DZ2: =MAX(CN2,CR2) -> 87 | EA2: =MAX(AB2,AJ2) -> 65 | EB2: =MAX(Z2,AH2) -> 70 | EC2: =AK2*1.2 -> 65 | ED2: =MAX(AP2,AX2) -> 76 | EE2: =MAX(AR2,AZ2) -> 100 | EF2: =MAX(AS2,BA2) -> 82 | EG2: =MAX(AQ2,AY2) -> 84
A3: Flensburg | B3: Lübeck | C3: 1001000 | D3: 1003000 | E3: 131,100 | F3: 54.7941,9.44703 | G3: 53.86547,10.68654 | H3: 2.5 | I3: 2.0 | J3: 2.0 | K3: 2.5 | L3: 302,195 | M3: 168,940 | N3: 122,486 | O3: 36,450 | P3: 307 | Q3: 3,652 | R3: 5,411 | S3: 0 | T3: 0 | U3: 633 | V3: 102 | W3: 136 | X3: 88 | Y3: 113 | Z3: 138 | AA3: 175 | AB3: 126 | AC3: 116 | AD3: 139 | AE3: 170 | AF3: 127 | AG3: 116 | AH3: 141 | AI3: 173 | AJ3: 130 | AK3: 107 | AL3: 128 | AM3: 151 | AN3: 115 | AO3: 132 | AP3: 144 | AQ3: 159 | AR3: 185 | AS3: 153 | AT3: 142 | AU3: 154 | AV3: 175 | AW3: 150 | AX3: 143 | AY3: 156 | AZ3: 179 | BA3: 152 | BB3: 136 | BC3: 144 | BD3: 158 | BE3: 141 | BF3: 108 | BG3: 98 | BH3: 103 | BI3: 137 | BJ3: 134 | BK3: 137 | BL3: 97 | BM3: 122 | BN3: 169,990 | BO3: 0 | BP3: 0 | BQ3: 0 | BR3: 127 | BS3: 112 | BT3: 125 | BU3: 131 | BV3: 128 | BW3: 130 | BX3: 133 | BY3: 135 | BZ3: 127 | CA3: 124 | CB3: 119 | CC3: 116 | CD3: 114 | CE3: 113 | CF3: 113 | CG3: 118 | CH3: 118 | CI3: 113 | CJ3: 109 | CK3: 109 | CL3: 145 | CM3: 162 | CN3: 160 | CO3: 162 | CP3: 164 | CQ3: 169 | CR3: 152 | CS3: 147 | CT3: 138 | CU3: 92 | CV3: 81 | CW3: 78 | CX3: 80 | CY3: 78 | CZ3: 77 | DA3: 75 | DB3: 80 | DC3: 82 | DD3: 85 | DE3: 87 | DF3: 89 | DG3: 90 | DH3: 90 | DI3: 86 | DJ3: 86 | DK3: 90 | DL3: 93 | DM3: 93 | DN3: 70 | DO3: 63 | DP3: 63 | DQ3: 63 | DR3: 62 | DS3: 60 | DT3: 67 | DU3: 69 | DV3: 74 | DW3: 116 | DX3: 128 | DY3: 175 | DZ3: 160 | EA3: 130 | EB3: 141 | EC3: 128 | ED3: =MAX(AP3,AX3) -> 144 | EE3: =MAX(AR3,AZ3) -> 185 | EF3: =MAX(AS3,BA3) -> 153 | EG3: =MAX(AQ3,AY3) -> 159
A4: Flensburg | B4: Heide | C4: 1001000 | D4: 1051044 | E4: 70,290 | F4: 54.7941,9.44703 | G4: 54.19548,9.10174 | H4: 2.0 | I4: 1.0 | J4: 2.0 | K4: 2.5 | L4: 107,364 | M4: 87,950 | N4: 0 | O4: 83,846 | P4: 307 | Q4: 2,574 | R4: 1,226 | S4: 0 | T4: 0 | U4: 0 | V4: 66 | W4: 73 | X4: 55 | Y4: 73 | Z4: 87 | AA4: 105 | AB4: 80 | AC4: 75 | AD4: 87 | AE4: 105 | AF4: 81 | AG4: 72 | AH4: 84 | AI4: 103 | AJ4: 79 | AK4: 65 | AL4: 77 | AM4: 94 | AN4: 71 | AO4: 69 | AP4: 76 | AQ4: 88 | AR4: 106 | AS4: 82 | AT4: 77 | AU4: 88 | AV4: 105 | AW4: 83 | AX4: 75 | AY4: 85 | AZ4: 103 | BA4: 81 | BB4: 73 | BC4: 79 | BD4: 94 | BE4: 77 | BF4: 69 | BG4: 64 | BH4: 70 | BI4: 74 | BJ4: 72 | BK4: 75 | BL4: 62 | BM4: 73 | BN4: 93,200 | BO4: 0 | BP4: 0 | BQ4: 0 | BR4: 82 | BS4: 71 | BT4: 74 | BU4: 82 | BV4: 80 | BW4: 80 | BX4: 83 | BY4: 83 | BZ4: 82 | CA4: 80 | CB4: 76 | CC4: 74 | CD4: 76 | CE4: 76 | CF4: 73 | CG4: 76 | CH4: 76 | CI4: 75 | CJ4: 74 | CK4: 70 | CL4: 78 | CM4: 90 | CN4: 93 | CO4: 89 | CP4: 91 | CQ4: 91 | CR4: 91 | CS4: 86 | CT4: 80 | CU4: 77 | CV4: 72 | CW4: 66 | CX4: 70 | CY4: 70 | CZ4: 67 | DA4: 67 | DB4: 65 | DC4: 67 | DD4: 71 | DE4: 72 | DF4: 71 | DG4: 70 | DH4: 78 | DI4: 74 | DJ4: 74 | DK4: 71 | DL4: 73 | DM4: 76 | DN4: 69 | DO4: 59 | DP4: 57 | DQ4: 63 | DR4: 62 | DS4: 62 | DT4: 59 | DU4: 62 | DV4: 67 | DW4: 73 | DX4: 82 | DY4: 105 | DZ4: 93 | EA4: 80 | EB4: 87 | EC4: 78 | ED4: 76 | EE4: 106 | EF4: 82 | EG4: 88
A5: Flensburg | B5: Husum | C5: 1001000 | D5: 1054056 | E5: 42,620 | F5: 54.7941,9.44703 | G5: 54.48395,9.06001 | H5: 2.0 | I5: 1.0 | J5: 2.0 | K5: 2.5 | L5: 108,372 | M5: 46,130 | N5: 0 | O5: 39,099 | P5: 307 | Q5: 2,574 | R5: 3,448 | S5: 0 | T5: 286 | U5: 418 | V5: 38 | W5: 41 | X5: 32 | Y5: 42 | Z5: 51 | AA5: 65 | AB5: 47 | AC5: 41 | AD5: 49 | AE5: 61 | AF5: 46 | AG5: 40 | AH5: 48 | AI5: 60 | AJ5: 46 | AK5: 37 | AL5: 44 | AM5: 55 | AN5: 42 | AO5: 38 | AP5: 44 | AQ5: 51 | AR5: 65 | AS5: 49 | AT5: 43 | AU5: 49 | AV5: 61 | AW5: 47 | AX5: 43 | AY5: 48 | AZ5: 60 | BA5: 47 | BB5: 41 | BC5: 45 | BD5: 55 | BE5: 44 | BF5: 38 | BG5: 36 | BH5: 39 | BI5: 42 | BJ5: 41 | BK5: 42 | BL5: 36 | BM5: 44 | BN5: 46,320 | BO5: 0 | BP5: 0 | BQ5: 0 | BR5: 48 | BS5: 43 | BT5: 45 | BU5: 49 | BV5: 50 | BW5: 50 | BX5: 52 | BY5: 52 | BZ5: 50 | CA5: 49 | CB5: 46 | CC5: 45 | CD5: 45 | CE5: 45 | CF5: 45 | CG5: 47 | CH5: 46 | CI5: 46 | CJ5: 45 | CK5: 43 | CL5: 47 | CM5: 52 | CN5: 57 | CO5: 55 | CP5: 55 | CQ5: 55 | CR5: 56 | CS5: 53 | CT5: 48 | CU5: 68 | CV5: 63 | CW5: 57 | CX5: 56 | CY5: 56 | CZ5: 54 | DA5: 54 | DB5: 56 | DC5: 58 | DD5: 61 | DE5: 62 | DF5: 62 | DG5: 62 | DH5: 63 | DI5: 60 | DJ5: 61 | DK5: 61 | DL5: 63 | DM5: 66 | DN5: 60 | DO5: 54 | DP5: 50 | DQ5: 51 | DR5: 51 | DS5: 51 | DT5: 51 | DU5: 54 | DV5: 59 | DW5: 42 | DX5: 50 | DY5: 65 | DZ5: 57 | EA5: 47 | EB5: 51 | EC5: 44 | ED5: 44 | EE5: 65 | EF5: 49 | EG5: 51
A6: Flensburg | B6: Niebüll | C6: 1001000 | D6: 1054088 | E6: 39,700 | F6: 54.7941,9.44703 | G6: 54.7874,8.82997 | H6: 2.0 | I6: 1.0 | J6: 2.0 | K6: 2.5 | L6: 95,847 | M6: 45,900 | N6: 0 | O6: 31,982 | P6: 2,327 | Q6: 7,745 | R6: 3,850 | S6: 0 | T6: 0 | U6: 0 | V6: 42 | W6: 45 | X6: 35 | Y6: 47 | Z6: 59 | AA6: 77 | AB6: 54 | AC6: 46 | AD6: 56 | AE6: 72 | AF6: 53 | AG6: 46 | AH6: 56 | AI6: 75 | AJ6: 53 | AK6: 42 | AL6: 49 | AM6: 61 | AN6: 46 | AO6: 41 | AP6: 48 | AQ6: 59 | AR6: 77 | AS6: 55 | AT6: 48 | AU6: 57 | AV6: 72 | AW6: 54 | AX6: 48 | AY6: 57 | AZ6: 75 | BA6: 55 | BB6: 45 | BC6: 51 | BD6: 61 | BE6: 49 | BF6: 43 | BG6: 40 | BH6: 44 | BI6: 46 | BJ6: 43 | BK6: 46 | BL6: 39 | BM6: 49 | BN6: 46,470 | BO6: 0 | BP6: 0 | BQ6: 0 | BR6: 55 | BS6: 47 | BT6: 49 | BU6: 55 | BV6: 57 | BW6: 57 | BX6: 58 | BY6: 59 | BZ6: 58 | CA6: 56 | CB6: 52 | CC6: 47 | CD6: 51 | CE6: 52 | CF6: 50 | CG6: 52 | CH6: 51 | CI6: 52 | CJ6: 51 | CK6: 49 | CL6: 49 | CM6: 59 | CN6: 65 | CO6: 63 | CP6: 63 | CQ6: 65 | CR6: 68 | CS6: 62 | CT6: 54 | CU6: 59 | CV6: 58 | CW6: 52 | CX6: 50 | CY6: 50 | CZ6: 48 | DA6: 48 | DB6: 49 | DC6: 51 | DD6: 54 | DE6: 60 | DF6: 55 | DG6: 55 | DH6: 56 | DI6: 55 | DJ6: 55 | DK6: 54 | DL6: 56 | DM6: 58 | DN6: 57 | DO6: 48 | DP6: 43 | DQ6: 45 | DR6: 45 | DS6: 44 | DT6: 42 | DU6: 46 | DV6: 52 | DW6: 47 | DX6: 58 | DY6: 77 | DZ6: 68 | EA6: 54 | EB6: 59 | EC6: 50 | ED6: 48 | EE6: 77 | EF6: 55 | EG6: 59
A7: Flensburg | B7: Tönning | C7: 1001000 | D7: 1054138 | E7: 62,620 | F7: 54.7941,9.44703 | G7: 54.31554,8.9383 | H7: 2.0 | I7: 1.0 | J7: 2.0 | K7: 2.5 | L7: 90,837 | M7: 70,140 | N7: 0 | O7: 64,367 | P7: 307 | Q7: 2,574 | R7: 2,892 | S7: 0 | T7: 0 | U7: 0 | V7: 53 | W7: 58 | X7: 44 | Y7: 59 | Z7: 69 | AA7: 82 | AB7: 64 | AC7: 59 | AD7: 68 | AE7: 80 | AF7: 64 | AG7: 57 | AH7: 66 | AI7: 79 | AJ7: 62 | AK7: 52 | AL7: 61 | AM7: 74 | AN7: 57 | AO7: 55 | AP7: 61 | AQ7: 69 | AR7: 83 | AS7: 65 | AT7: 61 | AU7: 68 | AV7: 80 | AW7: 65 | AX7: 60 | AY7: 66 | AZ7: 79 | BA7: 64 | BB7: 58 | BC7: 62 | BD7: 74 | BE7: 61 | BF7: 54 | BG7: 50 | BH7: 55 | BI7: 59 | BJ7: 58 | BK7: 60 | BL7: 50 | BM7: 65 | BN7: 68,650 | BO7: 0 | BP7: 0 | BQ7: 0 | BR7: 66 | BS7: 59 | BT7: 60 | BU7: 67 | BV7: 68 | BW7: 68 | BX7: 70 | BY7: 70 | BZ7: 67 | CA7: 65 | CB7: 62 | CC7: 60 | CD7: 62 | CE7: 62 | CF7: 61 | CG7: 64 | CH7: 63 | CI7: 62 | CJ7: 60 | CK7: 58 | CL7: 63 | CM7: 72 | CN7: 75 | CO7: 75 | CP7: 75 | CQ7: 75 | CR7: 74 | CS7: 70 | CT7: 65 | CU7: 72 | CV7: 70 | CW7: 63 | CX7: 63 | CY7: 62 | CZ7: 60 | DA7: 60 | DB7: 63 | DC7: 65 | DD7: 69 | DE7: 71 | DF7: 69 | DG7: 69 | DH7: 69 | DI7: 66 | DJ7: 67 | DK7: 69 | DL7: 71 | DM7: 74 | DN7: 68 | DO7: 59 | DP7: 56 | DQ7: 57 | DR7: 57 | DS7: 57 | DT7: 58 | DU7: 61 | DV7: 66 | DW7: 59 | DX7: 68 | DY7: 82 | DZ7: 75 | EA7: 64 | EB7: 69 | EC7: 62 | ED7: 61 | EE7: 83 | EF7: 65 | EG7: 69
A8: Flensburg | B8: Eckernförde | C8: 1001000 | D8: 1058043 | E8: 44,150 | F8: 54.7941,9.44703 | G8: 54.46895,9.83852 | H8: 2.0 | I8: 1.0 | J8: 2.0 | K8: 2.5 | L8: 107,801 | M8: 69,190 | N8: 41,479 | O8: 5,901 | P8: 17,417 | Q8: 2,764 | R8: 1,226 | S8: 0 | T8: 0 | U8: 405 | V8: 45 | W8: 58 | X8: 36 | Y8: 46 | Z8: 56 | AA8: 75 | AB8: 52 | AC8: 47 | AD8: 58 | AE8: 74 | AF8: 53 | AG8: 47 | AH8: 58 | AI8: 74 | AJ8: 53 | AK8: 44 | AL8: 54 | AM8: 66 | AN8: 49 | AO8: 55 | AP8: 59 | AQ8: 66 | AR8: 80 | AS8: 64 | AT8: 59 | AU8: 65 | AV8: 76 | AW8: 63 | AX8: 59 | AY8: 65 | AZ8: 76 | BA8: 63 | BB8: 57 | BC8: 61 | BD8: 69 | BE8: 60 | BF8: 45 | BG8: 42 | BH8: 46 | BI8: 58 | BJ8: 56 | BK8: 58 | BL8: 39 | BM8: 48 | BN8: 68,810 | BO8: 0 | BP8: 0 | BQ8: 0 | BR8: 60 | BS8: 53 | BT8: 56 | BU8: 58 | BV8: 60 | BW8: 60 | BX8: 63 | BY8: 63 | BZ8: 61 | CA8: 60 | CB8: 58 | CC8: 56 | CD8: 53 | CE8: 55 | CF8: 53 | CG8: 56 | CH8: 56 | CI8: 56 | CJ8: 54 | CK8: 53 | CL8: 61 | CM8: 65 | CN8: 70 | CO8: 68 | CP8: 70 | CQ8: 71 | CR8: 71 | CS8: 69 | CT8: 63 | CU8: 73 | CV8: 67 | CW8: 65 | CX8: 63 | CY8: 63 | CZ8: 60 | DA8: 60 | DB8: 62 | DC8: 63 | DD8: 66 | DE8: 68 | DF8: 71 | DG8: 69 | DH8: 71 | DI8: 68 | DJ8: 68 | DK8: 68 | DL8: 70 | DM8: 71 | DN8: 62 | DO8: 59 | DP8: 54 | DQ8: 56 | DR8: 54 | DS8: 53 | DT8: 53 | DU8: 55 | DV8: 60 | DW8: 47 | DX8: 61 | DY8: 75 | DZ8: 71 | EA8: 53 | EB8: 58 | EC8: 53 | ED8: 59 | EE8: 80 | EF8: 64 | EG8: 66
A9: Flensburg | B9: Rendsburg | C9: 1001000 | D9: 1058135 | E9: 55,840 | F9: 54.7941,9.44703 | G9: 54.3081,9.66072 | H9: 2.0 | I9: 1.0 | J9: 2.0 | K9: 2.5 | L9: 113,559 | M9: 64,930 | N9: 48,842 | O9: 11,961 | P9: 307 | Q9: 2,597 | R9: 1,226 | S9: 0 | T9: 0 | U9: 0 | V9: 41 | W9: 55 | X9: 33 | Y9: 42 | Z9: 54 | AA9: 77 | AB9: 50 | AC9: 44 | AD9: 56 | AE9: 72 | AF9: 50 | AG9: 43 | AH9: 55 | AI9: 72 | AJ9: 51 | AK9: 40 | AL9: 51 | AM9: 65 | AN9: 46 | AO9: 52 | AP9: 57 | AQ9: 66 | AR9: 82 | AS9: 64 | AT9: 57 | AU9: 63 | AV9: 75 | AW9: 61 | AX9: 56 | AY9: 62 | AZ9: 75 | BA9: 61 | BB9: 54 | BC9: 59 | BD9: 68 | BE9: 58 | BF9: 41 | BG9: 38 | BH9: 42 | BI9: 55 | BJ9: 53 | BK9: 56 | BL9: 36 | BM9: 44 | BN9: 64,880 | BO9: 0 | BP9: 0 | BQ9: 0 | BR9: 53 | BS9: 46 | BT9: 50 | BU9: 51 | BV9: 53 | BW9: 53 | BX9: 55 | BY9: 57 | BZ9: 54 | CA9: 53 | CB9: 50 | CC9: 50 | CD9: 44 | CE9: 45 | CF9: 44 | CG9: 47 | CH9: 47 | CI9: 47 | CJ9: 45 | CK9: 44 | CL9: 57 | CM9: 62 | CN9: 67 | CO9: 65 | CP9: 66 | CQ9: 67 | CR9: 67 | CS9: 65 | CT9: 59 | CU9: 87 | CV9: 78 | CW9: 77 | CX9: 74 | CY9: 74 | CZ9: 71 | DA9: 69 | DB9: 72 | DC9: 74 | DD9: 78 | DE9: 79 | DF9: 89 | DG9: 87 | DH9: 89 | DI9: 83 | DJ9: 83 | DK9: 84 | DL9: 87 | DM9: 89 | DN9: 69 | DO9: 64 | DP9: 59 | DQ9: 60 | DR9: 60 | DS9: 58 | DT9: 59 | DU9: 60 | DV9: 66 | DW9: 43 | DX9: 54 | DY9: 77 | DZ9: 67 | EA9: 51 | EB9: 55 | EC9: 48 | ED9: 57 | EE9: 82 | EF9: 64 | EG9: 66
A10: Flensburg | B10: Kappeln | C10: 1001000 | D10: 1059045 | E10: 34,100 | F10: 54.7941,9.44703 | G10: 54.65951,9.92249 | H10: 2.0 | I10: 1.0 | J10: 2.0 | K10: 2.5 | L10: 94,651 | M10: 45,500 | N10: 0 | O10: 43,501 | P10: 0 | Q10: 0 | R10: 1,417 | S10: 579 | T10: 0 | U10: 0 | V10: 36 | W10: 38 | X10: 30 | Y10: 39 | Z10: 46 | AA10: 58 | AB10: 43 | AC10: 40 | AD10: 46 | AE10: 57 | AF10: 44 | AG10: 39 | AH10: 46 | AI10: 58 | AJ10: 44 | AK10: 36 | AL10: 42 | AM10: 50 | AN10: 39 | AO10: 36 | AP10: 40 | AQ10: 46 | AR10: 58 | AS10: 44 | AT10: 40 | AU10: 46 | AV10: 57 | AW10: 44 | AX10: 41 | AY10: 46 | AZ10: 58 | BA10: 45 | BB10: 38 | BC10: 42 | BD10: 50 | BE10: 41 | BF10: 36 | BG10: 33 | BH10: 37 | BI10: 39 | BJ10: 37 | BK10: 38 | BL10: 34 | BM10: 38 | BN10: 45,460 | BO10: 0 | BP10: 0 | BQ10: 0 | BR10: 52 | BS10: 48 | BT10: 49 | BU10: 51 | BV10: 52 | BW10: 52 | BX10: 54 | BY10: 53 | BZ10: 52 | CA10: 51 | CB10: 49 | CC10: 51 | CD10: 50 | CE10: 50 | CF10: 49 | CG10: 51 | CH10: 51 | CI10: 50 | CJ10: 50 | CK10: 49 | CL10: 51 | CM10: 53 | CN10: 56 | CO10: 54 | CP10: 56 | CQ10: 55 | CR10: 56 | CS10: 54 | CT10: 51 | CU10: 57 | CV10: 53 | CW10: 52 | CX10: 51 | CY10: 51 | CZ10: 49 | DA10: 50 | DB10: 51 | DC10: 52 | DD10: 54 | DE10: 51 | DF10: 55 | DG10: 55 | DH10: 53 | DI10: 52 | DJ10: 52 | DK10: 52 | DL10: 53 | DM10: 53 | DN10: 51 | DO10: 51 | DP10: 49 | DQ10: 49 | DR10: 47 | DS10: 48 | DT10: 47 | DU10: 49 | DV10: 51 | DW10: 39 | DX10: 52 | DY10: 58 | DZ10: 56 | EA10: 44 | EB10: 46 | EC10: 43 | ED10: 41 | EE10: 58 | EF10: 45 | EG10: 46
A11: Flensburg | B11: Schleswig | C11: 1001000 | D11: 1059075 | E11: 31,020 | F11: 54.7941,9.44703 | G11: 54.52372,9.56332 | H11: 2.0 | I11: 1.0 | J11: 2.0 | K11: 2.5 | L11: 110,208 | M11: 41,690 | N11: 24,721 | O11: 10,994 | P11: 307 | Q11: 2,932 | R11: 2,638 | S11: 0 | T11: 0 | U11: 94 | V11: 28 | W11: 36 | X11: 23 | Y11: 30 | Z11: 38 | AA11: 51 | AB11: 34 | AC11: 31 | AD11: 38 | AE11: 49 | AF11: 35 | AG11: 30 | AH11: 37 | AI11: 49 | AJ11: 34 | AK11: 28 | AL11: 35 | AM11: 44 | AN11: 32 | AO11: 34 | AP11: 38 | AQ11: 44 | AR11: 54 | AS11: 42 | AT11: 38 | AU11: 42 | AV11: 51 | AW11: 41 | AX11: 37 | AY11: 42 | AZ11: 50 | BA11: 41 | BB11: 36 | BC11: 40 | BD11: 46 | BE11: 39 | BF11: 29 | BG11: 26 | BH11: 29 | BI11: 37 | BJ11: 35 | BK11: 37 | BL11: 25 | BM11: 30 | BN11: 40,670 | BO11: 0 | BP11: 0 | BQ11: 0 | BR11: 37 | BS11: 34 | BT11: 36 | BU11: 36 | BV11: 38 | BW11: 38 | BX11: 39 | BY11: 40 | BZ11: 39 | CA11: 38 | CB11: 36 | CC11: 36 | CD11: 32 | CE11: 33 | CF11: 32 | CG11: 34 | CH11: 34 | CI11: 34 | CJ11: 33 | CK11: 32 | CL11: 41 | CM11: 41 | CN11: 46 | CO11: 45 | CP11: 45 | CQ11: 47 | CR11: 47 | CS11: 45 | CT11: 42 | CU11: 78 | CV11: 70 | CW11: 70 | CX11: 67 | CY11: 67 | CZ11: 65 | DA11: 63 | DB11: 65 | DC11: 67 | DD11: 70 | DE11: 70 | DF11: 80 | DG11: 78 | DH11: 79 | DI11: 74 | DJ11: 74 | DK11: 75 | DL11: 77 | DM11: 79 | DN11: 62 | DO11: 62 | DP11: 55 | DQ11: 56 | DR11: 56 | DS11: 55 | DT11: 54 | DU11: 56 | DV11: 61 | DW11: 30 | DX11: 39 | DY11: 51 | DZ11: 47 | EA11: 34 | EB11: 38 | EC11: 34 | ED11: 38 | EE11: 54 | EF11: 42 | EG11: 44
A12: Flensburg | B12: Tarp | C12: 1001000 | D12: 1059171 | E12: 14,720 | F12: 54.7941,9.44703 | G12: 54.6653,9.39549 | H12: 1.0 | I12: 1.0 | J12: 2.0 | K12: 2.5 | L12: 91,314 | M12: 21,500 | N12: 8,275 | O12: 5,760 | P12: 756 | Q12: 5,293 | R12: 1,226 | S12: 0 | T12: 0 | U12: 194 | V12: 18 | W12: 21 | X12: 14 | Y12: 18 | Z12: 24 | AA12: 34 | AB12: 22 | AC12: 18 | AD12: 23 | AE12: 33 | AF12: 22 | AG12: 18 | AH12: 23 | AI12: 32 | AJ12: 22 | AK12: 17 | AL12: 22 | AM12: 29 | AN12: 20 | AO12: 19 | AP12: 22 | AQ12: 26 | AR12: 36 | AS12: 25 | AT12: 22 | AU12: 25 | AV12: 33 | AW12: 25 | AX12: 22 | AY12: 25 | AZ12: 33 | BA12: 25 | BB12: 21 | BC12: 24 | BD12: 29 | BE12: 23 | BF12: 18 | BG12: 16 | BH12: 18 | BI12: 21 | BJ12: 20 | BK12: 22 | BL12: 15 | BM12: 18 | BN12: 21,280 | BO12: 0 | BP12: 0 | BQ12: 0 | BR12: 25 | BS12: 23 | BT12: 24 | BU12: 25 | BV12: 25 | BW12: 26 | BX12: 27 | BY12: 27 | BZ12: 27 | CA12: 26 | CB12: 25 | CC12: 24 | CD12: 22 | CE12: 22 | CF12: 22 | CG12: 23 | CH12: 23 | CI12: 23 | CJ12: 23 | CK12: 23 | CL12: 25 | CM12: 26 | CN12: 29 | CO12: 30 | CP12: 29 | CQ12: 31 | CR12: 32 | CS12: 30 | CT12: 28 | CU12: 51 | CV12: 56 | CW12: 55 | CX12: 54 | CY12: 53 | CZ12: 51 | DA12: 50 | DB12: 51 | DC12: 53 | DD12: 55 | DE12: 52 | DF12: 62 | DG12: 63 | DH12: 62 | DI12: 59 | DJ12: 60 | DK12: 59 | DL12: 61 | DM12: 61 | DN12: 49 | DO12: 52 | DP12: 47 | DQ12: 46 | DR12: 46 | DS12: 44 | DT12: 43 | DU12: 45 | DV12: 49 | DW12: 18 | DX12: 27 | DY12: 34 | DZ12: 32 | EA12: 22 | EB12: 24 | EC12: 20 | ED12: 22 | EE12: 36 | EF12: 25 | EG12: 26
A13: Flensburg | B13: Hamburg | C13: 1001000 | D13: 2000000 | E13: 142,890 | F13: 54.7941,9.44703 | G13: 53.55107,9.99367 | H13: 2.5 | I13: 2.0 | J13: 2.0 | K13: 2.5 | L13: 1,873,350 | M13: 160,180 | N13: 141,781 | O13: 7,825 | P13: 4,488 | Q13: 3,044 | R13: 1,813 | S13: 0 | T13: 1,145 | U13: 80 | V13: 98 | W13: 131 | X13: 85 | Y13: 107 | Z13: 133 | AA13: 178 | AB13: 124 | AC13: 110 | AD13: 134 | AE13: 169 | AF13: 125 | AG13: 112 | AH13: 142 | AI13: 189 | AJ13: 133 | AK13: 105 | AL13: 128 | AM13: 154 | AN13: 115 | AO13: 126 | AP13: 135 | AQ13: 151 | AR13: 186 | AS13: 148 | AT13: 134 | AU13: 147 | AV13: 174 | AW13: 144 | AX13: 137 | AY13: 155 | AZ13: 193 | BA13: 152 | BB13: 132 | BC13: 142 | BD13: 160 | BE13: 139 | BF13: 105 | BG13: 93 | BH13: 98 | BI13: 132 | BJ13: 127 | BK13: 132 | BL13: 82 | BM13: 132 | BN13: 158,080 | BO13: 0 | BP13: 0 | BQ13: 0 | BR13: 125 | BS13: 106 | BT13: 119 | BU13: 135 | BV13: 135 | BW13: 128 | BX13: 133 | BY13: 138 | BZ13: 129 | CA13: 125 | CB13: 120 | CC13: 110 | CD13: 116 | CE13: 118 | CF13: 111 | CG13: 115 | CH13: 119 | CI13: 112 | CJ13: 108 | CK13: 106 | CL13: 145 | CM13: 199 | CN13: 182 | CO13: 165 | CP13: 169 | CQ13: 179 | CR13: 163 | CS13: 157 | CT13: 145 | CU13: 92 | CV13: 81 | CW13: 71 | CX13: 72 | CY13: 75 | CZ13: 73 | DA13: 70 | DB13: 75 | DC13: 77 | DD13: 81 | DE13: 88 | DF13: 83 | DG13: 82 | DH13: 87 | DI13: 84 | DJ13: 81 | DK13: 86 | DL13: 89 | DM13: 91 | DN13: 67 | DO13: 49 | DP13: 53 | DQ13: 58 | DR13: 57 | DS13: 54 | DT13: 59 | DU13: 61 | DV13: 67 | DW13: 112 | DX13: 135 | DY13: 189 | DZ13: 182 | EA13: 133 | EB13: 142 | EC13: 126 | ED13: 137 | EE13: 193 | EF13: 152 | EG13: 155
A14: Flensburg | B14: Braunschweig | C14: 1001000 | D14: 3101000 | E14: 290,020 | F14: 54.7941,9.44703 | G14: 52.26871,10.52621 | H14: 2.5 | I14: 2.0 | J14: 2.0 | K14: 2.5 | L14: 337,306 | M14: 358,580 | N14: 345,703 | O14: 5,760 | P14: 1,617 | Q14: 2,574 | R14: 2,927 | S14: 0 | T14: 0 | U14: 0 | V14: 191 | W14: 276 | X14: 167 | Y14: 202 | Z14: 241 | AA14: 307 | AB14: 224 | AC14: 212 | AD14: 252 | AE14: 304 | AF14: 233 | AG14: 212 | AH14: 256 | AI14: 325 | AJ14: 246 | AK14: 203 | AL14: 244 | AM14: 289 | AN14: 224 | AO14: 272 | AP14: 280 | AQ14: 295 | AR14: 328 | AS14: 292 | AT14: 279 | AU14: 291 | AV14: 316 | AW14: 288 | AX14: 280 | AY14: 294 | AZ14: 336 | BA14: 294 | BB14: 276 | BC14: 284 | BD14: 302 | BE14: 282 | BF14: 206 | BG14: 187 | BH14: 194 | BI14: 276 | BJ14: 273 | BK14: 276 | BL14: 189 | BM14: 278 | BN14: 334,090 | BO14: 0 | BP14: 0 | BQ14: 0 | BR14: 229 | BS14: 202 | BT14: 231 | BU14: 239 | BV14: 239 | BW14: 243 | BX14: 257 | BY14: 256 | BZ14: 236 | CA14: 233 | CB14: 230 | CC14: 209 | CD14: 209 | CE14: 210 | CF14: 213 | CG14: 221 | CH14: 223 | CI14: 210 | CJ14: 206 | CK14: 209 | CL14: 283 | CM14: 314 | CN14: 300 | CO14: 301 | CP14: 326 | CQ14: 322 | CR14: 287 | CS14: 286 | CT14: 280 | CU14: 107 | CV14: 93 | CW14: 90 | CX14: 90 | CY14: 89 | CZ14: 84 | DA14: 84 | DB14: 91 | DC14: 92 | DD14: 94 | DE14: 103 | DF14: 103 | DG14: 103 | DH14: 101 | DI14: 97 | DJ14: 97 | DK14: 103 | DL14: 105 | DM14: 103 | DN14: 76 | DO14: 69 | DP14: 72 | DQ14: 72 | DR14: 66 | DS14: 67 | DT14: 75 | DU14: 75 | DV14: 77 | DW14: 212 | DX14: 239 | DY14: 325 | DZ14: 300 | EA14: 246 | EB14: 256 | EC14: 244 | ED14: 280 | EE14: 336 | EF14: 294 | EG14: 295
A15: Flensburg | B15: Hannover | C15: 1001000 | D15: 3241001 | E15: 269,800 | F15: 54.7941,9.44703 | G15: 52.37587,9.73201 | H15: 2.5 | I15: 2.0 | J15: 2.0 | K15: 2.5 | L15: 618,105 | M15: 309,880 | N15: 290,968 | O15: 8,384 | P15: 5,650 | Q15: 2,574 | R15: 1,461 | S15: 642 | T15: 19 | U15: 180 | V15: 171 | W15: 242 | X15: 148 | Y15: 181 | Z15: 217 | AA15: 280 | AB15: 202 | AC15: 188 | AD15: 223 | AE15: 272 | AF15: 207 | AG15: 190 | AH15: 233 | AI15: 302 | AJ15: 223 | AK15: 181 | AL15: 217 | AM15: 260 | AN15: 199 | AO15: 237 | AP15: 246 | AQ15: 264 | AR15: 299 | AS15: 260 | AT15: 245 | AU15: 258 | AV15: 283 | AW15: 255 | AX15: 247 | AY15: 267 | AZ15: 313 | BA15: 265 | BB15: 242 | BC15: 252 | BD15: 273 | BE15: 250 | BF15: 183 | BG15: 167 | BH15: 173 | BI15: 242 | BJ15: 238 | BK15: 243 | BL15: 152 | BM15: 244 | BN15: 309,960 | BO15: 0 | BP15: 0 | BQ15: 0 | BR15: 208 | BS15: 184 | BT15: 211 | BU15: 218 | BV15: 216 | BW15: 219 | BX15: 236 | BY15: 236 | BZ15: 214 | CA15: 210 | CB15: 207 | CC15: 192 | CD15: 193 | CE15: 190 | CF15: 192 | CG15: 202 | CH15: 206 | CI15: 190 | CJ15: 185 | CK15: 188 | CL15: 265 | CM15: 289 | CN15: 272 | CO15: 273 | CP15: 302 | CQ15: 298 | CR15: 258 | CS15: 258 | CT15: 249 | CU15: 104 | CV15: 91 | CW15: 88 | CX15: 88 | CY15: 87 | CZ15: 81 | DA15: 81 | DB15: 89 | DC15: 91 | DD15: 92 | DE15: 100 | DF15: 99 | DG15: 101 | DH15: 99 | DI15: 95 | DJ15: 93 | DK15: 101 | DL15: 103 | DM15: 102 | DN15: 72 | DO15: 66 | DP15: 70 | DQ15: 70 | DR15: 63 | DS15: 64 | DT15: 74 | DU15: 74 | DV15: 77 | DW15: 190 | DX15: 216 | DY15: 302 | DZ15: 272 | EA15: 223 | EB15: 233 | EC15: 217 | ED15: 247 | EE15: 313 | EF15: 265 | EG15: 267
A16: Flensburg | B16: Hildesheim | C16: 1001000 | D16: 3254021 | E16: 295,700 | F16: 54.7941,9.44703 | G16: 52.15477,9.958 | H16: 2.5 | I16: 2.0 | J16: 2.0 | K16: 2.5 | L16: 187,609 | M16: 336,390 | N16: 322,708 | O16: 9,161 | P16: 307 | Q16: 2,896 | R16: 1,226 | S16: 88 | T16: 0 | U16: 0 | V16: 177 | W16: 257 | X16: 154 | Y16: 186 | Z16: 217 | AA16: 274 | AB16: 202 | AC16: 194 | AD16: 227 | AE16: 273 | AF16: 211 | AG16: 194 | AH16: 230 | AI16: 288 | AJ16: 221 | AK16: 187 | AL16: 223 | AM16: 262 | AN16: 204 | AO16: 254 | AP16: 261 | AQ16: 271 | AR16: 296 | AS16: 269 | AT16: 260 | AU16: 268 | AV16: 286 | AW16: 266 | AX16: 260 | AY16: 270 | AZ16: 301 | BA16: 271 | BB16: 257 | BC16: 263 | BD16: 277 | BE16: 262 | BF16: 190 | BG16: 175 | BH16: 180 | BI16: 258 | BJ16: 256 | BK16: 258 | BL16: 160 | BM16: 252 | BN16: 336,310 | BO16: 0 | BP16: 0 | BQ16: 0 | BR16: 215 | BS16: 190 | BT16: 213 | BU16: 222 | BV16: 222 | BW16: 225 | BX16: 239 | BY16: 238 | BZ16: 220 | CA16: 218 | CB16: 215 | CC16: 195 | CD16: 195 | CE16: 194 | CF16: 197 | CG16: 206 | CH16: 208 | CI16: 196 | CJ16: 192 | CK16: 195 | CL16: 263 | CM16: 295 | CN16: 279 | CO16: 280 | CP16: 304 | CQ16: 303 | CR16: 268 | CS16: 267 | CT16: 260 | CU16: 107 | CV16: 95 | CW16: 91 | CX16: 91 | CY16: 90 | CZ16: 85 | DA16: 85 | DB16: 92 | DC16: 93 | DD16: 94 | DE16: 104 | DF16: 103 | DG16: 104 | DH16: 103 | DI16: 98 | DJ16: 97 | DK16: 103 | DL16: 105 | DM16: 103 | DN16: 77 | DO16: 69 | DP16: 72 | DQ16: 72 | DR16: 66 | DS16: 67 | DT16: 76 | DU16: 76 | DV16: 78 | DW16: 194 | DX16: 222 | DY16: 288 | DZ16: 279 | EA16: 221 | EB16: 230 | EC16: 224 | ED16: 261 | EE16: 301 | EF16: 271 | EG16: 271
A17: Flensburg | B17: Celle | C17: 1001000 | D17: 3351006 | E17: 245,640 | F17: 54.7941,9.44703 | G17: 52.61748,10.06274 | H17: 2.5 | I17: 2.0 | J17: 2.0 | K17: 2.5 | L17: 155,690 | M17: 279,060 | N17: 225,884 | O17: 43,900 | P17: 3,074 | Q17: 2,574 | R17: 1,226 | S17: 2,091 | T17: 0 | U17: 310 | V17: 160 | W17: 218 | X17: 140 | Y17: 172 | Z17: 204 | AA17: 254 | AB17: 190 | AC17: 178 | AD17: 209 | AE17: 249 | AF17: 193 | AG17: 177 | AH17: 210 | AI17: 266 | AJ17: 201 | AK17: 169 | AL17: 199 | AM17: 233 | AN17: 182 | AO17: 214 | AP17: 223 | AQ17: 239 | AR17: 270 | AS17: 235 | AT17: 222 | AU17: 234 | AV17: 258 | AW17: 230 | AX17: 222 | AY17: 236 | AZ17: 275 | BA17: 236 | BB17: 218 | BC17: 226 | BD17: 243 | BE17: 224 | BF17: 174 | BG17: 160 | BH17: 165 | BI17: 221 | BJ17: 218 | BK17: 220 | BL17: 147 | BM17: 216 | BN17: 279,330 | BO17: 0 | BP17: 0 | BQ17: 0 | BR17: 193 | BS17: 170 | BT17: 190 | BU17: 199 | BV17: 200 | BW17: 197 | BX17: 204 | BY17: 206 | BZ17: 193 | CA17: 190 | CB17: 188 | CC17: 174 | CD17: 177 | CE17: 178 | CF17: 176 | CG17: 182 | CH17: 183 | CI17: 176 | CJ17: 171 | CK17: 172 | CL17: 229 | CM17: 259 | CN17: 248 | CO17: 237 | CP17: 244 | CQ17: 251 | CR17: 229 | CS17: 227 | CT17: 221 | CU17: 99 | CV17: 88 | CW17: 84 | CX17: 84 | CY17: 85 | CZ17: 82 | DA17: 81 | DB17: 87 | DC17: 88 | DD17: 89 | DE17: 96 | DF17: 95 | DG17: 94 | DH17: 95 | DI17: 92 | DJ17: 92 | DK17: 95 | DL17: 98 | DM17: 98 | DN17: 73 | DO17: 65 | DP17: 68 | DQ17: 71 | DR17: 69 | DS17: 67 | DT17: 73 | DU17: 74 | DV17: 76 | DW17: 177 | DX17: 200 | DY17: 266 | DZ17: 248 | EA17: 201 | EB17: 210 | EC17: 203 | ED17: 223 | EE17: 275 | EF17: 236 | EG17: 239
A18: Flensburg | B18: Lüneburg | C18: 1001000 | D18: 3355022 | E18: 183,490 | F18: 54.7941,9.44703 | G18: 53.24645,10.41144 | H18: 2.5 | I18: 2.0 | J18: 2.0 | K18: 2.5 | L18: 160,014 | M18: 215,630 | N18: 199,533 | O18: 8,362 | P18: 3,270 | Q18: 2,980 | R18: 1,322 | S18: 0 | T18: 0 | U18: 166 | V18: 121 | W18: 168 | X18: 105 | Y18: 132 | Z18: 162 | AA18: 207 | AB18: 149 | AC18: 137 | AD18: 165 | AE18: 198 | AF18: 150 | AG18: 135 | AH18: 165 | AI18: 213 | AJ18: 158 | AK18: 128 | AL18: 152 | AM18: 179 | AN18: 138 | AO18: 165 | AP18: 173 | AQ18: 188 | AR18: 217 | AS18: 184 | AT18: 172 | AU18: 184 | AV18: 205 | AW18: 180 | AX18: 172 | AY18: 185 | AZ18: 222 | BA18: 186 | BB18: 168 | BC18: 175 | BD18: 189 | BE18: 173 | BF18: 130 | BG18: 117 | BH18: 122 | BI18: 169 | BJ18: 166 | BK18: 168 | BL18: 106 | BM18: 165 | BN18: 214,470 | BO18: 0 | BP18: 0 | BQ18: 0 | BR18: 150 | BS18: 132 | BT18: 148 | BU18: 158 | BV18: 157 | BW18: 154 | BX18: 159 | BY18: 167 | BZ18: 151 | CA18: 147 | CB18: 145 | CC18: 137 | CD18: 140 | CE18: 140 | CF18: 137 | CG18: 141 | CH18: 146 | CI18: 137 | CJ18: 132 | CK18: 132 | CL18: 177 | CM18: 213 | CN18: 201 | CO18: 188 | CP18: 194 | CQ18: 214 | CR18: 180 | CS18: 178 | CT18: 170 | CU18: 99 | CV18: 88 | CW18: 82 | CX18: 83 | CY18: 84 | CZ18: 82 | DA18: 78 | DB18: 86 | DC18: 88 | DD18: 89 | DE18: 95 | DF18: 93 | DG18: 92 | DH18: 95 | DI18: 92 | DJ18: 89 | DK18: 95 | DL18: 99 | DM18: 98 | DN18: 73 | DO18: 61 | DP18: 65 | DQ18: 69 | DR18: 67 | DS18: 60 | DT18: 72 | DU18: 73 | DV18: 76 | DW18: 135 | DX18: 157 | DY18: 213 | DZ18: 201 | EA18: 158 | EB18: 165 | EC18: 154 | ED18: 173 | EE18: 222 | EF18: 186 | EG18: 188
A19: Flensburg | B19: Oldenburg (Oldb) | C19: 1001000 | D19: 3403000 | E19: 200,730 | F19: 54.7941,9.44703 | G19: 53.14345,8.21456 | H19: 2.5 | I19: 2.0 | J19: 2.0 | K19: 2.5 | L19: 249,772 | M19: 314,450 | N19: 301,137 | O19: 5,760 | P19: 307 | Q19: 4,091 | R19: 3,160 | S19: 0 | T19: 0 | U19: 0 | V19: 168 | W19: 242 | X19: 146 | Y19: 182 | Z19: 220 | AA19: 281 | AB19: 203 | AC19: 188 | AD19: 224 | AE19: 270 | AF19: 206 | AG19: 196 | AH19: 241 | AI19: 318 | AJ19: 226 | AK19: 178 | AL19: 212 | AM19: 251 | AN19: 193 | AO19: 239 | AP19: 248 | AQ19: 264 | AR19: 297 | AS19: 260 | AT19: 247 | AU19: 258 | AV19: 281 | AW19: 254 | AX19: 254 | AY19: 277 | AZ19: 331 | BA19: 273 | BB19: 243 | BC19: 250 | BD19: 266 | BE19: 248 | BF19: 181 | BG19: 166 | BH19: 171 | BI19: 243 | BJ19: 240 | BK19: 243 | BL19: 151 | BM19: 251 | BN19: 315,000 | BO19: 0 | BP19: 0 | BQ19: 0 | BR19: 204 | BS19: 179 | BT19: 204 | BU19: 211 | BV19: 211 | BW19: 211 | BX19: 222 | BY19: 230 | BZ19: 202 | CA19: 198 | CB19: 198 | CC19: 184 | CD19: 185 | CE19: 186 | CF19: 185 | CG19: 192 | CH19: 196 | CI19: 182 | CJ19: 177 | CK19: 179 | CL19: 257 | CM19: 284 | CN19: 273 | CO19: 269 | CP19: 280 | CQ19: 295 | CR19: 247 | CS19: 246 | CT19: 237 | CU19: 106 | CV19: 92 | CW19: 90 | CX19: 90 | CY19: 90 | CZ19: 85 | DA19: 82 | DB19: 93 | DC19: 95 | DD19: 96 | DE19: 102 | DF19: 102 | DG19: 101 | DH19: 102 | DI19: 98 | DJ19: 96 | DK19: 104 | DL19: 107 | DM19: 106 | DN19: 74 | DO19: 67 | DP19: 69 | DQ19: 70 | DR19: 67 | DS19: 64 | DT19: 76 | DU19: 77 | DV19: 80 | DW19: 196 | DX19: 211 | DY19: 318 | DZ19: 273 | EA19: 226 | EB19: 241 | EC19: 214 | ED19: 254 | EE19: 331 | EF19: 273 | EG19: 277
A20: Flensburg | B20: Osnabrück | C20: 1001000 | D20: 3404000 | E20: 294,800 | F20: 54.7941,9.44703 | G20: 52.27991,8.04717 | H20: 2.5 | I20: 2.0 | J20: 2.0 | K20: 2.5 | L20: 248,345 | M20: 379,310 | N20: 360,774 | O20: 13,701 | P20: 882 | Q20: 2,574 | R20: 1,304 | S20: 0 | T20: 0 | U20: 71 | V20: 199 | W20: 291 | X20: 170 | Y20: 210 | Z20: 254 | AA20: 335 | AB20: 235 | AC20: 217 | AD20: 258 | AE20: 315 | AF20: 238 | AG20: 225 | AH20: 275 | AI20: 363 | AJ20: 258 | AK20: 209 | AL20: 251 | AM20: 300 | AN20: 229 | AO20: 287 | AP20: 298 | AQ20: 316 | AR20: 354 | AS20: 311 | AT20: 294 | AU20: 304 | AV20: 329 | AW20: 302 | AX20: 301 | AY20: 323 | AZ20: 378 | BA20: 320 | BB20: 291 | BC20: 298 | BD20: 317 | BE20: 298 | BF20: 212 | BG20: 195 | BH20: 201 | BI20: 291 | BJ20: 288 | BK20: 291 | BL20: 177 | BM20: 305 | BN20: 379,130 | BO20: 0 | BP20: 0 | BQ20: 0 | BR20: 241 | BS20: 213 | BT20: 243 | BU20: 248 | BV20: 247 | BW20: 248 | BX20: 261 | BY20: 267 | BZ20: 239 | CA20: 236 | CB20: 237 | CC20: 217 | CD20: 215 | CE20: 214 | CF20: 216 | CG20: 225 | CH20: 227 | CI20: 213 | CJ20: 209 | CK20: 213 | CL20: 305 | CM20: 335 | CN20: 316 | CO20: 321 | CP20: 334 | CQ20: 345 | CR20: 297 | CS20: 294 | CT20: 287 | CU20: 108 | CV20: 94 | CW20: 92 | CX20: 93 | CY20: 92 | CZ20: 87 | DA20: 86 | DB20: 95 | DC20: 97 | DD20: 96 | DE20: 105 | DF20: 106 | DG20: 106 | DH20: 105 | DI20: 102 | DJ20: 100 | DK20: 107 | DL20: 109 | DM20: 107 | DN20: 75 | DO20: 68 | DP20: 72 | DQ20: 71 | DR20: 68 | DS20: 66 | DT20: 77 | DU20: 78 | DV20: 80 | DW20: 225 | DX20: 247 | DY20: 363 | DZ20: 316 | EA20: 258 | EB20: 275 | EC20: 251 | ED20: 301 | EE20: 378 | EF20: 320 | EG20: 323
A21: Flensburg | B21: Bremen | C21: 1001000 | D21: 4011000 | E21: 195,520 | F21: 54.7941,9.44703 | G21: 53.07924,8.80177 | H21: 2.5 | I21: 2.0 | J21: 2.0 | K21: 2.5 | L21: 643,406 | M21: 274,270 | N21: 258,578 | O21: 9,690 | P21: 1,174 | Q21: 2,574 | R21: 2,084 | S21: 0 | T21: 0 | U21: 175 | V21: 149 | W21: 212 | X21: 127 | Y21: 158 | Z21: 190 | AA21: 246 | AB21: 177 | AC21: 163 | AD21: 194 | AE21: 233 | AF21: 179 | AG21: 164 | AH21: 200 | AI21: 269 | AJ21: 193 | AK21: 156 | AL21: 185 | AM21: 221 | AN21: 168 | AO21: 208 | AP21: 217 | AQ21: 231 | AR21: 260 | AS21: 228 | AT21: 215 | AU21: 225 | AV21: 243 | AW21: 222 | AX21: 216 | AY21: 232 | AZ21: 280 | BA21: 235 | BB21: 212 | BC21: 219 | BD21: 234 | BE21: 217 | BF21: 158 | BG21: 145 | BH21: 151 | BI21: 213 | BJ21: 210 | BK21: 213 | BL21: 132 | BM21: 217 | BN21: 268,860 | BO21: 0 | BP21: 0 | BQ21: 0 | BR21: 180 | BS21: 158 | BT21: 178 | BU21: 187 | BV21: 186 | BW21: 185 | BX21: 193 | BY21: 199 | BZ21: 180 | CA21: 176 | CB21: 175 | CC21: 161 | CD21: 162 | CE21: 163 | CF21: 162 | CG21: 168 | CH21: 170 | CI21: 160 | CJ21: 155 | CK21: 157 | CL21: 224 | CM21: 253 | CN21: 242 | CO21: 236 | CP21: 246 | CQ21: 256 | CR21: 219 | CS21: 218 | CT21: 210 | CU21: 103 | CV21: 91 | CW21: 87 | CX21: 87 | CY21: 87 | CZ21: 84 | DA21: 81 | DB21: 90 | DC21: 92 | DD21: 92 | DE21: 101 | DF21: 100 | DG21: 99 | DH21: 100 | DI21: 96 | DJ21: 95 | DK21: 103 | DL21: 106 | DM21: 103 | DN21: 72 | DO21: 64 | DP21: 67 | DQ21: 69 | DR21: 66 | DS21: 63 | DT21: 75 | DU21: 76 | DV21: 77 | DW21: 164 | DX21: 186 | DY21: 269 | DZ21: 242 | EA21: 193 | EB21: 200 | EC21: 187 | ED21: 217 | EE21: 280 | EF21: 235 | EG21: 232
A22: Flensburg | B22: Bremerhaven | C22: 1001000 | D22: 4012000 | E22: 150,660 | F22: 54.7941,9.44703 | G22: 53.53961,8.58086 | H22: 2.5 | I22: 2.0 | J22: 2.0 | K22: 2.5 | L22: 199,967 | M22: 325,720 | N22: 311,302 | O22: 6,240 | P22: 1,078 | Q22: 2,574 | R22: 4,284 | S22: 0 | T22: 0 | U22: 241 | V22: 173 | W22: 251 | X22: 148 | Y22: 184 | Z22: 219 | AA22: 281 | AB22: 203 | AC22: 189 | AD22: 224 | AE22: 272 | AF22: 207 | AG22: 187 | AH22: 222 | AI22: 283 | AJ22: 212 | AK22: 180 | AL22: 212 | AM22: 255 | AN22: 194 | AO22: 248 | AP22: 256 | AQ22: 269 | AR22: 298 | AS22: 267 | AT22: 254 | AU22: 264 | AV22: 285 | AW22: 262 | AX22: 254 | AY22: 266 | AZ22: 300 | BA22: 267 | BB22: 252 | BC22: 258 | BD22: 274 | BE22: 257 | BF22: 184 | BG22: 171 | BH22: 176 | BI22: 252 | BJ22: 250 | BK22: 252 | BL22: 156 | BM22: 241 | BN22: 325,570 | BO22: 0 | BP22: 0 | BQ22: 0 | BR22: 210 | BS22: 186 | BT22: 211 | BU22: 216 | BV22: 217 | BW22: 214 | BX22: 223 | BY22: 225 | BZ22: 207 | CA22: 204 | CB22: 205 | CC22: 190 | CD22: 190 | CE22: 192 | CF22: 189 | CG22: 195 | CH22: 202 | CI22: 187 | CJ22: 182 | CK22: 186 | CL22: 261 | CM22: 291 | CN22: 279 | CO22: 269 | CP22: 279 | CQ22: 277 | CR22: 253 | CS22: 252 | CT22: 247 | CU22: 107 | CV22: 94 | CW22: 91 | CX22: 91 | CY22: 92 | CZ22: 89 | DA22: 88 | DB22: 96 | DC22: 97 | DD22: 97 | DE22: 104 | DF22: 104 | DG22: 103 | DH22: 105 | DI22: 101 | DJ22: 98 | DK22: 106 | DL22: 108 | DM22: 106 | DN22: 76 | DO22: 68 | DP22: 71 | DQ22: 74 | DR22: 71 | DS22: 71 | DT22: 78 | DU22: 79 | DV22: 80 | DW22: 187 | DX22: 217 | DY22: 283 | DZ22: 279 | EA22: 212 | EB22: 222 | EC22: 216 | ED22: 256 | EE22: 300 | EF22: 267 | EG22: 269
A23: Flensburg | B23: Köln | C23: 1001000 | D23: 5315000 | E23: 460,620 | F23: 54.7941,9.44703 | G23: 50.93753,6.96028 | H23: 2.5 | I23: 2.0 | J23: 2.0 | K23: 2.5 | L23: 1,146,524 | M23: 573,550 | N23: 556,859 | O23: 9,546 | P23: 3,170 | Q23: 2,574 | R23: 1,226 | S23: 0 | T23: 0 | U23: 177 | V23: 299 | W23: 438 | X23: 254 | Y23: 321 | Z23: 383 | AA23: 496 | AB23: 358 | AC23: 327 | AD23: 386 | AE23: 475 | AF23: 360 | AG23: 336 | AH23: 407 | AI23: 530 | AJ23: 384 | AK23: 312 | AL23: 371 | AM23: 443 | AN23: 338 | AO23: 433 | AP23: 444 | AQ23: 466 | AR23: 520 | AS23: 461 | AT23: 442 | AU23: 457 | AV23: 494 | AW23: 454 | AX23: 449 | AY23: 479 | AZ23: 553 | BA23: 474 | BB23: 438 | BC23: 447 | BD23: 472 | BE23: 446 | BF23: 318 | BG23: 293 | BH23: 304 | BI23: 439 | BJ23: 435 | BK23: 439 | BL23: 269 | BM23: 481 | BN23: 577,490 | BO23: 0 | BP23: 0 | BQ23: 0 | BR23: 362 | BS23: 325 | BT23: 377 | BU23: 372 | BV23: 373 | BW23: 381 | BX23: 402 | BY23: 393 | BZ23: 359 | CA23: 354 | CB23: 358 | CC23: 336 | CD23: 328 | CE23: 328 | CF23: 332 | CG23: 345 | CH23: 340 | CI23: 321 | CJ23: 318 | CK23: 325 | CL23: 485 | CM23: 492 | CN23: 494 | CO23: 515 | CP23: 530 | CQ23: 503 | CR23: 443 | CS23: 440 | CT23: 432 | CU23: 106 | CV23: 92 | CW23: 93 | CX23: 93 | CY23: 91 | CZ23: 87 | DA23: 89 | DB23: 97 | DC23: 98 | DD23: 97 | DE23: 104 | DF23: 106 | DG23: 106 | DH23: 105 | DI23: 101 | DJ23: 102 | DK23: 108 | DL23: 109 | DM23: 107 | DN23: 72 | DO23: 71 | DP23: 70 | DQ23: 68 | DR23: 66 | DS23: 69 | DT23: 79 | DU23: 79 | DV23: 80 | DW23: 336 | DX23: 373 | DY23: 530 | DZ23: 494 | EA23: 384 | EB23: 407 | EC23: 374 | ED23: 449 | EE23: 553 | EF23: 474 | EG23: 479
A24: Flensburg | B24: Bielefeld | C24: 1001000 | D24: 5711000 | E24: 313,560 | F24: 54.7941,9.44703 | G24: 52.0301,8.53274 | H24: 2.5 | I24: 2.0 | J24: 2.0 | K24: 2.5 | L24: 419,032 | M24: 406,920 | N24: 385,363 | O24: 6,028 | P24: 681 | Q24: 12,137 | R24: 2,557 | S24: 0 | T24: 153 | U24: 0 | V24: 218 | W24: 314 | X24: 189 | Y24: 230 | Z24: 272 | AA24: 344 | AB24: 254 | AC24: 239 | AD24: 281 | AE24: 336 | AF24: 260 | AG24: 240 | AH24: 288 | AI24: 369 | AJ24: 276 | AK24: 229 | AL24: 270 | AM24: 321 | AN24: 249 | AO24: 310 | AP24: 319 | AQ24: 334 | AR24: 368 | AS24: 332 | AT24: 317 | AU24: 329 | AV24: 351 | AW24: 326 | AX24: 319 | AY24: 336 | AZ24: 385 | BA24: 335 | BB24: 314 | BC24: 322 | BD24: 339 | BE24: 321 | BF24: 232 | BG24: 213 | BH24: 221 | BI24: 315 | BJ24: 312 | BK24: 315 | BL24: 197 | BM24: 338 | BN24: 406,970 | BO24: 0 | BP24: 0 | BQ24: 0 | BR24: 259 | BS24: 232 | BT24: 261 | BU24: 269 | BV24: 269 | BW24: 273 | BX24: 288 | BY24: 285 | BZ24: 263 | CA24: 260 | CB24: 260 | CC24: 236 | CD24: 236 | CE24: 235 | CF24: 238 | CG24: 247 | CH24: 249 | CI24: 234 | CJ24: 231 | CK24: 236 | CL24: 324 | CM24: 354 | CN24: 339 | CO24: 340 | CP24: 367 | CQ24: 358 | CR24: 320 | CS24: 321 | CT24: 314 | CU24: 106 | CV24: 94 | CW24: 91 | CX24: 91 | CY24: 90 | CZ24: 85 | DA24: 86 | DB24: 93 | DC24: 94 | DD24: 94 | DE24: 104 | DF24: 104 | DG24: 104 | DH24: 103 | DI24: 99 | DJ24: 98 | DK24: 104 | DL24: 106 | DM24: 103 | DN24: 75 | DO24: 69 | DP24: 72 | DQ24: 72 | DR24: 67 | DS24: 68 | DT24: 76 | DU24: 76 | DV24: 78 | DW24: 240 | DX24: 269 | DY24: 369 | DZ24: 339 | EA24: 276 | EB24: 288 | EC24: 275 | ED24: 319 | EE24: 385 | EF24: 335 | EG24: 336
A25: Flensburg | B25: Frankfurt am Main | C25: 1001000 | D25: 6412000 | E25: 523,700 | F25: 54.7941,9.44703 | G25: 50.11092,8.68213 | H25: 2.5 | I25: 2.0 | J25: 2.0 | K25: 2.5 | L25: 818,630 | M25: 652,230 | N25: 637,715 | O25: 7,971 | P25: 307 | Q25: 4,459 | R25: 1,507 | S25: 0 | T25: 268 | U25: 0 | V25: 341 | W25: 499 | X25: 286 | Y25: 356 | Z25: 428 | AA25: 554 | AB25: 397 | AC25: 362 | AD25: 424 | AE25: 519 | AF25: 393 | AG25: 366 | AH25: 437 | AI25: 552 | AJ25: 413 | AK25: 352 | AL25: 422 | AM25: 504 | AN25: 382 | AO25: 493 | AP25: 503 | AQ25: 527 | AR25: 586 | AS25: 522 | AT25: 502 | AU25: 516 | AV25: 549 | AW25: 512 | AX25: 503 | AY25: 523 | AZ25: 580 | BA25: 521 | BB25: 499 | BC25: 510 | BD25: 537 | BE25: 507 | BF25: 358 | BG25: 331 | BH25: 346 | BI25: 499 | BJ25: 494 | BK25: 499 | BL25: 318 | BM25: 497 | BN25: 668,550 | BO25: 0 | BP25: 0 | BQ25: 0 | BR25: 410 | BS25: 370 | BT25: 407 | BU25: 409 | BV25: 412 | BW25: 416 | BX25: 434 | BY25: 429 | BZ25: 415 | CA25: 418 | CB25: 418 | CC25: 366 | CD25: 364 | CE25: 366 | CF25: 369 | CG25: 376 | CH25: 371 | CI25: 364 | CJ25: 374 | CK25: 381 | CL25: 516 | CM25: 530 | CN25: 531 | CO25: 541 | CP25: 561 | CQ25: 538 | CR25: 511 | CS25: 510 | CT25: 500 | CU25: 106 | CV25: 96 | CW25: 96 | CX25: 95 | CY25: 94 | CZ25: 90 | DA25: 91 | DB25: 94 | DC25: 94 | DD25: 94 | DE25: 107 | DF25: 108 | DG25: 107 | DH25: 106 | DI25: 104 | DJ25: 105 | DK25: 107 | DL25: 105 | DM25: 103 | DN25: 76 | DO25: 74 | DP25: 74 | DQ25: 72 | DR25: 70 | DS25: 73 | DT25: 77 | DU25: 77 | DV25: 78 | DW25: 366 | DX25: 415 | DY25: 554 | DZ25: 531 | EA25: 413 | EB25: 437 | EC25: 422 | ED25: 503 | EE25: 586 | EF25: 522 | EG25: 527
A26: Flensburg | B26: Stuttgart | C26: 1001000 | D26: 8111000 | E26: 669,860 | F26: 54.7941,9.44703 | G26: 48.77582,9.18299 | H26: 2.5 | I26: 2.0 | J26: 2.0 | K26: 2.5 | L26: 709,680 | M26: 815,640 | N26: 778,009 | O26: 31,858 | P26: 1,292 | Q26: 2,574 | R26: 1,796 | S26: 0 | T26: 0 | U26: 115 | V26: 426 | W26: 624 | X26: 355 | Y26: 449 | Z26: 542 | AA26: 703 | AB26: 498 | AC26: 448 | AD26: 524 | AE26: 647 | AF26: 488 | AG26: 451 | AH26: 539 | AI26: 685 | AJ26: 510 | AK26: 433 | AL26: 513 | AM26: 611 | AN26: 467 | AO26: 618 | AP26: 640 | AQ26: 672 | AR26: 744 | AS26: 661 | AT26: 629 | AU26: 646 | AV26: 686 | AW26: 642 | AX26: 633 | AY26: 659 | AZ26: 729 | BA26: 656 | BB26: 624 | BC26: 634 | BD26: 659 | BE26: 631 | BF26: 446 | BG26: 419 | BH26: 436 | BI26: 625 | BJ26: 621 | BK26: 625 | BL26: 388 | BM26: 621 | BN26: 827,410 | BO26: 0 | BP26: 0 | BQ26: 0 | BR26: 509 | BS26: 456 | BT26: 510 | BU26: 510 | BV26: 512 | BW26: 520 | BX26: 535 | BY26: 525 | BZ26: 521 | CA26: 526 | CB26: 530 | CC26: 453 | CD26: 453 | CE26: 454 | CF26: 458 | CG26: 469 | CH26: 455 | CI26: 464 | CJ26: 470 | CK26: 495 | CL26: 652 | CM26: 677 | CN26: 682 | CO26: 679 | CP26: 676 | CQ26: 658 | CR26: 631 | CS26: 632 | CT26: 638 | CU26: 108 | CV26: 96 | CW26: 96 | CX26: 96 | CY26: 94 | CZ26: 91 | DA26: 93 | DB26: 94 | DC26: 93 | DD26: 92 | DE26: 108 | DF26: 108 | DG26: 108 | DH26: 107 | DI26: 104 | DJ26: 107 | DK26: 105 | DL26: 104 | DM26: 99 | DN26: 75 | DO26: 72 | DP26: 72 | DQ26: 72 | DR26: 72 | DS26: 74 | DT26: 78 | DU26: 77 | DV26: 77 | DW26: 451 | DX26: 521 | DY26: 703 | DZ26: 682 | EA26: 510 | EB26: 542 | EC26: 520 | ED26: 640 | EE26: 744 | EF26: 661 | EG26: 672
A27: Flensburg | B27: Mannheim | C27: 1001000 | D27: 8222000 | E27: 594,320 | F27: 54.7941,9.44703 | G27: 49.48695,8.46564 | H27: 2.5 | I27: 2.0 | J27: 2.0 | K27: 2.5 | L27: 391,722 | M27: 724,760 | N27: 705,722 | O27: 12,241 | P27: 1,908 | Q27: 2,574 | R27: 1,226 | S27: 0 | T27: 1,040 | U27: 52 | V27: 376 | W27: 553 | X27: 314 | Y27: 396 | Z27: 473 | AA27: 605 | AB27: 437 | AC27: 400 | AD27: 467 | AE27: 568 | AF27: 432 | AG27: 410 | AH27: 489 | AI27: 622 | AJ27: 462 | AK27: 386 | AL27: 459 | AM27: 545 | AN27: 417 | AO27: 549 | AP27: 560 | AQ27: 584 | AR27: 643 | AS27: 577 | AT27: 558 | AU27: 571 | AV27: 602 | AW27: 567 | AX27: 563 | AY27: 585 | AZ27: 654 | BA27: 582 | BB27: 554 | BC27: 563 | BD27: 586 | BE27: 561 | BF27: 394 | BG27: 367 | BH27: 382 | BI27: 554 | BJ27: 550 | BK27: 554 | BL27: 339 | BM27: 578 | BN27: 724,380 | BO27: 0 | BP27: 0 | BQ27: 0 | BR27: 449 | BS27: 406 | BT27: 446 | BU27: 448 | BV27: 450 | BW27: 457 | BX27: 478 | BY27: 465 | BZ27: 454 | CA27: 459 | CB27: 463 | CC27: 403 | CD27: 400 | CE27: 402 | CF27: 405 | CG27: 415 | CH27: 404 | CI27: 399 | CJ27: 411 | CK27: 422 | CL27: 567 | CM27: 579 | CN27: 582 | CO27: 599 | CP27: 603 | CQ27: 588 | CR27: 565 | CS27: 564 | CT27: 556 | CU27: 107 | CV27: 98 | CW27: 98 | CX27: 97 | CY27: 96 | CZ27: 92 | DA27: 94 | DB27: 96 | DC27: 95 | DD27: 95 | DE27: 109 | DF27: 109 | DG27: 109 | DH27: 108 | DI27: 106 | DJ27: 108 | DK27: 110 | DL27: 107 | DM27: 104 | DN27: 77 | DO27: 76 | DP27: 75 | DQ27: 73 | DR27: 73 | DS27: 74 | DT27: 77 | DU27: 78 | DV27: 79 | DW27: 410 | DX27: 454 | DY27: 622 | DZ27: 582 | EA27: 462 | EB27: 489 | EC27: 463 | ED27: 563 | EE27: 654 | EF27: 582 | EG27: 585
A28: Flensburg | B28: München | C28: 1001000 | D28: 9162000 | E28: 755,470 | F28: 54.7941,9.44703 | G28: 48.1352,11.58211 | H28: 2.5 | I28: 2.0 | J28: 2.0 | K28: 2.5 | L28: 1,536,323 | M28: 951,060 | N28: 934,510 | O28: 8,912 | P28: 441 | Q28: 2,574 | R28: 2,628 | S28: 1,202 | T28: 0 | U28: 788 | V28: 474 | W28: 721 | X28: 391 | Y28: 493 | Z28: 590 | AA28: 745 | AB28: 542 | AC28: 501 | AD28: 590 | AE28: 722 | AF28: 544 | AG28: 506 | AH28: 603 | AI28: 767 | AJ28: 569 | AK28: 483 | AL28: 576 | AM28: 689 | AN28: 521 | AO28: 717 | AP28: 728 | AQ28: 747 | AR28: 795 | AS28: 742 | AT28: 725 | AU28: 738 | AV28: 770 | AW28: 734 | AX28: 732 | AY28: 753 | AZ28: 819 | BA28: 751 | BB28: 722 | BC28: 729 | BD28: 751 | BE28: 728 | BF28: 504 | BG28: 477 | BH28: 488 | BI28: 722 | BJ28: 719 | BK28: 722 | BL28: 486 | BM28: 606 | BN28: 1,014,150 | BO28: 0 | BP28: 0 | BQ28: 0 | BR28: 557 | BS28: 492 | BT28: 558 | BU28: 564 | BV28: 570 | BW28: 577 | BX28: 577 | BY28: 577 | BZ28: 574 | CA28: 578 | CB28: 582 | CC28: 498 | CD28: 496 | CE28: 501 | CF28: 507 | CG28: 514 | CH28: 499 | CI28: 512 | CJ28: 515 | CK28: 531 | CL28: 728 | CM28: 750 | CN28: 739 | CO28: 729 | CP28: 734 | CQ28: 733 | CR28: 710 | CS28: 711 | CT28: 734 | CU28: 116 | CV28: 102 | CW28: 101 | CX28: 100 | CY28: 99 | CZ28: 99 | DA28: 99 | DB28: 99 | DC28: 99 | DD28: 98 | DE28: 114 | DF28: 115 | DG28: 114 | DH28: 113 | DI28: 111 | DJ28: 114 | DK28: 111 | DL28: 111 | DM28: 107 | DN28: 78 | DO28: 76 | DP28: 77 | DQ28: 78 | DR28: 78 | DS28: 78 | DT28: 80 | DU28: 80 | DV28: 78 | DW28: 506 | DX28: 574 | DY28: 767 | DZ28: 739 | EA28: 569 | EB28: 603 | EC28: 580 | ED28: 732 | EE28: 819 | EF28: 751 | EG28: 753
A29: Flensburg | B29: Nürnberg | C29: 1001000 | D29: 9564000 | E29: 604,770 | F29: 54.7941,9.44703 | G29: 49.45188,11.07665 | H29: 2.5 | I29: 2.0 | J29: 2.0 | K29: 2.5 | L29: 595,917 | M29: 766,930 | N29: 753,047 | O29: 6,691 | P29: 307 | Q29: 2,574 | R29: 3,764 | S29: 0 | T29: 35 | U29: 507 | V29: 398 | W29: 583 | X29: 336 | Y29: 414 | Z29: 489 | AA29: 616 | AB29: 451 | AC29: 420 | AD29: 489 | AE29: 591 | AF29: 454 | AG29: 428 | AH29: 508 | AI29: 634 | AJ29: 478 | AK29: 410 | AL29: 487 | AM29: 577 | AN29: 443 | AO29: 579 | AP29: 588 | AQ29: 607 | AR29: 653 | AS29: 602 | AT29: 587 | AU29: 599 | AV29: 626 | AW29: 596 | AX29: 592 | AY29: 613 | AZ29: 667 | BA29: 610 | BB29: 583 | BC29: 591 | BD29: 613 | BE29: 590 | BF29: 418 | BG29: 390 | BH29: 406 | BI29: 584 | BJ29: 580 | BK29: 584 | BL29: 404 | BM29: 495 | BN29: 834,980 | BO29: 0 | BP29: 0 | BQ29: 0 | BR29: 475 | BS29: 426 | BT29: 472 | BU29: 474 | BV29: 478 | BW29: 485 | BX29: 500 | BY29: 494 | BZ29: 487 | CA29: 490 | CB29: 492 | CC29: 424 | CD29: 423 | CE29: 424 | CF29: 429 | CG29: 438 | CH29: 429 | CI29: 432 | CJ29: 439 | CK29: 457 | CL29: 595 | CM29: 614 | CN29: 619 | CO29: 626 | CP29: 633 | CQ29: 619 | CR29: 593 | CS29: 592 | CT29: 585 | CU29: 108 | CV29: 97 | CW29: 97 | CX29: 96 | CY29: 95 | CZ29: 92 | DA29: 93 | DB29: 94 | DC29: 94 | DD29: 94 | DE29: 109 | DF29: 109 | DG29: 108 | DH29: 107 | DI29: 105 | DJ29: 107 | DK29: 106 | DL29: 105 | DM29: 101 | DN29: 77 | DO29: 75 | DP29: 74 | DQ29: 73 | DR29: 73 | DS29: 74 | DT29: 78 | DU29: 78 | DV29: 79 | DW29: 428 | DX29: 487 | DY29: 634 | DZ29: 619 | EA29: 478 | EB29: 508 | EC29: 492 | ED29: 592 | EE29: 667 | EF29: 610 | EG29: 613
A30: Flensburg | B30: Berlin | C30: 1001000 | D30: 11000000 | E30: 363,950 | F30: 54.7941,9.44703 | G30: 52.52001,13.40495 | H30: 2.5 | I30: 2.0 | J30: 2.0 | K30: 2.5 | L30: 3,605,973 | M30: 436,690 | N30: 373,352 | O30: 58,134 | P30: 1,408 | Q30: 2,574 | R30: 1,226 | S30: 0 | T30: 0 | U30: 0 | V30: 236 | W30: 338 | X30: 197 | Y30: 241 | Z30: 288 | AA30: 370 | AB30: 265 | AC30: 249 | AD30: 295 | AE30: 361 | AF30: 270 | AG30: 252 | AH30: 300 | AI30: 359 | AJ30: 276 | AK30: 236 | AL30: 280 | AM30: 338 | AN30: 254 | AO30: 332 | AP30: 344 | AQ30: 362 | AR30: 396 | AS30: 356 | AT30: 342 | AU30: 356 | AV30: 383 | AW30: 351 | AX30: 341 | AY30: 354 | AZ30: 381 | BA30: 350 | BB30: 336 | BC30: 346 | BD30: 365 | BE30: 342 | BF30: 242 | BG30: 230 | BH30: 242 | BI30: 338 | BJ30: 334 | BK30: 339 | BL30: 221 | BM30: 282 | BN30: 437,730 | BO30: 0 | BP30: 0 | BQ30: 0 | BR30: 282 | BS30: 269 | BT30: 290 | BU30: 284 | BV30: 284 | BW30: 287 | BX30: 291 | BY30: 289 | BZ30: 277 | CA30: 277 | CB30: 274 | CC30: 261 | CD30: 252 | CE30: 252 | CF30: 256 | CG30: 258 | CH30: 257 | CI30: 249 | CJ30: 247 | CK30: 249 | CL30: 360 | CM30: 361 | CN30: 364 | CO30: 365 | CP30: 366 | CQ30: 360 | CR30: 344 | CS30: 340 | CT30: 324 | CU30: 98 | CV30: 90 | CW30: 92 | CX30: 92 | CY30: 91 | CZ30: 90 | DA30: 91 | DB30: 95 | DC30: 95 | DD30: 96 | DE30: 100 | DF30: 104 | DG30: 104 | DH30: 102 | DI30: 101 | DJ30: 102 | DK30: 105 | DL30: 106 | DM30: 105 | DN30: 73 | DO30: 73 | DP30: 72 | DQ30: 72 | DR30: 72 | DS30: 73 | DT30: 76 | DU30: 77 | DV30: 81 | DW30: 252 | DX30: 284 | DY30: 370 | DZ30: 364 | EA30: 276 | EB30: 300 | EC30: 283 | ED30: 344 | EE30: 396 | EF30: 356 | EG30: 362
A31: Flensburg | B31: Brandenburg an der Havel | C31: 1001000 | D31: 12051000 | E31: 334,520 | F31: 54.7941,9.44703 | G31: 52.41256,12.53164 | H31: 2.5 | I31: 2.0 | J31: 2.0 | K31: 2.5 | L31: 157,516 | M31: 463,900 | N31: 396,852 | O31: 62,932 | P31: 307 | Q31: 2,574 | R31: 1,226 | S31: 0 | T31: 11 | U31: 0 | V31: 247 | W31: 354 | X31: 210 | Y31: 250 | Z31: 291 | AA31: 364 | AB31: 269 | AC31: 261 | AD31: 305 | AE31: 365 | AF31: 280 | AG31: 263 | AH31: 309 | AI31: 363 | AJ31: 284 | AK31: 250 | AL31: 294 | AM31: 349 | AN31: 266 | AO31: 351 | AP31: 360 | AQ31: 371 | AR31: 391 | AS31: 366 | AT31: 360 | AU31: 370 | AV31: 388 | AW31: 365 | AX31: 358 | AY31: 368 | AZ31: 386 | BA31: 364 | BB31: 355 | BC31: 363 | BD31: 376 | BE31: 359 | BF31: 254 | BG31: 241 | BH31: 251 | BI31: 356 | BJ31: 354 | BK31: 356 | BL31: 235 | BM31: 282 | BN31: 454,880 | BO31: 0 | BP31: 0 | BQ31: 0 | BR31: 280 | BS31: 272 | BT31: 285 | BU31: 285 | BV31: 287 | BW31: 291 | BX31: 296 | BY31: 291 | BZ31: 281 | CA31: 280 | CB31: 278 | CC31: 259 | CD31: 252 | CE31: 255 | CF31: 257 | CG31: 263 | CH31: 260 | CI31: 252 | CJ31: 252 | CK31: 257 | CL31: 354 | CM31: 357 | CN31: 361 | CO31: 363 | CP31: 372 | CQ31: 357 | CR31: 344 | CS31: 343 | CT31: 326 | CU31: 101 | CV31: 98 | CW31: 98 | CX31: 97 | CY31: 96 | CZ31: 92 | DA31: 95 | DB31: 99 | DC31: 99 | DD31: 100 | DE31: 107 | DF31: 110 | DG31: 109 | DH31: 108 | DI31: 106 | DJ31: 107 | DK31: 110 | DL31: 110 | DM31: 108 | DN31: 79 | DO31: 78 | DP31: 77 | DQ31: 77 | DR31: 75 | DS31: 78 | DT31: 81 | DU31: 81 | DV31: 85 | DW31: 263 | DX31: 287 | DY31: 364 | DZ31: 361 | EA31: 284 | EB31: 309 | EC31: 300 | ED31: 360 | EE31: 391 | EF31: 366 | EG31: 371
A32: Flensburg | B32: Schwerin | C32: 1001000 | D32: 13004000 | E32: 183,150 | F32: 54.7941,9.44703 | G32: 53.62148,11.41647 | H32: 2.5 | I32: 2.0 | J32: 2.0 | K32: 2.5 | L32: 182,742 | M32: 235,390 | N32: 164,968 | O32: 36,408 | P32: 27,177 | Q32: 5,139 | R32: 1,496 | S32: 0 | T32: 0 | U32: 205 | V32: 146 | W32: 191 | X32: 123 | Y32: 155 | Z32: 184 | AA32: 231 | AB32: 170 | AC32: 160 | AD32: 190 | AE32: 234 | AF32: 175 | AG32: 157 | AH32: 186 | AI32: 227 | AJ32: 173 | AK32: 149 | AL32: 177 | AM32: 210 | AN32: 160 | AO32: 184 | AP32: 197 | AQ32: 213 | AR32: 243 | AS32: 207 | AT32: 197 | AU32: 212 | AV32: 242 | AW32: 207 | AX32: 196 | AY32: 210 | AZ32: 238 | BA32: 206 | BB32: 191 | BC32: 202 | BD32: 221 | BE32: 197 | BF32: 152 | BG32: 140 | BH32: 149 | BI32: 192 | BJ32: 189 | BK32: 193 | BL32: 137 | BM32: 166 | BN32: 236,440 | BO32: 0 | BP32: 0 | BQ32: 0 | BR32: 175 | BS32: 158 | BT32: 176 | BU32: 175 | BV32: 176 | BW32: 179 | BX32: 181 | BY32: 183 | BZ32: 172 | CA32: 169 | CB32: 167 | CC32: 165 | CD32: 156 | CE32: 156 | CF32: 159 | CG32: 163 | CH32: 163 | CI32: 155 | CJ32: 153 | CK32: 156 | CL32: 209 | CM32: 212 | CN32: 213 | CO32: 215 | CP32: 219 | CQ32: 216 | CR32: 203 | CS32: 198 | CT32: 193 | CU32: 93 | CV32: 83 | CW32: 83 | CX32: 83 | CY32: 82 | CZ32: 81 | DA32: 80 | DB32: 85 | DC32: 86 | DD32: 87 | DE32: 88 | DF32: 93 | DG32: 94 | DH32: 92 | DI32: 90 | DJ32: 90 | DK32: 94 | DL32: 95 | DM32: 94 | DN32: 70 | DO32: 69 | DP32: 68 | DQ32: 68 | DR32: 67 | DS32: 67 | DT32: 72 | DU32: 74 | DV32: 76 | DW32: 157 | DX32: 176 | DY32: 231 | DZ32: 213 | EA32: 173 | EB32: 186 | EC32: 179 | ED32: 197 | EE32: 243 | EF32: 207 | EG32: 213
A33: Flensburg | B33: Leipzig | C33: 1001000 | D33: 14713000 | E33: 431,480 | F33: 54.7941,9.44703 | G33: 51.33977,12.37304 | H33: 2.5 | I33: 2.0 | J33: 2.0 | K33: 2.5 | L33: 646,414 | M33: 555,360 | N33: 536,039 | O33: 11,733 | P33: 3,647 | Q33: 2,574 | R33: 1,226 | S33: 0 | T33: 0 | U33: 143 | V33: 286 | W33: 425 | X33: 245 | Y33: 305 | Z33: 371 | AA33: 464 | AB33: 336 | AC33: 313 | AD33: 373 | AE33: 449 | AF33: 341 | AG33: 315 | AH33: 381 | AI33: 489 | AJ33: 362 | AK33: 303 | AL33: 366 | AM33: 430 | AN33: 330 | AO33: 420 | AP33: 431 | AQ33: 450 | AR33: 492 | AS33: 445 | AT33: 428 | AU33: 441 | AV33: 470 | AW33: 437 | AX33: 430 | AY33: 448 | AZ33: 508 | BA33: 449 | BB33: 425 | BC33: 434 | BD33: 454 | BE33: 431 | BF33: 307 | BG33: 283 | BH33: 292 | BI33: 425 | BJ33: 422 | BK33: 426 | BL33: 289 | BM33: 350 | BN33: 584,890 | BO33: 0 | BP33: 0 | BQ33: 0 | BR33: 350 | BS33: 298 | BT33: 349 | BU33: 350 | BV33: 351 | BW33: 356 | BX33: 369 | BY33: 360 | BZ33: 350 | CA33: 349 | CB33: 351 | CC33: 313 | CD33: 311 | CE33: 313 | CF33: 315 | CG33: 323 | CH33: 319 | CI33: 311 | CJ33: 312 | CK33: 318 | CL33: 437 | CM33: 445 | CN33: 446 | CO33: 459 | CP33: 472 | CQ33: 458 | CR33: 429 | CS33: 428 | CT33: 422 | CU33: 112 | CV33: 96 | CW33: 95 | CX33: 95 | CY33: 93 | CZ33: 91 | DA33: 94 | DB33: 95 | DC33: 95 | DD33: 95 | DE33: 106 | DF33: 107 | DG33: 106 | DH33: 106 | DI33: 103 | DJ33: 104 | DK33: 107 | DL33: 107 | DM33: 105 | DN33: 76 | DO33: 75 | DP33: 75 | DQ33: 73 | DR33: 71 | DS33: 73 | DT33: 78 | DU33: 78 | DV33: 79 | DW33: 315 | DX33: 351 | DY33: 489 | DZ33: 446 | EA33: 362 | EB33: 381 | EC33: 364 | ED33: 431 | EE33: 508 | EF33: 449 | EG33: 450
A34: Kiel | B34: Flensburg | C34: 1002000 | D34: 1001000 | E34: 68,250 | F34: 54.32329,10.12283 | G34: 54.7941,9.44703 | H34: 2.5 | I34: 2.0 | J34: 2.0 | K34: 2.5 | L34: 332,248 | M34: 89,930 | N34: 78,416 | O34: 8,528 | P34: 0 | Q34: 0 | R34: 2,384 | S34: 579 | T34: 0 | U34: 22 | V34: 51 | W34: 72 | X34: 42 | Y34: 54 | Z34: 66 | AA34: 78 | AB34: 59 | AC34: 53 | AD34: 64 | AE34: 77 | AF34: 58 | AG34: 53 | AH34: 64 | AI34: 81 | AJ34: 59 | AK34: 51 | AL34: 62 | AM34: 74 | AN34: 55 | AO34: 69 | AP34: 72 | AQ34: 77 | AR34: 83 | AS34: 75 | AT34: 72 | AU34: 76 | AV34: 82 | AW34: 75 | AX34: 73 | AY34: 78 | AZ34: 86 | BA34: 77 | BB34: 71 | BC34: 76 | BD34: 81 | BE34: 74 | BF34: 52 | BG34: 49 | BH34: 52 | BI34: 72 | BJ34: 70 | BK34: 72 | BL34: 46 | BM34: 54 | BN34: 89,040 | BO34: 0 | BP34: 0 | BQ34: 0 | BR34: 63 | BS34: 58 | BT34: 63 | BU34: 63 | BV34: 63 | BW34: 62 | BX34: 64 | BY34: 64 | BZ34: 63 | CA34: 62 | CB34: 60 | CC34: 59 | CD34: 57 | CE34: 57 | CF34: 55 | CG34: 56 | CH34: 56 | CI34: 56 | CJ34: 55 | CK34: 54 | CL34: 71 | CM34: 78 | CN34: 79 | CO34: 77 | CP34: 79 | CQ34: 78 | CR34: 81 | CS34: 78 | CT34: 71 | CU34: 94 | CV34: 86 | CW34: 86 | CX34: 86 | CY34: 87 | CZ34: 85 | DA34: 86 | DB34: 87 | DC34: 88 | DD34: 90 | DE34: 93 | DF34: 95 | DG34: 96 | DH34: 98 | DI34: 97 | DJ34: 98 | DK34: 98 | DL34: 99 | DM34: 102 | DN34: 77 | DO34: 70 | DP34: 69 | DQ34: 70 | DR34: 69 | DS34: 69 | DT34: 68 | DU34: 70 | DV34: 77 | DW34: 54 | DX34: 63 | DY34: 81 | DZ34: 81 | EA34: 59 | EB34: 66 | EC34: 61 | ED34: 73 | EE34: 86 | EF34: 77 | EG34: 78
A35: Kiel | B35: Lübeck | C35: 1002000 | D35: 1003000 | E35: 62,900 | F35: 54.32329,10.12283 | G35: 53.86547,10.68654 | H35: 2.5 | I35: 2.0 | J35: 2.0 | K35: 2.5 | L35: 462,559 | M35: 86,710 | N35: 53,785 | O35: 24,592 | P35: 616 | Q35: 1,078 | R35: 5,986 | S35: 0 | T35: 0 | U35: 655 | V35: 61 | W35: 75 | X35: 55 | Y35: 74 | Z35: 92 | AA35: 118 | AB35: 84 | AC35: 73 | AD35: 88 | AE35: 110 | AF35: 81 | AG35: 74 | AH35: 93 | AI35: 121 | AJ35: 85 | AK35: 66 | AL35: 78 | AM35: 93 | AN35: 71 | AO35: 71 | AP35: 83 | AQ35: 99 | AR35: 121 | AS35: 92 | AT35: 82 | AU35: 94 | AV35: 112 | AW35: 89 | AX35: 84 | AY35: 100 | AZ35: 125 | BA35: 94 | BB35: 76 | BC35: 84 | BD35: 96 | BE35: 81 | BF35: 68 | BG35: 61 | BH35: 63 | BI35: 78 | BJ35: 74 | BK35: 77 | BL35: 57 | BM35: 80 | BN35: 87,020 | BO35: 0 | BP35: 0 | BQ35: 0 | BR35: 78 | BS35: 67 | BT35: 70 | BU35: 76 | BV35: 81 | BW35: 79 | BX35: 81 | BY35: 84 | BZ35: 81 | CA35: 76 | CB35: 71 | CC35: 68 | CD35: 67 | CE35: 70 | CF35: 67 | CG35: 69 | CH35: 69 | CI35: 70 | CJ35: 67 | CK35: 64 | CL35: 74 | CM35: 97 | CN35: 105 | CO35: 101 | CP35: 102 | CQ35: 104 | CR35: 106 | CS35: 93 | CT35: 80 | CU35: 79 | CV35: 75 | CW35: 69 | CX35: 65 | CY35: 67 | CZ35: 65 | DA35: 63 | DB35: 65 | DC35: 69 | DD35: 74 | DE35: 78 | DF35: 78 | DG35: 75 | DH35: 78 | DI35: 76 | DJ35: 77 | DK35: 75 | DL35: 79 | DM35: 83 | DN35: 71 | DO35: 54 | DP35: 50 | DQ35: 52 | DR35: 52 | DS35: 51 | DT35: 50 | DU35: 56 | DV35: 66 | DW35: 74 | DX35: 81 | DY35: 121 | DZ35: 106 | EA35: 85 | EB35: 93 | EC35: 79 | ED35: 84 | EE35: 125 | EF35: 94 | EG35: 100
A36: Kiel | B36: Neumünster | C36: 1002000 | D36: 1004000 | E36: 29,270 | F36: 54.32329,10.12283 | G36: 54.07339,9.98332 | H36: 2.0 | I36: 1.0 | J36: 2.0 | K36: 2.5 | L36: 325,503 | M36: 34,170 | N36: 26,353 | O36: 4,612 | P36: 0 | Q36: 1,819 | R36: 1,362 | S36: 0 | T36: 0 | U36: 22 | V36: 23 | W36: 30 | X36: 18 | Y36: 24 | Z36: 31 | AA36: 42 | AB36: 28 | AC36: 25 | AD36: 32 | AE36: 42 | AF36: 29 | AG36: 26 | AH36: 33 | AI36: 43 | AJ36: 29 | AK36: 23 | AL36: 28 | AM36: 36 | AN36: 26 | AO36: 28 | AP36: 31 | AQ36: 36 | AR36: 45 | AS36: 34 | AT36: 32 | AU36: 36 | AV36: 44 | AW36: 34 | AX36: 32 | AY36: 37 | AZ36: 46 | BA36: 35 | BB36: 30 | BC36: 33 | BD36: 39 | BE36: 32 | BF36: 24 | BG36: 22 | BH36: 24 | BI36: 30 | BJ36: 28 | BK36: 30 | BL36: 20 | BM36: 26 | BN36: 34,370 | BO36: 0 | BP36: 0 | BQ36: 0 | BR36: 30 | BS36: 26 | BT36: 27 | BU36: 27 | BV36: 29 | BW36: 30 | BX36: 31 | BY36: 31 | BZ36: 31 | CA36: 29 | CB36: 28 | CC36: 26 | CD36: 25 | CE36: 25 | CF36: 25 | CG36: 26 | CH36: 26 | CI36: 26 | CJ36: 25 | CK36: 25 | CL36: 32 | CM36: 33 | CN36: 38 | CO36: 37 | CP36: 39 | CQ36: 37 | CR36: 39 | CS36: 36 | CT36: 31 | CU36: 79 | CV36: 76 | CW36: 75 | CX36: 71 | CY36: 70 | CZ36: 67 | DA36: 67 | DB36: 68 | DC36: 70 | DD36: 73 | DE36: 78 | DF36: 84 | DG36: 82 | DH36: 83 | DI36: 78 | DJ36: 80 | DK36: 79 | DL36: 81 | DM36: 83 | DN36: 64 | DO36: 63 | DP36: 55 | DQ36: 57 | DR36: 53 | DS36: 56 | DT36: 53 | DU36: 57 | DV36: 66 | DW36: 26 | DX36: 31 | DY36: 43 | DZ36: 39 | EA36: 29 | EB36: 33 | EC36: 28 | ED36: 32 | EE36: 46 | EF36: 35 | EG36: 37
A37: Kiel | B37: Eutin | C37: 1002000 | D37: 1055012 | E37: 38,180 | F37: 54.32329,10.12283 | G37: 54.13347,10.61049 | H37: 2.0 | I37: 1.0 | J37: 2.0 | K37: 2.5 | L37: 263,285 | M37: 46,410 | N37: 0 | O37: 40,662 | P37: 0 | Q37: 767 | R37: 4,957 | S37: 0 | T37: 0 | U37: 22 | V37: 39 | W37: 41 | X37: 32 | Y37: 42 | Z37: 51 | AA37: 62 | AB37: 47 | AC37: 42 | AD37: 51 | AE37: 63 | AF37: 47 | AG37: 42 | AH37: 52 | AI37: 70 | AJ37: 49 | AK37: 38 | AL37: 46 | AM37: 55 | AN37: 42 | AO37: 38 | AP37: 43 | AQ37: 51 | AR37: 62 | AS37: 48 | AT37: 43 | AU37: 51 | AV37: 63 | AW37: 48 | AX37: 44 | AY37: 52 | AZ37: 71 | BA37: 50 | BB37: 41 | BC37: 47 | BD37: 55 | BE37: 44 | BF37: 39 | BG37: 36 | BH37: 40 | BI37: 42 | BJ37: 40 | BK37: 42 | BL37: 36 | BM37: 55 | BN37: 44,400 | BO37: 0 | BP37: 0 | BQ37: 0 | BR37: 46 | BS37: 42 | BT37: 43 | BU37: 45 | BV37: 47 | BW37: 48 | BX37: 49 | BY37: 51 | BZ37: 50 | CA37: 47 | CB37: 44 | CC37: 46 | CD37: 41 | CE37: 42 | CF37: 42 | CG37: 43 | CH37: 42 | CI37: 43 | CJ37: 42 | CK37: 39 | CL37: 47 | CM37: 50 | CN37: 56 | CO37: 56 | CP37: 59 | CQ37: 57 | CR37: 61 | CS37: 56 | CT37: 46 | CU37: 67 | CV37: 65 | CW37: 62 | CX37: 59 | CY37: 58 | CZ37: 57 | DA37: 55 | DB37: 56 | DC37: 60 | DD37: 64 | DE37: 61 | DF37: 69 | DG37: 67 | DH37: 67 | DI37: 65 | DJ37: 66 | DK37: 65 | DL37: 67 | DM37: 71 | DN37: 60 | DO37: 56 | DP37: 50 | DQ37: 50 | DR37: 48 | DS37: 49 | DT37: 46 | DU37: 50 | DV37: 60 | DW37: 42 | DX37: 50 | DY37: 70 | DZ37: 61 | EA37: 49 | EB37: 52 | EC37: 46 | ED37: 44 | EE37: 71 | EF37: 50 | EG37: 52
A38: Kiel | B38: Neustadt in Holstein | C38: 1002000 | D38: 1055032 | E38: 51,500 | F38: 54.32329,10.12283 | G38: 54.10193,10.81595 | H38: 2.0 | I38: 1.0 | J38: 2.0 | K38: 2.5 | L38: 261,347 | M38: 62,550 | N38: 0 | O38: 50,360 | P38: 0 | Q38: 0 | R38: 11,470 | S38: 0 | T38: 279 | U38: 439 | V38: 52 | W38: 56 | X38: 44 | Y38: 57 | Z38: 67 | AA38: 81 | AB38: 63 | AC38: 57 | AD38: 68 | AE38: 83 | AF38: 64 | AG38: 58 | AH38: 70 | AI38: 93 | AJ38: 66 | AK38: 52 | AL38: 60 | AM38: 72 | AN38: 57 | AO38: 52 | AP38: 59 | AQ38: 68 | AR38: 81 | AS38: 64 | AT38: 59 | AU38: 69 | AV38: 84 | AW38: 65 | AX38: 60 | AY38: 72 | AZ38: 94 | BA38: 68 | BB38: 56 | BC38: 63 | BD38: 72 | BE38: 61 | BF38: 53 | BG38: 49 | BH38: 53 | BI38: 57 | BJ38: 54 | BK38: 57 | BL38: 52 | BM38: 70 | BN38: 65,860 | BO38: 0 | BP38: 0 | BQ38: 0 | BR38: 62 | BS38: 55 | BT38: 58 | BU38: 60 | BV38: 63 | BW38: 64 | BX38: 68 | BY38: 69 | BZ38: 66 | CA38: 63 | CB38: 58 | CC38: 60 | CD38: 55 | CE38: 57 | CF38: 56 | CG38: 59 | CH38: 59 | CI38: 58 | CJ38: 56 | CK38: 54 | CL38: 61 | CM38: 67 | CN38: 73 | CO38: 74 | CP38: 80 | CQ38: 77 | CR38: 79 | CS38: 72 | CT38: 62 | CU38: 68 | CV38: 65 | CW38: 62 | CX38: 60 | CY38: 59 | CZ38: 55 | DA38: 54 | DB38: 57 | DC38: 60 | DD38: 64 | DE38: 63 | DF38: 68 | DG38: 66 | DH38: 67 | DI38: 64 | DJ38: 64 | DK38: 65 | DL38: 67 | DM38: 70 | DN38: 62 | DO38: 56 | DP38: 51 | DQ38: 50 | DR38: 47 | DS38: 49 | DT38: 48 | DU38: 52 | DV38: 60 | DW38: 58 | DX38: 66 | DY38: 93 | DZ38: 79 | EA38: 66 | EB38: 70 | EC38: 62 | ED38: 60 | EE38: 94 | EF38: 68 | EG38: 72
A39: Kiel | B39: Oldenburg in Holstein | C39: 1002000 | D39: 1055033 | E39: 50,060 | F39: 54.32329,10.12283 | G39: 54.29046,10.88992 | H39: 2.0 | I39: 1.0 | J39: 2.0 | K39: 2.5 | L39: 256,077 | M39: 58,780 | N39: 0 | O39: 55,224 | P39: 0 | Q39: 0 | R39: 3,536 | S39: 0 | T39: 0 | U39: 22 | V39: 49 | W39: 50 | X39: 41 | Y39: 52 | Z39: 61 | AA39: 74 | AB39: 57 | AC39: 53 | AD39: 62 | AE39: 76 | AF39: 58 | AG39: 52 | AH39: 62 | AI39: 86 | AJ39: 60 | AK39: 49 | AL39: 55 | AM39: 65 | AN39: 52 | AO39: 47 | AP39: 53 | AQ39: 61 | AR39: 74 | AS39: 57 | AT39: 53 | AU39: 62 | AV39: 76 | AW39: 59 | AX39: 53 | AY39: 63 | AZ39: 86 | BA39: 61 | BB39: 50 | BC39: 56 | BD39: 65 | BE39: 53 | BF39: 50 | BG39: 44 | BH39: 50 | BI39: 51 | BJ39: 49 | BK39: 51 | BL39: 45 | BM39: 59 | BN39: 57,510 | BO39: 0 | BP39: 0 | BQ39: 0 | BR39: 56 | BS39: 52 | BT39: 53 | BU39: 54 | BV39: 55 | BW39: 56 | BX39: 58 | BY39: 59 | BZ39: 57 | CA39: 55 | CB39: 53 | CC39: 54 | CD39: 51 | CE39: 51 | CF39: 51 | CG39: 52 | CH39: 52 | CI39: 52 | CJ39: 50 | CK39: 48 | CL39: 56 | CM39: 58 | CN39: 61 | CO39: 61 | CP39: 64 | CQ39: 63 | CR39: 66 | CS39: 62 | CT39: 56 | CU39: 67 | CV39: 66 | CW39: 65 | CX39: 64 | CY39: 63 | CZ39: 61 | DA39: 60 | DB39: 62 | DC39: 64 | DD39: 67 | DE39: 65 | DF39: 70 | DG39: 69 | DH39: 70 | DI39: 68 | DJ39: 68 | DK39: 68 | DL39: 70 | DM39: 73 | DN39: 63 | DO39: 61 | DP39: 58 | DQ39: 57 | DR39: 55 | DS39: 56 | DT39: 53 | DU39: 57 | DV39: 63 | DW39: 52 | DX39: 57 | DY39: 86 | DZ39: 66 | EA39: 60 | EB39: 62 | EC39: 59 | ED39: 53 | EE39: 86 | EF39: 61 | EG39: 63
A40: Kiel | B40: Elmshorn | C40: 1002000 | D40: 1056015 | E40: 70,430 | F40: 54.32329,10.12283 | G40: 53.75094,9.66449 | H40: 2.0 | I40: 1.0 | J40: 2.0 | K40: 2.5 | L40: 294,990 | M40: 79,090 | N40: 39,799 | O40: 0 | P40: 3,056 | Q40: 689 | R40: 35,526 | S40: 0 | T40: 0 | U40: 22 | V40: 60 | W40: 74 | X40: 51 | Y40: 66 | Z40: 80 | AA40: 101 | AB40: 74 | AC40: 66 | AD40: 78 | AE40: 96 | AF40: 73 | AG40: 66 | AH40: 80 | AI40: 100 | AJ40: 74 | AK40: 62 | AL40: 72 | AM40: 85 | AN40: 67 | AO40: 70 | AP40: 77 | AQ40: 87 | AR40: 105 | AS40: 84 | AT40: 76 | AU40: 85 | AV40: 98 | AW40: 82 | AX40: 77 | AY40: 87 | AZ40: 104 | BA40: 83 | BB40: 74 | BC40: 80 | BD40: 89 | BE40: 78 | BF40: 64 | BG40: 59 | BH40: 63 | BI40: 75 | BJ40: 73 | BK40: 75 | BL40: 58 | BM40: 73 | BN40: 85,100 | BO40: 0 | BP40: 0 | BQ40: 0 | BR40: 72 | BS40: 64 | BT40: 69 | BU40: 69 | BV40: 71 | BW40: 71 | BX40: 73 | BY40: 73 | BZ40: 71 | CA40: 70 | CB40: 68 | CC40: 66 | CD40: 64 | CE40: 66 | CF40: 64 | CG40: 66 | CH40: 65 | CI40: 65 | CJ40: 64 | CK40: 63 | CL40: 74 | CM40: 80 | CN40: 83 | CO40: 80 | CP40: 82 | CQ40: 84 | CR40: 83 | CS40: 79 | CT40: 75 | CU40: 81 | CV40: 71 | CW40: 71 | CX40: 69 | CY40: 69 | CZ40: 67 | DA40: 67 | DB40: 69 | DC40: 70 | DD40: 72 | DE40: 74 | DF40: 77 | DG40: 74 | DH40: 76 | DI40: 74 | DJ40: 75 | DK40: 75 | DL40: 76 | DM40: 77 | DN40: 66 | DO40: 61 | DP40: 59 | DQ40: 61 | DR40: 60 | DS40: 58 | DT40: 59 | DU40: 62 | DV40: 66 | DW40: 66 | DX40: 71 | DY40: 101 | DZ40: 83 | EA40: 74 | EB40: 80 | EC40: 74 | ED40: 77 | EE40: 105 | EF40: 84 | EG40: 87
A41: Kiel | B41: Plön | C41: 1002000 | D41: 1057057 | E41: 26,790 | F41: 54.32329,10.12283 | G41: 54.16109,10.42637 | H41: 2.0 | I41: 1.0 | J41: 2.0 | K41: 2.5 | L41: 255,112 | M41: 31,920 | N41: 0 | O41: 29,099 | P41: 0 | Q41: 0 | R41: 2,797 | S41: 0 | T41: 0 | U41: 22 | V41: 26 | W41: 28 | X41: 22 | Y41: 29 | Z41: 35 | AA41: 44 | AB41: 33 | AC41: 29 | AD41: 35 | AE41: 45 | AF41: 33 | AG41: 29 | AH41: 37 | AI41: 52 | AJ41: 35 | AK41: 27 | AL41: 32 | AM41: 39 | AN41: 30 | AO41: 26 | AP41: 30 | AQ41: 35 | AR41: 44 | AS41: 33 | AT41: 30 | AU41: 35 | AV41: 45 | AW41: 33 | AX41: 30 | AY41: 37 | AZ41: 52 | BA41: 36 | BB41: 28 | BC41: 33 | BD41: 39 | BE41: 31 | BF41: 27 | BG41: 24 | BH41: 27 | BI41: 28 | BJ41: 27 | BK41: 29 | BL41: 24 | BM41: 39 | BN41: 30,520 | BO41: 0 | BP41: 0 | BQ41: 0 | BR41: 32 | BS41: 30 | BT41: 30 | BU41: 31 | BV41: 32 | BW41: 33 | BX41: 34 | BY41: 35 | BZ41: 35 | CA41: 33 | CB41: 31 | CC41: 32 | CD41: 28 | CE41: 28 | CF41: 28 | CG41: 29 | CH41: 29 | CI41: 30 | CJ41: 28 | CK41: 27 | CL41: 33 | CM41: 34 | CN41: 39 | CO41: 39 | CP41: 41 | CQ41: 40 | CR41: 45 | CS41: 41 | CT41: 33 | CU41: 64 | CV41: 64 | CW41: 62 | CX41: 59 | CY41: 58 | CZ41: 57 | DA41: 54 | DB41: 55 | DC41: 59 | DD41: 63 | DE41: 61 | DF41: 69 | DG41: 68 | DH41: 68 | DI41: 66 | DJ41: 67 | DK41: 65 | DL41: 68 | DM41: 71 | DN41: 58 | DO41: 57 | DP41: 50 | DQ41: 49 | DR41: 47 | DS41: 48 | DT41: 43 | DU41: 48 | DV41: 58 | DW41: 29 | DX41: 35 | DY41: 52 | DZ41: 45 | EA41: 35 | EB41: 37 | EC41: 32 | ED41: 30 | EE41: 52 | EF41: 36 | EG41: 37
A42: Kiel | B42: Eckernförde | C42: 1002000 | D42: 1058043 | E42: 24,570 | F42: 54.32329,10.12283 | G42: 54.46895,9.83852 | H42: 2.0 | I42: 1.0 | J42: 2.0 | K42: 2.5 | L42: 268,165 | M42: 27,240 | N42: 0 | O42: 24,081 | P42: 335 | Q42: 0 | R42: 1,578 | S42: 0 | T42: 0 | U42: 1,251 | V42: 21 | W42: 24 | X42: 18 | Y42: 23 | Z42: 27 | AA42: 33 | AB42: 25 | AC42: 23 | AD42: 27 | AE42: 32 | AF42: 25 | AG42: 23 | AH42: 28 | AI42: 38 | AJ42: 27 | AK42: 21 | AL42: 25 | AM42: 29 | AN42: 23 | AO42: 22 | AP42: 25 | AQ42: 28 | AR42: 33 | AS42: 27 | AT42: 25 | AU42: 28 | AV42: 33 | AW42: 27 | AX42: 26 | AY42: 29 | AZ42: 39 | BA42: 29 | BB42: 24 | BC42: 26 | BD42: 30 | BE42: 26 | BF42: 21 | BG42: 19 | BH42: 21 | BI42: 24 | BJ42: 23 | BK42: 24 | BL42: 19 | BM42: 28 | BN42: 27,000 | BO42: 0 | BP42: 0 | BQ42: 0 | BR42: 34 | BS42: 29 | BT42: 31 | BU42: 33 | BV42: 33 | BW42: 34 | BX42: 34 | BY42: 36 | BZ42: 39 | CA42: 34 | CB42: 32 | CC42: 33 | CD42: 30 | CE42: 31 | CF42: 30 | CG42: 31 | CH42: 31 | CI42: 35 | CJ42: 31 | CK42: 29 | CL42: 33 | CM42: 36 | CN42: 38 | CO42: 39 | CP42: 39 | CQ42: 40 | CR42: 55 | CS42: 41 | CT42: 34 | CU42: 60 | CV42: 55 | CW42: 54 | CX42: 52 | CY42: 52 | CZ42: 50 | DA42: 49 | DB42: 45 | DC42: 51 | DD42: 54 | DE42: 53 | DF42: 58 | DG42: 56 | DH42: 58 | DI42: 56 | DJ42: 57 | DK42: 49 | DL42: 56 | DM42: 60 | DN42: 53 | DO42: 49 | DP42: 46 | DQ42: 45 | DR42: 45 | DS42: 44 | DT42: 32 | DU42: 43 | DV42: 51 | DW42: 23 | DX42: 39 | DY42: 38 | DZ42: 55 | EA42: 27 | EB42: 28 | EC42: 25 | ED42: 26 | EE42: 39 | EF42: 29 | EG42: 29
A43: Kiel | B43: Rendsburg | C43: 1002000 | D43: 1058135 | E43: 30,120 | F43: 54.32329,10.12283 | G43: 54.3081,9.66072 | H43: 2.0 | I43: 1.0 | J43: 2.0 | K43: 2.5 | L43: 273,923 | M43: 36,900 | N43: 26,780 | O43: 1,651 | P43: 4,255 | Q43: 2,832 | R43: 1,362 | S43: 0 | T43: 0 | U43: 22 | V43: 27 | W43: 33 | X43: 21 | Y43: 29 | Z43: 41 | AA43: 60 | AB43: 36 | AC43: 27 | AD43: 33 | AE43: 44 | AF43: 31 | AG43: 27 | AH43: 35 | AI43: 49 | AJ43: 33 | AK43: 25 | AL43: 31 | AM43: 39 | AN43: 28 | AO43: 30 | AP43: 36 | AQ43: 47 | AR43: 63 | AS43: 42 | AT43: 33 | AU43: 38 | AV43: 46 | AW43: 36 | AX43: 33 | AY43: 40 | AZ43: 52 | BA43: 38 | BB43: 32 | BC43: 36 | BD43: 42 | BE43: 34 | BF43: 26 | BG43: 24 | BH43: 27 | BI43: 32 | BJ43: 30 | BK43: 33 | BL43: 23 | BM43: 30 | BN43: 37,110 | BO43: 0 | BP43: 0 | BQ43: 0 | BR43: 33 | BS43: 31 | BT43: 31 | BU43: 32 | BV43: 34 | BW43: 33 | BX43: 33 | BY43: 33 | BZ43: 33 | CA43: 32 | CB43: 31 | CC43: 30 | CD43: 28 | CE43: 30 | CF43: 29 | CG43: 29 | CH43: 29 | CI43: 29 | CJ43: 28 | CK43: 28 | CL43: 32 | CM43: 37 | CN43: 44 | CO43: 40 | CP43: 40 | CQ43: 39 | CR43: 42 | CS43: 38 | CT43: 33 | CU43: 76 | CV43: 76 | CW43: 73 | CX43: 68 | CY43: 70 | CZ43: 70 | DA43: 70 | DB43: 70 | DC43: 73 | DD43: 75 | DE43: 78 | DF43: 83 | DG43: 75 | DH43: 81 | DI43: 79 | DJ43: 81 | DK43: 79 | DL43: 82 | DM43: 84 | DN43: 72 | DO43: 63 | DP43: 51 | DQ43: 58 | DR43: 58 | DS43: 60 | DT43: 55 | DU43: 61 | DV43: 69 | DW43: 29 | DX43: 34 | DY43: 60 | DZ43: 44 | EA43: 36 | EB43: 41 | EC43: 30 | ED43: 36 | EE43: 63 | EF43: 42 | EG43: 47
A44: Kiel | B44: Kappeln | C44: 1002000 | D44: 1059045 | E44: 39,610 | F44: 54.32329,10.12283 | G44: 54.65951,9.92249 | H44: 2.0 | I44: 1.0 | J44: 2.0 | K44: 2.5 | L44: 255,015 | M44: 55,590 | N44: 0 | O44: 53,659 | P44: 335 | Q44: 0 | R44: 1,578 | S44: 0 | T44: 0 | U44: 22 | V44: 40 | W44: 46 | X44: 35 | Y44: 45 | Z44: 54 | AA44: 65 | AB44: 50 | AC44: 45 | AD44: 54 | AE44: 65 | AF44: 50 | AG44: 45 | AH44: 54 | AI44: 71 | AJ44: 52 | AK44: 41 | AL44: 48 | AM44: 56 | AN44: 44 | AO44: 44 | AP44: 48 | AQ44: 55 | AR44: 65 | AS44: 52 | AT44: 48 | AU44: 54 | AV44: 65 | AW44: 52 | AX44: 48 | AY44: 55 | AZ44: 71 | BA44: 54 | BB44: 46 | BC44: 50 | BD44: 57 | BE44: 49 | BF44: 42 | BG44: 39 | BH44: 42 | BI44: 47 | BJ44: 46 | BK44: 47 | BL44: 39 | BM44: 51 | BN44: 55,530 | BO44: 0 | BP44: 0 | BQ44: 0 | BR44: 51 | BS44: 44 | BT44: 48 | BU44: 50 | BV44: 52 | BW44: 52 | BX44: 54 | BY44: 55 | BZ44: 57 | CA44: 52 | CB44: 48 | CC44: 50 | CD44: 46 | CE44: 47 | CF44: 46 | CG44: 47 | CH44: 47 | CI44: 51 | CJ44: 47 | CK44: 44 | CL44: 50 | CM44: 55 | CN44: 59 | CO44: 61 | CP44: 65 | CQ44: 62 | CR44: 74 | CS44: 60 | CT44: 50 | CU44: 76 | CV44: 70 | CW44: 67 | CX44: 65 | CY44: 65 | CZ44: 62 | DA44: 61 | DB44: 59 | DC44: 65 | DD44: 69 | DE44: 67 | DF44: 73 | DG44: 71 | DH44: 73 | DI44: 71 | DJ44: 71 | DK44: 66 | DL44: 72 | DM44: 76 | DN44: 66 | DO44: 61 | DP44: 57 | DQ44: 55 | DR44: 52 | DS44: 54 | DT44: 45 | DU44: 56 | DV44: 67 | DW44: 45 | DX44: 57 | DY44: 71 | DZ44: 74 | EA44: 52 | EB44: 54 | EC44: 49 | ED44: 48 | EE44: 71 | EF44: 54 | EG44: 55
A45: Kiel | B45: Schleswig | C45: 1002000 | D45: 1059075 | E45: 42,620 | F45: 54.32329,10.12283 | G45: 54.52372,9.56332 | H45: 2.0 | I45: 1.0 | J45: 2.0 | K45: 2.5 | L45: 270,572 | M45: 57,610 | N45: 48,205 | O45: 3,285 | P45: 1,392 | Q45: 0 | R45: 4,612 | S45: 0 | T45: 0 | U45: 116 | V45: 37 | W45: 48 | X45: 31 | Y45: 39 | Z45: 48 | AA45: 61 | AB45: 44 | AC45: 39 | AD45: 48 | AE45: 59 | AF45: 44 | AG45: 39 | AH45: 48 | AI45: 60 | AJ45: 45 | AK45: 37 | AL45: 45 | AM45: 54 | AN45: 41 | AO45: 46 | AP45: 50 | AQ45: 55 | AR45: 64 | AS45: 53 | AT45: 50 | AU45: 55 | AV45: 62 | AW45: 53 | AX45: 50 | AY45: 56 | AZ45: 63 | BA45: 54 | BB45: 48 | BC45: 53 | BD45: 58 | BE45: 51 | BF45: 37 | BG45: 34 | BH45: 37 | BI45: 48 | BJ45: 46 | BK45: 48 | BL45: 33 | BM45: 39 | BN45: 57,720 | BO45: 0 | BP45: 0 | BQ45: 0 | BR45: 44 | BS45: 40 | BT45: 44 | BU45: 44 | BV45: 44 | BW45: 44 | BX45: 45 | BY45: 45 | BZ45: 44 | CA45: 43 | CB45: 42 | CC45: 42 | CD45: 40 | CE45: 39 | CF45: 39 | CG45: 40 | CH45: 39 | CI45: 40 | CJ45: 39 | CK45: 38 | CL45: 50 | CM45: 53 | CN45: 54 | CO45: 53 | CP45: 55 | CQ45: 54 | CR45: 56 | CS45: 53 | CT45: 49 | CU45: 93 | CV45: 85 | CW45: 85 | CX45: 85 | CY45: 86 | CZ45: 84 | DA45: 84 | DB45: 85 | DC45: 87 | DD45: 88 | DE45: 88 | DF45: 95 | DG45: 95 | DH45: 96 | DI45: 95 | DJ45: 96 | DK45: 95 | DL45: 97 | DM45: 100 | DN45: 76 | DO45: 71 | DP45: 69 | DQ45: 71 | DR45: 68 | DS45: 70 | DT45: 67 | DU45: 70 | DV45: 77 | DW45: 39 | DX45: 44 | DY45: 61 | DZ45: 56 | EA45: 45 | EB45: 48 | EC45: 44 | ED45: 50 | EE45: 64 | EF45: 54 | EG45: 56
A46: Kiel | B46: Bad Segeberg | C46: 1002000 | D46: 1060005 | E46: 44,480 | F46: 54.32329,10.12283 | G46: 53.93827,10.30514 | H46: 2.0 | I46: 1.0 | J46: 2.0 | K46: 2.5 | L46: 263,482 | M46: 51,380 | N46: 26,417 | O46: 21,348 | P46: 616 | Q46: 0 | R46: 2,436 | S46: 0 | T46: 0 | U46: 565 | V46: 38 | W46: 45 | X46: 35 | Y46: 45 | Z46: 53 | AA46: 64 | AB46: 49 | AC46: 46 | AD46: 54 | AE46: 66 | AF46: 50 | AG46: 46 | AH46: 57 | AI46: 73 | AJ46: 52 | AK46: 42 | AL46: 49 | AM46: 57 | AN46: 45 | AO46: 42 | AP46: 49 | AQ46: 56 | AR46: 66 | AS46: 53 | AT46: 49 | AU46: 56 | AV46: 66 | AW46: 53 | AX46: 50 | AY46: 59 | AZ46: 74 | BA46: 56 | BB46: 46 | BC46: 51 | BD46: 59 | BE46: 49 | BF46: 43 | BG46: 39 | BH46: 40 | BI46: 47 | BJ46: 44 | BK46: 47 | BL46: 37 | BM46: 57 | BN46: 53,390 | BO46: 0 | BP46: 0 | BQ46: 0 | BR46: 49 | BS46: 42 | BT46: 44 | BU46: 46 | BV46: 49 | BW46: 49 | BX46: 51 | BY46: 54 | BZ46: 53 | CA46: 49 | CB46: 46 | CC46: 44 | CD46: 42 | CE46: 44 | CF46: 43 | CG46: 44 | CH46: 44 | CI46: 46 | CJ46: 43 | CK46: 41 | CL46: 46 | CM46: 55 | CN46: 60 | CO46: 60 | CP46: 62 | CQ46: 62 | CR46: 69 | CS46: 61 | CT46: 51 | CU46: 75 | CV46: 72 | CW46: 68 | CX46: 65 | CY46: 64 | CZ46: 62 | DA46: 59 | DB46: 60 | DC46: 64 | DD46: 69 | DE46: 73 | DF46: 75 | DG46: 72 | DH46: 73 | DI46: 72 | DJ46: 72 | DK46: 69 | DL46: 73 | DM46: 77 | DN46: 68 | DO46: 57 | DP46: 52 | DQ46: 52 | DR46: 51 | DS46: 51 | DT46: 46 | DU46: 52 | DV46: 62 | DW46: 46 | DX46: 53 | DY46: 73 | DZ46: 69 | EA46: 52 | EB46: 57 | EC46: 50 | ED46: 50 | EE46: 74 | EF46: 56 | EG46: 59
A47: Kiel | B47: Kaltenkirchen | C47: 1002000 | D47: 1060044 | E47: 55,840 | F47: 54.32329,10.12283 | G47: 53.83094,9.95906 | H47: 2.0 | I47: 1.0 | J47: 2.0 | K47: 2.5 | L47: 266,637 | M47: 62,180 | N47: 57,238 | O47: 0 | P47: 3,023 | Q47: 0 | R47: 1,822 | S47: 0 | T47: 0 | U47: 94 | V47: 38 | W47: 51 | X47: 34 | Y47: 42 | Z47: 50 | AA47: 63 | AB47: 47 | AC47: 44 | AD47: 53 | AE47: 66 | AF47: 49 | AG47: 43 | AH47: 53 | AI47: 66 | AJ47: 49 | AK47: 41 | AL47: 49 | AM47: 58 | AN47: 45 | AO47: 49 | AP47: 52 | AQ47: 57 | AR47: 66 | AS47: 55 | AT47: 52 | AU47: 58 | AV47: 68 | AW47: 56 | AX47: 52 | AY47: 58 | AZ47: 69 | BA47: 56 | BB47: 51 | BC47: 55 | BD47: 61 | BE47: 54 | BF47: 42 | BG47: 37 | BH47: 38 | BI47: 51 | BJ47: 49 | BK47: 51 | BL47: 31 | BM47: 45 | BN47: 62,310 | BO47: 0 | BP47: 0 | BQ47: 0 | BR47: 48 | BS47: 40 | BT47: 45 | BU47: 45 | BV47: 47 | BW47: 47 | BX47: 49 | BY47: 50 | BZ47: 48 | CA47: 47 | CB47: 46 | CC47: 44 | CD47: 42 | CE47: 43 | CF47: 42 | CG47: 45 | CH47: 44 | CI47: 43 | CJ47: 43 | CK47: 42 | CL47: 52 | CM47: 54 | CN47: 57 | CO47: 56 | CP47: 60 | CQ47: 60 | CR47: 60 | CS47: 57 | CT47: 52 | CU47: 93 | CV47: 84 | CW47: 83 | CX47: 80 | CY47: 80 | CZ47: 76 | DA47: 76 | DB47: 78 | DC47: 79 | DD47: 82 | DE47: 86 | DF47: 90 | DG47: 88 | DH47: 89 | DI47: 84 | DJ47: 86 | DK47: 87 | DL47: 88 | DM47: 91 | DN47: 73 | DO47: 70 | DP47: 66 | DQ47: 67 | DR47: 63 | DS47: 63 | DT47: 63 | DU47: 66 | DV47: 73 | DW47: 43 | DX47: 48 | DY47: 66 | DZ47: 60 | EA47: 49 | EB47: 53 | EC47: 49 | ED47: 52 | EE47: 69 | EF47: 56 | EG47: 58
A48: Kiel | B48: Itzehoe | C48: 1002000 | D48: 1061046 | E48: 59,420 | F48: 54.32329,10.12283 | G48: 53.93182,9.50492 | H48: 2.0 | I48: 1.0 | J48: 2.0 | K48: 2.5 | L48: 278,077 | M48: 73,780 | N48: 32,069 | O48: 39,632 | P48: 0 | Q48: 0 | R48: 1,362 | S48: 0 | T48: 699 | U48: 22 | V48: 50 | W48: 60 | X48: 42 | Y48: 55 | Z48: 66 | AA48: 80 | AB48: 60 | AC48: 56 | AD48: 66 | AE48: 78 | AF48: 60 | AG48: 55 | AH48: 65 | AI48: 79 | AJ48: 60 | AK48: 50 | AL48: 58 | AM48: 68 | AN48: 54 | AO48: 57 | AP48: 63 | AQ48: 71 | AR48: 83 | AS48: 67 | AT48: 62 | AU48: 70 | AV48: 80 | AW48: 66 | AX48: 62 | AY48: 70 | AZ48: 82 | BA48: 66 | BB48: 59 | BC48: 64 | BD48: 71 | BE48: 62 | BF48: 51 | BG48: 48 | BH48: 51 | BI48: 60 | BJ48: 58 | BK48: 60 | BL48: 45 | BM48: 57 | BN48: 69,170 | BO48: 0 | BP48: 0 | BQ48: 0 | BR48: 60 | BS48: 54 | BT48: 56 | BU48: 58 | BV48: 60 | BW48: 59 | BX48: 61 | BY48: 61 | BZ48: 60 | CA48: 58 | CB48: 55 | CC48: 54 | CD48: 54 | CE48: 55 | CF48: 54 | CG48: 55 | CH48: 54 | CI48: 54 | CJ48: 53 | CK48: 51 | CL48: 60 | CM48: 66 | CN48: 69 | CO48: 68 | CP48: 71 | CQ48: 69 | CR48: 70 | CS48: 66 | CT48: 59 | CU48: 81 | CV48: 73 | CW48: 72 | CX48: 69 | CY48: 70 | CZ48: 68 | DA48: 68 | DB48: 69 | DC48: 71 | DD48: 76 | DE48: 77 | DF48: 77 | DG48: 76 | DH48: 77 | DI48: 75 | DJ48: 76 | DK48: 77 | DL48: 78 | DM48: 81 | DN48: 69 | DO48: 63 | DP48: 60 | DQ48: 61 | DR48: 58 | DS48: 60 | DT48: 59 | DU48: 62 | DV48: 70 | DW48: 55 | DX48: 60 | DY48: 80 | DZ48: 70 | EA48: 60 | EB48: 66 | EC48: 60 | ED48: 63 | EE48: 83 | EF48: 67 | EG48: 71
A49: Kiel | B49: Ahrensburg | C49: 1002000 | D49: 1062001 | E49: 72,390 | F49: 54.32329,10.12283 | G49: 53.67645,10.23797 | H49: 2.0 | I49: 1.0 | J49: 2.0 | K49: 2.5 | L49: 278,912 | M49: 81,050 | N49: 43,546 | O49: 34,353 | P49: 616 | Q49: 0 | R49: 1,875 | S49: 0 | T49: 591 | U49: 72 | V49: 58 | W49: 69 | X49: 53 | Y49: 69 | Z49: 86 | AA49: 110 | AB49: 79 | AC49: 68 | AD49: 81 | AE49: 97 | AF49: 75 | AG49: 68 | AH49: 83 | AI49: 105 | AJ49: 77 | AK49: 62 | AL49: 73 | AM49: 86 | AN49: 67 | AO49: 65 | AP49: 77 | AQ49: 92 | AR49: 113 | AS49: 85 | AT49: 75 | AU49: 85 | AV49: 98 | AW49: 80 | AX49: 75 | AY49: 88 | AZ49: 108 | BA49: 83 | BB49: 70 | BC49: 78 | BD49: 89 | BE49: 75 | BF49: 65 | BG49: 59 | BH49: 61 | BI49: 72 | BJ49: 69 | BK49: 72 | BL49: 53 | BM49: 74 | BN49: 81,190 | BO49: 0 | BP49: 0 | BQ49: 0 | BR49: 71 | BS49: 63 | BT49: 65 | BU49: 69 | BV49: 73 | BW49: 71 | BX49: 73 | BY49: 75 | BZ49: 74 | CA49: 70 | CB49: 67 | CC49: 63 | CD49: 63 | CE49: 65 | CF49: 63 | CG49: 65 | CH49: 64 | CI49: 66 | CJ49: 63 | CK49: 60 | CL49: 69 | CM49: 84 | CN49: 90 | CO49: 86 | CP49: 87 | CQ49: 87 | CR49: 93 | CS49: 85 | CT49: 74 | CU49: 83 | CV49: 80 | CW49: 75 | CX49: 71 | CY49: 73 | CZ49: 71 | DA49: 69 | DB49: 70 | DC49: 74 | DD49: 78 | DE49: 82 | DF49: 82 | DG49: 80 | DH49: 82 | DI49: 80 | DJ49: 81 | DK49: 79 | DL49: 83 | DM49: 86 | DN49: 75 | DO49: 62 | DP49: 58 | DQ49: 60 | DR49: 60 | DS49: 60 | DT49: 56 | DU49: 61 | DV49: 70 | DW49: 69 | DX49: 74 | DY49: 110 | DZ49: 93 | EA49: 79 | EB49: 86 | EC49: 74 | ED49: 77 | EE49: 113 | EF49: 85 | EG49: 92
A50: Kiel | B50: Bad Oldesloe | C50: 1002000 | D50: 1062004 | E50: 59,860 | F50: 54.32329,10.12283 | G50: 53.80762,10.38228 | H50: 2.0 | I50: 1.0 | J50: 2.0 | K50: 2.5 | L50: 271,244 | M50: 67,490 | N50: 40,944 | O50: 20,681 | P50: 616 | Q50: 789 | R50: 4,440 | S50: 0 | T50: 0 | U50: 22 | V50: 47 | W50: 58 | X50: 43 | Y50: 55 | Z50: 65 | AA50: 79 | AB50: 60 | AC50: 56 | AD50: 66 | AE50: 77 | AF50: 60 | AG50: 56 | AH50: 67 | AI50: 86 | AJ50: 62 | AK50: 51 | AL50: 60 | AM50: 70 | AN50: 55 | AO50: 54 | AP50: 62 | AQ50: 70 | AR50: 82 | AS50: 66 | AT50: 62 | AU50: 69 | AV50: 79 | AW50: 66 | AX50: 63 | AY50: 72 | AZ50: 88 | BA50: 69 | BB50: 59 | BC50: 65 | BD50: 72 | BE50: 61 | BF50: 54 | BG50: 49 | BH50: 50 | BI50: 60 | BJ50: 57 | BK50: 60 | BL50: 43 | BM50: 59 | BN50: 67,810 | BO50: 0 | BP50: 0 | BQ50: 0 | BR50: 60 | BS50: 52 | BT50: 54 | BU50: 57 | BV50: 59 | BW50: 59 | BX50: 61 | BY50: 63 | BZ50: 62 | CA50: 59 | CB50: 56 | CC50: 53 | CD50: 52 | CE50: 53 | CF50: 53 | CG50: 54 | CH50: 53 | CI50: 56 | CJ50: 53 | CK50: 50 | CL50: 58 | CM50: 68 | CN50: 72 | CO50: 72 | CP50: 73 | CQ50: 72 | CR50: 79 | CS50: 71 | CT50: 62 | CU50: 80 | CV50: 77 | CW50: 73 | CX50: 70 | CY50: 70 | CZ50: 68 | DA50: 66 | DB50: 66 | DC50: 70 | DD50: 74 | DE50: 78 | DF50: 80 | DG50: 78 | DH50: 79 | DI50: 76 | DJ50: 78 | DK50: 75 | DL50: 79 | DM50: 83 | DN50: 71 | DO50: 61 | DP50: 58 | DQ50: 58 | DR50: 57 | DS50: 57 | DT50: 52 | DU50: 58 | DV50: 67 | DW50: 56 | DX50: 62 | DY50: 86 | DZ50: 79 | EA50: 62 | EB50: 67 | EC50: 61 | ED50: 63 | EE50: 88 | EF50: 69 | EG50: 72
A51: Kiel | B51: Hamburg | C51: 1002000 | D51: 2000000 | E51: 86,370 | F51: 54.32329,10.12283 | G51: 53.55107,9.99367 | H51: 2.5 | I51: 2.0 | J51: 2.0 | K51: 2.5 | L51: 2,033,714 | M51: 96,750 | N51: 86,833 | O51: 2,065 | P51: 4,181 | Q51: 471 | R51: 1,948 | S51: 0 | T51: 1,145 | U51: 102 | V51: 65 | W51: 83 | X51: 57 | Y51: 74 | Z51: 93 | AA51: 125 | AB51: 87 | AC51: 74 | AD51: 90 | AE51: 116 | AF51: 85 | AG51: 77 | AH51: 99 | AI51: 136 | AJ51: 93 | AK51: 71 | AL51: 85 | AM51: 103 | AN51: 78 | AO51: 77 | AP51: 85 | AQ51: 100 | AR51: 129 | AS51: 97 | AT51: 84 | AU51: 96 | AV51: 118 | AW51: 93 | AX51: 88 | AY51: 105 | AZ51: 139 | BA51: 102 | BB51: 83 | BC51: 92 | BD51: 107 | BE51: 89 | BF51: 72 | BG51: 61 | BH51: 65 | BI51: 83 | BJ51: 78 | BK51: 83 | BL51: 53 | BM51: 95 | BN51: 94,890 | BO51: 0 | BP51: 0 | BQ51: 0 | BR51: 84 | BS51: 68 | BT51: 76 | BU51: 88 | BV51: 95 | BW51: 89 | BX51: 87 | BY51: 93 | BZ51: 90 | CA51: 85 | CB51: 80 | CC51: 70 | CD51: 76 | CE51: 82 | CF51: 76 | CG51: 76 | CH51: 80 | CI51: 76 | CJ51: 73 | CK51: 69 | CL51: 89 | CM51: 144 | CN51: 146 | CO51: 116 | CP51: 114 | CQ51: 115 | CR51: 120 | CS51: 108 | CT51: 97 | CU51: 86 | CV51: 77 | CW51: 66 | CX51: 62 | CY51: 67 | CZ51: 67 | DA51: 65 | DB51: 65 | DC51: 69 | DD51: 73 | DE51: 84 | DF51: 76 | DG51: 71 | DH51: 77 | DI51: 76 | DJ51: 87 | DK51: 76 | DL51: 80 | DM51: 84 | DN51: 66 | DO51: 41 | DP51: 40 | DQ51: 50 | DR51: 51 | DS51: 61 | DT51: 49 | DU51: 54 | DV51: 60 | DW51: 77 | DX51: 95 | DY51: 136 | DZ51: 146 | EA51: 93 | EB51: 99 | EC51: 85 | ED51: 88 | EE51: 139 | EF51: 102 | EG51: 105
A52: Kiel | B52: Braunschweig | C52: 1002000 | D52: 3101000 | E52: 230,230 | F52: 54.32329,10.12283 | G52: 52.26871,10.52621 | H52: 2.5 | I52: 2.0 | J52: 2.0 | K52: 2.5 | L52: 497,670 | M52: 295,150 | N52: 290,754 | O52: 0 | P52: 1,310 | Q52: 0 | R52: 3,063 | S52: 0 | T52: 0 | U52: 22 | V52: 158 | W52: 227 | X52: 139 | Y52: 170 | Z52: 202 | AA52: 254 | AB52: 187 | AC52: 176 | AD52: 208 | AE52: 251 | AF52: 193 | AG52: 176 | AH52: 212 | AI52: 272 | AJ52: 206 | AK52: 170 | AL52: 202 | AM52: 237 | AN52: 186 | AO52: 223 | AP52: 231 | AQ52: 243 | AR52: 271 | AS52: 240 | AT52: 230 | AU52: 241 | AV52: 261 | AW52: 236 | AX52: 230 | AY52: 244 | AZ52: 282 | BA52: 243 | BB52: 227 | BC52: 234 | BD52: 249 | BE52: 232 | BF52: 172 | BG52: 155 | BH52: 161 | BI52: 227 | BJ52: 224 | BK52: 227 | BL52: 160 | BM52: 242 | BN52: 270,900 | BO52: 0 | BP52: 0 | BQ52: 0 | BR52: 187 | BS52: 164 | BT52: 191 | BU52: 194 | BV52: 198 | BW52: 199 | BX52: 210 | BY52: 213 | BZ52: 198 | CA52: 192 | CB52: 190 | CC52: 172 | CD52: 169 | CE52: 176 | CF52: 175 | CG52: 181 | CH52: 183 | CI52: 176 | CJ52: 168 | CK52: 171 | CL52: 235 | CM52: 261 | CN52: 251 | CO52: 246 | CP52: 263 | CQ52: 279 | CR52: 244 | CS52: 233 | CT52: 229 | CU52: 108 | CV52: 93 | CW52: 92 | CX52: 90 | CY52: 89 | CZ52: 84 | DA52: 83 | DB52: 89 | DC52: 92 | DD52: 93 | DE52: 103 | DF52: 105 | DG52: 101 | DH52: 101 | DI52: 98 | DJ52: 97 | DK52: 101 | DL52: 105 | DM52: 103 | DN52: 75 | DO52: 68 | DP52: 71 | DQ52: 72 | DR52: 67 | DS52: 64 | DT52: 73 | DU52: 76 | DV52: 77 | DW52: 176 | DX52: 198 | DY52: 272 | DZ52: 251 | EA52: 206 | EB52: 212 | EC52: 204 | ED52: 231 | EE52: 282 | EF52: 243 | EG52: 244
A53: Kiel | B53: Hannover | C53: 1002000 | D53: 3241001 | E53: 218,290 | F53: 54.32329,10.12283 | G53: 52.37587,9.73201 | H53: 2.5 | I53: 2.0 | J53: 2.0 | K53: 2.5 | L53: 778,469 | M53: 246,450 | N53: 236,019 | O53: 2,624 | P53: 5,343 | Q53: 0 | R53: 1,597 | S53: 642 | T53: 19 | U53: 202 | V53: 138 | W53: 193 | X53: 121 | Y53: 148 | Z53: 177 | AA53: 226 | AB53: 165 | AC53: 153 | AD53: 179 | AE53: 219 | AF53: 167 | AG53: 155 | AH53: 190 | AI53: 250 | AJ53: 182 | AK53: 147 | AL53: 175 | AM53: 209 | AN53: 162 | AO53: 188 | AP53: 197 | AQ53: 212 | AR53: 242 | AS53: 208 | AT53: 195 | AU53: 207 | AV53: 228 | AW53: 203 | AX53: 198 | AY53: 217 | AZ53: 259 | BA53: 215 | BB53: 193 | BC53: 203 | BD53: 220 | BE53: 200 | BF53: 150 | BG53: 135 | BH53: 140 | BI53: 193 | BJ53: 189 | BK53: 193 | BL53: 123 | BM53: 208 | BN53: 246,770 | BO53: 0 | BP53: 0 | BQ53: 0 | BR53: 167 | BS53: 146 | BT53: 169 | BU53: 174 | BV53: 177 | BW53: 175 | BX53: 187 | BY53: 194 | BZ53: 176 | CA53: 170 | CB53: 166 | CC53: 152 | CD53: 153 | CE53: 156 | CF53: 155 | CG53: 161 | CH53: 165 | CI53: 156 | CJ53: 149 | CK53: 149 | CL53: 211 | CM53: 239 | CN53: 224 | CO53: 219 | CP53: 239 | CQ53: 258 | CR53: 217 | CS53: 205 | CT53: 199 | CU53: 105 | CV53: 91 | CW53: 88 | CX53: 87 | CY53: 87 | CZ53: 82 | DA53: 79 | DB53: 87 | DC53: 90 | DD53: 92 | DE53: 100 | DF53: 100 | DG53: 98 | DH53: 99 | DI53: 95 | DJ53: 92 | DK53: 98 | DL53: 103 | DM53: 102 | DN53: 73 | DO53: 64 | DP53: 68 | DQ53: 70 | DR53: 64 | DS53: 59 | DT53: 70 | DU53: 75 | DV53: 77 | DW53: 155 | DX53: 177 | DY53: 250 | DZ53: 224 | EA53: 182 | EB53: 190 | EC53: 176 | ED53: 198 | EE53: 259 | EF53: 215 | EG53: 217
A54: Kiel | B54: Hildesheim | C54: 1002000 | D54: 3254021 | E54: 241,590 | F54: 54.32329,10.12283 | G54: 52.15477,9.958 | H54: 2.5 | I54: 2.0 | J54: 2.0 | K54: 2.5 | L54: 347,973 | M54: 272,960 | N54: 267,760 | O54: 3,402 | P54: 0 | Q54: 322 | R54: 1,362 | S54: 88 | T54: 0 | U54: 22 | V54: 144 | W54: 209 | X54: 127 | Y54: 153 | Z54: 177 | AA54: 220 | AB54: 165 | AC54: 159 | AD54: 183 | AE54: 220 | AF54: 171 | AG54: 158 | AH54: 187 | AI54: 236 | AJ54: 181 | AK54: 154 | AL54: 180 | AM54: 211 | AN54: 166 | AO54: 206 | AP54: 211 | AQ54: 220 | AR54: 239 | AS54: 218 | AT54: 210 | AU54: 217 | AV54: 231 | AW54: 214 | AX54: 211 | AY54: 220 | AZ54: 247 | BA54: 220 | BB54: 208 | BC54: 213 | BD54: 224 | BE54: 212 | BF54: 156 | BG54: 143 | BH54: 147 | BI54: 209 | BJ54: 207 | BK54: 209 | BL54: 131 | BM54: 215 | BN54: 273,120 | BO54: 0 | BP54: 0 | BQ54: 0 | BR54: 173 | BS54: 152 | BT54: 174 | BU54: 176 | BV54: 180 | BW54: 181 | BX54: 192 | BY54: 195 | BZ54: 183 | CA54: 177 | CB54: 174 | CC54: 158 | CD54: 155 | CE54: 160 | CF54: 159 | CG54: 165 | CH54: 168 | CI54: 161 | CJ54: 155 | CK54: 157 | CL54: 213 | CM54: 242 | CN54: 230 | CO54: 226 | CP54: 243 | CQ54: 258 | CR54: 225 | CS54: 214 | CT54: 209 | CU54: 108 | CV54: 94 | CW54: 93 | CX54: 91 | CY54: 91 | CZ54: 86 | DA54: 84 | DB54: 90 | DC54: 93 | DD54: 94 | DE54: 104 | DF54: 105 | DG54: 102 | DH54: 103 | DI54: 99 | DJ54: 98 | DK54: 102 | DL54: 106 | DM54: 105 | DN54: 77 | DO54: 68 | DP54: 71 | DQ54: 73 | DR54: 68 | DS54: 64 | DT54: 73 | DU54: 77 | DV54: 78 | DW54: 158 | DX54: 183 | DY54: 236 | DZ54: 230 | EA54: 181 | EB54: 187 | EC54: 185 | ED54: 211 | EE54: 247 | EF54: 220 | EG54: 220
A55: Kiel | B55: Celle | C55: 1002000 | D55: 3351006 | E55: 189,890 | F55: 54.32329,10.12283 | G55: 52.61748,10.06274 | H55: 2.5 | I55: 2.0 | J55: 2.0 | K55: 2.5 | L55: 316,054 | M55: 215,630 | N55: 170,935 | O55: 38,140 | P55: 2,767 | Q55: 0 | R55: 1,362 | S55: 2,091 | T55: 0 | U55: 332 | V55: 128 | W55: 169 | X55: 113 | Y55: 139 | Z55: 164 | AA55: 201 | AB55: 153 | AC55: 142 | AD55: 165 | AE55: 196 | AF55: 153 | AG55: 141 | AH55: 167 | AI55: 213 | AJ55: 161 | AK55: 136 | AL55: 156 | AM55: 182 | AN55: 144 | AO55: 165 | AP55: 174 | AQ55: 187 | AR55: 212 | AS55: 183 | AT55: 173 | AU55: 184 | AV55: 202 | AW55: 179 | AX55: 173 | AY55: 186 | AZ55: 220 | BA55: 185 | BB55: 170 | BC55: 176 | BD55: 190 | BE55: 174 | BF55: 140 | BG55: 128 | BH55: 132 | BI55: 172 | BJ55: 169 | BK55: 171 | BL55: 118 | BM55: 180 | BN55: 216,140 | BO55: 0 | BP55: 0 | BQ55: 0 | BR55: 151 | BS55: 131 | BT55: 148 | BU55: 154 | BV55: 158 | BW55: 156 | BX55: 157 | BY55: 161 | BZ55: 154 | CA55: 148 | CB55: 147 | CC55: 137 | CD55: 137 | CE55: 142 | CF55: 139 | CG55: 143 | CH55: 141 | CI55: 140 | CJ55: 135 | CK55: 134 | CL55: 173 | CM55: 206 | CN55: 207 | CO55: 185 | CP55: 188 | CQ55: 201 | CR55: 187 | CS55: 176 | CT55: 170 | CU55: 99 | CV55: 87 | CW55: 84 | CX55: 82 | CY55: 83 | CZ55: 82 | DA55: 81 | DB55: 84 | DC55: 87 | DD55: 88 | DE55: 95 | DF55: 95 | DG55: 91 | DH55: 93 | DI55: 90 | DJ55: 92 | DK55: 92 | DL55: 95 | DM55: 97 | DN55: 75 | DO55: 63 | DP55: 62 | DQ55: 70 | DR55: 69 | DS55: 64 | DT55: 69 | DU55: 74 | DV55: 76 | DW55: 141 | DX55: 158 | DY55: 213 | DZ55: 207 | EA55: 161 | EB55: 167 | EC55: 163 | ED55: 174 | EE55: 220 | EF55: 185 | EG55: 187
A56: Kiel | B56: Lüneburg | C56: 1002000 | D56: 3355022 | E56: 121,350 | F56: 54.32329,10.12283 | G56: 53.24645,10.41144 | H56: 2.5 | I56: 2.0 | J56: 2.0 | K56: 2.5 | L56: 320,378 | M56: 152,200 | N56: 144,584 | O56: 2,602 | P56: 2,962 | Q56: 406 | R56: 1,458 | S56: 0 | T56: 0 | U56: 188 | V56: 88 | W56: 119 | X56: 77 | Y56: 99 | Z56: 122 | AA56: 154 | AB56: 112 | AC56: 101 | AD56: 121 | AE56: 145 | AF56: 110 | AG56: 100 | AH56: 122 | AI56: 161 | AJ56: 118 | AK56: 94 | AL56: 109 | AM56: 128 | AN56: 100 | AO56: 116 | AP56: 123 | AQ56: 136 | AR56: 160 | AS56: 132 | AT56: 122 | AU56: 133 | AV56: 149 | AW56: 128 | AX56: 123 | AY56: 135 | AZ56: 167 | BA56: 135 | BB56: 119 | BC56: 125 | BD56: 136 | BE56: 123 | BF56: 96 | BG56: 86 | BH56: 89 | BI56: 119 | BJ56: 117 | BK56: 119 | BL56: 77 | BM56: 129 | BN56: 151,280 | BO56: 0 | BP56: 0 | BQ56: 0 | BR56: 108 | BS56: 93 | BT56: 106 | BU56: 115 | BV56: 117 | BW56: 114 | BX56: 114 | BY56: 120 | BZ56: 113 | CA56: 107 | CB56: 104 | CC56: 98 | CD56: 100 | CE56: 105 | CF56: 101 | CG56: 103 | CH56: 103 | CI56: 102 | CJ56: 96 | CK56: 94 | CL56: 121 | CM56: 160 | CN56: 162 | CO56: 138 | CP56: 138 | CQ56: 159 | CR56: 141 | CS56: 126 | CT56: 119 | CU56: 98 | CV56: 87 | CW56: 80 | CX56: 78 | CY56: 80 | CZ56: 80 | DA56: 77 | DB56: 81 | DC56: 86 | DD56: 88 | DE56: 93 | DF56: 91 | DG56: 87 | DH56: 91 | DI56: 89 | DJ56: 89 | DK56: 89 | DL56: 95 | DM56: 97 | DN56: 75 | DO56: 57 | DP56: 56 | DQ56: 66 | DR56: 66 | DS56: 57 | DT56: 65 | DU56: 72 | DV56: 77 | DW56: 100 | DX56: 117 | DY56: 161 | DZ56: 162 | EA56: 118 | EB56: 122 | EC56: 113 | ED56: 123 | EE56: 167 | EF56: 135 | EG56: 136
A57: Kiel | B57: Oldenburg (Oldb) | C57: 1002000 | D57: 3403000 | E57: 181,930 | F57: 54.32329,10.12283 | G57: 53.14345,8.21456 | H57: 2.5 | I57: 2.0 | J57: 2.0 | K57: 2.5 | L57: 410,136 | M57: 251,020 | N57: 246,189 | O57: 0 | P57: 0 | Q57: 1,517 | R57: 3,295 | S57: 0 | T57: 0 | U57: 22 | V57: 136 | W57: 193 | X57: 119 | Y57: 150 | Z57: 180 | AA57: 228 | AB57: 166 | AC57: 153 | AD57: 180 | AE57: 217 | AF57: 166 | AG57: 160 | AH57: 197 | AI57: 266 | AJ57: 186 | AK57: 145 | AL57: 169 | AM57: 200 | AN57: 156 | AO57: 191 | AP57: 199 | AQ57: 212 | AR57: 239 | AS57: 208 | AT57: 197 | AU57: 207 | AV57: 226 | AW57: 203 | AX57: 205 | AY57: 227 | AZ57: 277 | BA57: 223 | BB57: 194 | BC57: 200 | BD57: 213 | BE57: 198 | BF57: 148 | BG57: 135 | BH57: 138 | BI57: 194 | BJ57: 191 | BK57: 193 | BL57: 122 | BM57: 215 | BN57: 251,810 | BO57: 0 | BP57: 0 | BQ57: 0 | BR57: 162 | BS57: 141 | BT57: 163 | BU57: 167 | BV57: 169 | BW57: 168 | BX57: 176 | BY57: 187 | BZ57: 165 | CA57: 158 | CB57: 156 | CC57: 147 | CD57: 146 | CE57: 149 | CF57: 148 | CG57: 152 | CH57: 154 | CI57: 147 | CJ57: 141 | CK57: 141 | CL57: 198 | CM57: 231 | CN57: 218 | CO57: 212 | CP57: 224 | CQ57: 247 | CR57: 206 | CS57: 193 | CT57: 188 | CU57: 107 | CV57: 93 | CW57: 90 | CX57: 89 | CY57: 89 | CZ57: 85 | DA57: 81 | DB57: 91 | DC57: 95 | DD57: 96 | DE57: 102 | DF57: 103 | DG57: 101 | DH57: 102 | DI57: 99 | DJ57: 98 | DK57: 102 | DL57: 107 | DM57: 107 | DN57: 76 | DO57: 65 | DP57: 69 | DQ57: 71 | DR57: 67 | DS57: 61 | DT57: 73 | DU57: 78 | DV57: 80 | DW57: 160 | DX57: 169 | DY57: 266 | DZ57: 218 | EA57: 186 | EB57: 197 | EC57: 174 | ED57: 205 | EE57: 277 | EF57: 223 | EG57: 227
A58: Kiel | B58: Osnabrück | C58: 1002000 | D58: 3404000 | E58: 266,180 | F58: 54.32329,10.12283 | G58: 52.27991,8.04717 | H58: 2.5 | I58: 2.0 | J58: 2.0 | K58: 2.5 | L58: 408,709 | M58: 315,870 | N58: 305,826 | O58: 7,941 | P58: 575 | Q58: 0 | R58: 1,440 | S58: 0 | T58: 0 | U58: 93 | V58: 166 | W58: 242 | X58: 143 | Y58: 177 | Z58: 214 | AA58: 281 | AB58: 198 | AC58: 182 | AD58: 214 | AE58: 262 | AF58: 198 | AG58: 189 | AH58: 231 | AI58: 310 | AJ58: 218 | AK58: 175 | AL58: 209 | AM58: 249 | AN58: 191 | AO58: 239 | AP58: 248 | AQ58: 264 | AR58: 296 | AS58: 259 | AT58: 244 | AU58: 254 | AV58: 274 | AW58: 251 | AX58: 252 | AY58: 273 | AZ58: 324 | BA58: 270 | BB58: 242 | BC58: 249 | BD58: 264 | BE58: 248 | BF58: 179 | BG58: 163 | BH58: 168 | BI58: 242 | BJ58: 239 | BK58: 242 | BL58: 148 | BM58: 269 | BN58: 315,940 | BO58: 0 | BP58: 0 | BQ58: 0 | BR58: 199 | BS58: 174 | BT58: 203 | BU58: 203 | BV58: 206 | BW58: 206 | BX58: 215 | BY58: 224 | BZ58: 202 | CA58: 195 | CB58: 195 | CC58: 182 | CD58: 176 | CE58: 180 | CF58: 179 | CG58: 185 | CH58: 186 | CI58: 179 | CJ58: 173 | CK58: 174 | CL58: 253 | CM58: 281 | CN58: 269 | CO58: 263 | CP58: 278 | CQ58: 297 | CR58: 257 | CS58: 243 | CT58: 238 | CU58: 109 | CV58: 94 | CW58: 93 | CX58: 92 | CY58: 92 | CZ58: 88 | DA58: 85 | DB58: 94 | DC58: 97 | DD58: 98 | DE58: 104 | DF58: 108 | DG58: 105 | DH58: 106 | DI58: 103 | DJ58: 102 | DK58: 106 | DL58: 110 | DM58: 109 | DN58: 75 | DO58: 68 | DP58: 70 | DQ58: 72 | DR58: 68 | DS58: 64 | DT58: 74 | DU58: 78 | DV58: 80 | DW58: 189 | DX58: 206 | DY58: 310 | DZ58: 269 | EA58: 218 | EB58: 231 | EC58: 210 | ED58: 252 | EE58: 324 | EF58: 270 | EG58: 273
A59: Kiel | B59: Wilhelmshaven | C59: 1002000 | D59: 3405000 | E59: 159,050 | F59: 54.32329,10.12283 | G59: 53.53251,8.10603 | H59: 2.5 | I59: 2.0 | J59: 2.0 | K59: 2.5 | L59: 322,301 | M59: 303,390 | N59: 294,209 | O59: 7,255 | P59: 0 | Q59: 0 | R59: 1,362 | S59: 0 | T59: 545 | U59: 22 | V59: 161 | W59: 233 | X59: 139 | Y59: 174 | Z59: 208 | AA59: 259 | AB59: 192 | AC59: 179 | AD59: 211 | AE59: 254 | AF59: 193 | AG59: 183 | AH59: 224 | AI59: 295 | AJ59: 211 | AK59: 169 | AL59: 198 | AM59: 234 | AN59: 181 | AO59: 230 | AP59: 236 | AQ59: 248 | AR59: 273 | AS59: 245 | AT59: 236 | AU59: 246 | AV59: 265 | AW59: 242 | AX59: 242 | AY59: 263 | AZ59: 312 | BA59: 260 | BB59: 233 | BC59: 239 | BD59: 253 | BE59: 237 | BF59: 173 | BG59: 160 | BH59: 164 | BI59: 233 | BJ59: 230 | BK59: 233 | BL59: 147 | BM59: 240 | BN59: 306,920 | BO59: 0 | BP59: 0 | BQ59: 0 | BR59: 189 | BS59: 168 | BT59: 192 | BU59: 194 | BV59: 196 | BW59: 196 | BX59: 204 | BY59: 212 | BZ59: 191 | CA59: 184 | CB59: 183 | CC59: 173 | CD59: 170 | CE59: 173 | CF59: 172 | CG59: 177 | CH59: 177 | CI59: 171 | CJ59: 165 | CK59: 167 | CL59: 236 | CM59: 265 | CN59: 253 | CO59: 247 | CP59: 259 | CQ59: 277 | CR59: 236 | CS59: 223 | CT59: 217 | CU59: 108 | CV59: 95 | CW59: 94 | CX59: 93 | CY59: 93 | CZ59: 89 | DA59: 86 | DB59: 95 | DC59: 99 | DD59: 99 | DE59: 105 | DF59: 107 | DG59: 105 | DH59: 106 | DI59: 103 | DJ59: 102 | DK59: 106 | DL59: 110 | DM59: 109 | DN59: 77 | DO59: 69 | DP59: 72 | DQ59: 74 | DR59: 70 | DS59: 66 | DT59: 77 | DU59: 82 | DV59: 84 | DW59: 183 | DX59: 196 | DY59: 295 | DZ59: 253 | EA59: 211 | EB59: 224 | EC59: 203 | ED59: 242 | EE59: 312 | EF59: 260 | EG59: 263
A60: Kiel | B60: Bremen | C60: 1002000 | D60: 4011000 | E60: 163,650 | F60: 54.32329,10.12283 | G60: 53.07924,8.80177 | H60: 2.5 | I60: 2.0 | J60: 2.0 | K60: 2.5 | L60: 803,770 | M60: 210,840 | N60: 203,629 | O60: 3,930 | P60: 867 | Q60: 0 | R60: 2,220 | S60: 0 | T60: 0 | U60: 197 | V60: 116 | W60: 164 | X60: 100 | Y60: 126 | Z60: 151 | AA60: 192 | AB60: 140 | AC60: 128 | AD60: 150 | AE60: 180 | AF60: 139 | AG60: 128 | AH60: 156 | AI60: 217 | AJ60: 152 | AK60: 122 | AL60: 143 | AM60: 170 | AN60: 131 | AO60: 160 | AP60: 168 | AQ60: 180 | AR60: 202 | AS60: 177 | AT60: 165 | AU60: 174 | AV60: 188 | AW60: 171 | AX60: 167 | AY60: 182 | AZ60: 226 | BA60: 184 | BB60: 163 | BC60: 169 | BD60: 181 | BE60: 167 | BF60: 125 | BG60: 114 | BH60: 118 | BI60: 164 | BJ60: 161 | BK60: 164 | BL60: 103 | BM60: 180 | BN60: 205,660 | BO60: 0 | BP60: 0 | BQ60: 0 | BR60: 139 | BS60: 120 | BT60: 137 | BU60: 144 | BV60: 146 | BW60: 143 | BX60: 148 | BY60: 155 | BZ60: 141 | CA60: 136 | CB60: 134 | CC60: 123 | CD60: 123 | CE60: 127 | CF60: 125 | CG60: 129 | CH60: 128 | CI60: 125 | CJ60: 120 | CK60: 119 | CL60: 165 | CM60: 201 | CN60: 201 | CO60: 181 | CP60: 189 | CQ60: 202 | CR60: 179 | CS60: 165 | CT60: 161 | CU60: 103 | CV60: 90 | CW60: 86 | CX60: 85 | CY60: 86 | CZ60: 84 | DA60: 80 | DB60: 88 | DC60: 92 | DD60: 92 | DE60: 100 | DF60: 100 | DG60: 97 | DH60: 99 | DI60: 96 | DJ60: 96 | DK60: 102 | DL60: 106 | DM60: 103 | DN60: 75 | DO60: 61 | DP60: 61 | DQ60: 68 | DR60: 65 | DS60: 61 | DT60: 71 | DU60: 77 | DV60: 77 | DW60: 128 | DX60: 146 | DY60: 217 | DZ60: 201 | EA60: 152 | EB60: 156 | EC60: 146 | ED60: 168 | EE60: 226 | EF60: 184 | EG60: 182
A61: Kiel | B61: Bremerhaven | C61: 1002000 | D61: 4012000 | E61: 133,660 | F61: 54.32329,10.12283 | G61: 53.53961,8.58086 | H61: 2.5 | I61: 2.0 | J61: 2.0 | K61: 2.5 | L61: 360,331 | M61: 262,290 | N61: 256,354 | O61: 480 | P61: 771 | Q61: 0 | R61: 4,419 | S61: 0 | T61: 0 | U61: 263 | V61: 140 | W61: 202 | X61: 120 | Y61: 151 | Z61: 179 | AA61: 228 | AB61: 166 | AC61: 154 | AD61: 180 | AE61: 219 | AF61: 167 | AG61: 151 | AH61: 178 | AI61: 230 | AJ61: 171 | AK61: 146 | AL61: 170 | AM61: 204 | AN61: 156 | AO61: 200 | AP61: 206 | AQ61: 218 | AR61: 241 | AS61: 215 | AT61: 205 | AU61: 214 | AV61: 229 | AW61: 211 | AX61: 205 | AY61: 216 | AZ61: 246 | BA61: 216 | BB61: 203 | BC61: 209 | BD61: 221 | BE61: 207 | BF61: 150 | BG61: 139 | BH61: 143 | BI61: 203 | BJ61: 200 | BK61: 203 | BL61: 127 | BM61: 205 | BN61: 262,380 | BO61: 0 | BP61: 0 | BQ61: 0 | BR61: 169 | BS61: 149 | BT61: 170 | BU61: 172 | BV61: 176 | BW61: 173 | BX61: 177 | BY61: 183 | BZ61: 168 | CA61: 163 | CB61: 162 | CC61: 152 | CD61: 152 | CE61: 155 | CF61: 152 | CG61: 156 | CH61: 161 | CI61: 151 | CJ61: 147 | CK61: 146 | CL61: 207 | CM61: 237 | CN61: 239 | CO61: 217 | CP61: 226 | CQ61: 240 | CR61: 213 | CS61: 198 | CT61: 196 | CU61: 107 | CV61: 94 | CW61: 93 | CX61: 91 | CY61: 92 | CZ61: 90 | DA61: 87 | DB61: 95 | DC61: 98 | DD61: 98 | DE61: 105 | DF61: 105 | DG61: 103 | DH61: 105 | DI61: 102 | DJ61: 99 | DK61: 105 | DL61: 109 | DM61: 109 | DN61: 77 | DO61: 67 | DP61: 67 | DQ61: 73 | DR61: 71 | DS61: 66 | DT61: 75 | DU61: 80 | DV61: 81 | DW61: 151 | DX61: 176 | DY61: 230 | DZ61: 239 | EA61: 171 | EB61: 179 | EC61: 175 | ED61: 206 | EE61: 246 | EF61: 216 | EG61: 218
A62: Kiel | B62: Köln | C62: 1002000 | D62: 5315000 | E62: 433,260 | F62: 54.32329,10.12283 | G62: 50.93753,6.96028 | H62: 2.5 | I62: 2.0 | J62: 2.0 | K62: 2.5 | L62: 1,306,888 | M62: 510,120 | N62: 501,910 | O62: 3,786 | P62: 2,863 | Q62: 0 | R62: 1,362 | S62: 0 | T62: 0 | U62: 199 | V62: 266 | W62: 390 | X62: 227 | Y62: 288 | Z62: 343 | AA62: 442 | AB62: 321 | AC62: 291 | AD62: 342 | AE62: 422 | AF62: 320 | AG62: 300 | AH62: 363 | AI62: 477 | AJ62: 343 | AK62: 278 | AL62: 328 | AM62: 392 | AN62: 300 | AO62: 385 | AP62: 394 | AQ62: 415 | AR62: 463 | AS62: 409 | AT62: 393 | AU62: 406 | AV62: 439 | AW62: 403 | AX62: 400 | AY62: 429 | AZ62: 499 | BA62: 424 | BB62: 389 | BC62: 398 | BD62: 419 | BE62: 396 | BF62: 284 | BG62: 261 | BH62: 270 | BI62: 390 | BJ62: 386 | BK62: 390 | BL62: 240 | BM62: 445 | BN62: 514,300 | BO62: 0 | BP62: 0 | BQ62: 0 | BR62: 319 | BS62: 286 | BT62: 339 | BU62: 330 | BV62: 329 | BW62: 331 | BX62: 352 | BY62: 353 | BZ62: 322 | CA62: 313 | CB62: 315 | CC62: 299 | CD62: 291 | CE62: 289 | CF62: 291 | CG62: 302 | CH62: 306 | CI62: 286 | CJ62: 281 | CK62: 286 | CL62: 444 | CM62: 436 | CN62: 439 | CO62: 439 | CP62: 483 | CQ62: 453 | CR62: 403 | CS62: 388 | CT62: 384 | CU62: 107 | CV62: 91 | CW62: 94 | CX62: 94 | CY62: 93 | CZ62: 88 | DA62: 88 | DB62: 96 | DC62: 99 | DD62: 98 | DE62: 103 | DF62: 106 | DG62: 107 | DH62: 106 | DI62: 102 | DJ62: 101 | DK62: 108 | DL62: 110 | DM62: 108 | DN62: 70 | DO62: 71 | DP62: 70 | DQ62: 70 | DR62: 64 | DS62: 68 | DT62: 77 | DU62: 80 | DV62: 81 | DW62: 300 | DX62: 329 | DY62: 477 | DZ62: 439 | EA62: 343 | EB62: 363 | EC62: 334 | ED62: 400 | EE62: 499 | EF62: 424 | EG62: 429
A63: Kiel | B63: Bielefeld | C63: 1002000 | D63: 5711000 | E63: 276,450 | F63: 54.32329,10.12283 | G63: 52.0301,8.53274 | H63: 2.5 | I63: 2.0 | J63: 2.0 | K63: 2.5 | L63: 579,396 | M63: 343,490 | N63: 330,414 | O63: 269 | P63: 373 | Q63: 9,563 | R63: 2,692 | S63: 0 | T63: 153 | U63: 22 | V63: 185 | W63: 265 | X63: 162 | Y63: 197 | Z63: 232 | AA63: 291 | AB63: 217 | AC63: 203 | AD63: 237 | AE63: 283 | AF63: 220 | AG63: 204 | AH63: 245 | AI63: 317 | AJ63: 235 | AK63: 195 | AL63: 228 | AM63: 269 | AN63: 211 | AO63: 262 | AP63: 269 | AQ63: 283 | AR63: 310 | AS63: 280 | AT63: 268 | AU63: 278 | AV63: 296 | AW63: 274 | AX63: 270 | AY63: 286 | AZ63: 331 | BA63: 285 | BB63: 266 | BC63: 273 | BD63: 286 | BE63: 271 | BF63: 198 | BG63: 181 | BH63: 188 | BI63: 266 | BJ63: 263 | BK63: 265 | BL63: 168 | BM63: 302 | BN63: 343,780 | BO63: 0 | BP63: 0 | BQ63: 0 | BR63: 218 | BS63: 194 | BT63: 222 | BU63: 223 | BV63: 227 | BW63: 228 | BX63: 240 | BY63: 243 | BZ63: 226 | CA63: 219 | CB63: 219 | CC63: 199 | CD63: 196 | CE63: 201 | CF63: 200 | CG63: 207 | CH63: 210 | CI63: 200 | CJ63: 194 | CK63: 196 | CL63: 274 | CM63: 301 | CN63: 289 | CO63: 285 | CP63: 304 | CQ63: 317 | CR63: 278 | CS63: 267 | CT63: 262 | CU63: 106 | CV63: 93 | CW63: 92 | CX63: 91 | CY63: 90 | CZ63: 86 | DA63: 85 | DB63: 91 | DC63: 94 | DD63: 94 | DE63: 104 | DF63: 105 | DG63: 102 | DH63: 103 | DI63: 100 | DJ63: 98 | DK63: 103 | DL63: 106 | DM63: 105 | DN63: 75 | DO63: 69 | DP63: 71 | DQ63: 72 | DR63: 68 | DS63: 65 | DT63: 74 | DU63: 77 | DV63: 79 | DW63: 204 | DX63: 227 | DY63: 317 | DZ63: 289 | EA63: 235 | EB63: 245 | EC63: 234 | ED63: 270 | EE63: 331 | EF63: 285 | EG63: 286
A64: Kiel | B64: Frankfurt am Main | C64: 1002000 | D64: 6412000 | E64: 478,920 | F64: 54.32329,10.12283 | G64: 50.11092,8.68213 | H64: 2.5 | I64: 2.0 | J64: 2.0 | K64: 2.5 | L64: 978,994 | M64: 588,800 | N64: 582,766 | O64: 2,212 | P64: 0 | Q64: 1,885 | R64: 1,643 | S64: 0 | T64: 268 | U64: 22 | V64: 308 | W64: 450 | X64: 258 | Y64: 323 | Z64: 388 | AA64: 500 | AB64: 360 | AC64: 326 | AD64: 380 | AE64: 466 | AF64: 353 | AG64: 330 | AH64: 394 | AI64: 499 | AJ64: 373 | AK64: 318 | AL64: 379 | AM64: 453 | AN64: 345 | AO64: 445 | AP64: 453 | AQ64: 475 | AR64: 529 | AS64: 470 | AT64: 452 | AU64: 465 | AV64: 494 | AW64: 461 | AX64: 454 | AY64: 473 | AZ64: 526 | BA64: 471 | BB64: 450 | BC64: 460 | BD64: 484 | BE64: 457 | BF64: 325 | BG64: 299 | BH64: 313 | BI64: 450 | BJ64: 445 | BK64: 450 | BL64: 289 | BM64: 460 | BN64: 605,360 | BO64: 0 | BP64: 0 | BQ64: 0 | BR64: 367 | BS64: 331 | BT64: 368 | BU64: 363 | BV64: 367 | BW64: 368 | BX64: 384 | BY64: 383 | BZ64: 374 | CA64: 371 | CB64: 376 | CC64: 332 | CD64: 323 | CE64: 327 | CF64: 329 | CG64: 337 | CH64: 334 | CI64: 326 | CJ64: 327 | CK64: 343 | CL64: 468 | CM64: 476 | CN64: 478 | CO64: 475 | CP64: 506 | CQ64: 486 | CR64: 466 | CS64: 457 | CT64: 453 | CU64: 107 | CV64: 96 | CW64: 97 | CX64: 96 | CY64: 96 | CZ64: 92 | DA64: 92 | DB64: 94 | DC64: 95 | DD64: 94 | DE64: 106 | DF64: 109 | DG64: 108 | DH64: 107 | DI64: 105 | DJ64: 106 | DK64: 108 | DL64: 108 | DM64: 103 | DN64: 75 | DO64: 74 | DP64: 74 | DQ64: 74 | DR64: 70 | DS64: 73 | DT64: 76 | DU64: 77 | DV64: 78 | DW64: 330 | DX64: 374 | DY64: 500 | DZ64: 478 | EA64: 373 | EB64: 394 | EC64: 382 | ED64: 454 | EE64: 529 | EF64: 471 | EG64: 475
A65: Kiel | B65: Stuttgart | C65: 1002000 | D65: 8111000 | E65: 620,620 | F65: 54.32329,10.12283 | G65: 48.77582,9.18299 | H65: 2.5 | I65: 2.0 | J65: 2.0 | K65: 2.5 | L65: 870,044 | M65: 752,210 | N65: 723,060 | O65: 26,098 | P65: 985 | Q65: 0 | R65: 1,932 | S65: 0 | T65: 0 | U65: 137 | V65: 393 | W65: 575 | X65: 328 | Y65: 416 | Z65: 502 | AA65: 650 | AB65: 461 | AC65: 412 | AD65: 480 | AE65: 594 | AF65: 448 | AG65: 416 | AH65: 496 | AI65: 632 | AJ65: 469 | AK65: 400 | AL65: 471 | AM65: 560 | AN65: 430 | AO65: 569 | AP65: 590 | AQ65: 621 | AR65: 686 | AS65: 610 | AT65: 579 | AU65: 595 | AV65: 630 | AW65: 591 | AX65: 584 | AY65: 610 | AZ65: 675 | BA65: 606 | BB65: 575 | BC65: 584 | BD65: 606 | BE65: 582 | BF65: 413 | BG65: 387 | BH65: 402 | BI65: 576 | BJ65: 572 | BK65: 576 | BL65: 359 | BM65: 584 | BN65: 764,220 | BO65: 0 | BP65: 0 | BQ65: 0 | BR65: 465 | BS65: 415 | BT65: 471 | BU65: 465 | BV65: 467 | BW65: 470 | BX65: 484 | BY65: 478 | BZ65: 481 | CA65: 476 | CB65: 491 | CC65: 417 | CD65: 411 | CE65: 415 | CF65: 417 | CG65: 428 | CH65: 417 | CI65: 425 | CJ65: 427 | CK65: 455 | CL65: 606 | CM65: 612 | CN65: 624 | CO65: 626 | CP65: 627 | CQ65: 607 | CR65: 583 | CS65: 578 | CT65: 578 | CU65: 109 | CV65: 96 | CW65: 97 | CX65: 97 | CY65: 96 | CZ65: 93 | DA65: 94 | DB65: 94 | DC65: 95 | DD65: 92 | DE65: 108 | DF65: 110 | DG65: 109 | DH65: 108 | DI65: 105 | DJ65: 108 | DK65: 106 | DL65: 106 | DM65: 99 | DN65: 74 | DO65: 74 | DP65: 72 | DQ65: 72 | DR65: 72 | DS65: 74 | DT65: 77 | DU65: 78 | DV65: 78 | DW65: 416 | DX65: 481 | DY65: 650 | DZ65: 624 | EA65: 469 | EB65: 502 | EC65: 480 | ED65: 590 | EE65: 686 | EF65: 610 | EG65: 621
A66: Kiel | B66: Mannheim | C66: 1002000 | D66: 8222000 | E66: 550,030 | F66: 54.32329,10.12283 | G66: 49.48695,8.46564 | H66: 2.5 | I66: 2.0 | J66: 2.0 | K66: 2.5 | L66: 552,086 | M66: 661,330 | N66: 650,774 | O66: 6,481 | P66: 1,601 | Q66: 0 | R66: 1,362 | S66: 0 | T66: 1,040 | U66: 74 | V66: 343 | W66: 505 | X66: 286 | Y66: 364 | Z66: 434 | AA66: 552 | AB66: 400 | AC66: 365 | AD66: 424 | AE66: 515 | AF66: 393 | AG66: 375 | AH66: 446 | AI66: 569 | AJ66: 422 | AK66: 352 | AL66: 417 | AM66: 493 | AN66: 380 | AO66: 500 | AP66: 510 | AQ66: 532 | AR66: 585 | AS66: 526 | AT66: 508 | AU66: 520 | AV66: 546 | AW66: 516 | AX66: 514 | AY66: 535 | AZ66: 600 | BA66: 531 | BB66: 505 | BC66: 513 | BD66: 533 | BE66: 511 | BF66: 361 | BG66: 335 | BH66: 349 | BI66: 505 | BJ66: 501 | BK66: 505 | BL66: 310 | BM66: 542 | BN66: 661,190 | BO66: 0 | BP66: 0 | BQ66: 0 | BR66: 406 | BS66: 366 | BT66: 408 | BU66: 402 | BV66: 406 | BW66: 408 | BX66: 428 | BY66: 419 | BZ66: 412 | CA66: 411 | CB66: 421 | CC66: 370 | CD66: 359 | CE66: 363 | CF66: 364 | CG66: 375 | CH66: 367 | CI66: 361 | CJ66: 363 | CK66: 384 | CL66: 518 | CM66: 524 | CN66: 526 | CO66: 527 | CP66: 554 | CQ66: 533 | CR66: 518 | CS66: 511 | CT66: 508 | CU66: 108 | CV66: 98 | CW66: 99 | CX66: 98 | CY66: 98 | CZ66: 93 | DA66: 96 | DB66: 97 | DC66: 97 | DD66: 95 | DE66: 108 | DF66: 111 | DG66: 110 | DH66: 110 | DI66: 107 | DJ66: 109 | DK66: 111 | DL66: 110 | DM66: 104 | DN66: 77 | DO66: 76 | DP66: 76 | DQ66: 76 | DR66: 72 | DS66: 75 | DT66: 77 | DU66: 78 | DV66: 79 | DW66: =MAX(Y66,AG66) -> 375 | DX66: =MAX(BV66,BZ66) -> 412 | DY66: =MAX(AA66,AI66) -> 569 | DZ66: =MAX(CN66,CR66) -> 526 | EA66: =MAX(AB66,AJ66) -> 422 | EB66: =MAX(Z66,AH66) -> 446 | EC66: =AK66*1.2 -> 422 | ED66: 514 | EE66: 600 | EF66: 531 | EG66: 535
A67: Kiel | B67: München | C67: 1002000 | D67: 9162000 | E67: 695,900 | F67: 54.32329,10.12283 | G67: 48.1352,11.58211 | H67: 2.5 | I67: 2.0 | J67: 2.0 | K67: 2.5 | L67: 1,696,687 | M67: 887,620 | N67: 879,562 | O67: 3,152 | P67: 134 | Q67: 0 | R67: 2,764 | S67: 1,202 | T67: 0 | U67: 810 | V67: 441 | W67: 672 | X67: 363 | Y67: 460 | Z67: 550 | AA67: 691 | AB67: 505 | AC67: 466 | AD67: 546 | AE67: 669 | AF67: 505 | AG67: 470 | AH67: 560 | AI67: 714 | AJ67: 529 | AK67: 450 | AL67: 533 | AM67: 638 | AN67: 484 | AO67: 669 | AP67: 678 | AQ67: 696 | AR67: 738 | AS67: 690 | AT67: 675 | AU67: 687 | AV67: 715 | AW67: 683 | AX67: 683 | AY67: 703 | AZ67: 765 | BA67: 700 | BB67: 673 | BC67: 680 | BD67: 698 | BE67: 678 | BF67: 471 | BG67: 445 | BH67: 455 | BI67: 673 | BJ67: 670 | BK67: 673 | BL67: 445 | BM67: 564 | BN67: 931,170 | BO67: 0 | BP67: 0 | BQ67: 0 | BR67: 514 | BS67: 456 | BT67: 520 | BU67: 516 | BV67: 523 | BW67: 529 | BX67: 540 | BY67: 527 | BZ67: 533 | CA67: 530 | CB67: 539 | CC67: 462 | CD67: 457 | CE67: 460 | CF67: 464 | CG67: 476 | CH67: 458 | CI67: 467 | CJ67: 475 | CK67: 492 | CL67: 673 | CM67: 695 | CN67: 698 | CO67: 682 | CP67: 682 | CQ67: 680 | CR67: 663 | CS67: 656 | CT67: 668 | CU67: 117 | CV67: 102 | CW67: 103 | CX67: 102 | CY67: 101 | CZ67: 98 | DA67: 101 | DB67: 100 | DC67: 100 | DD67: 99 | DE67: 115 | DF67: 117 | DG67: 116 | DH67: 115 | DI67: 112 | DJ67: 116 | DK67: 114 | DL67: 112 | DM67: 108 | DN67: 79 | DO67: 77 | DP67: 76 | DQ67: 78 | DR67: 78 | DS67: 78 | DT67: 80 | DU67: 81 | DV67: 80 | DW67: 470 | DX67: 533 | DY67: 714 | DZ67: 698 | EA67: 529 | EB67: 560 | EC67: 540 | ED67: =MAX(AP67,AX67) -> 683 | EE67: =MAX(AR67,AZ67) -> 765 | EF67: =MAX(AS67,BA67) -> 700 | EG67: =MAX(AQ67,AY67) -> 703
A68: Kiel | B68: Nürnberg | C68: 1002000 | D68: 9564000 | E68: 545,970 | F68: 54.32329,10.12283 | G68: 49.45188,11.07665 | H68: 2.5 | I68: 2.0 | J68: 2.0 | K68: 2.5 | L68: 756,281 | M68: 703,490 | N68: 698,099 | O68: 931 | P68: 0 | Q68: 0 | R68: 3,900 | S68: 0 | T68: 35 | U68: 529 | V68: 365 | W68: 534 | X68: 308 | Y68: 381 | Z68: 450 | AA68: 562 | AB68: 414 | AC68: 385 | AD68: 445 | AE68: 538 | AF68: 415 | AG68: 393 | AH68: 465 | AI68: 581 | AJ68: 437 | AK68: 377 | AL68: 445 | AM68: 526 | AN68: 405 | AO68: 531 | AP68: 539 | AQ68: 555 | AR68: 595 | AS68: 551 | AT68: 537 | AU68: 548 | AV68: 571 | AW68: 544 | AX68: 543 | AY68: 563 | AZ68: 613 | BA68: 559 | BB68: 534 | BC68: 542 | BD68: 560 | BE68: 540 | BF68: 385 | BG68: 358 | BH68: 373 | BI68: 534 | BJ68: 531 | BK68: 535 | BL68: 364 | BM68: 453 | BN68: 752,000 | BO68: 0 | BP68: 0 | BQ68: 0 | BR68: 432 | BS68: 388 | BT68: 433 | BU68: 428 | BV68: 432 | BW68: 436 | BX68: 453 | BY68: 448 | BZ68: 446 | CA68: 443 | CB68: 453 | CC68: 386 | CD68: 381 | CE68: 386 | CF68: 387 | CG68: 398 | CH68: 391 | CI68: 392 | CJ68: 394 | CK68: 418 | CL68: 547 | CM68: 557 | CN68: 561 | CO68: 564 | CP68: 580 | CQ68: 567 | CR68: 548 | CS68: 539 | CT68: 535 | CU68: 109 | CV68: 97 | CW68: 98 | CX68: 98 | CY68: 97 | CZ68: 93 | DA68: 94 | DB68: 94 | DC68: 95 | DD68: 93 | DE68: 109 | DF68: 111 | DG68: 109 | DH68: 109 | DI68: 106 | DJ68: 108 | DK68: 108 | DL68: 107 | DM68: 101 | DN68: 77 | DO68: 76 | DP68: 75 | DQ68: 75 | DR68: 73 | DS68: 74 | DT68: 77 | DU68: 78 | DV68: 79 | DW68: 393 | DX68: 446 | DY68: 581 | DZ68: 561 | EA68: 437 | EB68: 465 | EC68: 452 | ED68: 543 | EE68: 613 | EF68: 559 | EG68: 563
A69: Kiel | B69: Berlin | C69: 1002000 | D69: 11000000 | E69: 296,400 | F69: 54.32329,10.12283 | G69: 52.52001,13.40495 | H69: 2.5 | I69: 2.0 | J69: 2.0 | K69: 2.5 | L69: 3,766,337 | M69: 354,470 | N69: 304,651 | O69: 46,276 | P69: 1,716 | Q69: 0 | R69: 1,801 | S69: 0 | T69: 0 | U69: 22 | V69: 195 | W69: 277 | X69: 164 | Y69: 201 | Z69: 243 | AA69: 314 | AB69: 223 | AC69: 206 | AD69: 244 | AE69: 302 | AF69: 224 | AG69: 210 | AH69: 252 | AI69: 307 | AJ69: 231 | AK69: 196 | AL69: 230 | AM69: 280 | AN69: 210 | AO69: 271 | AP69: 284 | AQ69: 302 | AR69: 332 | AS69: 295 | AT69: 282 | AU69: 296 | AV69: 320 | AW69: 290 | AX69: 282 | AY69: 298 | AZ69: 326 | BA69: 292 | BB69: 276 | BC69: 286 | BD69: 303 | BE69: 282 | BF69: 202 | BG69: 193 | BH69: 202 | BI69: 278 | BJ69: 274 | BK69: 280 | BL69: 181 | BM69: 239 | BN69: 354,750 | BO69: 0 | BP69: 0 | BQ69: 0 | BR69: 231 | BS69: 223 | BT69: 238 | BU69: 234 | BV69: 234 | BW69: 235 | BX69: 237 | BY69: 239 | BZ69: 230 | CA69: 227 | CB69: 225 | CC69: 214 | CD69: 204 | CE69: 206 | CF69: 208 | CG69: 210 | CH69: 208 | CI69: 204 | CJ69: 202 | CK69: 205 | CL69: 304 | CM69: 298 | CN69: 302 | CO69: 303 | CP69: 303 | CQ69: 303 | CR69: 293 | CS69: 284 | CT69: 269 | CU69: 96 | CV69: 89 | CW69: 91 | CX69: 91 | CY69: 91 | CZ69: 90 | DA69: 89 | DB69: 93 | DC69: 94 | DD69: 94 | DE69: 100 | DF69: 104 | DG69: 103 | DH69: 103 | DI69: 101 | DJ69: 102 | DK69: 104 | DL69: 105 | DM69: 104 | DN69: 70 | DO69: 71 | DP69: 71 | DQ69: 70 | DR69: 70 | DS69: 70 | DT69: 73 | DU69: 75 | DV69: 79 | DW69: 210 | DX69: 234 | DY69: 314 | DZ69: 302 | EA69: 231 | EB69: 252 | EC69: 235 | ED69: 284 | EE69: 332 | EF69: 295 | EG69: 302
A70: Kiel | B70: Brandenburg an der Havel | C70: 1002000 | D70: 12051000 | E70: 266,290 | F70: 54.32329,10.12283 | G70: 52.41256,12.53164 | H70: 2.5 | I70: 2.0 | J70: 2.0 | K70: 2.5 | L70: 317,880 | M70: 381,680 | N70: 328,151 | O70: 51,074 | P70: 616 | Q70: 0 | R70: 1,801 | S70: 0 | T70: 11 | U70: 22 | V70: 206 | W70: 294 | X70: 177 | Y70: 211 | Z70: 246 | AA70: 307 | AB70: 227 | AC70: 218 | AD70: 255 | AE70: 305 | AF70: 234 | AG70: 221 | AH70: 262 | AI70: 311 | AJ70: 239 | AK70: 209 | AL70: 244 | AM70: 291 | AN70: 222 | AO70: 290 | AP70: 299 | AQ70: 311 | AR70: 328 | AS70: 305 | AT70: 299 | AU70: 310 | AV70: 325 | AW70: 305 | AX70: 299 | AY70: 312 | AZ70: 331 | BA70: 306 | BB70: 295 | BC70: 303 | BD70: 315 | BE70: 299 | BF70: 214 | BG70: 204 | BH70: 211 | BI70: 297 | BJ70: 293 | BK70: 296 | BL70: 195 | BM70: 239 | BN70: 371,900 | BO70: 0 | BP70: 0 | BQ70: 0 | BR70: 231 | BS70: 226 | BT70: 235 | BU70: 233 | BV70: 236 | BW70: 239 | BX70: 242 | BY70: 244 | BZ70: 233 | CA70: 231 | CB70: 228 | CC70: 214 | CD70: 206 | CE70: 209 | CF70: 212 | CG70: 214 | CH70: 213 | CI70: 208 | CJ70: 206 | CK70: 207 | CL70: 288 | CM70: 300 | CN70: 300 | CO70: 304 | CP70: 306 | CQ70: 301 | CR70: 298 | CS70: 284 | CT70: 275 | CU70: 99 | CV70: 97 | CW70: 98 | CX70: 97 | CY70: 96 | CZ70: 93 | DA70: 92 | DB70: 98 | DC70: 99 | DD70: 100 | DE70: 107 | DF70: 111 | DG70: 109 | DH70: 108 | DI70: 107 | DJ70: 108 | DK70: 110 | DL70: 112 | DM70: 110 | DN70: 80 | DO70: 76 | DP70: 76 | DQ70: 75 | DR70: 75 | DS70: 76 | DT70: 77 | DU70: 81 | DV70: 83 | DW70: 221 | DX70: 236 | DY70: 311 | DZ70: 300 | EA70: 239 | EB70: 262 | EC70: 251 | ED70: 299 | EE70: 331 | EF70: 306 | EG70: 312
A71: Kiel | B71: Schwerin | C71: 1002000 | D71: 13004000 | E71: 115,360 | F71: 54.32329,10.12283 | G71: 53.62148,11.41647 | H71: 2.5 | I71: 2.0 | J71: 2.0 | K71: 2.5 | L71: 343,106 | M71: 153,170 | N71: 96,267 | O71: 24,550 | P71: 27,486 | Q71: 2,565 | R71: 2,071 | S71: 0 | T71: 0 | U71: 227 | V71: 105 | W71: 131 | X71: 90 | Y71: 115 | Z71: 138 | AA71: 174 | AB71: 128 | AC71: 117 | AD71: 140 | AE71: 174 | AF71: 129 | AG71: 116 | AH71: 139 | AI71: 176 | AJ71: 129 | AK71: 108 | AL71: 127 | AM71: 152 | AN71: 116 | AO71: 123 | AP71: 137 | AQ71: 153 | AR71: 180 | AS71: 147 | AT71: 137 | AU71: 152 | AV71: 179 | AW71: 147 | AX71: 137 | AY71: 154 | AZ71: 184 | BA71: 148 | BB71: 131 | BC71: 142 | BD71: 159 | BE71: 137 | BF71: 112 | BG71: 103 | BH71: 109 | BI71: 133 | BJ71: 128 | BK71: 134 | BL71: 97 | BM71: 124 | BN71: 153,460 | BO71: 0 | BP71: 0 | BQ71: 0 | BR71: 126 | BS71: 113 | BT71: 120 | BU71: 127 | BV71: 126 | BW71: 127 | BX71: 130 | BY71: 133 | BZ71: 126 | CA71: 121 | CB71: 118 | CC71: 114 | CD71: 114 | CE71: 113 | CF71: 112 | CG71: 115 | CH71: 113 | CI71: 113 | CJ71: 109 | CK71: 109 | CL71: 130 | CM71: 153 | CN71: 155 | CO71: 156 | CP71: 156 | CQ71: 161 | CR71: 156 | CS71: 143 | CT71: 130 | CU71: 86 | CV71: 80 | CW71: 78 | CX71: 77 | CY71: 76 | CZ71: 75 | DA71: 73 | DB71: 77 | DC71: 80 | DD71: 82 | DE71: 85 | DF71: 85 | DG71: 86 | DH71: 86 | DI71: 85 | DJ71: 86 | DK71: 86 | DL71: 89 | DM71: 89 | DN71: 75 | DO71: 64 | DP71: 62 | DQ71: 62 | DR71: 62 | DS71: 60 | DT71: 62 | DU71: 68 | DV71: 75 | DW71: 116 | DX71: 126 | DY71: 176 | DZ71: 156 | EA71: 129 | EB71: 139 | EC71: 130 | ED71: 137 | EE71: 184 | EF71: 148 | EG71: 154
A72: Kiel | B72: Neubrandenburg | C72: 1002000 | D72: 13071107 | E72: 223,550 | F72: 54.32329,10.12283 | G72: 53.56806,13.27795 | H72: 2.5 | I72: 2.0 | J72: 2.0 | K72: 2.5 | L72: 309,908 | M72: 337,320 | N72: 293,927 | O72: 24,469 | P72: 616 | Q72: 14,960 | R72: 2,311 | S72: 0 | T72: 0 | U72: 1,037 | V72: 177 | W72: 265 | X72: 145 | Y72: 183 | Z72: 214 | AA72: 266 | AB72: 196 | AC72: 187 | AD72: 217 | AE72: 266 | AF72: 200 | AG72: 183 | AH72: 215 | AI72: 261 | AJ72: 198 | AK72: 176 | AL72: 205 | AM72: 246 | AN72: 187 | AO72: 261 | AP72: 269 | AQ72: 278 | AR72: 293 | AS72: 274 | AT72: 269 | AU72: 279 | AV72: 297 | AW72: 276 | AX72: 270 | AY72: 281 | AZ72: 302 | BA72: 278 | BB72: 265 | BC72: 272 | BD72: 284 | BE72: 269 | BF72: 187 | BG72: 179 | BH72: 182 | BI72: 267 | BJ72: 263 | BK72: 267 | BL72: 169 | BM72: 193 | BN72: 336,360 | BO72: 0 | BP72: 0 | BQ72: 0 | BR72: 204 | BS72: 192 | BT72: 209 | BU72: 204 | BV72: 204 | BW72: 205 | BX72: 208 | BY72: 209 | BZ72: 202 | CA72: 198 | CB72: 197 | CC72: 194 | CD72: 184 | CE72: 182 | CF72: 183 | CG72: 186 | CH72: 182 | CI72: 181 | CJ72: 179 | CK72: 183 | CL72: 245 | CM72: 256 | CN72: 255 | CO72: 258 | CP72: 256 | CQ72: 252 | CR72: 249 | CS72: 235 | CT72: 221 | CU72: 105 | CV72: 97 | CW72: 99 | CX72: 99 | CY72: 98 | CZ72: 97 | DA72: 95 | DB72: 98 | DC72: 102 | DD72: 103 | DE72: 104 | DF72: 110 | DG72: 111 | DH72: 110 | DI72: 109 | DJ72: 111 | DK72: 112 | DL72: 113 | DM72: 111 | DN72: 83 | DO72: 79 | DP72: 79 | DQ72: 78 | DR72: 79 | DS72: 80 | DT72: 81 | DU72: 86 | DV72: 91 | DW72: 183 | DX72: 204 | DY72: 266 | DZ72: 255 | EA72: 198 | EB72: 215 | EC72: 211 | ED72: 270 | EE72: 302 | EF72: 278 | EG72: 281
A73: Kiel | B73: Grevesmühlen | C73: 1002000 | D73: 13074026 | E73: 86,850 | F73: 54.32329,10.12283 | G73: 53.85984,11.19077 | H73: 2.0 | I73: 1.0 | J73: 2.0 | K73: 2.5 | L73: 256,802 | M73: 127,420 | N73: 96,267 | O73: 24,469 | P73: 3,234 | Q73: 0 | R73: 1,801 | S73: 1,630 | T73: 0 | U73: 22 | V73: 77 | W73: 103 | X73: 67 | Y73: 86 | Z73: 101 | AA73: 122 | AB73: 92 | AC73: 87 | AD73: 103 | AE73: 126 | AF73: 95 | AG73: 86 | AH73: 103 | AI73: 128 | AJ73: 95 | AK73: 81 | AL73: 95 | AM73: 113 | AN73: 86 | AO73: 99 | AP73: 107 | AQ73: 115 | AR73: 127 | AS73: 112 | AT73: 107 | AU73: 115 | AV73: 130 | AW73: 112 | AX73: 108 | AY73: 118 | AZ73: 136 | BA73: 114 | BB73: 103 | BC73: 110 | BD73: 120 | BE73: 107 | BF73: 84 | BG73: 78 | BH73: 80 | BI73: 105 | BJ73: 102 | BK73: 105 | BL73: 74 | BM73: 97 | BN73: 128,220 | BO73: 0 | BP73: 0 | BQ73: 0 | BR73: 92 | BS73: 82 | BT73: 88 | BU73: 90 | BV73: 91 | BW73: 92 | BX73: 94 | BY73: 95 | BZ73: 93 | CA73: 90 | CB73: 87 | CC73: 84 | CD73: 81 | CE73: 81 | CF73: 81 | CG73: 82 | CH73: 81 | CI73: 82 | CJ73: 79 | CK73: 79 | CL73: 96 | CM73: 111 | CN73: 115 | CO73: 115 | CP73: 117 | CQ73: 116 | CR73: 120 | CS73: 110 | CT73: 97 | CU73: 94 | CV73: 87 | CW73: 86 | CX73: 85 | CY73: 84 | CZ73: 82 | DA73: 81 | DB73: 83 | DC73: 86 | DD73: 89 | DE73: 92 | DF73: 95 | DG73: 95 | DH73: 96 | DI73: 93 | DJ73: 95 | DK73: 94 | DL73: 98 | DM73: 98 | DN73: 80 | DO73: 69 | DP73: 67 | DQ73: 67 | DR73: 66 | DS73: 66 | DT73: 64 | DU73: 70 | DV73: 80 | DW73: 86 | DX73: 93 | DY73: 128 | DZ73: 120 | EA73: 95 | EB73: 103 | EC73: 97 | ED73: 108 | EE73: 136 | EF73: 114 | EG73: 118
A74: Kiel | B74: Wismar | C74: 1002000 | D74: 13074087 | E74: 98,940 | F74: 54.32329,10.12283 | G74: 53.89785,11.45114 | H74: 2.0 | I74: 1.0 | J74: 2.0 | K74: 2.5 | L74: 288,863 | M74: 146,430 | N74: 114,072 | O74: 26,233 | P74: 616 | Q74: 2,258 | R74: 2,647 | S74: 0 | T74: 0 | U74: 606 | V74: 88 | W74: 119 | X74: 76 | Y74: 98 | Z74: 116 | AA74: 144 | AB74: 106 | AC74: 100 | AD74: 118 | AE74: 147 | AF74: 109 | AG74: 98 | AH74: 117 | AI74: 147 | AJ74: 108 | AK74: 92 | AL74: 107 | AM74: 128 | AN74: 98 | AO74: 115 | AP74: 125 | AQ74: 135 | AR74: 151 | AS74: 130 | AT74: 125 | AU74: 135 | AV74: 154 | AW74: 132 | AX74: 125 | AY74: 137 | AZ74: 158 | BA74: 133 | BB74: 120 | BC74: 127 | BD74: 138 | BE74: 124 | BF74: 95 | BG74: 89 | BH74: 91 | BI74: 121 | BJ74: 118 | BK74: 121 | BL74: 82 | BM74: 105 | BN74: 146,670 | BO74: 0 | BP74: 0 | BQ74: 0 | BR74: 105 | BS74: 94 | BT74: 101 | BU74: 104 | BV74: 104 | BW74: 106 | BX74: 108 | BY74: 110 | BZ74: 106 | CA74: 102 | CB74: 99 | CC74: 96 | CD74: 93 | CE74: 92 | CF74: 92 | CG74: 95 | CH74: 93 | CI74: 93 | CJ74: 90 | CK74: 90 | CL74: 112 | CM74: 129 | CN74: 132 | CO74: 134 | CP74: 135 | CQ74: 135 | CR74: 136 | CS74: 125 | CT74: 110 | CU74: 94 | CV74: 87 | CW74: 85 | CX74: 85 | CY74: 83 | CZ74: 82 | DA74: 81 | DB74: 83 | DC74: 87 | DD74: 90 | DE74: 92 | DF74: 95 | DG74: 96 | DH74: 96 | DI74: 93 | DJ74: 95 | DK74: 95 | DL74: 98 | DM74: 99 | DN74: 79 | DO74: 68 | DP74: 67 | DQ74: 66 | DR74: 65 | DS74: 66 | DT74: 65 | DU74: 71 | DV74: 80 | DW74: 98 | DX74: 106 | DY74: 147 | DZ74: 136 | EA74: 108 | EB74: 117 | EC74: 110 | ED74: 125 | EE74: 158 | EF74: 133 | EG74: 137
A75: Kiel | B75: Leipzig | C75: 1002000 | D75: 14713000 | E75: 364,970 | F75: 54.32329,10.12283 | G75: 51.33977,12.37304 | H75: 2.5 | I75: 2.0 | J75: 2.0 | K75: 2.5 | L75: 806,778 | M75: 491,930 | N75: 481,090 | O75: 5,973 | P75: 3,339 | Q75: 0 | R75: 1,362 | S75: 0 | T75: 0 | U75: 165 | V75: 253 | W75: 376 | X75: 217 | Y75: 272 | Z75: 331 | AA75: 411 | AB75: 299 | AC75: 278 | AD75: 329 | AE75: 396 | AF75: 301 | AG75: 279 | AH75: 338 | AI75: 436 | AJ75: 322 | AK75: 269 | AL75: 323 | AM75: 379 | AN75: 292 | AO75: 372 | AP75: 381 | AQ75: 399 | AR75: 435 | AS75: 393 | AT75: 379 | AU75: 390 | AV75: 415 | AW75: 386 | AX75: 381 | AY75: 398 | AZ75: 454 | BA75: 398 | BB75: 376 | BC75: 384 | BD75: 402 | BE75: 382 | BF75: 274 | BG75: 251 | BH75: 258 | BI75: 376 | BJ75: 373 | BK75: 376 | BL75: 249 | BM75: 308 | BN75: 501,910 | BO75: 0 | BP75: 0 | BQ75: 0 | BR75: 307 | BS75: 261 | BT75: 308 | BU75: 306 | BV75: 308 | BW75: 308 | BX75: 314 | BY75: 310 | BZ75: 306 | CA75: 303 | CB75: 306 | CC75: 276 | CD75: 271 | CE75: 274 | CF75: 275 | CG75: 277 | CH75: 274 | CI75: 273 | CJ75: 272 | CK75: 278 | CL75: 387 | CM75: 392 | CN75: 395 | CO75: 390 | CP75: 403 | CQ75: 393 | CR75: 383 | CS75: 376 | CT75: 374 | CU75: 113 | CV75: 96 | CW75: 96 | CX75: 96 | CY75: 96 | CZ75: 96 | DA75: 97 | DB75: 97 | DC75: 98 | DD75: 97 | DE75: 107 | DF75: 109 | DG75: 108 | DH75: 107 | DI75: 109 | DJ75: 111 | DK75: 108 | DL75: 109 | DM75: 106 | DN75: 76 | DO75: 75 | DP75: 75 | DQ75: 76 | DR75: 75 | DS75: 77 | DT75: 77 | DU75: 78 | DV75: 79 | DW75: 279 | DX75: 308 | DY75: 436 | DZ75: 395 | EA75: 322 | EB75: 338 | EC75: 323 | ED75: 381 | EE75: 454 | EF75: 398 | EG75: 399
A76: Kiel | B76: Magdeburg | C76: 1002000 | D76: 15003000 | E76: 264,940 | F76: 54.32329,10.12283 | G76: 52.12044,11.62733 | H76: 2.5 | I76: 2.0 | J76: 2.0 | K76: 2.5 | L76: 482,029 | M76: 377,110 | N76: 365,706 | O76: 8,450 | P76: 1,567 | Q76: 0 | R76: 1,362 | S76: 0 | T76: 0 | U76: 29 | V76: 195 | W76: 287 | X76: 170 | Y76: 208 | Z76: 249 | AA76: 308 | AB76: 228 | AC76: 214 | AD76: 252 | AE76: 302 | AF76: 232 | AG76: 215 | AH76: 256 | AI76: 322 | AJ76: 246 | AK76: 208 | AL76: 247 | AM76: 289 | AN76: 227 | AO76: 284 | AP76: 292 | AQ76: 304 | AR76: 329 | AS76: 300 | AT76: 290 | AU76: 299 | AV76: 317 | AW76: 295 | AX76: 290 | AY76: 302 | AZ76: 336 | BA76: 302 | BB76: 287 | BC76: 293 | BD76: 306 | BE76: 292 | BF76: 212 | BG76: 196 | BH76: 199 | BI76: 288 | BJ76: 285 | BK76: 287 | BL76: 211 | BM76: 274 | BN76: 355,820 | BO76: 0 | BP76: 0 | BQ76: 0 | BR76: 229 | BS76: 200 | BT76: 234 | BU76: 234 | BV76: 238 | BW76: 239 | BX76: 250 | BY76: 250 | BZ76: 238 | CA76: 232 | CB76: 232 | CC76: 208 | CD76: 204 | CE76: 211 | CF76: 210 | CG76: 216 | CH76: 217 | CI76: 210 | CJ76: 204 | CK76: 208 | CL76: 289 | CM76: 317 | CN76: 305 | CO76: 300 | CP76: 317 | CQ76: 330 | CR76: 298 | CS76: 288 | CT76: 284 | CU76: 113 | CV76: 97 | CW76: 97 | CX76: 95 | CY76: 95 | CZ76: 90 | DA76: 89 | DB76: 95 | DC76: 97 | DD76: 98 | DE76: 109 | DF76: 111 | DG76: 107 | DH76: 108 | DI76: 104 | DJ76: 104 | DK76: 108 | DL76: 111 | DM76: 108 | DN76: 78 | DO76: 71 | DP76: 74 | DQ76: 75 | DR76: 71 | DS76: 68 | DT76: 76 | DU76: 78 | DV76: 80 | DW76: 215 | DX76: 238 | DY76: 322 | DZ76: 305 | EA76: 246 | EB76: 256 | EC76: 250 | ED76: 292 | EE76: 336 | EF76: 302 | EG76: 304
A77: Lübeck | B77: Flensburg | C77: 1003000 | D77: 1001000 | E77: 131,100 | F77: 53.86547,10.68654 | G77: 54.7941,9.44703 | H77: 2.5 | I77: 2.0 | J77: 2.0 | K77: 2.5 | L77: 302,195 | M77: 166,110 | N77: 119,716 | O77: 37,615 | P77: 0 | Q77: 1,022 | R77: 6,422 | S77: 579 | T77: 0 | U77: 754 | V77: 100 | W77: 133 | X77: 85 | Y77: 113 | Z77: 139 | AA77: 170 | AB77: 125 | AC77: 112 | AD77: 133 | AE77: 160 | AF77: 122 | AG77: 111 | AH77: 134 | AI77: 171 | AJ77: 125 | AK77: 104 | AL77: 123 | AM77: 145 | AN77: 111 | AO77: 129 | AP77: 139 | AQ77: 152 | AR77: 175 | AS77: 147 | AT77: 138 | AU77: 149 | AV77: 165 | AW77: 144 | AX77: 139 | AY77: 152 | AZ77: 177 | BA77: 148 | BB77: 133 | BC77: 140 | BD77: 151 | BE77: 137 | BF77: 105 | BG77: 97 | BH77: 102 | BI77: 134 | BJ77: 131 | BK77: 134 | BL77: 95 | BM77: 119 | BN77: 167,410 | BO77: 0 | BP77: 0 | BQ77: 0 | BR77: 121 | BS77: 113 | BT77: 122 | BU77: 124 | BV77: 126 | BW77: 129 | BX77: 128 | BY77: 128 | BZ77: 124 | CA77: 121 | CB77: 115 | CC77: 112 | CD77: 111 | CE77: 112 | CF77: 113 | CG77: 113 | CH77: 112 | CI77: 110 | CJ77: 107 | CK77: 105 | CL77: 137 | CM77: 149 | CN77: 157 | CO77: 160 | CP77: 158 | CQ77: 157 | CR77: 155 | CS77: 147 | CT77: 132 | CU77: 90 | CV77: 82 | CW77: 81 | CX77: 80 | CY77: 78 | CZ77: 78 | DA77: 79 | DB77: 81 | DC77: 83 | DD77: 88 | DE77: 89 | DF77: 90 | DG77: 90 | DH77: 89 | DI77: 89 | DJ77: 90 | DK77: 91 | DL77: 94 | DM77: 95 | DN77: 73 | DO77: 67 | DP77: 64 | DQ77: 63 | DR77: 63 | DS77: 64 | DT77: 65 | DU77: 68 | DV77: 76 | DW77: 113 | DX77: 126 | DY77: 171 | DZ77: 157 | EA77: 125 | EB77: 139 | EC77: 125 | ED77: 139 | EE77: 177 | EF77: 148 | EG77: 152
A78: Lübeck | B78: Kiel | C78: 1003000 | D78: 1002000 | E78: 62,900 | F78: 53.86547,10.68654 | G78: 54.32329,10.12283 | H78: 2.5 | I78: 2.0 | J78: 2.0 | K78: 2.5 | L78: 462,559 | M78: 86,330 | N78: 52,269 | O78: 25,021 | P78: 0 | Q78: 1,022 | R78: 6,949 | S78: 0 | T78: 0 | U78: 1,073 | V78: 62 | W78: 75 | X78: 55 | Y78: 76 | Z78: 100 | AA78: 139 | AB78: 90 | AC78: 72 | AD78: 87 | AE78: 110 | AF78: 81 | AG78: 72 | AH78: 89 | AI78: 122 | AJ78: 84 | AK78: 66 | AL78: 77 | AM78: 92 | AN78: 71 | AO78: 70 | AP78: 85 | AQ78: 106 | AR78: 141 | AS78: 98 | AT78: 80 | AU78: 92 | AV78: 112 | AW78: 88 | AX78: 81 | AY78: 95 | AZ78: 125 | BA78: 92 | BB78: 75 | BC78: 83 | BD78: 95 | BE78: 80 | BF78: 68 | BG78: 62 | BH78: 65 | BI78: 77 | BJ78: 73 | BK78: 77 | BL78: 56 | BM78: 80 | BN78: 86,330 | BO78: 0 | BP78: 0 | BQ78: 0 | BR78: 76 | BS78: 67 | BT78: 71 | BU78: 79 | BV78: 84 | BW78: 84 | BX78: 82 | BY78: 83 | BZ78: 81 | CA78: 77 | CB78: 71 | CC78: 67 | CD78: 70 | CE78: 73 | CF78: 71 | CG78: 69 | CH78: 70 | CI78: 69 | CJ78: 66 | CK78: 64 | CL78: 75 | CM78: 104 | CN78: 110 | CO78: 106 | CP78: 102 | CQ78: 101 | CR78: 101 | CS78: 90 | CT78: 78 | CU78: 77 | CV78: 73 | CW78: 66 | CX78: 62 | CY78: 62 | CZ78: 64 | DA78: 63 | DB78: 65 | DC78: 68 | DD78: 74 | DE78: 78 | DF78: 75 | DG78: 71 | DH78: 73 | DI78: 75 | DJ78: 75 | DK78: 76 | DL78: 78 | DM78: 81 | DN78: 69 | DO78: 50 | DP78: 47 | DQ78: 49 | DR78: 51 | DS78: 52 | DT78: 51 | DU78: 57 | DV78: 67 | DW78: 76 | DX78: 84 | DY78: 139 | DZ78: 110 | EA78: 90 | EB78: 100 | EC78: 79 | ED78: 85 | EE78: 141 | EF78: 98 | EG78: 106
A79: Lübeck | B79: Geesthacht | C79: 1003000 | D79: 1053032 | E79: 52,180 | F79: 53.86547,10.68654 | G79: 53.43778,10.36346 | H79: 2.0 | I79: 1.0 | J79: 2.0 | K79: 2.5 | L79: 246,283 | M79: 87,250 | N79: 77,765 | O79: 3,312 | P79: 229 | Q79: 1,022 | R79: 3,853 | S79: 0 | T79: 0 | U79: 1,067 | V79: 55 | W79: 72 | X79: 46 | Y79: 59 | Z79: 78 | AA79: 107 | AB79: 71 | AC79: 59 | AD79: 73 | AE79: 92 | AF79: 67 | AG79: 59 | AH79: 72 | AI79: 99 | AJ79: 70 | AK79: 55 | AL79: 64 | AM79: 77 | AN79: 59 | AO79: 70 | AP79: 76 | AQ79: 89 | AR79: 111 | AS79: 84 | AT79: 75 | AU79: 83 | AV79: 96 | AW79: 80 | AX79: 76 | AY79: 84 | AZ79: 105 | BA79: 83 | BB79: 72 | BC79: 76 | BD79: 82 | BE79: 75 | BF79: 57 | BG79: 54 | BH79: 57 | BI79: 73 | BJ79: 71 | BK79: 73 | BL79: 55 | BM79: 71 | BN79: 61,950 | BO79: 0 | BP79: 0 | BQ79: 0 | BR79: 66 | BS79: 59 | BT79: 61 | BU79: 65 | BV79: 68 | BW79: 69 | BX79: 68 | BY79: 70 | BZ79: 67 | CA79: 64 | CB79: 62 | CC79: 56 | CD79: 58 | CE79: 61 | CF79: 59 | CG79: 59 | CH79: 59 | CI79: 59 | CJ79: 56 | CK79: 55 | CL79: 71 | CM79: 81 | CN79: 90 | CO79: 90 | CP79: 85 | CQ79: 88 | CR79: 87 | CS79: 80 | CT79: 74 | CU79: 89 | CV79: 75 | CW79: 81 | CX79: 78 | CY79: 76 | CZ79: 78 | DA79: 75 | DB79: 78 | DC79: 82 | DD79: 86 | DE79: 94 | DF79: 92 | DG79: 86 | DH79: 89 | DI79: 89 | DJ79: 89 | DK79: 89 | DL79: 94 | DM79: 96 | DN79: 74 | DO79: 65 | DP79: 59 | DQ79: 59 | DR79: 62 | DS79: 60 | DT79: 60 | DU79: 66 | DV79: 72 | DW79: 59 | DX79: 68 | DY79: 107 | DZ79: 90 | EA79: 71 | EB79: 78 | EC79: 66 | ED79: 76 | EE79: 111 | EF79: 84 | EG79: 89
A80: Lübeck | B80: Mölln | C80: 1003000 | D80: 1053090 | E80: 27,350 | F80: 53.86547,10.68654 | G80: 53.61974,10.68944 | H80: 2.0 | I80: 1.0 | J80: 2.0 | K80: 2.5 | L80: 235,109 | M80: 29,840 | N80: 0 | O80: 24,231 | P80: 0 | Q80: 3,815 | R80: 986 | S80: 0 | T80: 0 | U80: 808 | V80: 28 | W80: 29 | X80: 24 | Y80: 33 | Z80: 42 | AA80: 56 | AB80: 39 | AC80: 33 | AD80: 40 | AE80: 51 | AF80: 38 | AG80: 33 | AH80: 42 | AI80: 56 | AJ80: 39 | AK80: 29 | AL80: 34 | AM80: 41 | AN80: 32 | AO80: 26 | AP80: 33 | AQ80: 42 | AR80: 56 | AS80: 39 | AT80: 33 | AU80: 40 | AV80: 51 | AW80: 38 | AX80: 33 | AY80: 42 | AZ80: 56 | BA80: 39 | BB80: 29 | BC80: 34 | BD80: 41 | BE80: 32 | BF80: 30 | BG80: 28 | BH80: 30 | BI80: 31 | BJ80: 29 | BK80: 31 | BL80: 28 | BM80: 36 | BN80: 29,720 | BO80: 0 | BP80: 0 | BQ80: 0 | BR80: 37 | BS80: 33 | BT80: 33 | BU80: 36 | BV80: 37 | BW80: 40 | BX80: 40 | BY80: 40 | BZ80: 40 | CA80: 38 | CB80: 35 | CC80: 33 | CD80: 34 | CE80: 34 | CF80: 34 | CG80: 34 | CH80: 34 | CI80: 35 | CJ80: 34 | CK80: 32 | CL80: 34 | CM80: 39 | CN80: 43 | CO80: 45 | CP80: 45 | CQ80: 43 | CR80: 48 | CS80: 45 | CT80: 37 | CU80: 60 | CV80: 56 | CW80: 50 | CX80: 49 | CY80: 46 | CZ80: 46 | DA80: 46 | DB80: 46 | DC80: 48 | DD80: 53 | DE80: 55 | DF80: 54 | DG80: 54 | DH80: 54 | DI80: 53 | DJ80: 53 | DK80: 52 | DL80: 53 | DM80: 57 | DN80: 54 | DO80: 46 | DP80: 42 | DQ80: 41 | DR80: 40 | DS80: 42 | DT80: 38 | DU80: 41 | DV80: 49 | DW80: 33 | DX80: 40 | DY80: 56 | DZ80: 48 | EA80: 39 | EB80: 42 | EC80: 35 | ED80: 33 | EE80: 56 | EF80: 39 | EG80: 42
A81: Lübeck | B81: Ratzeburg | C81: 1003000 | D81: 1053100 | E81: 19,330 | F81: 53.86547,10.68654 | G81: 53.69916,10.7711 | H81: 2.0 | I81: 1.0 | J81: 2.0 | K81: 2.5 | L81: 230,483 | M81: 22,590 | N81: 0 | O81: 20,639 | P81: 0 | Q81: 1,022 | R81: 172 | S81: 0 | T81: 0 | U81: 754 | V81: 22 | W81: 22 | X81: 18 | Y81: 26 | Z81: 35 | AA81: 50 | AB81: 32 | AC81: 26 | AD81: 33 | AE81: 44 | AF81: 30 | AG81: 26 | AH81: 34 | AI81: 48 | AJ81: 32 | AK81: 22 | AL81: 27 | AM81: 35 | AN81: 26 | AO81: 20 | AP81: 26 | AQ81: 35 | AR81: 50 | AS81: 32 | AT81: 26 | AU81: 33 | AV81: 44 | AW81: 30 | AX81: 26 | AY81: 34 | AZ81: 48 | BA81: 32 | BB81: 23 | BC81: 27 | BD81: 35 | BE81: 26 | BF81: 23 | BG81: 21 | BH81: 23 | BI81: 24 | BJ81: 22 | BK81: 24 | BL81: 21 | BM81: 27 | BN81: 22,540 | BO81: 0 | BP81: 0 | BQ81: 0 | BR81: 31 | BS81: 27 | BT81: 26 | BU81: 29 | BV81: 31 | BW81: 33 | BX81: 32 | BY81: 32 | BZ81: 33 | CA81: 31 | CB81: 28 | CC81: 26 | CD81: 26 | CE81: 27 | CF81: 27 | CG81: 27 | CH81: 27 | CI81: 28 | CJ81: 27 | CK81: 25 | CL81: 27 | CM81: 31 | CN81: 35 | CO81: 37 | CP81: 38 | CQ81: 36 | CR81: 41 | CS81: 38 | CT81: 30 | CU81: 57 | CV81: 53 | CW81: 48 | CX81: 46 | CY81: 43 | CZ81: 43 | DA81: 43 | DB81: 43 | DC81: 45 | DD81: 50 | DE81: 54 | DF81: 53 | DG81: 51 | DH81: 53 | DI81: 52 | DJ81: 51 | DK81: 50 | DL81: 52 | DM81: 56 | DN81: 52 | DO81: 46 | DP81: 40 | DQ81: 38 | DR81: 36 | DS81: 39 | DT81: 34 | DU81: 37 | DV81: 46 | DW81: 26 | DX81: 33 | DY81: 50 | DZ81: 41 | EA81: 32 | EB81: 35 | EC81: 26 | ED81: 26 | EE81: 50 | EF81: 32 | EG81: 35
A82: Lübeck | B82: Eutin | C82: 1003000 | D82: 1055012 | E82: 30,240 | F82: 53.86547,10.68654 | G82: 54.13347,10.61049 | H82: 2.0 | I82: 1.0 | J82: 2.0 | K82: 2.5 | L82: 233,232 | M82: 39,750 | N82: 21,478 | O82: 12,989 | P82: 0 | Q82: 2,790 | R82: 1,745 | S82: 0 | T82: 0 | U82: 754 | V82: 31 | W82: 37 | X82: 26 | Y82: 36 | Z82: 45 | AA82: 58 | AB82: 41 | AC82: 37 | AD82: 45 | AE82: 57 | AF82: 41 | AG82: 38 | AH82: 49 | AI82: 68 | AJ82: 45 | AK82: 32 | AL82: 38 | AM82: 47 | AN82: 36 | AO82: 34 | AP82: 40 | AQ82: 47 | AR82: 58 | AS82: 44 | AT82: 41 | AU82: 47 | AV82: 58 | AW82: 45 | AX82: 43 | AY82: 52 | AZ82: 69 | BA82: 49 | BB82: 37 | BC82: 42 | BD82: 49 | BE82: 40 | BF82: 33 | BG82: 29 | BH82: 32 | BI82: 38 | BJ82: 35 | BK82: 37 | BL82: 28 | BM82: 37 | BN82: 39,700 | BO82: 0 | BP82: 0 | BQ82: 0 | BR82: 40 | BS82: 34 | BT82: 37 | BU82: 40 | BV82: 41 | BW82: 42 | BX82: 44 | BY82: 44 | BZ82: 44 | CA82: 41 | CB82: 38 | CC82: 38 | CD82: 35 | CE82: 36 | CF82: 35 | CG82: 37 | CH82: 38 | CI82: 38 | CJ82: 36 | CK82: 34 | CL82: 40 | CM82: 43 | CN82: 48 | CO82: 49 | CP82: 50 | CQ82: 50 | CR82: 56 | CS82: 50 | CT82: 42 | CU82: 69 | CV82: 61 | CW82: 57 | CX82: 56 | CY82: 55 | CZ82: 52 | DA82: 51 | DB82: 52 | DC82: 55 | DD82: 59 | DE82: 60 | DF82: 64 | DG82: 63 | DH82: 64 | DI82: 62 | DJ82: 60 | DK82: 60 | DL82: 64 | DM82: 66 | DN82: 56 | DO82: 53 | DP82: 47 | DQ82: 46 | DR82: 45 | DS82: 45 | DT82: 40 | DU82: 45 | DV82: 54 | DW82: 38 | DX82: 44 | DY82: 68 | DZ82: 56 | EA82: 45 | EB82: 49 | EC82: 38 | ED82: 43 | EE82: 69 | EF82: 49 | EG82: 52
A83: Lübeck | B83: Neustadt in Holstein | C83: 1003000 | D83: 1055032 | E83: 27,650 | F83: 53.86547,10.68654 | G83: 54.10193,10.81595 | H83: 2.0 | I83: 1.0 | J83: 2.0 | K83: 2.5 | L83: 231,294 | M83: 35,250 | N83: 26,630 | O83: 2,241 | P83: 0 | Q83: 0 | R83: 5,133 | S83: 0 | T83: 279 | U83: 973 | V83: 27 | W83: 34 | X83: 22 | Y83: 30 | Z83: 38 | AA83: 50 | AB83: 35 | AC83: 32 | AD83: 40 | AE83: 52 | AF83: 37 | AG83: 34 | AH83: 46 | AI83: 65 | AJ83: 41 | AK83: 28 | AL83: 34 | AM83: 43 | AN83: 32 | AO83: 31 | AP83: 36 | AQ83: 42 | AR83: 52 | AS83: 40 | AT83: 37 | AU83: 43 | AV83: 54 | AW83: 41 | AX83: 40 | AY83: 50 | AZ83: 68 | BA83: 46 | BB83: 34 | BC83: 38 | BD83: 45 | BE83: 38 | BF83: 29 | BG83: 25 | BH83: 28 | BI83: 34 | BJ83: 32 | BK83: 34 | BL83: 24 | BM83: 30 | BN83: 34,950 | BO83: 0 | BP83: 0 | BQ83: 0 | BR83: 36 | BS83: 32 | BT83: 35 | BU83: 35 | BV83: 36 | BW83: 37 | BX83: 40 | BY83: 42 | BZ83: 40 | CA83: 38 | CB83: 34 | CC83: 34 | CD83: 32 | CE83: 32 | CF83: 31 | CG83: 33 | CH83: 34 | CI83: 34 | CJ83: 32 | CK83: 30 | CL83: 37 | CM83: 39 | CN83: 43 | CO83: 44 | CP83: 47 | CQ83: 48 | CR83: 54 | CS83: 46 | CT83: 38 | CU83: 66 | CV83: 58 | CW83: 57 | CX83: 56 | CY83: 54 | CZ83: 50 | DA83: 48 | DB83: 50 | DC83: 53 | DD83: 58 | DE83: 58 | DF83: 64 | DG83: 63 | DH83: 64 | DI83: 60 | DJ83: 59 | DK83: 58 | DL83: 63 | DM83: 66 | DN83: 55 | DO83: 52 | DP83: 46 | DQ83: 46 | DR83: 43 | DS83: 41 | DT83: 37 | DU83: 43 | DV83: 53 | DW83: 34 | DX83: 40 | DY83: 65 | DZ83: 54 | EA83: 41 | EB83: 46 | EC83: 34 | ED83: 40 | EE83: 68 | EF83: 46 | EG83: 50
A84: Lübeck | B84: Oldenburg in Holstein | C84: 1003000 | D84: 1055033 | E84: 49,140 | F84: 53.86547,10.68654 | G84: 54.29046,10.88992 | H84: 2.0 | I84: 1.0 | J84: 2.0 | K84: 2.5 | L84: 226,024 | M84: 58,170 | N84: 51,794 | O84: 2,519 | P84: 0 | Q84: 0 | R84: 3,107 | S84: 0 | T84: 0 | U84: 754 | V84: 37 | W84: 49 | X84: 29 | Y84: 40 | Z84: 50 | AA84: 65 | AB84: 45 | AC84: 41 | AD84: 50 | AE84: 65 | AF84: 46 | AG84: 42 | AH84: 54 | AI84: 74 | AJ84: 49 | AK84: 37 | AL84: 44 | AM84: 55 | AN84: 41 | AO84: 47 | AP84: 51 | AQ84: 57 | AR84: 67 | AS84: 55 | AT84: 52 | AU84: 58 | AV84: 67 | AW84: 56 | AX84: 54 | AY84: 63 | AZ84: 79 | BA84: 60 | BB84: 49 | BC84: 53 | BD84: 59 | BE84: 52 | BF84: 38 | BG84: 34 | BH84: 37 | BI84: 50 | BJ84: 47 | BK84: 50 | BL84: 33 | BM84: 38 | BN84: 58,040 | BO84: 0 | BP84: 0 | BQ84: 0 | BR84: 45 | BS84: 42 | BT84: 46 | BU84: 46 | BV84: 46 | BW84: 46 | BX84: 48 | BY84: 49 | BZ84: 48 | CA84: 46 | CB84: 43 | CC84: 46 | CD84: 41 | CE84: 41 | CF84: 40 | CG84: 41 | CH84: 42 | CI84: 42 | CJ84: 40 | CK84: 39 | CL84: 49 | CM84: 52 | CN84: 56 | CO84: 56 | CP84: 57 | CQ84: 58 | CR84: 63 | CS84: 56 | CT84: 48 | CU84: 83 | CV84: 73 | CW84: 73 | CX84: 73 | CY84: 73 | CZ84: 70 | DA84: 69 | DB84: 70 | DC84: 74 | DD84: 78 | DE84: 74 | DF84: 82 | DG84: 83 | DH84: 85 | DI84: 82 | DJ84: 81 | DK84: 81 | DL84: 84 | DM84: 86 | DN84: 69 | DO84: 65 | DP84: 61 | DQ84: 60 | DR84: 59 | DS84: 58 | DT84: 53 | DU84: 60 | DV84: 70 | DW84: 42 | DX84: 48 | DY84: 74 | DZ84: 63 | EA84: 49 | EB84: 54 | EC84: 44 | ED84: 54 | EE84: 79 | EF84: 60 | EG84: 63
A85: Lübeck | B85: Plön | C85: 1003000 | D85: 1057057 | E85: 37,060 | F85: 53.86547,10.68654 | G85: 54.16109,10.42637 | H85: 2.0 | I85: 1.0 | J85: 2.0 | K85: 2.5 | L85: 225,059 | M85: 53,140 | N85: 21,478 | O85: 28,938 | P85: 0 | Q85: 0 | R85: 1,974 | S85: 0 | T85: 0 | U85: 754 | V85: 40 | W85: 47 | X85: 34 | Y85: 45 | Z85: 55 | AA85: 69 | AB85: 51 | AC85: 46 | AD85: 55 | AE85: 69 | AF85: 51 | AG85: 47 | AH85: 60 | AI85: 81 | AJ85: 55 | AK85: 41 | AL85: 48 | AM85: 58 | AN85: 45 | AO85: 44 | AP85: 49 | AQ85: 57 | AR85: 70 | AS85: 54 | AT85: 50 | AU85: 58 | AV85: 70 | AW85: 54 | AX85: 52 | AY85: 63 | AZ85: 83 | BA85: 60 | BB85: 47 | BC85: 51 | BD85: 59 | BE85: 50 | BF85: 42 | BG85: 37 | BH85: 41 | BI85: 47 | BJ85: 45 | BK85: 47 | BL85: 36 | BM85: 50 | BN85: 52,880 | BO85: 0 | BP85: 0 | BQ85: 0 | BR85: 49 | BS85: 43 | BT85: 45 | BU85: 49 | BV85: 50 | BW85: 51 | BX85: 54 | BY85: 54 | BZ85: 53 | CA85: 51 | CB85: 47 | CC85: 45 | CD85: 44 | CE85: 45 | CF85: 44 | CG85: 46 | CH85: 47 | CI85: 47 | CJ85: 44 | CK85: 43 | CL85: 48 | CM85: 54 | CN85: 59 | CO85: 61 | CP85: 61 | CQ85: 62 | CR85: 67 | CS85: 61 | CT85: 51 | CU85: 73 | CV85: 68 | CW85: 63 | CX85: 61 | CY85: 60 | CZ85: 57 | DA85: 57 | DB85: 58 | DC85: 60 | DD85: 65 | DE85: 68 | DF85: 70 | DG85: 68 | DH85: 69 | DI85: 67 | DJ85: 66 | DK85: 65 | DL85: 69 | DM85: 72 | DN85: 64 | DO85: 56 | DP85: 52 | DQ85: 51 | DR85: 50 | DS85: 49 | DT85: 46 | DU85: 51 | DV85: 60 | DW85: 47 | DX85: 53 | DY85: 81 | DZ85: 67 | EA85: 55 | EB85: 60 | EC85: 49 | ED85: 52 | EE85: 83 | EF85: 60 | EG85: 63
A86: Lübeck | B86: Bad Segeberg | C86: 1003000 | D86: 1060005 | E86: 26,350 | F86: 53.86547,10.68654 | G86: 53.93827,10.30514 | H86: 2.0 | I86: 1.0 | J86: 2.0 | K86: 2.5 | L86: 233,429 | M86: 36,880 | N86: 27,396 | O86: 2,740 | P86: 0 | Q86: 1,022 | R86: 4,552 | S86: 0 | T86: 0 | U86: 1,172 | V86: 28 | W86: 34 | X86: 23 | Y86: 33 | Z86: 45 | AA86: 64 | AB86: 40 | AC86: 33 | AD86: 43 | AE86: 57 | AF86: 39 | AG86: 33 | AH86: 44 | AI86: 64 | AJ86: 41 | AK86: 29 | AL86: 35 | AM86: 43 | AN86: 32 | AO86: 32 | AP86: 38 | AQ86: 48 | AR86: 66 | AS86: 45 | AT86: 38 | AU86: 46 | AV86: 58 | AW86: 43 | AX86: 38 | AY86: 47 | AZ86: 66 | BA86: 45 | BB86: 34 | BC86: 38 | BD86: 44 | BE86: 37 | BF86: 29 | BG86: 26 | BH86: 28 | BI86: 35 | BJ86: 32 | BK86: 35 | BL86: 29 | BM86: 41 | BN86: 39,440 | BO86: 0 | BP86: 0 | BQ86: 0 | BR86: 36 | BS86: 33 | BT86: 34 | BU86: 35 | BV86: 39 | BW86: 41 | BX86: 40 | BY86: 41 | BZ86: 40 | CA86: 37 | CB86: 33 | CC86: 31 | CD86: 31 | CE86: 33 | CF86: 33 | CG86: 32 | CH86: 33 | CI86: 33 | CJ86: 31 | CK86: 30 | CL86: 36 | CM86: 42 | CN86: 51 | CO86: 53 | CP86: 51 | CQ86: 50 | CR86: 52 | CS86: 46 | CT86: 37 | CU86: 69 | CV86: 68 | CW86: 65 | CX86: 59 | CY86: 55 | CZ86: 57 | DA86: 56 | DB86: 57 | DC86: 61 | DD86: 68 | DE86: 73 | DF86: 73 | DG86: 68 | DH86: 68 | DI86: 70 | DJ86: 69 | DK86: 68 | DL86: 73 | DM86: 76 | DN86: 64 | DO86: 55 | DP86: 44 | DQ86: 43 | DR86: 44 | DS86: 45 | DT86: 44 | DU86: 50 | DV86: 61 | DW86: 33 | DX86: 40 | DY86: 64 | DZ86: 52 | EA86: 41 | EB86: 45 | EC86: 35 | ED86: 38 | EE86: 66 | EF86: 45 | EG86: 48
A87: Lübeck | B87: Ahrensburg | C87: 1003000 | D87: 1062001 | E87: 36,300 | F87: 53.86547,10.68654 | G87: 53.67645,10.23797 | H87: 2.0 | I87: 1.0 | J87: 2.0 | K87: 2.5 | L87: 248,859 | M87: 43,260 | N87: 27,861 | O87: 413 | P87: 595 | Q87: 1,224 | R87: 12,363 | S87: 0 | T87: 0 | U87: 804 | V87: 33 | W87: 41 | X87: 26 | Y87: 36 | Z87: 50 | AA87: 74 | AB87: 45 | AC87: 36 | AD87: 45 | AE87: 59 | AF87: 41 | AG87: 36 | AH87: 46 | AI87: 67 | AJ87: 43 | AK87: 32 | AL87: 39 | AM87: 48 | AN87: 35 | AO87: 38 | AP87: 44 | AQ87: 56 | AR87: 76 | AS87: 52 | AT87: 43 | AU87: 50 | AV87: 61 | AW87: 48 | AX87: 44 | AY87: 52 | AZ87: 70 | BA87: 50 | BB87: 41 | BC87: 44 | BD87: 50 | BE87: 43 | BF87: 33 | BG87: 31 | BH87: 34 | BI87: 41 | BJ87: 39 | BK87: 41 | BL87: 29 | BM87: 44 | BN87: 42,960 | BO87: 0 | BP87: 0 | BQ87: 0 | BR87: 41 | BS87: 36 | BT87: 37 | BU87: 39 | BV87: 43 | BW87: 44 | BX87: 43 | BY87: 43 | BZ87: 42 | CA87: 40 | CB87: 38 | CC87: 34 | CD87: 35 | CE87: 37 | CF87: 36 | CG87: 36 | CH87: 36 | CI87: 36 | CJ87: 35 | CK87: 34 | CL87: 40 | CM87: 47 | CN87: 58 | CO87: 55 | CP87: 53 | CQ87: 53 | CR87: 55 | CS87: 51 | CT87: 44 | CU87: 71 | CV87: 71 | CW87: 67 | CX87: 61 | CY87: 60 | CZ87: 62 | DA87: 61 | DB87: 62 | DC87: 65 | DD87: 70 | DE87: 77 | DF87: 75 | DG87: 70 | DH87: 74 | DI87: 73 | DJ87: 72 | DK87: 72 | DL87: 75 | DM87: 78 | DN87: 65 | DO87: 55 | DP87: 45 | DQ87: 48 | DR87: 49 | DS87: 50 | DT87: 48 | DU87: 52 | DV87: 60 | DW87: 36 | DX87: 43 | DY87: 74 | DZ87: 58 | EA87: 45 | EB87: 50 | EC87: 38 | ED87: 44 | EE87: 76 | EF87: 52 | EG87: 56
A88: Lübeck | B88: Bad Oldesloe | C88: 1003000 | D88: 1062004 | E88: 21,040 | F88: 53.86547,10.68654 | G88: 53.80762,10.38228 | H88: 2.0 | I88: 1.0 | J88: 2.0 | K88: 2.5 | L88: 241,191 | M88: 28,780 | N88: 18,844 | O88: 4,310 | P88: 0 | Q88: 1,022 | R88: 3,853 | S88: 0 | T88: 0 | U88: 754 | V88: 23 | W88: 27 | X88: 19 | Y88: 26 | Z88: 35 | AA88: 52 | AB88: 32 | AC88: 26 | AD88: 33 | AE88: 43 | AF88: 30 | AG88: 26 | AH88: 34 | AI88: 50 | AJ88: 32 | AK88: 23 | AL88: 28 | AM88: 35 | AN88: 26 | AO88: 25 | AP88: 31 | AQ88: 38 | AR88: 54 | AS88: 36 | AT88: 30 | AU88: 36 | AV88: 44 | AW88: 34 | AX88: 30 | AY88: 37 | AZ88: 52 | BA88: 36 | BB88: 27 | BC88: 31 | BD88: 36 | BE88: 30 | BF88: 24 | BG88: 21 | BH88: 24 | BI88: 28 | BJ88: 26 | BK88: 28 | BL88: 21 | BM88: 30 | BN88: 28,560 | BO88: 0 | BP88: 0 | BQ88: 0 | BR88: 31 | BS88: 27 | BT88: 28 | BU88: 30 | BV88: 31 | BW88: 33 | BX88: 33 | BY88: 34 | BZ88: 33 | CA88: 31 | CB88: 29 | CC88: 26 | CD88: 27 | CE88: 28 | CF88: 27 | CG88: 28 | CH88: 28 | CI88: 28 | CJ88: 27 | CK88: 26 | CL88: 31 | CM88: 35 | CN88: 40 | CO88: 42 | CP88: 41 | CQ88: 41 | CR88: 43 | CS88: 40 | CT88: 33 | CU88: 66 | CV88: 64 | CW88: 60 | CX88: 57 | CY88: 53 | CZ88: 54 | DA88: 53 | DB88: 54 | DC88: 57 | DD88: 62 | DE88: 70 | DF88: 67 | DG88: 65 | DH88: 65 | DI88: 65 | DJ88: 64 | DK88: 63 | DL88: 66 | DM88: 69 | DN88: 58 | DO88: 52 | DP88: 45 | DQ88: 43 | DR88: 43 | DS88: 43 | DT88: 41 | DU88: 45 | DV88: 54 | DW88: 26 | DX88: 33 | DY88: 52 | DZ88: 43 | EA88: 32 | EB88: 35 | EC88: 28 | ED88: 31 | EE88: 54 | EF88: 36 | EG88: 38
A89: Lübeck | B89: Hamburg | C89: 1003000 | D89: 2000000 | E89: 57,600 | F89: 53.86547,10.68654 | G89: 53.55107,9.99367 | H89: 2.5 | I89: 2.0 | J89: 2.0 | K89: 2.5 | L89: 2,003,661 | M89: 68,070 | N89: 56,514 | O89: 494 | P89: 5,184 | Q89: 1,022 | R89: 3,853 | S89: 0 | T89: 139 | U89: 867 | V89: 48 | W89: 61 | X89: 38 | Y89: 53 | Z89: 76 | AA89: 114 | AB89: 69 | AC89: 51 | AD89: 65 | AE89: 89 | AF89: 61 | AG89: 53 | AH89: 69 | AI89: 102 | AJ89: 65 | AK89: 48 | AL89: 58 | AM89: 76 | AN89: 54 | AO89: 56 | AP89: 65 | AQ89: 84 | AR89: 118 | AS89: 77 | AT89: 63 | AU89: 72 | AV89: 92 | AW89: 70 | AX89: 65 | AY89: 78 | AZ89: 106 | BA89: 76 | BB89: 60 | BC89: 67 | BD89: 79 | BE89: 65 | BF89: 49 | BG89: 44 | BH89: 49 | BI89: 60 | BJ89: 57 | BK89: 61 | BL89: 42 | BM89: 80 | BN89: 67,450 | BO89: 0 | BP89: 0 | BQ89: 0 | BR89: 60 | BS89: 53 | BT89: 58 | BU89: 62 | BV89: 70 | BW89: 70 | BX89: 64 | BY89: 66 | BZ89: 67 | CA89: 62 | CB89: 59 | CC89: 50 | CD89: 53 | CE89: 62 | CF89: 61 | CG89: 54 | CH89: 54 | CI89: 57 | CJ89: 53 | CK89: 51 | CL89: 67 | CM89: 86 | CN89: 101 | CO89: 94 | CP89: 84 | CQ89: 83 | CR89: 90 | CS89: 79 | CT89: 73 | CU89: 78 | CV89: 77 | CW89: 70 | CX89: 64 | CY89: 64 | CZ89: 70 | DA89: 67 | DB89: 67 | DC89: 72 | DD89: 76 | DE89: 90 | DF89: 78 | DG89: 73 | DH89: 75 | DI89: 83 | DJ89: 83 | DK89: 80 | DL89: 86 | DM89: 89 | DN89: 67 | DO89: 48 | DP89: 45 | DQ89: 48 | DR89: 54 | DS89: 54 | DT89: 50 | DU89: 57 | DV89: 62 | DW89: 53 | DX89: 70 | DY89: 114 | DZ89: 101 | EA89: 69 | EB89: 76 | EC89: 58 | ED89: 65 | EE89: 118 | EF89: 77 | EG89: 84
A90: Lübeck | B90: Braunschweig | C90: 1003000 | D90: 3101000 | E90: 178,020 | F90: 53.86547,10.68654 | G90: 52.26871,10.52621 | H90: 2.5 | I90: 2.0 | J90: 2.0 | K90: 2.5 | L90: 467,617 | M90: 259,900 | N90: 251,204 | O90: 53 | P90: 1,310 | Q90: 1,022 | R90: 5,554 | S90: 0 | T90: 0 | U90: 754 | V90: 141 | W90: 203 | X90: 119 | Y90: 147 | Z90: 182 | AA90: 241 | AB90: 167 | AC90: 152 | AD90: 183 | AE90: 228 | AF90: 171 | AG90: 155 | AH90: 191 | AI90: 251 | AJ90: 182 | AK90: 145 | AL90: 174 | AM90: 209 | AN90: 162 | AO90: 199 | AP90: 207 | AQ90: 224 | AR90: 258 | AS90: 218 | AT90: 206 | AU90: 217 | AV90: 238 | AW90: 213 | AX90: 209 | AY90: 224 | AZ90: 261 | BA90: 221 | BB90: 203 | BC90: 208 | BD90: 220 | BE90: 207 | BF90: 149 | BG90: 138 | BH90: 144 | BI90: 203 | BJ90: 200 | BK90: 203 | BL90: 189 | BM90: 217 | BN90: 302,550 | BO90: 0 | BP90: 0 | BQ90: 0 | BR90: 164 | BS90: 146 | BT90: 169 | BU90: 168 | BV90: 171 | BW90: 176 | BX90: 184 | BY90: 191 | BZ90: 177 | CA90: 170 | CB90: 166 | CC90: 149 | CD90: 147 | CE90: 151 | CF90: 153 | CG90: 156 | CH90: 159 | CI90: 153 | CJ90: 147 | CK90: 148 | CL90: 208 | CM90: 213 | CN90: 222 | CO90: 225 | CP90: 234 | CQ90: 249 | CR90: 220 | CS90: 209 | CT90: 203 | CU90: 107 | CV90: 93 | CW90: 93 | CX90: 91 | CY90: 89 | CZ90: 85 | DA90: 82 | DB90: 89 | DC90: 92 | DD90: 94 | DE90: 105 | DF90: 107 | DG90: 103 | DH90: 102 | DI90: 100 | DJ90: 98 | DK90: 102 | DL90: 106 | DM90: 106 | DN90: 75 | DO90: 73 | DP90: 70 | DQ90: 69 | DR90: 67 | DS90: 63 | DT90: 71 | DU90: 75 | DV90: 77 | DW90: 155 | DX90: 177 | DY90: 251 | DZ90: 222 | EA90: 182 | EB90: 191 | EC90: 174 | ED90: 209 | EE90: 261 | EF90: 221 | EG90: 224
A91: Lübeck | B91: Göttingen | C91: 1003000 | D91: 3152012 | E91: 263,830 | F91: 53.86547,10.68654 | G91: 51.54125,9.9158 | H91: 2.5 | I91: 2.0 | J91: 2.0 | K91: 2.5 | L91: 335,167 | M91: 326,320 | N91: 316,125 | O91: 1,364 | P91: 0 | Q91: 4,213 | R91: 3,853 | S91: 0 | T91: 8 | U91: 754 | V91: 173 | W91: 252 | X91: 143 | Y91: 175 | Z91: 212 | AA91: 276 | AB91: 194 | AC91: 181 | AD91: 212 | AE91: 260 | AF91: 197 | AG91: 184 | AH91: 221 | AI91: 282 | AJ91: 209 | AK91: 176 | AL91: 210 | AM91: 246 | AN91: 192 | AO91: 249 | AP91: 255 | AQ91: 271 | AR91: 297 | AS91: 265 | AT91: 254 | AU91: 262 | AV91: 276 | AW91: 259 | AX91: 257 | AY91: 268 | AZ91: 298 | BA91: 266 | BB91: 251 | BC91: 255 | BD91: 262 | BE91: 255 | BF91: 181 | BG91: 170 | BH91: 178 | BI91: 252 | BJ91: 250 | BK91: 252 | BL91: 161 | BM91: 261 | BN91: 326,030 | BO91: 0 | BP91: 0 | BQ91: 0 | BR91: 202 | BS91: 188 | BT91: 206 | BU91: 202 | BV91: 206 | BW91: 211 | BX91: 219 | BY91: 225 | BZ91: 213 | CA91: 208 | CB91: 207 | CC91: 185 | CD91: 180 | CE91: 183 | CF91: 187 | CG91: 189 | CH91: 192 | CI91: 186 | CJ91: 181 | CK91: 187 | CL91: 253 | CM91: 257 | CN91: 264 | CO91: 268 | CP91: 277 | CQ91: 291 | CR91: 265 | CS91: 255 | CT91: 250 | CU91: 104 | CV91: 95 | CW91: 97 | CX91: 95 | CY91: 93 | CZ91: 89 | DA91: 87 | DB91: 92 | DC91: 94 | DD91: 95 | DE91: 106 | DF91: 109 | DG91: 107 | DH91: 105 | DI91: 104 | DJ91: 102 | DK91: 105 | DL91: 108 | DM91: 105 | DN91: 77 | DO91: 76 | DP91: 74 | DQ91: 73 | DR91: 71 | DS91: 67 | DT91: 74 | DU91: 77 | DV91: 78 | DW91: 184 | DX91: 213 | DY91: 282 | DZ91: 265 | EA91: 209 | EB91: 221 | EC91: 211 | ED91: 257 | EE91: 298 | EF91: 266 | EG91: 271
A92: Lübeck | B92: Hannover | C92: 1003000 | D92: 3241001 | E92: 177,660 | F92: 53.86547,10.68654 | G92: 52.37587,9.73201 | H92: 2.5 | I92: 2.0 | J92: 2.0 | K92: 2.5 | L92: 748,416 | M92: 211,190 | N92: 196,469 | O92: 2,677 | P92: 5,343 | Q92: 1,022 | R92: 4,088 | S92: 642 | T92: 19 | U92: 934 | V92: 121 | W92: 169 | X92: 101 | Y92: 125 | Z92: 157 | AA92: 214 | AB92: 145 | AC92: 129 | AD92: 155 | AE92: 197 | AF92: 145 | AG92: 133 | AH92: 168 | AI92: 228 | AJ92: 159 | AK92: 123 | AL92: 147 | AM92: 180 | AN92: 137 | AO92: 164 | AP92: 173 | AQ92: 193 | AR92: 229 | AS92: 186 | AT92: 172 | AU92: 184 | AV92: 206 | AW92: 180 | AX92: 176 | AY92: 197 | AZ92: 238 | BA92: 192 | BB92: 169 | BC92: 177 | BD92: 191 | BE92: 175 | BF92: 126 | BG92: 118 | BH92: 124 | BI92: 169 | BJ92: 165 | BK92: 169 | BL92: 113 | BM92: 188 | BN92: 211,110 | BO92: 0 | BP92: 0 | BQ92: 0 | BR92: 143 | BS92: 128 | BT92: 147 | BU92: 148 | BV92: 149 | BW92: 153 | BX92: 161 | BY92: 171 | BZ92: 155 | CA92: 148 | CB92: 143 | CC92: 131 | CD92: 130 | CE92: 131 | CF92: 133 | CG92: 135 | CH92: 141 | CI92: 134 | CJ92: 127 | CK92: 127 | CL92: 182 | CM92: 195 | CN92: 195 | CO92: 197 | CP92: 209 | CQ92: 231 | CR92: 194 | CS92: 182 | CT92: 175 | CU92: 103 | CV92: 90 | CW92: 89 | CX92: 89 | CY92: 86 | CZ92: 82 | DA92: 77 | DB92: 85 | DC92: 89 | DD92: 92 | DE92: 101 | DF92: 101 | DG92: 100 | DH92: 99 | DI92: 97 | DJ92: 93 | DK92: 98 | DL92: 104 | DM92: 104 | DN92: 72 | DO92: 68 | DP92: 68 | DQ92: 67 | DR92: 63 | DS92: 57 | DT92: 68 | DU92: 73 | DV92: 76 | DW92: 133 | DX92: 155 | DY92: 228 | DZ92: 195 | EA92: 159 | EB92: 168 | EC92: 148 | ED92: 176 | EE92: 238 | EF92: 192 | EG92: 197
A93: Lübeck | B93: Hildesheim | C93: 1003000 | D93: 3254021 | E93: 196,550 | F93: 53.86547,10.68654 | G93: 52.15477,9.958 | H93: 2.5 | I93: 2.0 | J93: 2.0 | K93: 2.5 | L93: 317,920 | M93: 237,700 | N93: 228,210 | O93: 3,455 | P93: 0 | Q93: 1,344 | R93: 3,853 | S93: 88 | T93: 0 | U93: 754 | V93: 127 | W93: 185 | X93: 107 | Y93: 130 | Z93: 157 | AA93: 208 | AB93: 145 | AC93: 135 | AD93: 158 | AE93: 197 | AF93: 149 | AG93: 137 | AH93: 165 | AI93: 214 | AJ93: 158 | AK93: 129 | AL93: 153 | AM93: 182 | AN93: 142 | AO93: 182 | AP93: 187 | AQ93: 201 | AR93: 226 | AS93: 196 | AT93: 186 | AU93: 194 | AV93: 209 | AW93: 191 | AX93: 189 | AY93: 200 | AZ93: 226 | BA93: 198 | BB93: 184 | BC93: 188 | BD93: 195 | BE93: 187 | BF93: 133 | BG93: 126 | BH93: 130 | BI93: 184 | BJ93: 182 | BK93: 185 | BL93: 120 | BM93: 196 | BN93: 237,460 | BO93: 0 | BP93: 0 | BQ93: 0 | BR93: 150 | BS93: 134 | BT93: 153 | BU93: 150 | BV93: 153 | BW93: 158 | BX93: 166 | BY93: 172 | BZ93: 161 | CA93: 154 | CB93: 151 | CC93: 137 | CD93: 133 | CE93: 135 | CF93: 138 | CG93: 140 | CH93: 144 | CI93: 139 | CJ93: 133 | CK93: 135 | CL93: 187 | CM93: 193 | CN93: 200 | CO93: 204 | CP93: 214 | CQ93: 228 | CR93: 201 | CS93: 190 | CT93: 185 | CU93: 107 | CV93: 94 | CW93: 95 | CX93: 93 | CY93: 91 | CZ93: 86 | DA93: 83 | DB93: 89 | DC93: 93 | DD93: 95 | DE93: 104 | DF93: 108 | DG93: 106 | DH93: 104 | DI93: 102 | DJ93: 99 | DK93: 103 | DL93: 108 | DM93: 106 | DN93: 76 | DO93: 74 | DP93: 72 | DQ93: 70 | DR93: 67 | DS93: 63 | DT93: 71 | DU93: 75 | DV93: 77 | DW93: 137 | DX93: 161 | DY93: 214 | DZ93: 201 | EA93: 158 | EB93: 165 | EC93: 155 | ED93: 189 | EE93: 226 | EF93: 198 | EG93: 201
A94: Lübeck | B94: Celle | C94: 1003000 | D94: 3351006 | E94: 145,000 | F94: 53.86547,10.68654 | G94: 52.61748,10.06274 | H94: 2.5 | I94: 2.0 | J94: 2.0 | K94: 2.5 | L94: 286,001 | M94: 180,380 | N94: 131,385 | O94: 38,193 | P94: 2,767 | Q94: 1,022 | R94: 3,853 | S94: 2,091 | T94: 0 | U94: 1,064 | V94: 110 | W94: 145 | X94: 93 | Y94: 116 | Z94: 144 | AA94: 188 | AB94: 133 | AC94: 118 | AD94: 140 | AE94: 174 | AF94: 131 | AG94: 120 | AH94: 146 | AI94: 192 | AJ94: 138 | AK94: 111 | AL94: 129 | AM94: 153 | AN94: 120 | AO94: 141 | AP94: 150 | AQ94: 168 | AR94: 199 | AS94: 161 | AT94: 149 | AU94: 160 | AV94: 180 | AW94: 156 | AX94: 151 | AY94: 167 | AZ94: 200 | BA94: 163 | BB94: 145 | BC94: 151 | BD94: 161 | BE94: 149 | BF94: 117 | BG94: 111 | BH94: 116 | BI94: 147 | BJ94: 145 | BK94: 147 | BL94: 108 | BM94: 160 | BN94: 180,480 | BO94: 0 | BP94: 0 | BQ94: 0 | BR94: 128 | BS94: 113 | BT94: 126 | BU94: 128 | BV94: 131 | BW94: 134 | BX94: 133 | BY94: 136 | BZ94: 132 | CA94: 126 | CB94: 124 | CC94: 114 | CD94: 115 | CE94: 119 | CF94: 118 | CG94: 118 | CH94: 117 | CI94: 118 | CJ94: 113 | CK94: 111 | CL94: 145 | CM94: 159 | CN94: 168 | CO94: 166 | CP94: 162 | CQ94: 165 | CR94: 162 | CS94: 153 | CT94: 145 | CU94: 96 | CV94: 86 | CW94: 85 | CX94: 83 | CY94: 81 | CZ94: 81 | DA94: 80 | DB94: 82 | DC94: 86 | DD94: 88 | DE94: 95 | DF94: 95 | DG94: 91 | DH94: 92 | DI94: 91 | DJ94: 92 | DK94: 92 | DL94: 96 | DM94: 97 | DN94: 75 | DO94: 68 | DP94: 65 | DQ94: 65 | DR94: 67 | DS94: 66 | DT94: 67 | DU94: 71 | DV94: 75 | DW94: 120 | DX94: 132 | DY94: 192 | DZ94: 168 | EA94: 138 | EB94: 146 | EC94: 133 | ED94: 151 | EE94: 200 | EF94: 163 | EG94: 168
A95: Lübeck | B95: Lüneburg | C95: 1003000 | D95: 3355022 | E95: 71,270 | F95: 53.86547,10.68654 | G95: 53.24645,10.41144 | H95: 2.5 | I95: 2.0 | J95: 2.0 | K95: 2.5 | L95: 290,325 | M95: 116,590 | N95: 104,681 | O95: 2,655 | P95: 2,962 | Q95: 1,428 | R95: 3,949 | S95: 0 | T95: 0 | U95: 919 | V95: 70 | W95: 95 | X95: 57 | Y95: 76 | Z95: 102 | AA95: 141 | AB95: 91 | AC95: 77 | AD95: 96 | AE95: 123 | AF95: 87 | AG95: 78 | AH95: 100 | AI95: 139 | AJ95: 94 | AK95: 70 | AL95: 82 | AM95: 99 | AN95: 75 | AO95: 92 | AP95: 99 | AQ95: 117 | AR95: 147 | AS95: 110 | AT95: 99 | AU95: 109 | AV95: 127 | AW95: 105 | AX95: 101 | AY95: 116 | AZ95: 147 | BA95: 112 | BB95: 95 | BC95: 99 | BD95: 107 | BE95: 98 | BF95: 72 | BG95: 68 | BH95: 72 | BI95: 95 | BJ95: 93 | BK95: 95 | BL95: 79 | BM95: 104 | BN95: 86,720 | BO95: 0 | BP95: 0 | BQ95: 0 | BR95: 85 | BS95: 76 | BT95: 83 | BU95: 87 | BV95: 90 | BW95: 91 | BX95: 89 | BY95: 92 | BZ95: 89 | CA95: 84 | CB95: 80 | CC95: 74 | CD95: 77 | CE95: 82 | CF95: 79 | CG95: 77 | CH95: 77 | CI95: 79 | CJ95: 74 | CK95: 71 | CL95: 95 | CM95: 113 | CN95: 121 | CO95: 120 | CP95: 113 | CQ95: 116 | CR95: 115 | CS95: 105 | CT95: 95 | CU95: 92 | CV95: 84 | CW95: 81 | CX95: 78 | CY95: 77 | CZ95: 79 | DA95: 76 | DB95: 78 | DC95: 83 | DD95: 88 | DE95: 94 | DF95: 91 | DG95: 86 | DH95: 89 | DI95: 91 | DJ95: 91 | DK95: 89 | DL95: 95 | DM95: 98 | DN95: 74 | DO95: 62 | DP95: 58 | DQ95: 59 | DR95: 62 | DS95: 61 | DT95: 61 | DU95: 67 | DV95: 74 | DW95: 78 | DX95: 90 | DY95: 141 | DZ95: 121 | EA95: 94 | EB95: 102 | EC95: 84 | ED95: 101 | EE95: 147 | EF95: 112 | EG95: 117
A96: Lübeck | B96: Uelzen | C96: 1003000 | D96: 3360025 | E96: 100,480 | F96: 53.86547,10.68654 | G96: 52.9659,10.5577 | H96: 2.0 | I96: 1.0 | J96: 2.0 | K96: 2.5 | L96: 250,035 | M96: 154,080 | N96: 104,681 | O96: 40,413 | P96: 667 | Q96: 2,974 | R96: 3,949 | S96: 0 | T96: 641 | U96: 754 | V96: 95 | W96: 123 | X96: 79 | Y96: 103 | Z96: 129 | AA96: 169 | AB96: 118 | AC96: 104 | AD96: 124 | AE96: 152 | AF96: 115 | AG96: 105 | AH96: 128 | AI96: 171 | AJ96: 122 | AK96: 96 | AL96: 110 | AM96: 130 | AN96: 102 | AO96: 120 | AP96: 128 | AQ96: 145 | AR96: 175 | AS96: 138 | AT96: 128 | AU96: 139 | AV96: 157 | AW96: 134 | AX96: 130 | AY96: 145 | AZ96: 179 | BA96: 141 | BB96: 124 | BC96: 129 | BD96: 138 | BE96: 127 | BF96: 99 | BG96: 93 | BH96: 98 | BI96: 125 | BJ96: 122 | BK96: 124 | BL96: 111 | BM96: 134 | BN96: 123,230 | BO96: 0 | BP96: 0 | BQ96: 0 | BR96: 112 | BS96: 100 | BT96: 110 | BU96: 113 | BV96: 117 | BW96: 119 | BX96: 117 | BY96: 121 | BZ96: 117 | CA96: 110 | CB96: 105 | CC96: 100 | CD96: 102 | CE96: 106 | CF96: 105 | CG96: 104 | CH96: 103 | CI96: 104 | CJ96: 98 | CK96: 95 | CL96: 125 | CM96: 141 | CN96: 150 | CO96: 149 | CP96: 144 | CQ96: 146 | CR96: 143 | CS96: 132 | CT96: 121 | CU96: 92 | CV96: 84 | CW96: 82 | CX96: 79 | CY96: 78 | CZ96: 79 | DA96: 77 | DB96: 79 | DC96: 84 | DD96: 88 | DE96: 93 | DF96: 91 | DG96: 87 | DH96: 89 | DI96: 89 | DJ96: 90 | DK96: 89 | DL96: 94 | DM96: 98 | DN96: 74 | DO96: 66 | DP96: 62 | DQ96: 62 | DR96: 64 | DS96: 64 | DT96: 65 | DU96: 70 | DV96: 77 | DW96: 105 | DX96: 117 | DY96: 171 | DZ96: 150 | EA96: 122 | EB96: 129 | EC96: 115 | ED96: 130 | EE96: 179 | EF96: 141 | EG96: 145
A97: Lübeck | B97: Oldenburg (Oldb) | C97: 1003000 | D97: 3403000 | E97: 182,630 | F97: 53.86547,10.68654 | G97: 53.14345,8.21456 | H97: 2.5 | I97: 2.0 | J97: 2.0 | K97: 2.5 | L97: 380,083 | M97: 226,710 | N97: 217,580 | O97: 53 | P97: 0 | Q97: 2,539 | R97: 5,787 | S97: 0 | T97: 0 | U97: 754 | V97: 124 | W97: 177 | X97: 103 | Y97: 132 | Z97: 166 | AA97: 223 | AB97: 152 | AC97: 134 | AD97: 162 | AE97: 202 | AF97: 150 | AG97: 145 | AH97: 183 | AI97: 253 | AJ97: 170 | AK97: 125 | AL97: 148 | AM97: 179 | AN97: 137 | AO97: 174 | AP97: 183 | AQ97: 201 | AR97: 235 | AS97: 194 | AT97: 182 | AU97: 192 | AV97: 212 | AW97: 188 | AX97: 191 | AY97: 215 | AZ97: 265 | BA97: 208 | BB97: 178 | BC97: 183 | BD97: 192 | BE97: 181 | BF97: 129 | BG97: 122 | BH97: 126 | BI97: 178 | BJ97: 175 | BK97: 178 | BL97: 115 | BM97: 200 | BN97: 227,090 | BO97: 0 | BP97: 0 | BQ97: 0 | BR97: 145 | BS97: 129 | BT97: 148 | BU97: 147 | BV97: 148 | BW97: 152 | BX97: 157 | BY97: 168 | BZ97: 151 | CA97: 141 | CB97: 138 | CC97: 132 | CD97: 128 | CE97: 129 | CF97: 131 | CG97: 133 | CH97: 135 | CI97: 130 | CJ97: 124 | CK97: 123 | CL97: 180 | CM97: 193 | CN97: 196 | CO97: 199 | CP97: 207 | CQ97: 220 | CR97: 190 | CS97: 178 | CT97: 172 | CU97: 106 | CV97: 92 | CW97: 92 | CX97: 92 | CY97: 90 | CZ97: 87 | DA97: 81 | DB97: 90 | DC97: 96 | DD97: 99 | DE97: 103 | DF97: 106 | DG97: 106 | DH97: 104 | DI97: 102 | DJ97: 101 | DK97: 104 | DL97: 110 | DM97: 110 | DN97: 76 | DO97: 71 | DP97: 69 | DQ97: 68 | DR97: 66 | DS97: 62 | DT97: 71 | DU97: 76 | DV97: 79 | DW97: 145 | DX97: 151 | DY97: 253 | DZ97: 196 | EA97: 170 | EB97: 183 | EC97: 150 | ED97: 191 | EE97: 265 | EF97: 208 | EG97: 215
A98: Lübeck | B98: Osnabrück | C98: 1003000 | D98: 3404000 | E98: 249,830 | F98: 53.86547,10.68654 | G98: 52.27991,8.04717 | H98: 2.5 | I98: 2.0 | J98: 2.0 | K98: 2.5 | L98: 378,656 | M98: 291,560 | N98: 277,217 | O98: 7,995 | P98: 575 | Q98: 1,022 | R98: 3,931 | S98: 0 | T98: 0 | U98: 824 | V98: 154 | W98: 226 | X98: 127 | Y98: 160 | Z98: 201 | AA98: 277 | AB98: 184 | AC98: 163 | AD98: 196 | AE98: 248 | AF98: 182 | AG98: 173 | AH98: 217 | AI98: 298 | AJ98: 202 | AK98: 156 | AL98: 188 | AM98: 227 | AN98: 172 | AO98: 223 | AP98: 232 | AQ98: 253 | AR98: 291 | AS98: 245 | AT98: 229 | AU98: 238 | AV98: 260 | AW98: 236 | AX98: 238 | AY98: 262 | AZ98: 312 | BA98: 255 | BB98: 226 | BC98: 231 | BD98: 243 | BE98: 231 | BF98: 160 | BG98: 151 | BH98: 156 | BI98: 226 | BJ98: 224 | BK98: 226 | BL98: 142 | BM98: 254 | BN98: 291,210 | BO98: 0 | BP98: 0 | BQ98: 0 | BR98: 182 | BS98: 162 | BT98: 188 | BU98: 183 | BV98: 186 | BW98: 189 | BX98: 196 | BY98: 206 | BZ98: 188 | CA98: 178 | CB98: 176 | CC98: 166 | CD98: 158 | CE98: 160 | CF98: 163 | CG98: 165 | CH98: 167 | CI98: 162 | CJ98: 155 | CK98: 155 | CL98: 239 | CM98: 244 | CN98: 247 | CO98: 252 | CP98: 259 | CQ98: 270 | CR98: 238 | CS98: 228 | CT98: 221 | CU98: 108 | CV98: 93 | CW98: 96 | CX98: 95 | CY98: 93 | CZ98: 90 | DA98: 85 | DB98: 94 | DC98: 98 | DD98: 100 | DE98: 106 | DF98: 111 | DG98: 110 | DH98: 108 | DI98: 106 | DJ98: 105 | DK98: 108 | DL98: 113 | DM98: 113 | DN98: 73 | DO98: 72 | DP98: 71 | DQ98: 70 | DR98: 68 | DS98: 65 | DT98: 74 | DU98: 77 | DV98: 79 | DW98: 173 | DX98: 188 | DY98: 298 | DZ98: 247 | EA98: 202 | EB98: 217 | EC98: 187 | ED98: 238 | EE98: 312 | EF98: 255 | EG98: 262
A99: Lübeck | B99: Wilhelmshaven | C99: 1003000 | D99: 3405000 | E99: 174,410 | F99: 53.86547,10.68654 | G99: 53.53251,8.10603 | H99: 2.5 | I99: 2.0 | J99: 2.0 | K99: 2.5 | L99: 292,248 | M99: 279,080 | N99: 265,600 | O99: 7,309 | P99: 0 | Q99: 1,022 | R99: 3,853 | S99: 0 | T99: 545 | U99: 754 | V99: 149 | W99: 217 | X99: 123 | Y99: 157 | Z99: 194 | AA99: 254 | AB99: 178 | AC99: 160 | AD99: 193 | AE99: 239 | AF99: 177 | AG99: 168 | AH99: 209 | AI99: 283 | AJ99: 195 | AK99: 150 | AL99: 177 | AM99: 213 | AN99: 162 | AO99: 213 | AP99: 221 | AQ99: 237 | AR99: 268 | AS99: 231 | AT99: 220 | AU99: 231 | AV99: 251 | AW99: 227 | AX99: 228 | AY99: 252 | AZ99: 300 | BA99: 245 | BB99: 217 | BC99: 222 | BD99: 232 | BE99: 220 | BF99: 155 | BG99: 147 | BH99: 152 | BI99: 217 | BJ99: 214 | BK99: 217 | BL99: 140 | BM99: 225 | BN99: 282,190 | BO99: 0 | BP99: 0 | BQ99: 0 | BR99: 172 | BS99: 156 | BT99: 177 | BU99: 174 | BV99: 176 | BW99: 180 | BX99: 184 | BY99: 193 | BZ99: 176 | CA99: 167 | CB99: 165 | CC99: 158 | CD99: 152 | CE99: 153 | CF99: 156 | CG99: 157 | CH99: 158 | CI99: 154 | CJ99: 147 | CK99: 149 | CL99: 218 | CM99: 227 | CN99: 232 | CO99: 234 | CP99: 241 | CQ99: 251 | CR99: 218 | CS99: 207 | CT99: 200 | CU99: 107 | CV99: 94 | CW99: 96 | CX99: 95 | CY99: 93 | CZ99: 91 | DA99: 87 | DB99: 95 | DC99: 100 | DD99: 101 | DE99: 106 | DF99: 110 | DG99: 109 | DH99: 107 | DI99: 106 | DJ99: 106 | DK99: 109 | DL99: 113 | DM99: 113 | DN99: 77 | DO99: 74 | DP99: 72 | DQ99: 71 | DR99: 69 | DS99: 67 | DT99: 77 | DU99: 81 | DV99: 84 | DW99: 168 | DX99: 176 | DY99: 283 | DZ99: 232 | EA99: 195 | EB99: 209 | EC99: 180 | ED99: 228 | EE99: 300 | EF99: 245 | EG99: 252
A100: Lübeck | B100: Bremen | C100: 1003000 | D100: 4011000 | E100: 152,700 | F100: 53.86547,10.68654 | G100: 53.07924,8.80177 | H100: 2.5 | I100: 2.0 | J100: 2.0 | K100: 2.5 | L100: 773,717 | M100: 186,530 | N100: 175,020 | O100: 3,983 | P100: 867 | Q100: 1,022 | R100: 4,711 | S100: 0 | T100: 0 | U100: 929 | V100: 104 | W100: 148 | X100: 84 | Y100: 108 | Z100: 137 | AA100: 187 | AB100: 125 | AC100: 109 | AD100: 132 | AE100: 166 | AF100: 123 | AG100: 112 | AH100: 142 | AI100: 204 | AJ100: 137 | AK100: 103 | AL100: 122 | AM100: 149 | AN100: 112 | AO100: 144 | AP100: 152 | AQ100: 169 | AR100: 198 | AS100: 163 | AT100: 150 | AU100: 159 | AV100: 174 | AW100: 156 | AX100: 154 | AY100: 170 | AZ100: 214 | BA100: 170 | BB100: 147 | BC100: 152 | BD100: 160 | BE100: 150 | BF100: 106 | BG100: 101 | BH100: 107 | BI100: 148 | BJ100: 145 | BK100: 148 | BL100: 97 | BM100: 165 | BN100: 180,940 | BO100: 0 | BP100: 0 | BQ100: 0 | BR100: 121 | BS100: 107 | BT100: 122 | BU100: 123 | BV100: 125 | BW100: 127 | BX100: 129 | BY100: 137 | BZ100: 126 | CA100: 119 | CB100: 116 | CC100: 106 | CD100: 105 | CE100: 109 | CF100: 108 | CG100: 109 | CH100: 110 | CI100: 107 | CJ100: 102 | CK100: 102 | CL100: 147 | CM100: 165 | CN100: 171 | CO100: 169 | CP100: 171 | CQ100: 177 | CR100: 161 | CS100: 150 | CT100: 144 | CU100: 101 | CV100: 89 | CW100: 88 | CX100: 87 | CY100: 86 | CZ100: 85 | DA100: 80 | DB100: 87 | DC100: 92 | DD100: 94 | DE100: 103 | DF100: 104 | DG100: 100 | DH100: 100 | DI100: 100 | DJ100: 100 | DK100: 105 | DL100: 110 | DM100: 107 | DN100: 74 | DO100: 66 | DP100: 64 | DQ100: 64 | DR100: 64 | DS100: 61 | DT100: 70 | DU100: 75 | DV100: 76 | DW100: 112 | DX100: 126 | DY100: 204 | DZ100: 171 | EA100: 137 | EB100: 142 | EC100: 124 | ED100: 154 | EE100: 214 | EF100: 170 | EG100: 170
A101: Lübeck | B101: Bremerhaven | C101: 1003000 | D101: 4012000 | E101: 143,710 | F101: 53.86547,10.68654 | G101: 53.53961,8.58086 | H101: 2.5 | I101: 2.0 | J101: 2.0 | K101: 2.5 | L101: 330,278 | M101: 237,980 | N101: 227,745 | O101: 533 | P101: 771 | Q101: 1,022 | R101: 6,911 | S101: 0 | T101: 0 | U101: 994 | V101: 128 | W101: 187 | X101: 105 | Y101: 133 | Z101: 165 | AA101: 223 | AB101: 152 | AC101: 135 | AD101: 162 | AE101: 204 | AF101: 150 | AG101: 135 | AH101: 164 | AI101: 218 | AJ101: 155 | AK101: 127 | AL101: 149 | AM101: 183 | AN101: 137 | AO101: 183 | AP101: 191 | AQ101: 206 | AR101: 236 | AS101: 201 | AT101: 190 | AU101: 198 | AV101: 215 | AW101: 196 | AX101: 191 | AY101: 204 | AZ101: 234 | BA101: 202 | BB101: 186 | BC101: 191 | BD101: 200 | BE101: 190 | BF101: 132 | BG101: 126 | BH101: 131 | BI101: 187 | BJ101: 185 | BK101: 187 | BL101: 121 | BM101: 190 | BN101: 237,660 | BO101: 0 | BP101: 0 | BQ101: 0 | BR101: 151 | BS101: 137 | BT101: 156 | BU101: 153 | BV101: 155 | BW101: 158 | BX101: 157 | BY101: 165 | BZ101: 152 | CA101: 146 | CB101: 144 | CC101: 137 | CD101: 136 | CE101: 137 | CF101: 136 | CG101: 136 | CH101: 138 | CI101: 133 | CJ101: 129 | CK101: 128 | CL101: 189 | CM101: 198 | CN101: 206 | CO101: 205 | CP101: 206 | CQ101: 215 | CR101: 195 | CS101: 184 | CT101: 177 | CU101: 106 | CV101: 93 | CW101: 95 | CX101: 94 | CY101: 92 | CZ101: 92 | DA101: 88 | DB101: 96 | DC101: 99 | DD101: 101 | DE101: 106 | DF101: 106 | DG101: 106 | DH101: 106 | DI101: 106 | DJ101: 105 | DK101: 109 | DL101: 112 | DM101: 113 | DN101: 77 | DO101: 73 | DP101: 70 | DQ101: 71 | DR101: 70 | DS101: 67 | DT101: 74 | DU101: 79 | DV101: 82 | DW101: 135 | DX101: 155 | DY101: 223 | DZ101: 206 | EA101: 155 | EB101: 165 | EC101: 152 | ED101: 191 | EE101: 236 | EF101: 202 | EG101: 206
A102: Lübeck | B102: Köln | C102: 1003000 | D102: 5315000 | E102: 412,760 | F102: 53.86547,10.68654 | G102: 50.93753,6.96028 | H102: 2.5 | I102: 2.0 | J102: 2.0 | K102: 2.5 | L102: 1,276,835 | M102: 485,810 | N102: 473,301 | O102: 3,840 | P102: 2,863 | Q102: 1,022 | R102: 3,853 | S102: 0 | T102: 0 | U102: 930 | V102: 254 | W102: 374 | X102: 211 | Y102: 270 | Z102: 329 | AA102: 438 | AB102: 307 | AC102: 273 | AD102: 324 | AE102: 407 | AF102: 303 | AG102: 285 | AH102: 349 | AI102: 465 | AJ102: 327 | AK102: 259 | AL102: 307 | AM102: 371 | AN102: 281 | AO102: 369 | AP102: 379 | AQ102: 404 | AR102: 458 | AS102: 395 | AT102: 377 | AU102: 391 | AV102: 425 | AW102: 388 | AX102: 387 | AY102: 417 | AZ102: 488 | BA102: 409 | BB102: 373 | BC102: 380 | BD102: 398 | BE102: 379 | BF102: 266 | BG102: 249 | BH102: 259 | BI102: 373 | BJ102: 370 | BK102: 374 | BL102: 234 | BM102: 430 | BN102: 489,580 | BO102: 0 | BP102: 0 | BQ102: 0 | BR102: 303 | BS102: 275 | BT102: 325 | BU102: 316 | BV102: 314 | BW102: 319 | BX102: 334 | BY102: 339 | BZ102: 313 | CA102: 300 | CB102: 297 | CC102: 286 | CD102: 274 | CE102: 274 | CF102: 276 | CG102: 282 | CH102: 290 | CI102: 274 | CJ102: 266 | CK102: 267 | CL102: 433 | CM102: 420 | CN102: 421 | CO102: 432 | CP102: 462 | CQ102: 436 | CR102: 395 | CS102: 374 | CT102: 368 | CU102: 106 | CV102: 91 | CW102: 93 | CX102: 94 | CY102: 92 | CZ102: 88 | DA102: 87 | DB102: 94 | DC102: 98 | DD102: 99 | DE102: 103 | DF102: 107 | DG102: 108 | DH102: 107 | DI102: 105 | DJ102: 102 | DK102: 108 | DL102: 111 | DM102: 111 | DN102: 68 | DO102: 70 | DP102: 70 | DQ102: 68 | DR102: 64 | DS102: 68 | DT102: 75 | DU102: 79 | DV102: 80 | DW102: 285 | DX102: 314 | DY102: 465 | DZ102: 421 | EA102: 327 | EB102: 349 | EC102: 311 | ED102: 387 | EE102: 488 | EF102: 409 | EG102: 417
A103: Lübeck | B103: Bielefeld | C103: 1003000 | D103: 5711000 | E103: 250,330 | F103: 53.86547,10.68654 | G103: 52.0301,8.53274 | H103: 2.5 | I103: 2.0 | J103: 2.0 | K103: 2.5 | L103: 549,343 | M103: 308,230 | N103: 290,864 | O103: 322 | P103: 373 | Q103: 10,585 | R103: 5,184 | S103: 0 | T103: 153 | U103: 754 | V103: 168 | W103: 241 | X103: 142 | Y103: 174 | Z103: 212 | AA103: 278 | AB103: 197 | AC103: 179 | AD103: 212 | AE103: 260 | AF103: 197 | AG103: 183 | AH103: 223 | AI103: 295 | AJ103: 212 | AK103: 171 | AL103: 200 | AM103: 241 | AN103: 187 | AO103: 238 | AP103: 245 | AQ103: 263 | AR103: 297 | AS103: 258 | AT103: 244 | AU103: 255 | AV103: 273 | AW103: 251 | AX103: 248 | AY103: 266 | AZ103: 310 | BA103: 262 | BB103: 241 | BC103: 247 | BD103: 257 | BE103: 246 | BF103: 175 | BG103: 164 | BH103: 171 | BI103: 241 | BJ103: 239 | BK103: 242 | BL103: 157 | BM103: 282 | BN103: 308,120 | BO103: 0 | BP103: 0 | BQ103: 0 | BR103: 195 | BS103: 176 | BT103: 201 | BU103: 197 | BV103: 201 | BW103: 205 | BX103: 214 | BY103: 221 | BZ103: 204 | CA103: 197 | CB103: 195 | CC103: 178 | CD103: 173 | CE103: 176 | CF103: 179 | CG103: 181 | CH103: 187 | CI103: 178 | CJ103: 171 | CK103: 173 | CL103: 251 | CM103: 252 | CN103: 259 | CO103: 263 | CP103: 274 | CQ103: 289 | CR103: 255 | CS103: 243 | CT103: 238 | CU103: 105 | CV103: 92 | CW103: 94 | CX103: 92 | CY103: 90 | CZ103: 87 | DA103: 84 | DB103: 91 | DC103: 94 | DD103: 95 | DE103: 104 | DF103: 107 | DG103: 105 | DH103: 104 | DI103: 102 | DJ103: 99 | DK103: 104 | DL103: 108 | DM103: 107 | DN103: 74 | DO103: 73 | DP103: 72 | DQ103: 70 | DR103: 68 | DS103: 64 | DT103: 73 | DU103: 76 | DV103: 78 | DW103: 183 | DX103: 204 | DY103: 295 | DZ103: 259 | EA103: 212 | EB103: 223 | EC103: 205 | ED103: 248 | EE103: 310 | EF103: 262 | EG103: 266
A104: Lübeck | B104: Frankfurt am Main | C104: 1003000 | D104: 6412000 | E104: 439,820 | F104: 53.86547,10.68654 | G104: 50.11092,8.68213 | H104: 2.5 | I104: 2.0 | J104: 2.0 | K104: 2.5 | L104: 948,941 | M104: 553,540 | N104: 543,217 | O104: 2,265 | P104: 0 | Q104: 2,907 | R104: 4,134 | S104: 0 | T104: 268 | U104: 754 | V104: 291 | W104: 426 | X104: 238 | Y104: 300 | Z104: 368 | AA104: 488 | AB104: 340 | AC104: 302 | AD104: 356 | AE104: 444 | AF104: 331 | AG104: 309 | AH104: 373 | AI104: 478 | AJ104: 349 | AK104: 294 | AL104: 352 | AM104: 424 | AN104: 320 | AO104: 421 | AP104: 430 | AQ104: 456 | AR104: 516 | AS104: 448 | AT104: 428 | AU104: 442 | AV104: 471 | AW104: 438 | AX104: 432 | AY104: 454 | AZ104: 505 | BA104: 448 | BB104: 426 | BC104: 435 | BD104: 454 | BE104: 432 | BF104: 301 | BG104: 282 | BH104: 297 | BI104: 426 | BJ104: 421 | BK104: 426 | BL104: 278 | BM104: 441 | BN104: 569,700 | BO104: 0 | BP104: 0 | BQ104: 0 | BR104: 344 | BS104: 312 | BT104: 351 | BU104: 342 | BV104: 346 | BW104: 351 | BX104: 359 | BY104: 364 | BZ104: 356 | CA104: 350 | CB104: 353 | CC104: 317 | CD104: 301 | CE104: 304 | CF104: 308 | CG104: 313 | CH104: 314 | CI104: 308 | CJ104: 305 | CK104: 316 | CL104: 447 | CM104: 449 | CN104: 453 | CO104: 459 | CP104: 480 | CQ104: 468 | CR104: 449 | CS104: 434 | CT104: 428 | CU104: 106 | CV104: 95 | CW104: 97 | CX104: 96 | CY104: 95 | CZ104: 92 | DA104: 91 | DB104: 93 | DC104: 95 | DD104: 94 | DE104: 105 | DF104: 110 | DG104: 109 | DH104: 108 | DI104: 106 | DJ104: 106 | DK104: 108 | DL104: 109 | DM104: 105 | DN104: 74 | DO104: 74 | DP104: 73 | DQ104: 72 | DR104: 69 | DS104: 71 | DT104: 74 | DU104: 76 | DV104: 77 | DW104: 309 | DX104: 356 | DY104: 488 | DZ104: 453 | EA104: 349 | EB104: 373 | EC104: 353 | ED104: 432 | EE104: 516 | EF104: 448 | EG104: 456
A105: Lübeck | B105: Stuttgart | C105: 1003000 | D105: 8111000 | E105: 575,830 | F105: 53.86547,10.68654 | G105: 48.77582,9.18299 | H105: 2.5 | I105: 2.0 | J105: 2.0 | K105: 2.5 | L105: 839,991 | M105: 716,960 | N105: 683,510 | O105: 26,151 | P105: 985 | Q105: 1,022 | R105: 4,423 | S105: 0 | T105: 0 | U105: 869 | V105: 376 | W105: 551 | X105: 308 | Y105: 393 | Z105: 482 | AA105: 637 | AB105: 441 | AC105: 388 | AD105: 455 | AE105: 571 | AF105: 425 | AG105: 394 | AH105: 475 | AI105: 611 | AJ105: 446 | AK105: 375 | AL105: 444 | AM105: 531 | AN105: 405 | AO105: 545 | AP105: 566 | AQ105: 601 | AR105: 673 | AS105: 588 | AT105: 555 | AU105: 572 | AV105: 608 | AW105: 568 | AX105: 562 | AY105: 590 | AZ105: 654 | BA105: 583 | BB105: 550 | BC105: 558 | BD105: 577 | BE105: 556 | BF105: 389 | BG105: 370 | BH105: 386 | BI105: 551 | BJ105: 547 | BK105: 552 | BL105: 432 | BM105: 550 | BN105: 913,720 | BO105: 0 | BP105: 0 | BQ105: 0 | BR105: 443 | BS105: 398 | BT105: 452 | BU105: 444 | BV105: 446 | BW105: 451 | BX105: 464 | BY105: 458 | BZ105: 463 | CA105: 457 | CB105: 467 | CC105: 400 | CD105: 389 | CE105: 394 | CF105: 397 | CG105: 402 | CH105: 397 | CI105: 405 | CJ105: 405 | CK105: 426 | CL105: 585 | CM105: 581 | CN105: 598 | CO105: 611 | CP105: 604 | CQ105: 589 | CR105: 566 | CS105: 553 | CT105: 550 | CU105: 108 | CV105: 95 | CW105: 97 | CX105: 96 | CY105: 95 | CZ105: 93 | DA105: 94 | DB105: 93 | DC105: 94 | DD105: 92 | DE105: 108 | DF105: 111 | DG105: 109 | DH105: 108 | DI105: 107 | DJ105: 108 | DK105: 106 | DL105: 106 | DM105: 101 | DN105: 73 | DO105: 74 | DP105: 72 | DQ105: 70 | DR105: 71 | DS105: 73 | DT105: 76 | DU105: 78 | DV105: 78 | DW105: 394 | DX105: 463 | DY105: 637 | DZ105: 598 | EA105: 446 | EB105: 482 | EC105: 450 | ED105: 566 | EE105: 673 | EF105: 588 | EG105: 601
A106: Lübeck | B106: Mannheim | C106: 1003000 | D106: 8222000 | E106: 510,740 | F106: 53.86547,10.68654 | G106: 49.48695,8.46564 | H106: 2.5 | I106: 2.0 | J106: 2.0 | K106: 2.5 | L106: 522,033 | M106: 626,080 | N106: 611,224 | O106: 6,534 | P106: 1,601 | Q106: 1,022 | R106: 3,853 | S106: 0 | T106: 1,040 | U106: 805 | V106: 326 | W106: 481 | X106: 266 | Y106: 341 | Z106: 414 | AA106: 539 | AB106: 380 | AC106: 341 | AD106: 399 | AE106: 492 | AF106: 370 | AG106: 353 | AH106: 425 | AI106: 548 | AJ106: 399 | AK106: 328 | AL106: 389 | AM106: 465 | AN106: 355 | AO106: 476 | AP106: 486 | AQ106: 513 | AR106: 572 | AS106: 504 | AT106: 484 | AU106: 497 | AV106: 524 | AW106: 493 | AX106: 492 | AY106: 515 | AZ106: 580 | BA106: 509 | BB106: 481 | BC106: 488 | BD106: 504 | BE106: 486 | BF106: 337 | BG106: 318 | BH106: 333 | BI106: 481 | BJ106: 477 | BK106: 481 | BL106: 299 | BM106: 522 | BN106: 625,530 | BO106: 0 | BP106: 0 | BQ106: 0 | BR106: 383 | BS106: 348 | BT106: 391 | BU106: 381 | BV106: 385 | BW106: 388 | BX106: 402 | BY106: 399 | BZ106: 394 | CA106: 389 | CB106: 397 | CC106: 355 | CD106: 337 | CE106: 341 | CF106: 344 | CG106: 350 | CH106: 347 | CI106: 342 | CJ106: 340 | CK106: 355 | CL106: 497 | CM106: 495 | CN106: 503 | CO106: 511 | CP106: 530 | CQ106: 516 | CR106: 502 | CS106: 488 | CT106: 482 | CU106: 108 | CV106: 97 | CW106: 99 | CX106: 98 | CY106: 97 | CZ106: 94 | DA106: 95 | DB106: 96 | DC106: 97 | DD106: 95 | DE106: 107 | DF106: 112 | DG106: 111 | DH106: 110 | DI106: 108 | DJ106: 109 | DK106: 111 | DL106: 111 | DM106: 106 | DN106: 76 | DO106: 76 | DP106: 75 | DQ106: 74 | DR106: 71 | DS106: 73 | DT106: 75 | DU106: 78 | DV106: 78 | DW106: 353 | DX106: 394 | DY106: 548 | DZ106: 503 | EA106: 399 | EB106: 425 | EC106: 394 | ED106: 492 | EE106: 580 | EF106: 509 | EG106: 515
A107: Lübeck | B107: München | C107: 1003000 | D107: 9162000 | E107: 640,560 | F107: 53.86547,10.68654 | G107: 48.1352,11.58211 | H107: 2.5 | I107: 2.0 | J107: 2.0 | K107: 2.5 | L107: 1,666,634 | M107: 829,550 | N107: 782,882 | O107: 33,698 | P107: 6,920 | Q107: 1,022 | R107: 1,575 | S107: 1,202 | T107: 708 | U107: 1,542 | V107: 417 | W107: 632 | X107: 341 | Y107: 427 | Z107: 507 | AA107: 656 | AB107: 470 | AC107: 433 | AD107: 504 | AE107: 628 | AF107: 468 | AG107: 439 | AH107: 520 | AI107: 644 | AJ107: 480 | AK107: 416 | AL107: 487 | AM107: 592 | AN107: 442 | AO107: 627 | AP107: 640 | AQ107: 659 | AR107: 700 | AS107: 653 | AT107: 637 | AU107: 650 | AV107: 678 | AW107: 646 | AX107: 644 | AY107: 664 | AZ107: 701 | BA107: 656 | BB107: 632 | BC107: 640 | BD107: 656 | BE107: 637 | BF107: 439 | BG107: 422 | BH107: 433 | BI107: 635 | BJ107: 632 | BK107: 635 | BL107: 414 | BM107: 507 | BN107: 887,110 | BO107: 0 | BP107: 0 | BQ107: 0 | BR107: 474 | BS107: 438 | BT107: 478 | BU107: 476 | BV107: 481 | BW107: 488 | BX107: 494 | BY107: 469 | BZ107: 483 | CA107: 487 | CB107: 495 | CC107: 426 | CD107: 420 | CE107: 422 | CF107: 427 | CG107: 434 | CH107: 416 | CI107: 427 | CJ107: 435 | CK107: 451 | CL107: 617 | CM107: 635 | CN107: 651 | CO107: 650 | CP107: 620 | CQ107: 608 | CR107: 614 | CS107: 611 | CT107: 603 | CU107: 117 | CV107: 104 | CW107: 105 | CX107: 103 | CY107: 102 | CZ107: 101 | DA107: 106 | DB107: 103 | DC107: 102 | DD107: 101 | DE107: 117 | DF107: 118 | DG107: 118 | DH107: 116 | DI107: 115 | DJ107: 120 | DK107: 117 | DL107: 114 | DM107: 110 | DN107: 81 | DO107: 78 | DP107: 76 | DQ107: 77 | DR107: 80 | DS107: 82 | DT107: 81 | DU107: 81 | DV107: 82 | DW107: 439 | DX107: 483 | DY107: 656 | DZ107: 651 | EA107: 480 | EB107: 520 | EC107: 499 | ED107: 644 | EE107: 701 | EF107: 656 | EG107: 664
A108: Lübeck | B108: Nürnberg | C108: 1003000 | D108: 9564000 | E108: 491,800 | F108: 53.86547,10.68654 | G108: 49.45188,11.07665 | H108: 2.5 | I108: 2.0 | J108: 2.0 | K108: 2.5 | L108: 726,228 | M108: 668,240 | N108: 658,549 | O108: 984 | P108: 0 | Q108: 1,022 | R108: 6,391 | S108: 0 | T108: 35 | U108: 1,261 | V108: 348 | W108: 510 | X108: 288 | Y108: 358 | Z108: 430 | AA108: 550 | AB108: 394 | AC108: 361 | AD108: 420 | AE108: 515 | AF108: 392 | AG108: 371 | AH108: 444 | AI108: 560 | AJ108: 414 | AK108: 352 | AL108: 417 | AM108: 497 | AN108: 380 | AO108: 506 | AP108: 515 | AQ108: 536 | AR108: 582 | AS108: 528 | AT108: 513 | AU108: 525 | AV108: 549 | AW108: 521 | AX108: 521 | AY108: 543 | AZ108: 592 | BA108: 536 | BB108: 510 | BC108: 516 | BD108: 531 | BE108: 514 | BF108: 361 | BG108: 341 | BH108: 357 | BI108: 510 | BJ108: 507 | BK108: 511 | BL108: 333 | BM108: 396 | BN108: 707,940 | BO108: 0 | BP108: 0 | BQ108: 0 | BR108: 403 | BS108: 369 | BT108: 402 | BU108: 405 | BV108: 408 | BW108: 410 | BX108: 412 | BY108: 402 | BZ108: 409 | CA108: 410 | CB108: 415 | CC108: 360 | CD108: 360 | CE108: 364 | CF108: 363 | CG108: 365 | CH108: 358 | CI108: 364 | CJ108: 372 | CK108: 382 | CL108: 515 | CM108: 527 | CN108: 537 | CO108: 533 | CP108: 531 | CQ108: 515 | CR108: 519 | CS108: 514 | CT108: 503 | CU108: 109 | CV108: 102 | CW108: 100 | CX108: 99 | CY108: 100 | CZ108: 99 | DA108: 102 | DB108: 100 | DC108: 100 | DD108: 98 | DE108: 114 | DF108: 111 | DG108: 110 | DH108: 113 | DI108: 112 | DJ108: 114 | DK108: 112 | DL108: 110 | DM108: 107 | DN108: 79 | DO108: 76 | DP108: 75 | DQ108: 77 | DR108: 77 | DS108: 79 | DT108: 79 | DU108: 79 | DV108: 81 | DW108: 371 | DX108: 409 | DY108: 560 | DZ108: 537 | EA108: 414 | EB108: 444 | EC108: 422 | ED108: 521 | EE108: 592 | EF108: 536 | EG108: 543
A109: Lübeck | B109: Berlin | C109: 1003000 | D109: 11000000 | E109: 235,410 | F109: 53.86547,10.68654 | G109: 52.52001,13.40495 | H109: 2.5 | I109: 2.0 | J109: 2.0 | K109: 2.5 | L109: 3,736,284 | M109: 283,800 | N109: 235,985 | O109: 37,268 | P109: 7,887 | Q109: 1,022 | R109: 172 | S109: 0 | T109: 708 | U109: 754 | V109: 161 | W109: 226 | X109: 132 | Y109: 164 | Z109: 205 | AA109: 275 | AB109: 187 | AC109: 167 | AD109: 200 | AE109: 254 | AF109: 184 | AG109: 171 | AH109: 208 | AI109: 258 | AJ109: 191 | AK109: 158 | AL109: 187 | AM109: 232 | AN109: 171 | AO109: 218 | AP109: 232 | AQ109: 253 | AR109: 289 | AS109: 247 | AT109: 230 | AU109: 244 | AV109: 269 | AW109: 239 | AX109: 229 | AY109: 244 | AZ109: 272 | BA109: 240 | BB109: 224 | BC109: 233 | BD109: 251 | BE109: 230 | BF109: 164 | BG109: 157 | BH109: 167 | BI109: 227 | BJ109: 223 | BK109: 228 | BL109: 150 | BM109: 182 | BN109: 310,690 | BO109: 0 | BP109: 0 | BQ109: 0 | BR109: 183 | BS109: 184 | BT109: 193 | BU109: 192 | BV109: 190 | BW109: 192 | BX109: 192 | BY109: 192 | BZ109: 186 | CA109: 183 | CB109: 182 | CC109: 174 | CD109: 166 | CE109: 165 | CF109: 165 | CG109: 167 | CH109: 165 | CI109: 161 | CJ109: 160 | CK109: 164 | CL109: 255 | CM109: 248 | CN109: 247 | CO109: 249 | CP109: 247 | CQ109: 246 | CR109: 241 | CS109: 233 | CT109: 225 | CU109: 93 | CV109: 89 | CW109: 89 | CX109: 90 | CY109: 89 | CZ109: 90 | DA109: 94 | DB109: 93 | DC109: 95 | DD109: 94 | DE109: 98 | DF109: 102 | DG109: 104 | DH109: 103 | DI109: 102 | DJ109: 113 | DK109: 116 | DL109: 116 | DM109: 104 | DN109: 67 | DO109: 69 | DP109: 69 | DQ109: 69 | DR109: 69 | DS109: 76 | DT109: 77 | DU109: 80 | DV109: 76 | DW109: 171 | DX109: 190 | DY109: 275 | DZ109: 247 | EA109: 191 | EB109: 208 | EC109: 190 | ED109: 232 | EE109: 289 | EF109: 247 | EG109: 253
A110: Lübeck | B110: Brandenburg an der Havel | C110: 1003000 | D110: 12051000 | E110: 203,430 | F110: 53.86547,10.68654 | G110: 52.41256,12.53164 | H110: 2.5 | I110: 2.0 | J110: 2.0 | K110: 2.5 | L110: 287,827 | M110: 311,010 | N110: 259,485 | O110: 42,067 | P110: 6,786 | Q110: 1,022 | R110: 172 | S110: 0 | T110: 719 | U110: 754 | V110: 172 | W110: 242 | X110: 144 | Y110: 174 | Z110: 208 | AA110: 268 | AB110: 191 | AC110: 179 | AD110: 211 | AE110: 258 | AF110: 194 | AG110: 182 | AH110: 218 | AI110: 262 | AJ110: 199 | AK110: 172 | AL110: 202 | AM110: 243 | AN110: 183 | AO110: 237 | AP110: 248 | AQ110: 262 | AR110: 285 | AS110: 257 | AT110: 247 | AU110: 258 | AV110: 274 | AW110: 253 | AX110: 247 | AY110: 258 | AZ110: 277 | BA110: 254 | BB110: 243 | BC110: 250 | BD110: 262 | BE110: 246 | BF110: 176 | BG110: 169 | BH110: 177 | BI110: 245 | BJ110: 242 | BK110: 245 | BL110: 164 | BM110: 183 | BN110: 327,840 | BO110: 0 | BP110: 0 | BQ110: 0 | BR110: 193 | BS110: 187 | BT110: 198 | BU110: 197 | BV110: 199 | BW110: 202 | BX110: 205 | BY110: 205 | BZ110: 195 | CA110: 194 | CB110: 192 | CC110: 180 | CD110: 173 | CE110: 176 | CF110: 177 | CG110: 179 | CH110: 178 | CI110: 173 | CJ110: 173 | CK110: 175 | CL110: 243 | CM110: 251 | CN110: 255 | CO110: 254 | CP110: 256 | CQ110: 259 | CR110: 249 | CS110: 243 | CT110: 231 | CU110: 97 | CV110: 94 | CW110: 95 | CX110: 94 | CY110: 92 | CZ110: 94 | DA110: 95 | DB110: 102 | DC110: 100 | DD110: 97 | DE110: 104 | DF110: 108 | DG110: 106 | DH110: 105 | DI110: 104 | DJ110: 114 | DK110: 117 | DL110: 117 | DM110: 107 | DN110: 77 | DO110: 74 | DP110: 73 | DQ110: 73 | DR110: 73 | DS110: 78 | DT110: 82 | DU110: 84 | DV110: 81 | DW110: 182 | DX110: 199 | DY110: 268 | DZ110: 255 | EA110: 199 | EB110: 218 | EC110: 206 | ED110: 248 | EE110: 285 | EF110: 257 | EG110: 262
A111: Lübeck | B111: Potsdam | C111: 1003000 | D111: 12054000 | E111: 228,620 | F111: 53.86547,10.68654 | G111: 52.39053,13.06448 | H111: 2.5 | I111: 2.0 | J111: 2.0 | K111: 2.5 | L111: 383,998 | M111: 278,780 | N111: 224,660 | O111: 44,651 | P111: 6,786 | Q111: 1,044 | R111: 172 | S111: 0 | T111: 708 | U111: 754 | V111: 159 | W111: 221 | X111: 132 | Y111: 167 | Z111: 207 | AA111: 275 | AB111: 188 | AC111: 166 | AD111: 199 | AE111: 252 | AF111: 184 | AG111: 170 | AH111: 207 | AI111: 253 | AJ111: 188 | AK111: 157 | AL111: 185 | AM111: 227 | AN111: 169 | AO111: 215 | AP111: 233 | AQ111: 256 | AR111: 290 | AS111: 246 | AT111: 227 | AU111: 242 | AV111: 267 | AW111: 237 | AX111: 227 | AY111: 242 | AZ111: 267 | BA111: 237 | BB111: 221 | BC111: 230 | BD111: 244 | BE111: 226 | BF111: 161 | BG111: 155 | BH111: 163 | BI111: 223 | BJ111: 220 | BK111: 224 | BL111: 149 | BM111: 172 | BN111: 305,620 | BO111: 0 | BP111: 0 | BQ111: 0 | BR111: 181 | BS111: 175 | BT111: 187 | BU111: 187 | BV111: 186 | BW111: 190 | BX111: 193 | BY111: 195 | BZ111: 183 | CA111: 180 | CB111: 178 | CC111: 172 | CD111: 163 | CE111: 162 | CF111: 164 | CG111: 165 | CH111: 166 | CI111: 160 | CJ111: 160 | CK111: 162 | CL111: 241 | CM111: 240 | CN111: 239 | CO111: 241 | CP111: 241 | CQ111: 245 | CR111: 231 | CS111: 224 | CT111: 213 | CU111: 97 | CV111: 90 | CW111: 90 | CX111: 90 | CY111: 88 | CZ111: 89 | DA111: 91 | DB111: 93 | DC111: 97 | DD111: 94 | DE111: 97 | DF111: 103 | DG111: 103 | DH111: 102 | DI111: 101 | DJ111: 110 | DK111: 114 | DL111: 115 | DM111: 104 | DN111: 70 | DO111: 70 | DP111: 70 | DQ111: 70 | DR111: 70 | DS111: 75 | DT111: 79 | DU111: 82 | DV111: 79 | DW111: 170 | DX111: 186 | DY111: 275 | DZ111: 239 | EA111: 188 | EB111: 207 | EC111: 188 | ED111: 233 | EE111: 290 | EF111: 246 | EG111: 256
A112: Lübeck | B112: Rostock | C112: 1003000 | D112: 13003000 | E112: 96,060 | F112: 53.86547,10.68654 | G112: 54.09244,12.09916 | H112: 2.5 | I112: 2.0 | J112: 2.0 | K112: 2.5 | L112: 422,264 | M112: 119,910 | N112: 97,063 | O112: 9,620 | P112: 778 | Q112: 8,472 | R112: 1,100 | S112: 1,706 | T112: 0 | U112: 1,170 | V112: 68 | W112: 98 | X112: 54 | Y112: 71 | Z112: 87 | AA112: 119 | AB112: 80 | AC112: 71 | AD112: 84 | AE112: 109 | AF112: 78 | AG112: 70 | AH112: 84 | AI112: 106 | AJ112: 78 | AK112: 65 | AL112: 77 | AM112: 95 | AN112: 71 | AO112: 95 | AP112: 103 | AQ112: 111 | AR112: 126 | AS112: 109 | AT112: 101 | AU112: 108 | AV112: 119 | AW112: 106 | AX112: 102 | AY112: 109 | AZ112: 121 | BA112: 107 | BB112: 99 | BC112: 103 | BD112: 110 | BE112: 102 | BF112: 70 | BG112: 68 | BH112: 70 | BI112: 99 | BJ112: 98 | BK112: 100 | BL112: 64 | BM112: 72 | BN112: 123,250 | BO112: 0 | BP112: 0 | BQ112: 0 | BR112: 81 | BS112: 77 | BT112: 86 | BU112: 83 | BV112: 82 | BW112: 82 | BX112: 82 | BY112: 82 | BZ112: 80 | CA112: 78 | CB112: 76 | CC112: 82 | CD112: 74 | CE112: 72 | CF112: 70 | CG112: 71 | CH112: 71 | CI112: 70 | CJ112: 69 | CK112: 68 | CL112: 96 | CM112: 105 | CN112: 103 | CO112: 105 | CP112: 104 | CQ112: 101 | CR112: 101 | CS112: 98 | CT112: 88 | CU112: 94 | CV112: 86 | CW112: 90 | CX112: 91 | CY112: 90 | CZ112: 90 | DA112: 90 | DB112: 93 | DC112: 95 | DD112: 98 | DE112: 90 | DF112: 101 | DG112: 103 | DH112: 106 | DI112: 104 | DJ112: 105 | DK112: 106 | DL112: 108 | DM112: 109 | DN112: 77 | DO112: 71 | DP112: 72 | DQ112: 71 | DR112: 72 | DS112: 74 | DT112: 73 | DU112: 76 | DV112: 85 | DW112: 71 | DX112: 82 | DY112: 119 | DZ112: 103 | EA112: 80 | EB112: 87 | EC112: 78 | ED112: 103 | EE112: 126 | EF112: 109 | EG112: 111
A113: Lübeck | B113: Schwerin | C113: 1003000 | D113: 13004000 | E113: 55,290 | F113: 53.86547,10.68654 | G113: 53.62148,11.41647 | H113: 2.5 | I113: 2.0 | J113: 2.0 | K113: 2.5 | L113: 313,053 | M113: 71,760 | N113: 31,457 | O113: 81 | P113: 26,870 | Q113: 11,037 | R113: 1,357 | S113: 0 | T113: 0 | U113: 959 | V113: 60 | W113: 69 | X113: 49 | Y113: 65 | Z113: 81 | AA113: 109 | AB113: 75 | AC113: 65 | AD113: 80 | AE113: 105 | AF113: 75 | AG113: 65 | AH113: 80 | AI113: 105 | AJ113: 75 | AK113: 59 | AL113: 71 | AM113: 88 | AN113: 66 | AO113: 63 | AP113: 74 | AQ113: 87 | AR113: 111 | AS113: 83 | AT113: 74 | AU113: 86 | AV113: 107 | AW113: 83 | AX113: 74 | AY113: 86 | AZ113: 108 | BA113: 83 | BB113: 69 | BC113: 77 | BD113: 91 | BE113: 75 | BF113: 62 | BG113: 57 | BH113: 63 | BI113: 71 | BJ113: 67 | BK113: 72 | BL113: 55 | BM113: 63 | BN113: 74,960 | BO113: 0 | BP113: 0 | BQ113: 0 | BR113: 75 | BS113: 67 | BT113: 72 | BU113: 76 | BV113: 76 | BW113: 77 | BX113: 78 | BY113: 79 | BZ113: 76 | CA113: 73 | CB113: 69 | CC113: 72 | CD113: 69 | CE113: 69 | CF113: 66 | CG113: 68 | CH113: 68 | CI113: 67 | CJ113: 66 | CK113: 64 | CL113: 77 | CM113: 90 | CN113: 91 | CO113: 92 | CP113: 92 | CQ113: 91 | CR113: 90 | CS113: 87 | CT113: 77 | CU113: 72 | CV113: 70 | CW113: 66 | CX113: 65 | CY113: 65 | CZ113: 64 | DA113: 64 | DB113: 66 | DC113: 68 | DD113: 72 | DE113: 70 | DF113: 73 | DG113: 73 | DH113: 75 | DI113: 73 | DJ113: 74 | DK113: 74 | DL113: 76 | DM113: 78 | DN113: 65 | DO113: 56 | DP113: 55 | DQ113: 54 | DR113: 54 | DS113: 55 | DT113: 55 | DU113: 58 | DV113: 65 | DW113: 65 | DX113: 76 | DY113: 109 | DZ113: 91 | EA113: 75 | EB113: 81 | EC113: 71 | ED113: 74 | EE113: 111 | EF113: 83 | EG113: 87
A114: Lübeck | B114: Neubrandenburg | C114: 1003000 | D114: 13071107 | E114: 174,250 | F114: 53.86547,10.68654 | G114: 53.56806,13.27795 | H114: 2.5 | I114: 2.0 | J114: 2.0 | K114: 2.5 | L114: 279,855 | M114: 255,920 | N114: 229,117 | O114: 0 | P114: 0 | Q114: 23,431 | R114: 1,598 | S114: 0 | T114: 0 | U114: 1,769 | V114: 132 | W114: 204 | X114: 104 | Y114: 132 | Z114: 157 | AA114: 201 | AB114: 143 | AC114: 135 | AD114: 158 | AE114: 197 | AF114: 146 | AG114: 132 | AH114: 156 | AI114: 191 | AJ114: 144 | AK114: 127 | AL114: 148 | AM114: 181 | AN114: 137 | AO114: 201 | AP114: 206 | AQ114: 213 | AR114: 224 | AS114: 211 | AT114: 206 | AU114: 212 | AV114: 225 | AW114: 212 | AX114: 207 | AY114: 214 | AZ114: 227 | BA114: 213 | BB114: 204 | BC114: 207 | BD114: 216 | BE114: 207 | BF114: 136 | BG114: 133 | BH114: 136 | BI114: 204 | BJ114: 202 | BK114: 205 | BL114: 127 | BM114: 133 | BN114: 257,860 | BO114: 0 | BP114: 0 | BQ114: 0 | BR114: 153 | BS114: 148 | BT114: 165 | BU114: 156 | BV114: 154 | BW114: 156 | BX114: 155 | BY114: 156 | BZ114: 151 | CA114: 149 | CB114: 147 | CC114: 156 | CD114: 140 | CE114: 138 | CF114: 137 | CG114: 138 | CH114: 137 | CI114: 136 | CJ114: 135 | CK114: 136 | CL114: 190 | CM114: 191 | CN114: 195 | CO114: 194 | CP114: 192 | CQ114: 187 | CR114: 182 | CS114: 180 | CT114: 167 | CU114: 104 | CV114: 94 | CW114: 99 | CX114: 100 | CY114: 99 | CZ114: 100 | DA114: 97 | DB114: 100 | DC114: 101 | DD114: 105 | DE114: 99 | DF114: 110 | DG114: 112 | DH114: 113 | DI114: 112 | DJ114: 113 | DK114: 114 | DL114: 115 | DM114: 114 | DN114: 82 | DO114: 81 | DP114: 79 | DQ114: 80 | DR114: 81 | DS114: 83 | DT114: 85 | DU114: 86 | DV114: 93 | DW114: 132 | DX114: 154 | DY114: 201 | DZ114: 195 | EA114: 144 | EB114: 157 | EC114: 152 | ED114: 207 | EE114: 227 | EF114: 213 | EG114: 214
A115: Lübeck | B115: Stralsund | C115: 1003000 | D115: 13073088 | E115: 164,030 | F115: 53.86547,10.68654 | G115: 54.30912,13.07699 | H115: 2.5 | I115: 2.0 | J115: 2.0 | K115: 2.5 | L115: 274,294 | M115: 212,380 | N115: 172,322 | O115: 27,236 | P115: 557 | Q115: 8,472 | R115: 3,036 | S115: 0 | T115: 0 | U115: 754 | V115: 111 | W115: 167 | X115: 87 | Y115: 111 | Z115: 131 | AA115: 168 | AB115: 120 | AC115: 112 | AD115: 131 | AE115: 163 | AF115: 121 | AG115: 111 | AH115: 129 | AI115: 157 | AJ115: 120 | AK115: 105 | AL115: 122 | AM115: 147 | AN115: 113 | AO115: 164 | AP115: 170 | AQ115: 176 | AR115: 186 | AS115: 174 | AT115: 170 | AU115: 176 | AV115: 186 | AW115: 175 | AX115: 171 | AY115: 177 | AZ115: 187 | BA115: 175 | BB115: 167 | BC115: 170 | BD115: 177 | BE115: 170 | BF115: 114 | BG115: 112 | BH115: 115 | BI115: 168 | BJ115: 166 | BK115: 168 | BL115: 105 | BM115: 112 | BN115: 215,520 | BO115: 0 | BP115: 0 | BQ115: 0 | BR115: 128 | BS115: 126 | BT115: 140 | BU115: 133 | BV115: 131 | BW115: 134 | BX115: 134 | BY115: 138 | BZ115: 133 | CA115: 130 | CB115: 124 | CC115: 134 | CD115: 118 | CE115: 117 | CF115: 117 | CG115: 118 | CH115: 117 | CI115: 115 | CJ115: 115 | CK115: 113 | CL115: 162 | CM115: 162 | CN115: 164 | CO115: 169 | CP115: 168 | CQ115: 164 | CR115: 159 | CS115: 156 | CT115: 142 | CU115: 102 | CV115: 93 | CW115: 98 | CX115: 99 | CY115: 97 | CZ115: 97 | DA115: 95 | DB115: 98 | DC115: 100 | DD115: 105 | DE115: 98 | DF115: 109 | DG115: 111 | DH115: 111 | DI115: 111 | DJ115: 112 | DK115: 113 | DL115: 113 | DM115: 115 | DN115: 81 | DO115: 80 | DP115: 79 | DQ115: 77 | DR115: 77 | DS115: 80 | DT115: 82 | DU115: 84 | DV115: 92 | DW115: 111 | DX115: 133 | DY115: 168 | DZ115: 164 | EA115: 120 | EB115: 131 | EC115: 126 | ED115: 171 | EE115: 187 | EF115: 175 | EG115: 177
A116: Lübeck | B116: Grevesmühlen | C116: 1003000 | D116: 13074026 | E116: 33,180 | F116: 53.86547,10.68654 | G116: 53.85984,11.19077 | H116: 2.0 | I116: 1.0 | J116: 2.0 | K116: 2.5 | L116: 226,749 | M116: 46,020 | N116: 31,457 | O116: 0 | P116: 2,619 | Q116: 8,472 | R116: 1,087 | S116: 1,630 | T116: 0 | U116: 754 | V116: 32 | W116: 41 | X116: 27 | Y116: 35 | Z116: 44 | AA116: 57 | AB116: 40 | AC116: 35 | AD116: 43 | AE116: 57 | AF116: 41 | AG116: 35 | AH116: 44 | AI116: 57 | AJ116: 41 | AK116: 32 | AL116: 38 | AM116: 48 | AN116: 36 | AO116: 39 | AP116: 44 | AQ116: 50 | AR116: 59 | AS116: 48 | AT116: 44 | AU116: 49 | AV116: 59 | AW116: 48 | AX116: 45 | AY116: 50 | AZ116: 60 | BA116: 49 | BB116: 42 | BC116: 45 | BD116: 51 | BE116: 44 | BF116: 34 | BG116: 32 | BH116: 34 | BI116: 42 | BJ116: 41 | BK116: 42 | BL116: 32 | BM116: 37 | BN116: 49,730 | BO116: 0 | BP116: 0 | BQ116: 0 | BR116: 41 | BS116: 38 | BT116: 39 | BU116: 40 | BV116: 41 | BW116: 41 | BX116: 42 | BY116: 42 | BZ116: 41 | CA116: 40 | CB116: 38 | CC116: 37 | CD116: 36 | CE116: 36 | CF116: 34 | CG116: 35 | CH116: 36 | CI116: 36 | CJ116: 35 | CK116: 34 | CL116: 41 | CM116: 47 | CN116: 50 | CO116: 49 | CP116: 47 | CQ116: 50 | CR116: 53 | CS116: 50 | CT116: 44 | CU116: 75 | CV116: 70 | CW116: 72 | CX116: 74 | CY116: 67 | CZ116: 70 | DA116: 71 | DB116: 73 | DC116: 74 | DD116: 79 | DE116: 70 | DF116: 82 | DG116: 83 | DH116: 75 | DI116: 73 | DJ116: 83 | DK116: 83 | DL116: 85 | DM116: 88 | DN116: 63 | DO116: 64 | DP116: 61 | DQ116: 53 | DR116: 55 | DS116: 60 | DT116: 57 | DU116: 60 | DV116: 68 | DW116: 35 | DX116: 41 | DY116: 57 | DZ116: 53 | EA116: 41 | EB116: 44 | EC116: 38 | ED116: 45 | EE116: 60 | EF116: 49 | EG116: 50
A117: Lübeck | B117: Hagenow | C117: 1003000 | D117: 13076060 | E117: 59,330 | F117: 53.86547,10.68654 | G117: 53.42645,11.1955 | H117: 2.0 | I117: 1.0 | J117: 2.0 | K117: 2.5 | L117: 227,950 | M117: 82,570 | N117: 30,577 | O117: 30,732 | P117: 16,946 | Q117: 1,022 | R117: 172 | S117: 0 | T117: 1,996 | U117: 1,125 | V117: 61 | W117: 71 | X117: 51 | Y117: 66 | Z117: 80 | AA117: 103 | AB117: 74 | AC117: 67 | AD117: 79 | AE117: 95 | AF117: 73 | AG117: 68 | AH117: 81 | AI117: 98 | AJ117: 75 | AK117: 61 | AL117: 71 | AM117: 84 | AN117: 66 | AO117: 67 | AP117: 76 | AQ117: 88 | AR117: 105 | AS117: 83 | AT117: 76 | AU117: 85 | AV117: 97 | AW117: 81 | AX117: 76 | AY117: 85 | AZ117: 101 | BA117: 81 | BB117: 71 | BC117: 77 | BD117: 86 | BE117: 75 | BF117: 64 | BG117: 60 | BH117: 64 | BI117: 73 | BJ117: 71 | BK117: 74 | BL117: 63 | BM117: 74 | BN117: 83,730 | BO117: 0 | BP117: 0 | BQ117: 0 | BR117: 73 | BS117: 67 | BT117: 67 | BU117: 74 | BV117: 75 | BW117: 77 | BX117: 78 | BY117: 78 | BZ117: 75 | CA117: 73 | CB117: 69 | CC117: 65 | CD117: 67 | CE117: 67 | CF117: 67 | CG117: 69 | CH117: 69 | CI117: 68 | CJ117: 66 | CK117: 64 | CL117: 72 | CM117: 86 | CN117: 88 | CO117: 90 | CP117: 89 | CQ117: 88 | CR117: 90 | CS117: 86 | CT117: 78 | CU117: 76 | CV117: 74 | CW117: 68 | CX117: 67 | CY117: 65 | CZ117: 65 | DA117: 64 | DB117: 66 | DC117: 68 | DD117: 72 | DE117: 77 | DF117: 75 | DG117: 75 | DH117: 74 | DI117: 73 | DJ117: 73 | DK117: 73 | DL117: 76 | DM117: 78 | DN117: 70 | DO117: 58 | DP117: 57 | DQ117: 56 | DR117: 56 | DS117: 57 | DT117: 55 | DU117: 58 | DV117: 64 | DW117: 68 | DX117: 75 | DY117: 103 | DZ117: 90 | EA117: 75 | EB117: 81 | EC117: 73 | ED117: 76 | EE117: 105 | EF117: 83 | EG117: 88
A118: Lübeck | B118: Leipzig | C118: 1003000 | D118: 14713000 | E118: 303,370 | F118: 53.86547,10.68654 | G118: 51.33977,12.37304 | H118: 2.5 | I118: 2.0 | J118: 2.0 | K118: 2.5 | L118: 776,725 | M118: 434,170 | N118: 384,729 | O118: 36,519 | P118: 10,126 | Q118: 1,022 | R118: 172 | S118: 0 | T118: 708 | U118: 897 | V118: 231 | W118: 336 | X118: 196 | Y118: 241 | Z118: 289 | AA118: 376 | AB118: 265 | AC118: 247 | AD118: 289 | AE118: 357 | AF118: 266 | AG118: 250 | AH118: 300 | AI118: 367 | AJ118: 274 | AK118: 237 | AL118: 278 | AM118: 334 | AN118: 252 | AO118: 331 | AP118: 343 | AQ118: 363 | AR118: 398 | AS118: 356 | AT118: 341 | AU118: 354 | AV118: 379 | AW118: 349 | AX118: 343 | AY118: 361 | AZ118: 391 | BA118: 354 | BB118: 336 | BC118: 345 | BD118: 360 | BE118: 341 | BF118: 243 | BG118: 230 | BH118: 237 | BI118: 339 | BJ118: 335 | BK118: 339 | BL118: 218 | BM118: 251 | BN118: 457,850 | BO118: 0 | BP118: 0 | BQ118: 0 | BR118: 268 | BS118: 243 | BT118: 268 | BU118: 268 | BV118: 270 | BW118: 272 | BX118: 274 | BY118: 271 | BZ118: 268 | CA118: 265 | CB118: 265 | CC118: 242 | CD118: 236 | CE118: 238 | CF118: 241 | CG118: 243 | CH118: 241 | CI118: 239 | CJ118: 238 | CK118: 241 | CL118: 337 | CM118: 342 | CN118: 347 | CO118: 349 | CP118: 355 | CQ118: 342 | CR118: 338 | CS118: 332 | CT118: 321 | CU118: 113 | CV118: 97 | CW118: 97 | CX118: 96 | CY118: 96 | CZ118: 95 | DA118: 96 | DB118: 97 | DC118: 98 | DD118: 98 | DE118: 108 | DF118: 110 | DG118: 109 | DH118: 108 | DI118: 107 | DJ118: 108 | DK118: 109 | DL118: 110 | DM118: 108 | DN118: 77 | DO118: 76 | DP118: 75 | DQ118: 75 | DR118: 73 | DS118: 76 | DT118: 77 | DU118: 78 | DV118: 81 | DW118: 250 | DX118: 270 | DY118: 376 | DZ118: 347 | EA118: 274 | EB118: 300 | EC118: 284 | ED118: 343 | EE118: 398 | EF118: 356 | EG118: 363
A119: Lübeck | B119: Dessau-Roßlau | C119: 1003000 | D119: 15001000 | E119: 247,950 | F119: 53.86547,10.68654 | G119: 51.84263,12.2303 | H119: 2.5 | I119: 2.0 | J119: 2.0 | K119: 2.5 | L119: 299,172 | M119: 371,540 | N119: 324,548 | O119: 36,058 | P119: 8,281 | Q119: 1,022 | R119: 172 | S119: 0 | T119: 708 | U119: 754 | V119: 199 | W119: 288 | X119: 167 | Y119: 203 | Z119: 242 | AA119: 314 | AB119: 223 | AC119: 209 | AD119: 247 | AE119: 305 | AF119: 227 | AG119: 212 | AH119: 253 | AI119: 305 | AJ119: 231 | AK119: 201 | AL119: 237 | AM119: 285 | AN119: 214 | AO119: 283 | AP119: 293 | AQ119: 307 | AR119: 334 | AS119: 303 | AT119: 293 | AU119: 305 | AV119: 325 | AW119: 300 | AX119: 293 | AY119: 305 | AZ119: 326 | BA119: 301 | BB119: 288 | BC119: 296 | BD119: 309 | BE119: 292 | BF119: 206 | BG119: 196 | BH119: 204 | BI119: 290 | BJ119: 287 | BK119: 291 | BL119: 189 | BM119: 209 | BN119: 399,060 | BO119: 0 | BP119: 0 | BQ119: 0 | BR119: 225 | BS119: 215 | BT119: 231 | BU119: 232 | BV119: 233 | BW119: 236 | BX119: 239 | BY119: 241 | BZ119: 230 | CA119: 228 | CB119: 228 | CC119: 214 | CD119: 204 | CE119: 207 | CF119: 209 | CG119: 211 | CH119: 210 | CI119: 207 | CJ119: 206 | CK119: 209 | CL119: 282 | CM119: 290 | CN119: 293 | CO119: 295 | CP119: 296 | CQ119: 297 | CR119: 290 | CS119: 284 | CT119: 275 | CU119: 104 | CV119: 96 | CW119: 96 | CX119: 96 | CY119: 94 | CZ119: 93 | DA119: 93 | DB119: 97 | DC119: 98 | DD119: 98 | DE119: 104 | DF119: 110 | DG119: 108 | DH119: 107 | DI119: 106 | DJ119: 106 | DK119: 108 | DL119: 108 | DM119: 107 | DN119: 79 | DO119: 77 | DP119: 76 | DQ119: 76 | DR119: 75 | DS119: 75 | DT119: 77 | DU119: 79 | DV119: 81 | DW119: 212 | DX119: 233 | DY119: 314 | DZ119: 293 | EA119: 231 | EB119: 253 | EC119: 241 | ED119: 293 | EE119: 334 | EF119: 303 | EG119: 307
A120: Lübeck | B120: Halle (Saale) | C120: 1003000 | D120: 15002000 | E120: 277,410 | F120: 53.86547,10.68654 | G120: 51.49737,11.96862 | H120: 2.5 | I120: 2.0 | J120: 2.0 | K120: 2.5 | L120: 453,244 | M120: 415,990 | N120: 400,065 | O120: 53 | P120: 8,923 | Q120: 1,022 | R120: 5,003 | S120: 0 | T120: 168 | U120: 754 | V120: 216 | W120: 321 | X120: 182 | Y120: 226 | Z120: 280 | AA120: 355 | AB120: 252 | AC120: 232 | AD120: 277 | AE120: 339 | AF120: 256 | AG120: 235 | AH120: 284 | AI120: 362 | AJ120: 269 | AK120: 224 | AL120: 270 | AM120: 319 | AN120: 246 | AO120: 317 | AP120: 326 | AQ120: 343 | AR120: 377 | AS120: 337 | AT120: 324 | AU120: 335 | AV120: 357 | AW120: 332 | AX120: 326 | AY120: 340 | AZ120: 379 | BA120: 338 | BB120: 321 | BC120: 327 | BD120: 339 | BE120: 325 | BF120: 230 | BG120: 215 | BH120: 222 | BI120: 322 | BJ120: 319 | BK120: 322 | BL120: 210 | BM120: 238 | BN120: 441,160 | BO120: 0 | BP120: 0 | BQ120: 0 | BR120: 250 | BS120: 222 | BT120: 257 | BU120: 257 | BV120: 260 | BW120: 263 | BX120: 265 | BY120: 266 | BZ120: 256 | CA120: 254 | CB120: 257 | CC120: 228 | CD120: 222 | CE120: 229 | CF120: 231 | CG120: 233 | CH120: 232 | CI120: 227 | CJ120: 226 | CK120: 231 | CL120: 323 | CM120: 326 | CN120: 336 | CO120: 329 | CP120: 330 | CQ120: 329 | CR120: 320 | CS120: 323 | CT120: 321 | CU120: 112 | CV120: 97 | CW120: 97 | CX120: 96 | CY120: 95 | CZ120: 94 | DA120: 94 | DB120: 96 | DC120: 97 | DD120: 97 | DE120: 109 | DF120: 112 | DG120: 109 | DH120: 108 | DI120: 107 | DJ120: 107 | DK120: 109 | DL120: 110 | DM120: 108 | DN120: 77 | DO120: 77 | DP120: 74 | DQ120: 76 | DR120: 75 | DS120: 76 | DT120: 78 | DU120: 77 | DV120: 78 | DW120: 235 | DX120: 260 | DY120: 362 | DZ120: 336 | EA120: 269 | EB120: 284 | EC120: 269 | ED120: 326 | EE120: 379 | EF120: 338 | EG120: 343
A121: Lübeck | B121: Magdeburg | C121: 1003000 | D121: 15003000 | E121: 204,210 | F121: 53.86547,10.68654 | G121: 52.12044,11.62733 | H121: 2.5 | I121: 2.0 | J121: 2.0 | K121: 2.5 | L121: 451,976 | M121: 341,860 | N121: 326,156 | O121: 8,503 | P121: 1,567 | Q121: 1,022 | R121: 3,853 | S121: 0 | T121: 0 | U121: 761 | V121: 178 | W121: 263 | X121: 150 | Y121: 185 | Z121: 230 | AA121: 296 | AB121: 208 | AC121: 190 | AD121: 227 | AE121: 280 | AF121: 210 | AG121: 194 | AH121: 234 | AI121: 301 | AJ121: 223 | AK121: 184 | AL121: 220 | AM121: 261 | AN121: 202 | AO121: 260 | AP121: 268 | AQ121: 285 | AR121: 316 | AS121: 278 | AT121: 266 | AU121: 276 | AV121: 294 | AW121: 272 | AX121: 268 | AY121: 282 | AZ121: 315 | BA121: 279 | BB121: 263 | BC121: 267 | BD121: 277 | BE121: 266 | BF121: 188 | BG121: 178 | BH121: 183 | BI121: 263 | BJ121: 261 | BK121: 263 | BL121: 180 | BM121: 216 | BN121: 311,280 | BO121: 0 | BP121: 0 | BQ121: 0 | BR121: 205 | BS121: 182 | BT121: 212 | BU121: 208 | BV121: 212 | BW121: 216 | BX121: 220 | BY121: 217 | BZ121: 204 | CA121: 200 | CB121: 197 | CC121: 186 | CD121: 181 | CE121: 186 | CF121: 189 | CG121: 191 | CH121: 193 | CI121: 185 | CJ121: 184 | CK121: 185 | CL121: 264 | CM121: 267 | CN121: 277 | CO121: 279 | CP121: 288 | CQ121: 255 | CR121: 236 | CS121: 225 | CT121: 214 | CU121: 112 | CV121: 97 | CW121: 99 | CX121: 97 | CY121: 95 | CZ121: 89 | DA121: 86 | DB121: 88 | DC121: 94 | DD121: 92 | DE121: 110 | DF121: 113 | DG121: 110 | DH121: 108 | DI121: 107 | DJ121: 94 | DK121: 100 | DL121: 101 | DM121: 98 | DN121: 78 | DO121: 77 | DP121: 74 | DQ121: 73 | DR121: 71 | DS121: 71 | DT121: 79 | DU121: 83 | DV121: 85 | DW121: 194 | DX121: 212 | DY121: 301 | DZ121: 277 | EA121: 223 | EB121: 234 | EC121: 221 | ED121: 268 | EE121: 316 | EF121: 279 | EG121: 285
A122: Lübeck | B122: Erfurt | C122: 1003000 | D122: 16051000 | E122: 321,390 | F122: 53.86547,10.68654 | G122: 50.98488,11.02978 | H122: 2.5 | I122: 2.0 | J122: 2.0 | K122: 2.5 | L122: 426,371 | M122: 452,270 | N122: 369,060 | O122: 68,987 | P122: 6,766 | Q122: 1,033 | R122: 3,853 | S122: 1,559 | T122: 0 | U122: 1,008 | V122: 250 | W122: 352 | X122: 204 | Y122: 253 | Z122: 306 | AA122: 387 | AB122: 278 | AC122: 260 | AD122: 305 | AE122: 373 | AF122: 283 | AG122: 259 | AH122: 309 | AI122: 392 | AJ122: 289 | AK122: 250 | AL122: 296 | AM122: 353 | AN122: 270 | AO122: 346 | AP122: 357 | AQ122: 376 | AR122: 413 | AS122: 369 | AT122: 357 | AU122: 370 | AV122: 393 | AW122: 365 | AX122: 358 | AY122: 374 | AZ122: 414 | BA122: 370 | BB122: 352 | BC122: 360 | BD122: 376 | BE122: 358 | BF122: 259 | BG122: 246 | BH122: 258 | BI122: 354 | BJ122: 350 | BK122: 354 | BL122: 273 | BM122: 305 | BN122: 588,520 | BO122: 0 | BP122: 0 | BQ122: 0 | BR122: 284 | BS122: 264 | BT122: 291 | BU122: 289 | BV122: 291 | BW122: 296 | BX122: 304 | BY122: 305 | BZ122: 293 | CA122: 289 | CB122: 290 | CC122: 260 | CD122: 258 | CE122: 259 | CF122: 262 | CG122: 264 | CH122: 264 | CI122: 261 | CJ122: 260 | CK122: 270 | CL122: 359 | CM122: 363 | CN122: 366 | CO122: 372 | CP122: 384 | CQ122: 385 | CR122: 357 | CS122: 347 | CT122: 344 | CU122: 103 | CV122: 93 | CW122: 94 | CX122: 93 | CY122: 92 | CZ122: 89 | DA122: 89 | DB122: 93 | DC122: 94 | DD122: 93 | DE122: 104 | DF122: 105 | DG122: 105 | DH122: 104 | DI122: 103 | DJ122: 103 | DK122: 104 | DL122: 104 | DM122: 100 | DN122: 76 | DO122: 75 | DP122: 74 | DQ122: 73 | DR122: 71 | DS122: 70 | DT122: 76 | DU122: 78 | DV122: 79 | DW122: 259 | DX122: 293 | DY122: 392 | DZ122: 366 | EA122: 289 | EB122: 309 | EC122: 300 | ED122: 358 | EE122: 414 | EF122: 370 | EG122: 376
A123: Neumünster | B123: Kiel | C123: 1004000 | D123: 1002000 | E123: 29,270 | F123: 54.07339,9.98332 | G123: 54.32329,10.12283 | H123: 2.5 | I123: 2.0 | J123: 2.0 | K123: 2.0 | L123: 325,503 | M123: 34,110 | N123: 26,012 | O123: 4,380 | P123: 0 | Q123: 1,793 | R123: 1,550 | S123: 0 | T123: 0 | U123: 371 | V123: 25 | W123: 31 | X123: 18 | Y123: 26 | Z123: 32 | AA123: 44 | AB123: 30 | AC123: 25 | AD123: 31 | AE123: 41 | AF123: 29 | AG123: 25 | AH123: 31 | AI123: 43 | AJ123: 29 | AK123: 23 | AL123: 28 | AM123: 37 | AN123: 26 | AO123: 28 | AP123: 32 | AQ123: 37 | AR123: 46 | AS123: 36 | AT123: 32 | AU123: 36 | AV123: 43 | AW123: 35 | AX123: 32 | AY123: 36 | AZ123: 46 | BA123: 36 | BB123: 30 | BC123: 34 | BD123: 40 | BE123: 33 | BF123: 24 | BG123: 21 | BH123: 25 | BI123: 30 | BJ123: 29 | BK123: 31 | BL123: 20 | BM123: 27 | BN123: 34,060 | BO123: 0 | BP123: 0 | BQ123: 0 | BR123: 31 | BS123: 28 | BT123: 30 | BU123: 30 | BV123: 31 | BW123: 31 | BX123: 32 | BY123: 31 | BZ123: 31 | CA123: 30 | CB123: 29 | CC123: 29 | CD123: 26 | CE123: 27 | CF123: 27 | CG123: 27 | CH123: 27 | CI123: 27 | CJ123: 27 | CK123: 26 | CL123: 33 | CM123: 34 | CN123: 41 | CO123: 41 | CP123: 39 | CQ123: 39 | CR123: 40 | CS123: 38 | CT123: 33 | CU123: 75 | CV123: 68 | CW123: 69 | CX123: 66 | CY123: 66 | CZ123: 65 | DA123: 66 | DB123: 67 | DC123: 68 | DD123: 70 | DE123: 72 | DF123: 78 | DG123: 76 | DH123: 76 | DI123: 75 | DJ123: 76 | DK123: 78 | DL123: 80 | DM123: 80 | DN123: 63 | DO123: 61 | DP123: 50 | DQ123: 50 | DR123: 53 | DS123: 53 | DT123: 52 | DU123: 56 | DV123: 62 | DW123: 26 | DX123: 31 | DY123: 44 | DZ123: 41 | EA123: 30 | EB123: 32 | EC123: 28 | ED123: 32 | EE123: 46 | EF123: 36 | EG123: 37
A124: Neumünster | B124: Brunsbüttel | C124: 1004000 | D124: 1051011 | E124: 59,000 | F124: 54.07339,9.98332 | G124: 53.89927,9.13374 | H124: 2.0 | I124: 1.0 | J124: 2.0 | K124: 2.0 | L124: 91,937 | M124: 73,430 | N124: 0 | O124: 68,138 | P124: 0 | Q124: 1,550 | R124: 2,191 | S124: 0 | T124: 1,234 | U124: 321 | V124: 56 | W124: 63 | X124: 50 | Y124: 68 | Z124: 80 | AA124: 99 | AB124: 75 | AC124: 68 | AD124: 80 | AE124: 97 | AF124: 74 | AG124: 66 | AH124: 80 | AI124: 99 | AJ124: 74 | AK124: 59 | AL124: 68 | AM124: 77 | AN124: 63 | AO124: 60 | AP124: 69 | AQ124: 81 | AR124: 99 | AS124: 75 | AT124: 69 | AU124: 80 | AV124: 97 | AW124: 75 | AX124: 68 | AY124: 80 | AZ124: 99 | BA124: 75 | BB124: 63 | BC124: 69 | BD124: 78 | BE124: 66 | BF124: 60 | BG124: 56 | BH124: 58 | BI124: 64 | BJ124: 62 | BK124: 63 | BL124: 55 | BM124: 67 | BN124: 79,310 | BO124: 0 | BP124: 0 | BQ124: 0 | BR124: 69 | BS124: 61 | BT124: 66 | BU124: 69 | BV124: 70 | BW124: 71 | BX124: 72 | BY124: 72 | BZ124: 70 | CA124: 67 | CB124: 64 | CC124: 65 | CD124: 64 | CE124: 64 | CF124: 66 | CG124: 68 | CH124: 67 | CI124: 63 | CJ124: 62 | CK124: 63 | CL124: 67 | CM124: 77 | CN124: 80 | CO124: 83 | CP124: 82 | CQ124: 82 | CR124: 79 | CS124: 75 | CT124: 69 | CU124: 72 | CV124: 70 | CW124: 64 | CX124: 68 | CY124: 66 | CZ124: 66 | DA124: 66 | DB124: 68 | DC124: 71 | DD124: 73 | DE124: 73 | DF124: 74 | DG124: 74 | DH124: 72 | DI124: 70 | DJ124: 71 | DK124: 75 | DL124: 77 | DM124: 76 | DN124: 71 | DO124: 62 | DP124: 60 | DQ124: 57 | DR124: 58 | DS124: 58 | DT124: 60 | DU124: 64 | DV124: 69 | DW124: 68 | DX124: 70 | DY124: 99 | DZ124: 80 | EA124: 75 | EB124: 80 | EC124: 71 | ED124: 69 | EE124: 99 | EF124: 75 | EG124: 81
A125: Neumünster | B125: Heide | C125: 1004000 | D125: 1051044 | E125: 59,200 | F125: 54.07339,9.98332 | G125: 54.19548,9.10174 | H125: 2.0 | I125: 1.0 | J125: 2.0 | K125: 2.0 | L125: 100,619 | M125: 74,690 | N125: 30,770 | O125: 40,989 | P125: 0 | Q125: 1,550 | R125: 606 | S125: 0 | T125: 772 | U125: 0 | V125: 51 | W125: 62 | X125: 42 | Y125: 57 | Z125: 69 | AA125: 86 | AB125: 63 | AC125: 58 | AD125: 71 | AE125: 88 | AF125: 64 | AG125: 56 | AH125: 70 | AI125: 88 | AJ125: 64 | AK125: 51 | AL125: 60 | AM125: 71 | AN125: 55 | AO125: 60 | AP125: 66 | AQ125: 75 | AR125: 88 | AS125: 71 | AT125: 67 | AU125: 77 | AV125: 90 | AW125: 73 | AX125: 67 | AY125: 77 | AZ125: 92 | BA125: 73 | BB125: 63 | BC125: 67 | BD125: 74 | BE125: 66 | BF125: 53 | BG125: 49 | BH125: 52 | BI125: 63 | BJ125: 61 | BK125: 63 | BL125: 48 | BM125: 55 | BN125: 74,650 | BO125: 0 | BP125: 0 | BQ125: 0 | BR125: 62 | BS125: 53 | BT125: 60 | BU125: 63 | BV125: 64 | BW125: 64 | BX125: 66 | BY125: 65 | BZ125: 64 | CA125: 62 | CB125: 58 | CC125: 58 | CD125: 58 | CE125: 58 | CF125: 57 | CG125: 59 | CH125: 58 | CI125: 58 | CJ125: 57 | CK125: 55 | CL125: 61 | CM125: 71 | CN125: 74 | CO125: 75 | CP125: 74 | CQ125: 73 | CR125: 74 | CS125: 70 | CT125: 62 | CU125: 85 | CV125: 75 | CW125: 72 | CX125: 71 | CY125: 71 | CZ125: 69 | DA125: 70 | DB125: 70 | DC125: 73 | DD125: 77 | DE125: 78 | DF125: 78 | DG125: 78 | DH125: 78 | DI125: 77 | DJ125: 78 | DK125: 78 | DL125: 79 | DM125: 82 | DN125: 74 | DO125: 64 | DP125: 61 | DQ125: 60 | DR125: 60 | DS125: 62 | DT125: 61 | DU125: 64 | DV125: 73 | DW125: 57 | DX125: 64 | DY125: 88 | DZ125: 74 | EA125: 64 | EB125: 70 | EC125: 61 | ED125: 67 | EE125: 92 | EF125: 73 | EG125: 77
A126: Neumünster | B126: Meldorf | C126: 1004000 | D126: 1051074 | E126: 59,440 | F126: 54.07339,9.98332 | G126: 54.09011,9.07561 | H126: 2.0 | I126: 1.0 | J126: 2.0 | K126: 2.0 | L126: 86,464 | M126: 70,930 | N126: 16,703 | O126: 52,437 | P126: 0 | Q126: 1,550 | R126: 192 | S126: 0 | T126: 0 | U126: 47 | V126: 51 | W126: 59 | X126: 44 | Y126: 58 | Z126: 68 | AA126: 82 | AB126: 63 | AC126: 59 | AD126: 69 | AE126: 82 | AF126: 64 | AG126: 57 | AH126: 68 | AI126: 82 | AJ126: 63 | AK126: 52 | AL126: 59 | AM126: 68 | AN126: 55 | AO126: 57 | AP126: 64 | AQ126: 72 | AR126: 83 | AS126: 68 | AT126: 64 | AU126: 72 | AV126: 83 | AW126: 68 | AX126: 64 | AY126: 72 | AZ126: 85 | BA126: 69 | BB126: 60 | BC126: 64 | BD126: 70 | BE126: 62 | BF126: 54 | BG126: 51 | BH126: 53 | BI126: 61 | BJ126: 60 | BK126: 61 | BL126: 50 | BM126: 57 | BN126: 70,840 | BO126: 0 | BP126: 0 | BQ126: 0 | BR126: 63 | BS126: 54 | BT126: 59 | BU126: 63 | BV126: 64 | BW126: 64 | BX126: 66 | BY126: 65 | BZ126: 65 | CA126: 62 | CB126: 59 | CC126: 57 | CD126: 60 | CE126: 60 | CF126: 59 | CG126: 60 | CH126: 59 | CI126: 60 | CJ126: 58 | CK126: 57 | CL126: 58 | CM126: 68 | CN126: 72 | CO126: 72 | CP126: 72 | CQ126: 71 | CR126: 73 | CS126: 69 | CT126: 62 | CU126: 75 | CV126: 69 | CW126: 64 | CX126: 63 | CY126: 63 | CZ126: 62 | DA126: 62 | DB126: 62 | DC126: 65 | DD126: 69 | DE126: 71 | DF126: 68 | DG126: 68 | DH126: 69 | DI126: 68 | DJ126: 68 | DK126: 68 | DL126: 69 | DM126: 71 | DN126: 70 | DO126: 59 | DP126: 56 | DQ126: 56 | DR126: 56 | DS126: 57 | DT126: 56 | DU126: 59 | DV126: 66 | DW126: 58 | DX126: 65 | DY126: 82 | DZ126: 73 | EA126: 63 | EB126: 68 | EC126: 62 | ED126: 64 | EE126: 85 | EF126: 69 | EG126: 72
A127: Neumünster | B127: Eutin | C127: 1004000 | D127: 1055012 | E127: 41,570 | F127: 54.07339,9.98332 | G127: 54.13347,10.61049 | H127: 2.0 | I127: 1.0 | J127: 2.0 | K127: 2.0 | L127: 96,176 | M127: 51,440 | N127: 0 | O127: 46,798 | P127: 0 | Q127: 1,015 | R127: 3,011 | S127: 0 | T127: 621 | U127: 0 | V127: 44 | W127: 46 | X127: 38 | Y127: 50 | Z127: 59 | AA127: 71 | AB127: 55 | AC127: 49 | AD127: 58 | AE127: 68 | AF127: 54 | AG127: 48 | AH127: 57 | AI127: 68 | AJ127: 53 | AK127: 45 | AL127: 51 | AM127: 59 | AN127: 48 | AO127: 44 | AP127: 51 | AQ127: 59 | AR127: 71 | AS127: 55 | AT127: 50 | AU127: 58 | AV127: 68 | AW127: 54 | AX127: 50 | AY127: 57 | AZ127: 68 | BA127: 54 | BB127: 47 | BC127: 52 | BD127: 59 | BE127: 50 | BF127: 46 | BG127: 43 | BH127: 46 | BI127: 49 | BJ127: 47 | BK127: 49 | BL127: 43 | BM127: 49 | BN127: 51,180 | BO127: 0 | BP127: 0 | BQ127: 0 | BR127: 53 | BS127: 46 | BT127: 49 | BU127: 53 | BV127: 54 | BW127: 55 | BX127: 56 | BY127: 56 | BZ127: 55 | CA127: 53 | CB127: 49 | CC127: 50 | CD127: 49 | CE127: 50 | CF127: 49 | CG127: 50 | CH127: 51 | CI127: 50 | CJ127: 49 | CK127: 46 | CL127: 50 | CM127: 58 | CN127: 60 | CO127: 60 | CP127: 61 | CQ127: 62 | CR127: 60 | CS127: 57 | CT127: 51 | CU127: 67 | CV127: 63 | CW127: 58 | CX127: 57 | CY127: 56 | CZ127: 55 | DA127: 55 | DB127: 57 | DC127: 58 | DD127: 62 | DE127: 62 | DF127: 64 | DG127: 61 | DH127: 62 | DI127: 61 | DJ127: 61 | DK127: 62 | DL127: 63 | DM127: 67 | DN127: 62 | DO127: 53 | DP127: 51 | DQ127: 51 | DR127: 50 | DS127: 50 | DT127: 51 | DU127: 54 | DV127: 60 | DW127: 50 | DX127: 55 | DY127: 71 | DZ127: 60 | EA127: 55 | EB127: 59 | EC127: 54 | ED127: 51 | EE127: 71 | EF127: 55 | EG127: 59
A128: Neumünster | B128: Oldenburg in Holstein | C128: 1004000 | D128: 1055033 | E128: 63,930 | F128: 54.07339,9.98332 | G128: 54.29046,10.88992 | H128: 2.0 | I128: 1.0 | J128: 2.0 | K128: 2.0 | L128: 88,968 | M128: 77,250 | N128: 0 | O128: 74,790 | P128: 0 | Q128: 248 | R128: 1,590 | S128: 0 | T128: 621 | U128: 0 | V128: 64 | W128: 66 | X128: 55 | Y128: 70 | Z128: 82 | AA128: 97 | AB128: 76 | AC128: 70 | AD128: 81 | AE128: 94 | AF128: 76 | AG128: 68 | AH128: 79 | AI128: 92 | AJ128: 73 | AK128: 64 | AL128: 72 | AM128: 82 | AN128: 68 | AO128: 63 | AP128: 71 | AQ128: 82 | AR128: 97 | AS128: 76 | AT128: 71 | AU128: 81 | AV128: 94 | AW128: 76 | AX128: 70 | AY128: 79 | AZ128: 92 | BA128: 74 | BB128: 67 | BC128: 73 | BD128: 82 | BE128: 70 | BF128: 67 | BG128: 61 | BH128: 67 | BI128: 69 | BJ128: 67 | BK128: 69 | BL128: 62 | BM128: 70 | BN128: 77,170 | BO128: 0 | BP128: 0 | BQ128: 0 | BR128: 74 | BS128: 66 | BT128: 70 | BU128: 74 | BV128: 75 | BW128: 75 | BX128: 78 | BY128: 77 | BZ128: 75 | CA128: 73 | CB128: 70 | CC128: 70 | CD128: 69 | CE128: 71 | CF128: 69 | CG128: 70 | CH128: 69 | CI128: 69 | CJ128: 68 | CK128: 66 | CL128: 71 | CM128: 79 | CN128: 80 | CO128: 81 | CP128: 85 | CQ128: 85 | CR128: 80 | CS128: 76 | CT128: 71 | CU128: 70 | CV128: 66 | CW128: 65 | CX128: 62 | CY128: 66 | CZ128: 63 | DA128: 64 | DB128: 62 | DC128: 65 | DD128: 66 | DE128: 66 | DF128: 66 | DG128: 65 | DH128: 67 | DI128: 77 | DJ128: 78 | DK128: 66 | DL128: 68 | DM128: 70 | DN128: 65 | DO128: 58 | DP128: 57 | DQ128: 57 | DR128: 63 | DS128: 63 | DT128: 57 | DU128: 61 | DV128: 65 | DW128: 70 | DX128: 75 | DY128: 97 | DZ128: 80 | EA128: 76 | EB128: 82 | EC128: 77 | ED128: 71 | EE128: 97 | EF128: 76 | EG128: 82
A129: Neumünster | B129: Elmshorn | C129: 1004000 | D129: 1056015 | E129: 41,560 | F129: 54.07339,9.98332 | G129: 53.75094,9.66449 | H129: 2.0 | I129: 1.0 | J129: 2.0 | K129: 2.0 | L129: 127,881 | M129: 46,560 | N129: 0 | O129: 0 | P129: 3,056 | Q129: 9,337 | R129: 34,164 | S129: 0 | T129: 0 | U129: 0 | V129: 45 | W129: 52 | X129: 39 | Y129: 51 | Z129: 64 | AA129: 85 | AB129: 60 | AC129: 50 | AD129: 61 | AE129: 77 | AF129: 57 | AG129: 51 | AH129: 63 | AI129: 82 | AJ129: 58 | AK129: 46 | AL129: 54 | AM129: 65 | AN129: 51 | AO129: 48 | AP129: 56 | AQ129: 67 | AR129: 86 | AS129: 64 | AT129: 55 | AU129: 64 | AV129: 78 | AW129: 62 | AX129: 56 | AY129: 66 | AZ129: 84 | BA129: 63 | BB129: 52 | BC129: 58 | BD129: 67 | BE129: 56 | BF129: 49 | BG129: 45 | BH129: 49 | BI129: 54 | BJ129: 51 | BK129: 54 | BL129: 48 | BM129: 56 | BN129: 52,110 | BO129: 0 | BP129: 0 | BQ129: 0 | BR129: 56 | BS129: 47 | BT129: 50 | BU129: 53 | BV129: 56 | BW129: 56 | BX129: 57 | BY129: 58 | BZ129: 57 | CA129: 55 | CB129: 53 | CC129: 50 | CD129: 49 | CE129: 50 | CF129: 49 | CG129: 51 | CH129: 51 | CI129: 51 | CJ129: 50 | CK129: 49 | CL129: 51 | CM129: 57 | CN129: 63 | CO129: 63 | CP129: 62 | CQ129: 65 | CR129: 66 | CS129: 61 | CT129: 55 | CU129: 63 | CV129: 59 | CW129: 56 | CX129: 53 | CY129: 53 | CZ129: 52 | DA129: 51 | DB129: 52 | DC129: 53 | DD129: 56 | DE129: 60 | DF129: 60 | DG129: 59 | DH129: 60 | DI129: 58 | DJ129: 58 | DK129: 58 | DL129: 59 | DM129: 61 | DN129: 58 | DO129: 52 | DP129: 47 | DQ129: 47 | DR129: 48 | DS129: 46 | DT129: 45 | DU129: 49 | DV129: 54 | DW129: 51 | DX129: 57 | DY129: 85 | DZ129: 66 | EA129: 60 | EB129: 64 | EC129: 55 | ED129: 56 | EE129: 86 | EF129: 64 | EG129: 67
A130: Neumünster | B130: Pinneberg | C130: 1004000 | D130: 1056039 | E130: 48,320 | F130: 54.07339,9.98332 | G130: 53.65423,9.79223 | H130: 2.0 | I130: 1.0 | J130: 2.0 | K130: 2.0 | L130: 121,463 | M130: 66,690 | N130: 58,467 | O130: 3,114 | P130: 0 | Q130: 1,550 | R130: 3,384 | S130: 0 | T130: 0 | U130: 175 | V130: 44 | W130: 55 | X130: 42 | Y130: 53 | Z130: 66 | AA130: 86 | AB130: 62 | AC130: 54 | AD130: 64 | AE130: 77 | AF130: 60 | AG130: 54 | AH130: 66 | AI130: 88 | AJ130: 64 | AK130: 50 | AL130: 57 | AM130: 65 | AN130: 53 | AO130: 54 | AP130: 59 | AQ130: 68 | AR130: 87 | AS130: 66 | AT130: 59 | AU130: 65 | AV130: 78 | AW130: 63 | AX130: 59 | AY130: 68 | AZ130: 89 | BA130: 68 | BB130: 56 | BC130: 60 | BD130: 66 | BE130: 59 | BF130: 50 | BG130: 44 | BH130: 44 | BI130: 57 | BJ130: 55 | BK130: 56 | BL130: 40 | BM130: 60 | BN130: 59,880 | BO130: 0 | BP130: 0 | BQ130: 0 | BR130: 57 | BS130: 44 | BT130: 51 | BU130: 57 | BV130: 61 | BW130: 59 | BX130: 58 | BY130: 59 | BZ130: 59 | CA130: 56 | CB130: 53 | CC130: 49 | CD130: 51 | CE130: 54 | CF130: 51 | CG130: 53 | CH130: 52 | CI130: 52 | CJ130: 51 | CK130: 49 | CL130: 56 | CM130: 79 | CN130: 77 | CO130: 69 | CP130: 68 | CQ130: 69 | CR130: 72 | CS130: 66 | CT130: 60 | CU130: 90 | CV130: 78 | CW130: 70 | CX130: 65 | CY130: 68 | CZ130: 69 | DA130: 68 | DB130: 68 | DC130: 71 | DD130: 75 | DE130: 82 | DF130: 78 | DG130: 67 | DH130: 78 | DI130: 76 | DJ130: 76 | DK130: 77 | DL130: 79 | DM130: 82 | DN130: 71 | DO130: 50 | DP130: 46 | DQ130: 58 | DR130: 59 | DS130: 58 | DT130: 56 | DU130: 60 | DV130: 66 | DW130: =MAX(Y130,AG130) -> 54 | DX130: =MAX(BV130,BZ130) -> 61 | DY130: =MAX(AA130,AI130) -> 88 | DZ130: =MAX(CN130,CR130) -> 77 | EA130: =MAX(AB130,AJ130) -> 64 | EB130: =MAX(Z130,AH130) -> 66 | EC130: =AK130*1.2 -> 60 | ED130: 59 | EE130: 89 | EF130: 68 | EG130: 68
A131: Neumünster | B131: Wedel | C131: 1004000 | D131: 1056050 | E131: 57,460 | F131: 54.07339,9.98332 | G131: 53.58239,9.71371 | H131: 2.0 | I131: 1.0 | J131: 2.0 | K131: 2.0 | L131: 112,087 | M131: 76,710 | N131: 58,467 | O131: 3,114 | P131: 0 | Q131: 9,520 | R131: 5,609 | S131: 0 | T131: 0 | U131: 0 | V131: 53 | W131: 66 | X131: 50 | Y131: 66 | Z131: 83 | AA131: 110 | AB131: 77 | AC131: 65 | AD131: 77 | AE131: 95 | AF131: 72 | AG131: 66 | AH131: 82 | AI131: 110 | AJ131: 78 | AK131: 60 | AL131: 69 | AM131: 79 | AN131: 64 | AO131: 63 | AP131: 72 | AQ131: 85 | AR131: 111 | AS131: 82 | AT131: 71 | AU131: 79 | AV131: 95 | AW131: 76 | AX131: 72 | AY131: 84 | AZ131: 110 | BA131: 82 | BB131: 67 | BC131: 72 | BD131: 81 | BE131: 70 | BF131: 61 | BG131: 53 | BH131: 54 | BI131: 68 | BJ131: 65 | BK131: 67 | BL131: 52 | BM131: 78 | BN131: 70,520 | BO131: 0 | BP131: 0 | BQ131: 0 | BR131: 69 | BS131: 54 | BT131: 62 | BU131: 69 | BV131: 74 | BW131: 71 | BX131: 71 | BY131: 72 | BZ131: 72 | CA131: 69 | CB131: 64 | CC131: 58 | CD131: 62 | CE131: 65 | CF131: 62 | CG131: 63 | CH131: 63 | CI131: 63 | CJ131: 62 | CK131: 59 | CL131: 66 | CM131: 95 | CN131: 94 | CO131: 83 | CP131: 81 | CQ131: 83 | CR131: 87 | CS131: 81 | CT131: 72 | CU131: 85 | CV131: 74 | CW131: 67 | CX131: 62 | CY131: 65 | CZ131: 65 | DA131: 64 | DB131: 64 | DC131: 67 | DD131: 71 | DE131: 79 | DF131: 74 | DG131: 65 | DH131: 74 | DI131: 73 | DJ131: 73 | DK131: 73 | DL131: 74 | DM131: 77 | DN131: 70 | DO131: 48 | DP131: 45 | DQ131: 55 | DR131: 57 | DS131: 55 | DT131: 53 | DU131: 57 | DV131: 64 | DW131: 66 | DX131: 74 | DY131: 110 | DZ131: 94 | EA131: 78 | EB131: 83 | EC131: 72 | ED131: =MAX(AP131,AX131) -> 72 | EE131: =MAX(AR131,AZ131) -> 111 | EF131: =MAX(AS131,BA131) -> 82 | EG131: =MAX(AQ131,AY131) -> 85
A132: Neumünster | B132: Plön | C132: 1004000 | D132: 1057057 | E132: 30,570 | F132: 54.07339,9.98332 | G132: 54.16109,10.42637 | H132: 2.0 | I132: 1.0 | J132: 2.0 | K132: 2.0 | L132: 88,003 | M132: 36,950 | N132: 0 | O132: 35,235 | P132: 0 | Q132: 248 | R132: 851 | S132: 0 | T132: 621 | U132: 0 | V132: 31 | W132: 33 | X132: 28 | Y132: 37 | Z132: 44 | AA132: 53 | AB132: 41 | AC132: 36 | AD132: 42 | AE132: 50 | AF132: 40 | AG132: 36 | AH132: 42 | AI132: 50 | AJ132: 39 | AK132: 33 | AL132: 37 | AM132: 43 | AN132: 35 | AO132: 32 | AP132: 37 | AQ132: 44 | AR132: 53 | AS132: 41 | AT132: 37 | AU132: 42 | AV132: 50 | AW132: 40 | AX132: 37 | AY132: 42 | AZ132: 50 | BA132: 40 | BB132: 34 | BC132: 38 | BD132: 43 | BE132: 37 | BF132: 34 | BG132: 32 | BH132: 33 | BI132: 36 | BJ132: 34 | BK132: 35 | BL132: 31 | BM132: 37 | BN132: 36,830 | BO132: 0 | BP132: 0 | BQ132: 0 | BR132: 39 | BS132: 34 | BT132: 36 | BU132: 39 | BV132: 40 | BW132: 40 | BX132: 41 | BY132: 41 | BZ132: 40 | CA132: 39 | CB132: 36 | CC132: 36 | CD132: 36 | CE132: 37 | CF132: 36 | CG132: 36 | CH132: 37 | CI132: 36 | CJ132: 35 | CK132: 34 | CL132: 36 | CM132: 42 | CN132: 43 | CO132: 44 | CP132: 44 | CQ132: 44 | CR132: 44 | CS132: 41 | CT132: 37 | CU132: 66 | CV132: 61 | CW132: 57 | CX132: 56 | CY132: 55 | CZ132: 54 | DA132: 54 | DB132: 56 | DC132: 57 | DD132: 61 | DE132: 61 | DF132: 62 | DG132: 60 | DH132: 61 | DI132: 61 | DJ132: 60 | DK132: 61 | DL132: 62 | DM132: 65 | DN132: 61 | DO132: 53 | DP132: 52 | DQ132: 51 | DR132: 51 | DS132: 50 | DT132: 50 | DU132: 54 | DV132: 59 | DW132: 37 | DX132: 40 | DY132: 53 | DZ132: 44 | EA132: 41 | EB132: 44 | EC132: 40 | ED132: 37 | EE132: 53 | EF132: 41 | EG132: 44
A133: Neumünster | B133: Eckernförde | C133: 1004000 | D133: 1058043 | E133: 45,030 | F133: 54.07339,9.98332 | G133: 54.46895,9.83852 | H133: 2.0 | I133: 1.0 | J133: 2.0 | K133: 2.0 | L133: 101,056 | M133: 56,350 | N133: 31,649 | O133: 22,262 | P133: 0 | Q133: 1,984 | R133: 0 | S133: 0 | T133: 0 | U133: 456 | V133: 38 | W133: 47 | X133: 31 | Y133: 42 | Z133: 53 | AA133: 67 | AB133: 48 | AC133: 42 | AD133: 52 | AE133: 65 | AF133: 48 | AG133: 41 | AH133: 51 | AI133: 66 | AJ133: 48 | AK133: 38 | AL133: 46 | AM133: 56 | AN133: 42 | AO133: 45 | AP133: 50 | AQ133: 56 | AR133: 67 | AS133: 54 | AT133: 50 | AU133: 56 | AV133: 66 | AW133: 54 | AX133: 50 | AY133: 55 | AZ133: 67 | BA133: 54 | BB133: 47 | BC133: 51 | BD133: 57 | BE133: 50 | BF133: 39 | BG133: 35 | BH133: 39 | BI133: 48 | BJ133: 46 | BK133: 48 | BL133: 34 | BM133: 43 | BN133: 56,470 | BO133: 0 | BP133: 0 | BQ133: 0 | BR133: 52 | BS133: 48 | BT133: 49 | BU133: 52 | BV133: 53 | BW133: 52 | BX133: 54 | BY133: 55 | BZ133: 54 | CA133: 52 | CB133: 49 | CC133: 48 | CD133: 48 | CE133: 48 | CF133: 47 | CG133: 48 | CH133: 48 | CI133: 49 | CJ133: 47 | CK133: 45 | CL133: 55 | CM133: 59 | CN133: 64 | CO133: 62 | CP133: 61 | CQ133: 63 | CR133: 65 | CS133: 61 | CT133: 54 | CU133: 74 | CV133: 71 | CW133: 69 | CX133: 68 | CY133: 70 | CZ133: 68 | DA133: 67 | DB133: 66 | DC133: 71 | DD133: 74 | DE133: 72 | DF133: 72 | DG133: 72 | DH133: 78 | DI133: 77 | DJ133: 77 | DK133: 73 | DL133: 80 | DM133: 82 | DN133: 64 | DO133: 59 | DP133: 54 | DQ133: 59 | DR133: 60 | DS133: 59 | DT133: 54 | DU133: 62 | DV133: 68 | DW133: 42 | DX133: 54 | DY133: 67 | DZ133: 65 | EA133: 48 | EB133: 53 | EC133: 46 | ED133: 50 | EE133: 67 | EF133: 54 | EG133: 56
A134: Neumünster | B134: Rendsburg | C134: 1004000 | D134: 1058135 | E134: 33,560 | F134: 54.07339,9.98332 | G134: 54.3081,9.66072 | H134: 2.0 | I134: 1.0 | J134: 2.0 | K134: 2.0 | L134: 106,814 | M134: 39,260 | N134: 0 | O134: 11,813 | P134: 0 | Q134: 27,393 | R134: 0 | S134: 0 | T134: 0 | U134: 51 | V134: 31 | W134: 40 | X134: 25 | Y134: 36 | Z134: 48 | AA134: 65 | AB134: 42 | AC134: 33 | AD134: 41 | AE134: 52 | AF134: 37 | AG134: 32 | AH134: 41 | AI134: 56 | AJ134: 38 | AK134: 30 | AL134: 36 | AM134: 45 | AN134: 33 | AO134: 38 | AP134: 44 | AQ134: 53 | AR134: 68 | AS134: 50 | AT134: 42 | AU134: 46 | AV134: 55 | AW134: 45 | AX134: 42 | AY134: 47 | AZ134: 60 | BA134: 47 | BB134: 40 | BC134: 44 | BD134: 50 | BE134: 42 | BF134: 30 | BG134: 28 | BH134: 31 | BI134: 40 | BJ134: 38 | BK134: 41 | BL134: 28 | BM134: 35 | BN134: 39,680 | BO134: 0 | BP134: 0 | BQ134: 0 | BR134: 39 | BS134: 33 | BT134: 35 | BU134: 38 | BV134: 40 | BW134: 40 | BX134: 40 | BY134: 40 | BZ134: 40 | CA134: 38 | CB134: 36 | CC134: 35 | CD134: 35 | CE134: 37 | CF134: 35 | CG134: 36 | CH134: 35 | CI134: 35 | CJ134: 34 | CK134: 33 | CL134: 36 | CM134: 42 | CN134: 50 | CO134: 46 | CP134: 45 | CQ134: 45 | CR134: 48 | CS134: 43 | CT134: 38 | CU134: 76 | CV134: 71 | CW134: 66 | CX134: 62 | CY134: 63 | CZ134: 62 | DA134: 62 | DB134: 63 | DC134: 66 | DD134: 69 | DE134: 71 | DF134: 71 | DG134: 67 | DH134: 72 | DI134: 69 | DJ134: 71 | DK134: 72 | DL134: 74 | DM134: 74 | DN134: 69 | DO134: 59 | DP134: 49 | DQ134: 54 | DR134: 55 | DS134: 55 | DT134: 53 | DU134: 58 | DV134: 66 | DW134: 36 | DX134: 40 | DY134: 65 | DZ134: 50 | EA134: 42 | EB134: 48 | EC134: 36 | ED134: 44 | EE134: 68 | EF134: 50 | EG134: 53
A135: Neumünster | B135: Kappeln | C135: 1004000 | D135: 1059045 | E135: 65,360 | F135: 54.07339,9.98332 | G135: 54.65951,9.92249 | H135: 2.0 | I135: 1.0 | J135: 2.0 | K135: 2.0 | L135: 87,906 | M135: 84,570 | N135: 31,649 | O135: 51,079 | P135: 0 | Q135: 1,793 | R135: 0 | S135: 0 | T135: 0 | U135: 51 | V135: 57 | W135: 69 | X135: 48 | Y135: 64 | Z135: 78 | AA135: 96 | AB135: 71 | AC135: 64 | AD135: 77 | AE135: 95 | AF135: 71 | AG135: 63 | AH135: 75 | AI135: 96 | AJ135: 72 | AK135: 58 | AL135: 68 | AM135: 81 | AN135: 63 | AO135: 66 | AP135: 72 | AQ135: 82 | AR135: 97 | AS135: 78 | AT135: 72 | AU135: 81 | AV135: 96 | AW135: 78 | AX135: 72 | AY135: 80 | AZ135: 97 | BA135: 79 | BB135: 69 | BC135: 74 | BD135: 83 | BE135: 72 | BF135: 59 | BG135: 55 | BH135: 59 | BI135: 70 | BJ135: 68 | BK135: 70 | BL135: 54 | BM135: 67 | BN135: 85,000 | BO135: 0 | BP135: 0 | BQ135: 0 | BR135: 70 | BS135: 63 | BT135: 65 | BU135: 69 | BV135: 71 | BW135: 70 | BX135: 74 | BY135: 74 | BZ135: 72 | CA135: 69 | CB135: 66 | CC135: 66 | CD135: 63 | CE135: 65 | CF135: 63 | CG135: 65 | CH135: 64 | CI135: 65 | CJ135: 62 | CK135: 60 | CL135: 73 | CM135: 79 | CN135: 86 | CO135: 84 | CP135: 83 | CQ135: 83 | CR135: 84 | CS135: 79 | CT135: 71 | CU135: 81 | CV135: 79 | CW135: 77 | CX135: 74 | CY135: 75 | CZ135: 72 | DA135: 72 | DB135: 72 | DC135: 76 | DD135: 80 | DE135: 77 | DF135: 85 | DG135: 82 | DH135: 84 | DI135: 82 | DJ135: 83 | DK135: 80 | DL135: 86 | DM135: 88 | DN135: 70 | DO135: 67 | DP135: 62 | DQ135: 63 | DR135: 64 | DS135: 64 | DT135: 61 | DU135: 68 | DV135: 75 | DW135: 64 | DX135: 72 | DY135: 96 | DZ135: 86 | EA135: 72 | EB135: 78 | EC135: 70 | ED135: 72 | EE135: 97 | EF135: 79 | EG135: 82
A136: Neumünster | B136: Schleswig | C136: 1004000 | D136: 1059075 | E136: 57,100 | F136: 54.07339,9.98332 | G136: 54.52372,9.56332 | H136: 2.0 | I136: 1.0 | J136: 2.0 | K136: 2.0 | L136: 103,463 | M136: 64,660 | N136: 50,414 | O136: 7,665 | P136: 1,392 | Q136: 1,793 | R136: 3,250 | S136: 0 | T136: 0 | U136: 145 | V136: 41 | W136: 54 | X136: 33 | Y136: 44 | Z136: 56 | AA136: 70 | AB136: 50 | AC136: 44 | AD136: 55 | AE136: 67 | AF136: 49 | AG136: 44 | AH136: 54 | AI136: 67 | AJ136: 50 | AK136: 41 | AL136: 51 | AM136: 62 | AN136: 45 | AO136: 51 | AP136: 56 | AQ136: 62 | AR136: 71 | AS136: 60 | AT136: 56 | AU136: 61 | AV136: 69 | AW136: 60 | AX136: 56 | AY136: 61 | AZ136: 70 | BA136: 60 | BB136: 54 | BC136: 58 | BD136: 64 | BE136: 57 | BF136: 41 | BG136: 38 | BH136: 41 | BI136: 54 | BJ136: 52 | BK136: 54 | BL136: 35 | BM136: 45 | BN136: 65,010 | BO136: 0 | BP136: 0 | BQ136: 0 | BR136: 50 | BS136: 46 | BT136: 50 | BU136: 51 | BV136: 51 | BW136: 50 | BX136: 51 | BY136: 51 | BZ136: 50 | CA136: 49 | CB136: 48 | CC136: 47 | CD136: 46 | CE136: 45 | CF136: 44 | CG136: 45 | CH136: 45 | CI136: 45 | CJ136: 44 | CK136: 43 | CL136: 58 | CM136: 60 | CN136: 63 | CO136: 62 | CP136: 62 | CQ136: 62 | CR136: 63 | CS136: 61 | CT136: 57 | CU136: 91 | CV136: 84 | CW136: 82 | CX136: 82 | CY136: 84 | CZ136: 82 | DA136: 82 | DB136: 84 | DC136: 85 | DD136: 88 | DE136: 90 | DF136: 92 | DG136: 93 | DH136: 95 | DI136: 93 | DJ136: 94 | DK136: 95 | DL136: 96 | DM136: 98 | DN136: 73 | DO136: 70 | DP136: 67 | DQ136: 68 | DR136: 68 | DS136: 67 | DT136: 67 | DU136: 69 | DV136: 73 | DW136: 44 | DX136: 51 | DY136: 70 | DZ136: 63 | EA136: 50 | EB136: 56 | EC136: 49 | ED136: 56 | EE136: 71 | EF136: 60 | EG136: 62
A137: Neumünster | B137: Bad Segeberg | C137: 1004000 | D137: 1060005 | E137: 25,910 | F137: 54.07339,9.98332 | G137: 53.93827,10.30514 | H137: 2.0 | I137: 1.0 | J137: 2.0 | K137: 2.0 | L137: 96,373 | M137: 31,970 | N137: 4,622 | O137: 21,489 | P137: 0 | Q137: 4,679 | R137: 635 | S137: 0 | T137: 0 | U137: 543 | V137: 27 | W137: 29 | X137: 24 | Y137: 32 | Z137: 36 | AA137: 44 | AB137: 34 | AC137: 32 | AD137: 38 | AE137: 45 | AF137: 35 | AG137: 32 | AH137: 38 | AI137: 45 | AJ137: 35 | AK137: 29 | AL137: 33 | AM137: 38 | AN137: 30 | AO137: 28 | AP137: 33 | AQ137: 37 | AR137: 44 | AS137: 35 | AT137: 33 | AU137: 38 | AV137: 45 | AW137: 36 | AX137: 33 | AY137: 38 | AZ137: 45 | BA137: 36 | BB137: 30 | BC137: 33 | BD137: 39 | BE137: 31 | BF137: 29 | BG137: 26 | BH137: 28 | BI137: 30 | BJ137: 29 | BK137: 30 | BL137: 29 | BM137: 37 | BN137: 38,840 | BO137: 0 | BP137: 0 | BQ137: 0 | BR137: 36 | BS137: 28 | BT137: 33 | BU137: 35 | BV137: 36 | BW137: 36 | BX137: 37 | BY137: 37 | BZ137: 36 | CA137: 35 | CB137: 33 | CC137: 33 | CD137: 32 | CE137: 33 | CF137: 32 | CG137: 33 | CH137: 33 | CI137: 33 | CJ137: 32 | CK137: 31 | CL137: 35 | CM137: 39 | CN137: 42 | CO137: 41 | CP137: 41 | CQ137: 43 | CR137: 42 | CS137: 39 | CT137: 36 | CU137: 68 | CV137: 67 | CW137: 64 | CX137: 63 | CY137: 62 | CZ137: 61 | DA137: 60 | DB137: 61 | DC137: 63 | DD137: 67 | DE137: 69 | DF137: 70 | DG137: 68 | DH137: 69 | DI137: 69 | DJ137: 68 | DK137: 68 | DL137: 70 | DM137: 72 | DN137: 64 | DO137: 57 | DP137: 54 | DQ137: 54 | DR137: 54 | DS137: 52 | DT137: 53 | DU137: 57 | DV137: 62 | DW137: 32 | DX137: 36 | DY137: 45 | DZ137: 42 | EA137: 35 | EB137: 38 | EC137: 35 | ED137: 33 | EE137: 45 | EF137: 36 | EG137: 38
A138: Neumünster | B138: Kaltenkirchen | C138: 1004000 | D138: 1060044 | E138: 27,030 | F138: 54.07339,9.98332 | G138: 53.83094,9.95906 | H138: 2.0 | I138: 1.0 | J138: 2.0 | K138: 2.0 | L138: 99,528 | M138: 32,930 | N138: 24,716 | O138: 3,114 | P138: 3,023 | Q138: 1,550 | R138: 460 | S138: 0 | T138: 0 | U138: 71 | V138: 24 | W138: 29 | X138: 22 | Y138: 28 | Z138: 35 | AA138: 48 | AB138: 33 | AC138: 30 | AD138: 39 | AE138: 51 | AF138: 36 | AG138: 30 | AH138: 39 | AI138: 53 | AJ138: 36 | AK138: 28 | AL138: 33 | AM138: 39 | AN138: 31 | AO138: 28 | AP138: 31 | AQ138: 37 | AR138: 48 | AS138: 36 | AT138: 33 | AU138: 39 | AV138: 51 | AW138: 37 | AX138: 33 | AY138: 40 | AZ138: 53 | BA138: 38 | BB138: 30 | BC138: 34 | BD138: 40 | BE138: 33 | BF138: 28 | BG138: 23 | BH138: 24 | BI138: 31 | BJ138: 28 | BK138: 30 | BL138: 19 | BM138: 28 | BN138: 32,860 | BO138: 0 | BP138: 0 | BQ138: 0 | BR138: 34 | BS138: 25 | BT138: 29 | BU138: 30 | BV138: 32 | BW138: 33 | BX138: 35 | BY138: 35 | BZ138: 35 | CA138: 34 | CB138: 31 | CC138: 29 | CD138: 28 | CE138: 29 | CF138: 29 | CG138: 30 | CH138: 30 | CI138: 30 | CJ138: 30 | CK138: 28 | CL138: 32 | CM138: 35 | CN138: 39 | CO138: 37 | CP138: 39 | CQ138: 41 | CR138: 42 | CS138: 39 | CT138: 35 | CU138: 81 | CV138: 68 | CW138: 65 | CX138: 62 | CY138: 61 | CZ138: 58 | DA138: 57 | DB138: 57 | DC138: 59 | DD138: 64 | DE138: 69 | DF138: 71 | DG138: 70 | DH138: 70 | DI138: 65 | DJ138: 66 | DK138: 65 | DL138: 67 | DM138: 70 | DN138: 63 | DO138: 58 | DP138: 51 | DQ138: 53 | DR138: 50 | DS138: 48 | DT138: 47 | DU138: 51 | DV138: 57 | DW138: 30 | DX138: 35 | DY138: 53 | DZ138: 42 | EA138: 36 | EB138: 39 | EC138: 34 | ED138: 33 | EE138: 53 | EF138: 38 | EG138: 40
A139: Neumünster | B139: Norderstedt | C139: 1004000 | D139: 1060063 | E139: 41,700 | F139: 54.07339,9.98332 | G139: 53.69891,10.00136 | H139: 2.0 | I139: 1.0 | J139: 2.0 | K139: 2.0 | L139: 155,909 | M139: 50,900 | N139: 37,142 | O139: 3,114 | P139: 2,821 | Q139: 4,699 | R139: 1,732 | S139: 0 | T139: 1,394 | U139: 0 | V139: 37 | W139: 45 | X139: 35 | Y139: 45 | Z139: 57 | AA139: 77 | AB139: 54 | AC139: 46 | AD139: 57 | AE139: 72 | AF139: 52 | AG139: 47 | AH139: 59 | AI139: 79 | AJ139: 55 | AK139: 42 | AL139: 51 | AM139: 60 | AN139: 47 | AO139: 43 | AP139: 50 | AQ139: 59 | AR139: 78 | AS139: 57 | AT139: 50 | AU139: 58 | AV139: 72 | AW139: 56 | AX139: 51 | AY139: 61 | AZ139: 79 | BA139: 58 | BB139: 47 | BC139: 53 | BD139: 61 | BE139: 51 | BF139: 43 | BG139: 36 | BH139: 38 | BI139: 47 | BJ139: 44 | BK139: 46 | BL139: 30 | BM139: 51 | BN139: 50,470 | BO139: 0 | BP139: 0 | BQ139: 0 | BR139: 51 | BS139: 39 | BT139: 45 | BU139: 51 | BV139: 56 | BW139: 53 | BX139: 53 | BY139: 53 | BZ139: 52 | CA139: 51 | CB139: 48 | CC139: 42 | CD139: 45 | CE139: 48 | CF139: 46 | CG139: 46 | CH139: 46 | CI139: 45 | CJ139: 44 | CK139: 43 | CL139: 49 | CM139: 66 | CN139: 76 | CO139: 67 | CP139: 63 | CQ139: 65 | CR139: 67 | CS139: 61 | CT139: 53 | CU139: 84 | CV139: 73 | CW139: 65 | CX139: 59 | CY139: 62 | CZ139: 62 | DA139: 61 | DB139: 63 | DC139: 65 | DD139: 69 | DE139: 78 | DF139: 73 | DG139: 68 | DH139: 72 | DI139: 72 | DJ139: 71 | DK139: 72 | DL139: 74 | DM139: 77 | DN139: 67 | DO139: 50 | DP139: 43 | DQ139: 49 | DR139: 52 | DS139: 50 | DT139: 49 | DU139: 54 | DV139: 62 | DW139: 47 | DX139: 56 | DY139: 79 | DZ139: 76 | EA139: 55 | EB139: 59 | EC139: 50 | ED139: 51 | EE139: 79 | EF139: 58 | EG139: 61
A140: Neumünster | B140: Itzehoe | C140: 1004000 | D140: 1061046 | E140: 35,100 | F140: 54.07339,9.98332 | G140: 53.93182,9.50492 | H140: 2.0 | I140: 1.0 | J140: 2.0 | K140: 2.0 | L140: 110,968 | M140: 44,220 | N140: 0 | O140: 41,975 | P140: 0 | Q140: 1,550 | R140: 0 | S140: 0 | T140: 699 | U140: 0 | V140: 35 | W140: 38 | X140: 30 | Y140: 41 | Z140: 50 | AA140: 63 | AB140: 46 | AC140: 42 | AD140: 50 | AE140: 61 | AF140: 46 | AG140: 41 | AH140: 50 | AI140: 64 | AJ140: 47 | AK140: 36 | AL140: 41 | AM140: 48 | AN140: 39 | AO140: 36 | AP140: 42 | AQ140: 50 | AR140: 63 | AS140: 46 | AT140: 42 | AU140: 50 | AV140: 61 | AW140: 46 | AX140: 42 | AY140: 50 | AZ140: 64 | BA140: 47 | BB140: 38 | BC140: 42 | BD140: 48 | BE140: 41 | BF140: 37 | BG140: 34 | BH140: 36 | BI140: 39 | BJ140: 37 | BK140: 39 | BL140: 33 | BM140: 40 | BN140: 39,380 | BO140: 0 | BP140: 0 | BQ140: 0 | BR140: 44 | BS140: 37 | BT140: 40 | BU140: 41 | BV140: 44 | BW140: 44 | BX140: 46 | BY140: 46 | BZ140: 45 | CA140: 43 | CB140: 40 | CC140: 39 | CD140: 39 | CE140: 40 | CF140: 39 | CG140: 40 | CH140: 40 | CI140: 40 | CJ140: 39 | CK140: 37 | CL140: 40 | CM140: 45 | CN140: 51 | CO140: 49 | CP140: 49 | CQ140: 49 | CR140: 51 | CS140: 49 | CT140: 41 | CU140: 63 | CV140: 59 | CW140: 57 | CX140: 53 | CY140: 54 | CZ140: 52 | DA140: 52 | DB140: 52 | DC140: 54 | DD140: 60 | DE140: 60 | DF140: 60 | DG140: 59 | DH140: 61 | DI140: 58 | DJ140: 58 | DK140: 58 | DL140: 60 | DM140: 63 | DN140: 59 | DO140: 52 | DP140: 46 | DQ140: 48 | DR140: 48 | DS140: 48 | DT140: 46 | DU140: 48 | DV140: 57 | DW140: 41 | DX140: 45 | DY140: 64 | DZ140: 51 | EA140: 47 | EB140: 50 | EC140: 43 | ED140: 42 | EE140: 64 | EF140: 47 | EG140: 50
A141: Neumünster | B141: Ahrensburg | C141: 1004000 | D141: 1062001 | E141: 47,250 | F141: 54.07339,9.98332 | G141: 53.67645,10.23797 | H141: 2.0 | I141: 1.0 | J141: 2.0 | K141: 2.0 | L141: 111,803 | M141: 61,640 | N141: 21,751 | O141: 34,494 | P141: 0 | Q141: 4,679 | R141: 74 | S141: 0 | T141: 591 | U141: 50 | V141: 47 | W141: 53 | X141: 42 | Y141: 56 | Z141: 69 | AA141: 90 | AB141: 63 | AC141: 54 | AD141: 64 | AE141: 76 | AF141: 59 | AG141: 54 | AH141: 64 | AI141: 78 | AJ141: 59 | AK141: 49 | AL141: 57 | AM141: 67 | AN141: 53 | AO141: 51 | AP141: 61 | AQ141: 73 | AR141: 91 | AS141: 68 | AT141: 59 | AU141: 66 | AV141: 77 | AW141: 63 | AX141: 58 | AY141: 67 | AZ141: 79 | BA141: 63 | BB141: 54 | BC141: 60 | BD141: 69 | BE141: 57 | BF141: 51 | BG141: 46 | BH141: 49 | BI141: 55 | BJ141: 53 | BK141: 55 | BL141: 45 | BM141: 54 | BN141: 66,640 | BO141: 0 | BP141: 0 | BQ141: 0 | BR141: 58 | BS141: 52 | BT141: 55 | BU141: 57 | BV141: 60 | BW141: 58 | BX141: 59 | BY141: 59 | BZ141: 58 | CA141: 56 | CB141: 54 | CC141: 53 | CD141: 52 | CE141: 54 | CF141: 52 | CG141: 53 | CH141: 53 | CI141: 53 | CJ141: 51 | CK141: 50 | CL141: 57 | CM141: 67 | CN141: 74 | CO141: 67 | CP141: 67 | CQ141: 68 | CR141: 67 | CS141: 64 | CT141: 60 | CU141: 82 | CV141: 78 | CW141: 74 | CX141: 71 | CY141: 73 | CZ141: 72 | DA141: 72 | DB141: 74 | DC141: 76 | DD141: 78 | DE141: 81 | DF141: 82 | DG141: 78 | DH141: 82 | DI141: 80 | DJ141: 81 | DK141: 80 | DL141: 83 | DM141: 84 | DN141: 75 | DO141: 63 | DP141: 57 | DQ141: 63 | DR141: 64 | DS141: 63 | DT141: 64 | DU141: 67 | DV141: 71 | DW141: 56 | DX141: 60 | DY141: 90 | DZ141: 74 | EA141: 63 | EB141: 69 | EC141: 59 | ED141: 61 | EE141: 91 | EF141: 68 | EG141: 73
A142: Neumünster | B142: Bad Oldesloe | C142: 1004000 | D142: 1062004 | E142: 39,520 | F142: 54.07339,9.98332 | G142: 53.80762,10.38228 | H142: 2.0 | I142: 1.0 | J142: 2.0 | K142: 2.0 | L142: 104,135 | M142: 48,080 | N142: 19,149 | O142: 20,822 | P142: 0 | Q142: 5,468 | R142: 2,639 | S142: 0 | T142: 0 | U142: 0 | V142: 36 | W142: 42 | X142: 32 | Y142: 42 | Z142: 48 | AA142: 58 | AB142: 45 | AC142: 42 | AD142: 49 | AE142: 57 | AF142: 45 | AG142: 42 | AH142: 48 | AI142: 58 | AJ142: 45 | AK142: 38 | AL142: 44 | AM142: 51 | AN142: 40 | AO142: 40 | AP142: 46 | AQ142: 51 | AR142: 60 | AS142: 49 | AT142: 46 | AU142: 51 | AV142: 58 | AW142: 48 | AX142: 46 | AY142: 51 | AZ142: 59 | BA142: 49 | BB142: 43 | BC142: 47 | BD142: 52 | BE142: 44 | BF142: 40 | BG142: 36 | BH142: 38 | BI142: 44 | BJ142: 42 | BK142: 43 | BL142: 35 | BM142: 40 | BN142: 53,260 | BO142: 0 | BP142: 0 | BQ142: 0 | BR142: 46 | BS142: 39 | BT142: 44 | BU142: 45 | BV142: 46 | BW142: 46 | BX142: 47 | BY142: 47 | BZ142: 46 | CA142: 45 | CB142: 43 | CC142: 43 | CD142: 42 | CE142: 42 | CF142: 42 | CG142: 43 | CH142: 43 | CI142: 43 | CJ142: 41 | CK142: 40 | CL142: 47 | CM142: 51 | CN142: 54 | CO142: 52 | CP142: 52 | CQ142: 53 | CR142: 53 | CS142: 50 | CT142: 47 | CU142: 76 | CV142: 73 | CW142: 71 | CX142: 69 | CY142: 69 | CZ142: 69 | DA142: 69 | DB142: 70 | DC142: 71 | DD142: 74 | DE142: 75 | DF142: 77 | DG142: 76 | DH142: 77 | DI142: 75 | DJ142: 76 | DK142: 76 | DL142: 78 | DM142: 80 | DN142: 69 | DO142: 63 | DP142: 60 | DQ142: 62 | DR142: 62 | DS142: 60 | DT142: 61 | DU142: 64 | DV142: 69 | DW142: 42 | DX142: 46 | DY142: 58 | DZ142: 54 | EA142: 45 | EB142: 48 | EC142: 46 | ED142: 46 | EE142: 60 | EF142: 49 | EG142: 51
A143: Neumünster | B143: Hemmoor | C143: 1004000 | D143: 3352022 | E143: 69,190 | F143: 54.07339,9.98332 | G143: 53.7023,9.13907 | H143: 2.0 | I143: 1.0 | J143: 2.0 | K143: 2.0 | L143: 88,058 | M143: 135,300 | N143: 71,224 | O143: 33,714 | P143: 202 | Q143: 21,818 | R143: 7,781 | S143: 0 | T143: 0 | U143: 557 | V143: 100 | W143: 117 | X143: 92 | Y143: 116 | Z143: 137 | AA143: 169 | AB143: 129 | AC143: 117 | AD143: 134 | AE143: 158 | AF143: 127 | AG143: 121 | AH143: 145 | AI143: 189 | AJ143: 139 | AK143: 109 | AL143: 123 | AM143: 139 | AN143: 115 | AO143: 113 | AP143: 125 | AQ143: 141 | AR143: 170 | AS143: 136 | AT143: 125 | AU143: 137 | AV143: 159 | AW143: 133 | AX143: 129 | AY143: 148 | AZ143: 191 | BA143: 146 | BB143: 119 | BC143: 127 | BD143: 141 | BE143: 123 | BF143: 114 | BG143: 103 | BH143: 107 | BI143: 123 | BJ143: 120 | BK143: 122 | BL143: 100 | BM143: 164 | BN143: 141,450 | BO143: 0 | BP143: 0 | BQ143: 0 | BR143: 123 | BS143: 104 | BT143: 114 | BU143: 124 | BV143: 127 | BW143: 126 | BX143: 127 | BY143: 132 | BZ143: 127 | CA143: 120 | CB143: 114 | CC143: 108 | CD143: 120 | CE143: 122 | CF143: 114 | CG143: 115 | CH143: 123 | CI143: 123 | CJ143: 111 | CK143: 106 | CL143: 123 | CM143: 132 | CN143: 138 | CO143: 149 | CP143: 146 | CQ143: 142 | CR143: 139 | CS143: 138 | CT143: 125 | CU143: 78 | CV143: 71 | CW143: 57 | CX143: 51 | CY143: 60 | CZ143: 64 | DA143: 41 | DB143: 55 | DC143: 67 | DD143: 71 | DE143: 75 | DF143: 45 | DG143: 44 | DH143: 71 | DI143: 70 | DJ143: 44 | DK143: 44 | DL143: 73 | DM143: 76 | DN143: 66 | DO143: 41 | DP143: 39 | DQ143: 54 | DR143: 55 | DS143: 38 | DT143: 39 | DU143: 59 | DV143: 65 | DW143: 121 | DX143: 127 | DY143: 189 | DZ143: 139 | EA143: 139 | EB143: 145 | EC143: 131 | ED143: 129 | EE143: 191 | EF143: 146 | EG143: 148
A144: Neumünster | B144: Stade | C144: 1004000 | D144: 3359038 | E144: 63,220 | F144: 54.07339,9.98332 | G144: 53.5932,9.47033 | H144: 2.0 | I144: 1.0 | J144: 2.0 | K144: 2.0 | L144: 125,575 | M144: 107,540 | N144: 71,224 | O144: 4,808 | P144: 474 | Q144: 21,818 | R144: 8,833 | S144: 0 | T144: 0 | U144: 389 | V144: 76 | W144: 92 | X144: 71 | Y144: 91 | Z144: 108 | AA144: 136 | AB144: 101 | AC144: 91 | AD144: 104 | AE144: 123 | AF144: 98 | AG144: 92 | AH144: 111 | AI144: 149 | AJ144: 108 | AK144: 85 | AL144: 96 | AM144: 110 | AN144: 89 | AO144: 90 | AP144: 99 | AQ144: 112 | AR144: 137 | AS144: 108 | AT144: 98 | AU144: 107 | AV144: 124 | AW144: 104 | AX144: 100 | AY144: 115 | AZ144: 151 | BA144: 114 | BB144: 94 | BC144: 100 | BD144: 112 | BE144: 98 | BF144: 88 | BG144: 79 | BH144: 81 | BI144: 97 | BJ144: 94 | BK144: 95 | BL144: 76 | BM144: 131 | BN144: 113,250 | BO144: 0 | BP144: 0 | BQ144: 0 | BR144: 95 | BS144: 79 | BT144: 88 | BU144: 97 | BV144: 102 | BW144: 99 | BX144: 98 | BY144: 105 | BZ144: 101 | CA144: 94 | CB144: 89 | CC144: 82 | CD144: 89 | CE144: 92 | CF144: 88 | CG144: 89 | CH144: 90 | CI144: 92 | CJ144: 87 | CK144: 82 | CL144: 96 | CM144: 131 | CN144: 140 | CO144: 116 | CP144: 113 | CQ144: 128 | CR144: 126 | CS144: 110 | CT144: 99 | CU144: 82 | CV144: 74 | CW144: 66 | CX144: 63 | CY144: 65 | CZ144: 66 | DA144: 62 | DB144: 64 | DC144: 69 | DD144: 72 | DE144: 78 | DF144: 73 | DG144: 70 | DH144: 73 | DI144: 72 | DJ144: 72 | DK144: 70 | DL144: 74 | DM144: 79 | DN144: 67 | DO144: 49 | DP144: 46 | DQ144: 56 | DR144: 57 | DS144: 50 | DT144: 51 | DU144: 58 | DV144: 65 | DW144: 92 | DX144: 102 | DY144: 149 | DZ144: 140 | EA144: 108 | EB144: 111 | EC144: 102 | ED144: 100 | EE144: 151 | EF144: 114 | EG144: 115
A145: Brunsbüttel | B145: Neumünster | C145: 1051011 | D145: 1004000 | E145: 59,000 | F145: 53.89927,9.13374 | G145: 54.07339,9.98332 | H145: 2.0 | I145: 1.0 | J145: 2.0 | K145: 2.0 | L145: 91,937 | M145: 69,200 | N145: 0 | O145: 47,098 | P145: 16,883 | Q145: 430 | R145: 1,897 | S145: 560 | T145: 2,013 | U145: 318 | V145: 58 | W145: 62 | X145: 50 | Y145: 69 | Z145: 85 | AA145: 112 | AB145: 80 | AC145: 68 | AD145: 80 | AE145: 98 | AF145: 75 | AG145: 67 | AH145: 80 | AI145: 98 | AJ145: 74 | AK145: 60 | AL145: 68 | AM145: 80 | AN145: 64 | AO145: 58 | AP145: 70 | AQ145: 86 | AR145: 112 | AS145: 80 | AT145: 69 | AU145: 80 | AV145: 98 | AW145: 75 | AX145: 68 | AY145: 80 | AZ145: 98 | BA145: 75 | BB145: 63 | BC145: 69 | BD145: 80 | BE145: 66 | BF145: 61 | BG145: 55 | BH145: 59 | BI145: 64 | BJ145: 61 | BK145: 63 | BL145: 55 | BM145: 66 | BN145: 67,790 | BO145: 0 | BP145: 0 | BQ145: 0 | BR145: 71 | BS145: 60 | BT145: 67 | BU145: 72 | BV145: 73 | BW145: 73 | BX145: 75 | BY145: 74 | BZ145: 71 | CA145: 70 | CB145: 65 | CC145: 65 | CD145: 65 | CE145: 67 | CF145: 67 | CG145: 69 | CH145: 68 | CI145: 65 | CJ145: 65 | CK145: 64 | CL145: 69 | CM145: 79 | CN145: 89 | CO145: 84 | CP145: 83 | CQ145: 83 | CR145: 79 | CS145: 75 | CT145: 69 | CU145: 74 | CV145: 64 | CW145: 62 | CX145: 63 | CY145: 61 | CZ145: 59 | DA145: 62 | DB145: 63 | DC145: 63 | DD145: 68 | DE145: 68 | DF145: 68 | DG145: 66 | DH145: 66 | DI145: 64 | DJ145: 65 | DK145: 68 | DL145: 68 | DM145: 69 | DN145: 64 | DO145: 56 | DP145: 49 | DQ145: 52 | DR145: 53 | DS145: 53 | DT145: 56 | DU145: 59 | DV145: 64 | DW145: 69 | DX145: 73 | DY145: 112 | DZ145: 89 | EA145: 80 | EB145: 85 | EC145: 72 | ED145: 70 | EE145: 112 | EF145: 80 | EG145: 86
A146: Brunsbüttel | B146: Heide | C146: 1051011 | D146: 1051044 | E146: 33,040 | F146: 53.89927,9.13374 | G146: 54.19548,9.10174 | H146: 2.0 | I146: 1.0 | J146: 2.0 | K146: 2.0 | L146: 34,162 | M146: 43,260 | N146: 0 | O146: 39,135 | P146: 0 | Q146: 0 | R146: 2,503 | S146: 0 | T146: 1,307 | U146: 318 | V146: 37 | W146: 39 | X146: 32 | Y146: 42 | Z146: 50 | AA146: 62 | AB146: 47 | AC146: 42 | AD146: 50 | AE146: 62 | AF146: 47 | AG146: 42 | AH146: 50 | AI146: 62 | AJ146: 47 | AK146: 38 | AL146: 43 | AM146: 50 | AN146: 41 | AO146: 37 | AP146: 43 | AQ146: 50 | AR146: 62 | AS146: 48 | AT146: 43 | AU146: 50 | AV146: 62 | AW146: 48 | AX146: 43 | AY146: 50 | AZ146: 62 | BA146: 48 | BB146: 40 | BC146: 43 | BD146: 51 | BE146: 43 | BF146: 38 | BG146: 35 | BH146: 38 | BI146: 40 | BJ146: 39 | BK146: 40 | BL146: 36 | BM146: 42 | BN146: 37,550 | BO146: 0 | BP146: 0 | BQ146: 0 | BR146: 45 | BS146: 38 | BT146: 41 | BU146: 44 | BV146: 45 | BW146: 45 | BX146: 47 | BY146: 47 | BZ146: 46 | CA146: 44 | CB146: 42 | CC146: 41 | CD146: 42 | CE146: 42 | CF146: 42 | CG146: 43 | CH146: 43 | CI146: 43 | CJ146: 41 | CK146: 41 | CL146: 41 | CM146: 46 | CN146: 51 | CO146: 49 | CP146: 49 | CQ146: 49 | CR146: 50 | CS146: 46 | CT146: 43 | CU146: 69 | CV146: 64 | CW146: 60 | CX146: 58 | CY146: 58 | CZ146: 56 | DA146: 56 | DB146: 57 | DC146: 60 | DD146: 63 | DE146: 65 | DF146: 63 | DG146: 62 | DH146: 63 | DI146: 61 | DJ146: 61 | DK146: 61 | DL146: 64 | DM146: 64 | DN146: 64 | DO146: 57 | DP146: 52 | DQ146: 54 | DR146: 53 | DS146: 54 | DT146: 53 | DU146: 57 | DV146: 60 | DW146: 42 | DX146: 46 | DY146: 62 | DZ146: 51 | EA146: 47 | EB146: 50 | EC146: 46 | ED146: 43 | EE146: 62 | EF146: 48 | EG146: 50
A147: Brunsbüttel | B147: Meldorf | C147: 1051011 | D147: 1051074 | E147: 21,580 | F147: 53.89927,9.13374 | G147: 54.09011,9.07561 | H147: 2.0 | I147: 1.0 | J147: 2.0 | K147: 2.0 | L147: 20,007 | M147: 25,170 | N147: 0 | O147: 0 | P147: 20,093 | Q147: 0 | R147: 4,368 | S147: 0 | T147: 159 | U147: 554 | V147: 26 | W147: 26 | X147: 22 | Y147: 28 | Z147: 32 | AA147: 39 | AB147: 31 | AC147: 29 | AD147: 33 | AE147: 40 | AF147: 32 | AG147: 28 | AH147: 32 | AI147: 39 | AJ147: 31 | AK147: 26 | AL147: 30 | AM147: 34 | AN147: 28 | AO147: 24 | AP147: 28 | AQ147: 32 | AR147: 39 | AS147: 31 | AT147: 29 | AU147: 33 | AV147: 40 | AW147: 32 | AX147: 28 | AY147: 32 | AZ147: 39 | BA147: 31 | BB147: 27 | BC147: 30 | BD147: 34 | BE147: 29 | BF147: 28 | BG147: 26 | BH147: 28 | BI147: 29 | BJ147: 27 | BK147: 29 | BL147: 25 | BM147: 27 | BN147: 25,270 | BO147: 0 | BP147: 0 | BQ147: 0 | BR147: 31 | BS147: 27 | BT147: 29 | BU147: 30 | BV147: 31 | BW147: 31 | BX147: 32 | BY147: 32 | BZ147: 31 | CA147: 30 | CB147: 29 | CC147: 28 | CD147: 29 | CE147: 30 | CF147: 29 | CG147: 30 | CH147: 30 | CI147: 30 | CJ147: 29 | CK147: 28 | CL147: 28 | CM147: 32 | CN147: 34 | CO147: 32 | CP147: 33 | CQ147: 33 | CR147: 34 | CS147: 32 | CT147: 30 | CU147: 68 | CV147: 64 | CW147: 61 | CX147: 60 | CY147: 59 | CZ147: 58 | DA147: 58 | DB147: 59 | DC147: 61 | DD147: 63 | DE147: 66 | DF147: 63 | DG147: 62 | DH147: 63 | DI147: 62 | DJ147: 61 | DK147: 61 | DL147: 63 | DM147: 66 | DN147: 66 | DO147: 58 | DP147: 54 | DQ147: 57 | DR147: 55 | DS147: 56 | DT147: 55 | DU147: 58 | DV147: 61 | DW147: 28 | DX147: 31 | DY147: 39 | DZ147: 34 | EA147: 31 | EB147: 32 | EC147: 31 | ED147: 28 | EE147: 39 | EF147: 31 | EG147: 32
A148: Brunsbüttel | B148: Tönning | C148: 1051011 | D148: 1054138 | E148: 48,070 | F148: 53.89927,9.13374 | G148: 54.31554,8.9383 | H148: 2.0 | I148: 1.0 | J148: 2.0 | K148: 2.0 | L148: 17,635 | M148: 65,420 | N148: 3,621 | O148: 57,384 | P148: 0 | Q148: 0 | R148: 3,563 | S148: 0 | T148: 535 | U148: 318 | V148: 49 | W148: 55 | X148: 43 | Y148: 54 | Z148: 64 | AA148: 75 | AB148: 59 | AC148: 55 | AD148: 63 | AE148: 74 | AF148: 59 | AG148: 53 | AH148: 62 | AI148: 73 | AJ148: 58 | AK148: 49 | AL148: 55 | AM148: 65 | AN148: 52 | AO148: 53 | AP148: 58 | AQ148: 65 | AR148: 76 | AS148: 61 | AT148: 58 | AU148: 64 | AV148: 74 | AW148: 61 | AX148: 58 | AY148: 63 | AZ148: 73 | BA148: 61 | BB148: 55 | BC148: 58 | BD148: 65 | BE148: 57 | BF148: 50 | BG148: 47 | BH148: 50 | BI148: 56 | BJ148: 55 | BK148: 56 | BL148: 48 | BM148: 57 | BN148: 59,610 | BO148: 0 | BP148: 0 | BQ148: 0 | BR148: 59 | BS148: 51 | BT148: 55 | BU148: 59 | BV148: 60 | BW148: 60 | BX148: 62 | BY148: 61 | BZ148: 59 | CA148: 57 | CB148: 55 | CC148: 54 | CD148: 56 | CE148: 56 | CF148: 55 | CG148: 57 | CH148: 57 | CI148: 56 | CJ148: 54 | CK148: 53 | CL148: 56 | CM148: 64 | CN148: 68 | CO148: 65 | CP148: 67 | CQ148: 65 | CR148: 65 | CS148: 61 | CT148: 57 | CU148: 77 | CV148: 71 | CW148: 66 | CX148: 65 | CY148: 65 | CZ148: 63 | DA148: 64 | DB148: 66 | DC148: 68 | DD148: 71 | DE148: 73 | DF148: 70 | DG148: 69 | DH148: 71 | DI148: 69 | DJ148: 69 | DK148: 70 | DL148: 73 | DM148: 74 | DN148: 70 | DO148: 61 | DP148: 58 | DQ148: 60 | DR148: 59 | DS148: 60 | DT148: 60 | DU148: 65 | DV148: 68 | DW148: 54 | DX148: 60 | DY148: 75 | DZ148: 68 | EA148: 59 | EB148: 64 | EC148: 59 | ED148: 58 | EE148: 76 | EF148: 61 | EG148: 65
A149: Brunsbüttel | B149: Elmshorn | C149: 1051011 | D149: 1056015 | E149: 38,650 | F149: 53.89927,9.13374 | G149: 53.75094,9.66449 | H149: 2.0 | I149: 1.0 | J149: 2.0 | K149: 2.0 | L149: 61,424 | M149: 59,440 | N149: 27,377 | O149: 26,460 | P149: 1,431 | Q149: 0 | R149: 3,318 | S149: 0 | T149: 535 | U149: 318 | V149: 39 | W149: 49 | X149: 32 | Y149: 43 | Z149: 53 | AA149: 70 | AB149: 50 | AC149: 42 | AD149: 50 | AE149: 61 | AF149: 46 | AG149: 42 | AH149: 50 | AI149: 63 | AJ149: 47 | AK149: 39 | AL149: 45 | AM149: 54 | AN149: 42 | AO149: 47 | AP149: 52 | AQ149: 60 | AR149: 74 | AS149: 57 | AT149: 51 | AU149: 55 | AV149: 63 | AW149: 53 | AX149: 52 | AY149: 57 | AZ149: 66 | BA149: 55 | BB149: 49 | BC149: 52 | BD149: 58 | BE149: 51 | BF149: 41 | BG149: 38 | BH149: 40 | BI149: 49 | BJ149: 48 | BK149: 49 | BL149: 37 | BM149: 45 | BN149: 57,910 | BO149: 0 | BP149: 0 | BQ149: 0 | BR149: 45 | BS149: 40 | BT149: 46 | BU149: 45 | BV149: 46 | BW149: 45 | BX149: 47 | BY149: 47 | BZ149: 45 | CA149: 44 | CB149: 43 | CC149: 44 | CD149: 41 | CE149: 41 | CF149: 42 | CG149: 43 | CH149: 44 | CI149: 41 | CJ149: 40 | CK149: 42 | CL149: 52 | CM149: 52 | CN149: 56 | CO149: 56 | CP149: 56 | CQ149: 57 | CR149: 55 | CS149: 52 | CT149: 49 | CU149: 88 | CV149: 77 | CW149: 78 | CX149: 77 | CY149: 78 | CZ149: 76 | DA149: 76 | DB149: 79 | DC149: 81 | DD149: 82 | DE149: 80 | DF149: 87 | DG149: 87 | DH149: 84 | DI149: 82 | DJ149: 81 | DK149: 86 | DL149: 88 | DM149: 84 | DN149: 69 | DO149: 68 | DP149: 64 | DQ149: 63 | DR149: 63 | DS149: 62 | DT149: 64 | DU149: 69 | DV149: 72 | DW149: 43 | DX149: 46 | DY149: 70 | DZ149: 56 | EA149: 50 | EB149: 53 | EC149: 47 | ED149: 52 | EE149: 74 | EF149: 57 | EG149: 60
A150: Brunsbüttel | B150: Rendsburg | C150: 1051011 | D150: 1058135 | E150: 57,090 | F150: 53.89927,9.13374 | G150: 54.3081,9.66072 | H150: 2.0 | I150: 1.0 | J150: 2.0 | K150: 2.0 | L150: 40,357 | M150: 78,670 | N150: 0 | O150: 72,428 | P150: 0 | Q150: 2,832 | R150: 1,897 | S150: 0 | T150: 1,194 | U150: 318 | V150: 63 | W150: 69 | X150: 54 | Y150: 74 | Z150: 94 | AA150: 123 | AB150: 85 | AC150: 70 | AD150: 82 | AE150: 100 | AF150: 76 | AG150: 68 | AH150: 82 | AI150: 103 | AJ150: 76 | AK150: 63 | AL150: 72 | AM150: 85 | AN150: 68 | AO150: 64 | AP150: 77 | AQ150: 95 | AR150: 123 | AS150: 87 | AT150: 73 | AU150: 83 | AV150: 100 | AW150: 78 | AX150: 72 | AY150: 82 | AZ150: 103 | BA150: 79 | BB150: 68 | BC150: 74 | BD150: 85 | BE150: 72 | BF150: 64 | BG150: 59 | BH150: 64 | BI150: 69 | BJ150: 67 | BK150: 70 | BL150: 60 | BM150: 67 | BN150: 74,330 | BO150: 0 | BP150: 0 | BQ150: 0 | BR150: 75 | BS150: 65 | BT150: 72 | BU150: 76 | BV150: 77 | BW150: 77 | BX150: 78 | BY150: 78 | BZ150: 75 | CA150: 73 | CB150: 70 | CC150: 71 | CD150: 70 | CE150: 70 | CF150: 71 | CG150: 73 | CH150: 73 | CI150: 69 | CJ150: 68 | CK150: 68 | CL150: 74 | CM150: 86 | CN150: 86 | CO150: 88 | CP150: 87 | CQ150: 86 | CR150: 81 | CS150: 77 | CT150: 74 | CU150: 74 | CV150: 67 | CW150: 63 | CX150: 64 | CY150: 63 | CZ150: 62 | DA150: 62 | DB150: 65 | DC150: 66 | DD150: 69 | DE150: 68 | DF150: 68 | DG150: 73 | DH150: 68 | DI150: 66 | DJ150: 66 | DK150: 70 | DL150: 71 | DM150: 70 | DN150: 65 | DO150: 56 | DP150: 59 | DQ150: 55 | DR150: 55 | DS150: 56 | DT150: 59 | DU150: 62 | DV150: 65 | DW150: 74 | DX150: 77 | DY150: 123 | DZ150: 86 | EA150: 85 | EB150: 94 | EC150: 76 | ED150: 77 | EE150: 123 | EF150: 87 | EG150: 95
A151: Brunsbüttel | B151: Itzehoe | C151: 1051011 | D151: 1061046 | E151: 24,660 | F151: 53.89927,9.13374 | G151: 53.93182,9.50492 | H151: 2.0 | I151: 1.0 | J151: 2.0 | K151: 2.0 | L151: 44,511 | M151: 29,010 | N151: 0 | O151: 26,256 | P151: 0 | Q151: 0 | R151: 1,897 | S151: 0 | T151: 535 | U151: 318 | V151: 22 | W151: 25 | X151: 20 | Y151: 27 | Z151: 33 | AA151: 44 | AB151: 31 | AC151: 26 | AD151: 29 | AE151: 35 | AF151: 28 | AG151: 25 | AH151: 29 | AI151: 34 | AJ151: 27 | AK151: 23 | AL151: 26 | AM151: 30 | AN151: 24 | AO151: 24 | AP151: 28 | AQ151: 33 | AR151: 44 | AS151: 32 | AT151: 27 | AU151: 30 | AV151: 35 | AW151: 28 | AX151: 26 | AY151: 29 | AZ151: 34 | BA151: 28 | BB151: 25 | BC151: 26 | BD151: 30 | BE151: 25 | BF151: 23 | BG151: 21 | BH151: 22 | BI151: 25 | BJ151: 24 | BK151: 25 | BL151: 21 | BM151: 26 | BN151: 27,840 | BO151: 0 | BP151: 0 | BQ151: 0 | BR151: 26 | BS151: 23 | BT151: 27 | BU151: 27 | BV151: 28 | BW151: 27 | BX151: 28 | BY151: 28 | BZ151: 26 | CA151: 26 | CB151: 25 | CC151: 26 | CD151: 25 | CE151: 25 | CF151: 26 | CG151: 27 | CH151: 27 | CI151: 24 | CJ151: 24 | CK151: 26 | CL151: 29 | CM151: 29 | CN151: 33 | CO151: 32 | CP151: 32 | CQ151: 32 | CR151: 29 | CS151: 28 | CT151: 28 | CU151: 76 | CV151: 66 | CW151: 65 | CX151: 62 | CY151: 64 | CZ151: 63 | DA151: 63 | DB151: 66 | DC151: 68 | DD151: 69 | DE151: 66 | DF151: 70 | DG151: 70 | DH151: 67 | DI151: 64 | DJ151: 64 | DK151: 72 | DL151: 73 | DM151: 68 | DN151: 60 | DO151: 61 | DP151: 52 | DQ151: 54 | DR151: 54 | DS151: 55 | DT151: 59 | DU151: 63 | DV151: 61 | DW151: 27 | DX151: 28 | DY151: 44 | DZ151: 33 | EA151: 31 | EB151: 33 | EC151: 28 | ED151: 28 | EE151: 44 | EF151: 32 | EG151: 33
A152: Brunsbüttel | B152: Cuxhaven | C152: 1051011 | D152: 3352011 | E152: 29,650 | F152: 53.89927,9.13374 | G152: 53.85933,8.68793 | H152: 2.0 | I152: 1.0 | J152: 2.0 | K152: 2.0 | L152: 61,004 | M152: 93,510 | N152: 0 | O152: 60,006 | P152: 24,427 | Q152: 392 | R152: 2,702 | S152: 0 | T152: 535 | U152: 318 | V152: 137 | W152: 141 | X152: 125 | Y152: 145 | Z152: 161 | AA152: 180 | AB152: 152 | AC152: 146 | AD152: 161 | AE152: 180 | AF152: 153 | AG152: 144 | AH152: 161 | AI152: 187 | AJ152: 153 | AK152: 140 | AL152: 153 | AM152: 168 | AN152: 145 | AO152: 135 | AP152: 147 | AQ152: 161 | AR152: 180 | AS152: 153 | AT152: 147 | AU152: 161 | AV152: 180 | AW152: 153 | AX152: 145 | AY152: 161 | AZ152: 187 | BA152: 154 | BB152: 143 | BC152: 153 | BD152: 168 | BE152: 147 | BF152: 143 | BG152: 134 | BH152: 141 | BI152: 147 | BJ152: 141 | BK152: 144 | BL152: 134 | BM152: 181 | BN152: 91,850 | BO152: 0 | BP152: 0 | BQ152: 0 | BR152: 123 | BS152: 113 | BT152: 120 | BU152: 123 | BV152: 124 | BW152: 126 | BX152: 129 | BY152: 128 | BZ152: 124 | CA152: 121 | CB152: 119 | CC152: 120 | CD152: 119 | CE152: 119 | CF152: 119 | CG152: 123 | CH152: 122 | CI152: 119 | CJ152: 118 | CK152: 116 | CL152: 122 | CM152: 132 | CN152: 130 | CO152: 132 | CP152: 135 | CQ152: 134 | CR152: 128 | CS152: 125 | CT152: 121 | CU152: 51 | CV152: 47 | CW152: 45 | CX152: 45 | CY152: 44 | CZ152: 43 | DA152: 44 | DB152: 45 | DC152: 46 | DD152: 47 | DE152: 47 | DF152: 47 | DG152: 47 | DH152: 47 | DI152: 46 | DJ152: 46 | DK152: 47 | DL152: 48 | DM152: 48 | DN152: 46 | DO152: 43 | DP152: 43 | DQ152: 42 | DR152: 41 | DS152: 42 | DT152: 44 | DU152: 45 | DV152: 46 | DW152: 145 | DX152: 124 | DY152: 187 | DZ152: 130 | EA152: 153 | EB152: 161 | EC152: 168 | ED152: 147 | EE152: 187 | EF152: 154 | EG152: 161
A153: Brunsbüttel | B153: Hemmoor | C153: 1051011 | D153: 3352022 | E153: 21,930 | F153: 53.89927,9.13374 | G153: 53.7023,9.13907 | H153: 2.0 | I153: 1.0 | J153: 2.0 | K153: 2.0 | L153: 21,601 | M153: 59,140 | N153: 0 | O153: 50,931 | P153: 0 | Q153: 0 | R153: 1,897 | S153: 0 | T153: 535 | U153: 651 | V153: 110 | W153: 112 | X153: 103 | Y153: 115 | Z153: 124 | AA153: 135 | AB153: 119 | AC153: 116 | AD153: 126 | AE153: 138 | AF153: 121 | AG153: 114 | AH153: 127 | AI153: 146 | AJ153: 122 | AK153: 113 | AL153: 122 | AM153: 131 | AN153: 116 | AO153: 108 | AP153: 116 | AQ153: 124 | AR153: 135 | AS153: 119 | AT153: 117 | AU153: 126 | AV153: 138 | AW153: 121 | AX153: 116 | AY153: 127 | AZ153: 146 | BA153: 123 | BB153: 115 | BC153: 122 | BD153: 131 | BE153: 118 | BF153: 116 | BG153: 109 | BH153: 113 | BI153: 118 | BJ153: 113 | BK153: 115 | BL153: 107 | BM153: 148 | BN153: 58,130 | BO153: 0 | BP153: 0 | BQ153: 0 | BR153: 92 | BS153: 85 | BT153: 90 | BU153: 91 | BV153: 92 | BW153: 93 | BX153: 96 | BY153: 95 | BZ153: 93 | CA153: 92 | CB153: 90 | CC153: 90 | CD153: 90 | CE153: 90 | CF153: 90 | CG153: 92 | CH153: 92 | CI153: 91 | CJ153: 90 | CK153: 89 | CL153: 91 | CM153: 95 | CN153: 96 | CO153: 96 | CP153: 99 | CQ153: 99 | CR153: 98 | CS153: 94 | CT153: 94 | CU153: 43 | CV153: 39 | CW153: 39 | CX153: 38 | CY153: 38 | CZ153: 37 | DA153: 37 | DB153: 38 | DC153: 38 | DD153: 39 | DE153: 39 | DF153: 39 | DG153: 39 | DH153: 39 | DI153: 38 | DJ153: 38 | DK153: 39 | DL153: 39 | DM153: 40 | DN153: 39 | DO153: 37 | DP153: 37 | DQ153: 37 | DR153: 36 | DS153: 36 | DT153: 36 | DU153: 37 | DV153: 38 | DW153: 115 | DX153: 93 | DY153: 146 | DZ153: 98 | EA153: 122 | EB153: 127 | EC153: 136 | ED153: 116 | EE153: 146 | EF153: 123 | EG153: 127
A154: Brunsbüttel | B154: Bremervörde | C154: 1051011 | D154: 3357008 | E154: 45,870 | F154: 53.89927,9.13374 | G154: 53.48719,9.14006 | H154: 2.0 | I154: 1.0 | J154: 2.0 | K154: 2.0 | L154: 31,385 | M154: 84,350 | N154: 0 | O154: 64,730 | P154: 0 | Q154: 8,401 | R154: 5,239 | S154: 0 | T154: 535 | U154: 318 | V154: 107 | W154: 128 | X154: 92 | Y154: 124 | Z154: 150 | AA154: 189 | AB154: 139 | AC154: 119 | AD154: 138 | AE154: 165 | AF154: 129 | AG154: 121 | AH154: 144 | AI154: 184 | AJ154: 136 | AK154: 109 | AL154: 123 | AM154: 144 | AN154: 115 | AO154: 125 | AP154: 140 | AQ154: 159 | AR154: 193 | AS154: 151 | AT154: 136 | AU154: 148 | AV154: 168 | AW154: 142 | AX154: 139 | AY154: 155 | AZ154: 189 | BA154: 151 | BB154: 129 | BC154: 136 | BD154: 151 | BE154: 133 | BF154: 115 | BG154: 108 | BH154: 113 | BI154: 132 | BJ154: 130 | BK154: 132 | BL154: 107 | BM154: 160 | BN154: 170,600 | BO154: 0 | BP154: 0 | BQ154: 0 | BR154: 116 | BS154: 106 | BT154: 112 | BU154: 115 | BV154: 116 | BW154: 117 | BX154: 120 | BY154: 118 | BZ154: 116 | CA154: 115 | CB154: 113 | CC154: 111 | CD154: 112 | CE154: 113 | CF154: 112 | CG154: 115 | CH154: 114 | CI154: 113 | CJ154: 112 | CK154: 109 | CL154: 112 | CM154: 120 | CN154: 120 | CO154: 120 | CP154: 124 | CQ154: 124 | CR154: 121 | CS154: 118 | CT154: 115 | CU154: 48 | CV154: 45 | CW154: 44 | CX154: 44 | CY154: 43 | CZ154: 42 | DA154: 43 | DB154: 43 | DC154: 44 | DD154: 45 | DE154: 46 | DF154: 45 | DG154: 45 | DH154: 45 | DI154: 44 | DJ154: 44 | DK154: 45 | DL154: 45 | DM154: 46 | DN154: 45 | DO154: 42 | DP154: 42 | DQ154: 42 | DR154: 41 | DS154: 41 | DT154: 42 | DU154: 43 | DV154: 44 | DW154: 124 | DX154: 116 | DY154: 189 | DZ154: 121 | EA154: 139 | EB154: 150 | EC154: 131 | ED154: 140 | EE154: 193 | EF154: 151 | EG154: 159
A155: Brunsbüttel | B155: Stade | C155: 1051011 | D155: 3359038 | E155: 40,660 | F155: 53.89927,9.13374 | G155: 53.5932,9.47033 | H155: 2.0 | I155: 1.0 | J155: 2.0 | K155: 2.0 | L155: 59,118 | M155: 126,470 | N155: 67,109 | O155: 26,648 | P155: 474 | Q155: 20,268 | R155: 10,730 | S155: 0 | T155: 535 | U155: 707 | V155: 86 | W155: 106 | X155: 74 | Y155: 102 | Z155: 125 | AA155: 159 | AB155: 115 | AC155: 96 | AD155: 111 | AE155: 133 | AF155: 104 | AG155: 96 | AH155: 115 | AI155: 149 | AJ155: 110 | AK155: 88 | AL155: 99 | AM155: 117 | AN155: 93 | AO155: 104 | AP155: 118 | AQ155: 134 | AR155: 163 | AS155: 127 | AT155: 112 | AU155: 121 | AV155: 136 | AW155: 117 | AX155: 113 | AY155: 126 | AZ155: 153 | BA155: 124 | BB155: 107 | BC155: 112 | BD155: 123 | BE155: 110 | BF155: 93 | BG155: 88 | BH155: 91 | BI155: 109 | BJ155: 108 | BK155: 109 | BL155: 88 | BM155: 138 | BN155: 130,930 | BO155: 0 | BP155: 0 | BQ155: 0 | BR155: 99 | BS155: 91 | BT155: 98 | BU155: 104 | BV155: 105 | BW155: 102 | BX155: 102 | BY155: 107 | BZ155: 101 | CA155: 96 | CB155: 94 | CC155: 92 | CD155: 95 | CE155: 97 | CF155: 94 | CG155: 95 | CH155: 96 | CI155: 94 | CJ155: 90 | CK155: 89 | CL155: 109 | CM155: 127 | CN155: 132 | CO155: 123 | CP155: 121 | CQ155: 138 | CR155: 125 | CS155: 113 | CT155: 106 | CU155: 83 | CV155: 78 | CW155: 66 | CX155: 59 | CY155: 74 | CZ155: 74 | DA155: 65 | DB155: 75 | DC155: 79 | DD155: 81 | DE155: 82 | DF155: 79 | DG155: 78 | DH155: 80 | DI155: 80 | DJ155: 79 | DK155: 80 | DL155: 84 | DM155: 85 | DN155: 69 | DO155: 60 | DP155: 57 | DQ155: 62 | DR155: 63 | DS155: 55 | DT155: 60 | DU155: 67 | DV155: 72 | DW155: 102 | DX155: 105 | DY155: 159 | DZ155: 132 | EA155: 115 | EB155: 125 | EC155: 106 | ED155: 118 | EE155: 163 | EF155: 127 | EG155: 134
A156: Brunsbüttel | B156: Wilhelmshaven | C156: 1051011 | D156: 3405000 | E156: 79,180 | F156: 53.89927,9.13374 | G156: 53.53251,8.10603 | H156: 2.5 | I156: 2.0 | J156: 2.0 | K156: 2.0 | L156: 88,735 | M156: 293,080 | N156: 257,572 | O156: 32,209 | P156: 0 | Q156: 0 | R156: 1,897 | S156: 0 | T156: 1,080 | U156: 318 | V156: 157 | W156: 225 | X156: 130 | Y156: 172 | Z156: 209 | AA156: 267 | AB156: 192 | AC156: 171 | AD156: 203 | AE156: 248 | AF156: 186 | AG156: 175 | AH156: 213 | AI156: 281 | AJ156: 200 | AK156: 159 | AL156: 185 | AM156: 223 | AN156: 170 | AO156: 223 | AP156: 234 | AQ156: 250 | AR156: 281 | AS156: 244 | AT156: 230 | AU156: 240 | AV156: 260 | AW156: 236 | AX156: 236 | AY156: 256 | AZ156: 298 | BA156: 251 | BB156: 225 | BC156: 230 | BD156: 243 | BE156: 229 | BF156: 165 | BG156: 156 | BH156: 160 | BI156: 226 | BJ156: 224 | BK156: 225 | BL156: 147 | BM156: 231 | BN156: 295,140 | BO156: 0 | BP156: 0 | BQ156: 0 | BR156: 179 | BS156: 165 | BT156: 186 | BU156: 184 | BV156: 186 | BW156: 185 | BX156: 192 | BY156: 197 | BZ156: 180 | CA156: 173 | CB156: 173 | CC156: 166 | CD156: 163 | CE156: 164 | CF156: 166 | CG156: 168 | CH156: 170 | CI156: 162 | CJ156: 157 | CK156: 160 | CL156: 230 | CM156: 237 | CN156: 243 | CO156: 237 | CP156: 244 | CQ156: 260 | CR156: 221 | CS156: 210 | CT156: 205 | CU156: 106 | CV156: 94 | CW156: 95 | CX156: 94 | CY156: 95 | CZ156: 91 | DA156: 76 | DB156: 98 | DC156: 102 | DD156: 101 | DE156: 105 | DF156: 107 | DG156: 107 | DH156: 106 | DI156: 105 | DJ156: 103 | DK156: 109 | DL156: 112 | DM156: 109 | DN156: 76 | DO156: 74 | DP156: 72 | DQ156: 74 | DR156: 72 | DS156: 68 | DT156: 79 | DU156: 84 | DV156: 85 | DW156: 175 | DX156: 186 | DY156: 281 | DZ156: 243 | EA156: 200 | EB156: 213 | EC156: 191 | ED156: 236 | EE156: 298 | EF156: 251 | EG156: 256
A157: Brunsbüttel | B157: Nordenham | C157: 1051011 | D157: 3461007 | E157: 61,400 | F157: 53.89927,9.13374 | G157: 53.49942,8.49336 | H157: 2.0 | I157: 1.0 | J157: 2.0 | K157: 2.0 | L157: 39,065 | M157: 139,470 | N157: 21,370 | O157: 72,111 | P157: 33,958 | Q157: 3,375 | R157: 2,506 | S157: 0 | T157: 535 | U157: 484 | V157: 141 | W157: 198 | X157: 117 | Y157: 153 | Z157: 184 | AA157: 235 | AB157: 170 | AC157: 152 | AD157: 177 | AE157: 215 | AF157: 164 | AG157: 148 | AH157: 173 | AI157: 218 | AJ157: 165 | AK157: 140 | AL157: 162 | AM157: 195 | AN157: 149 | AO157: 196 | AP157: 208 | AQ157: 221 | AR157: 247 | AS157: 216 | AT157: 203 | AU157: 211 | AV157: 226 | AW157: 208 | AX157: 203 | AY157: 211 | AZ157: 234 | BA157: 210 | BB157: 199 | BC157: 203 | BD157: 213 | BE157: 201 | BF157: 146 | BG157: 140 | BH157: 144 | BI157: 199 | BJ157: 198 | BK157: 199 | BL157: 134 | BM157: 205 | BN157: 255,640 | BO157: 0 | BP157: 0 | BQ157: 0 | BR157: 159 | BS157: 147 | BT157: 154 | BU157: 161 | BV157: 161 | BW157: 163 | BX157: 165 | BY157: 164 | BZ157: 158 | CA157: 155 | CB157: 155 | CC157: 150 | CD157: 155 | CE157: 154 | CF157: 155 | CG157: 157 | CH157: 157 | CI157: 154 | CJ157: 142 | CK157: 151 | CL157: 160 | CM157: 175 | CN157: 173 | CO157: 173 | CP157: 175 | CQ157: 180 | CR157: 169 | CS157: 188 | CT157: 161 | CU157: 58 | CV157: 54 | CW157: 52 | CX157: 52 | CY157: 60 | CZ157: 68 | DA157: 68 | DB157: 62 | DC157: 91 | DD157: 63 | DE157: 56 | DF157: 54 | DG157: 54 | DH157: 54 | DI157: 53 | DJ157: 53 | DK157: 55 | DL157: 110 | DM157: 55 | DN157: 52 | DO157: 48 | DP157: 48 | DQ157: 48 | DR157: 48 | DS157: 47 | DT157: 50 | DU157: 83 | DV157: 52 | DW157: 153 | DX157: 161 | DY157: 235 | DZ157: 173 | EA157: 170 | EB157: 184 | EC157: 168 | ED157: 208 | EE157: 247 | EF157: 216 | EG157: 221
A158: Brunsbüttel | B158: Bremerhaven | C158: 1051011 | D158: 4012000 | E158: 54,170 | F158: 53.89927,9.13374 | G158: 53.53961,8.58086 | H158: 2.5 | I158: 2.0 | J158: 2.0 | K158: 2.0 | L158: 126,765 | M158: 111,940 | N158: 9,056 | O158: 61,047 | P158: 33,958 | Q158: 0 | R158: 1,897 | S158: 0 | T158: 535 | U158: 318 | V158: 136 | W158: 195 | X158: 112 | Y158: 149 | Z158: 181 | AA158: 236 | AB158: 167 | AC158: 146 | AD158: 172 | AE158: 213 | AF158: 159 | AG158: 143 | AH158: 168 | AI158: 216 | AJ158: 160 | AK158: 135 | AL158: 157 | AM158: 192 | AN158: 145 | AO158: 193 | AP158: 204 | AQ158: 219 | AR158: 248 | AS158: 214 | AT158: 200 | AU158: 208 | AV158: 224 | AW158: 205 | AX158: 199 | AY158: 208 | AZ158: 232 | BA158: 207 | BB158: 195 | BC158: 200 | BD158: 211 | BE158: 198 | BF158: 141 | BG158: 135 | BH158: 139 | BI158: 196 | BJ158: 194 | BK158: 195 | BL158: 128 | BM158: 195 | BN158: 250,610 | BO158: 0 | BP158: 0 | BQ158: 0 | BR158: 142 | BS158: 131 | BT158: 137 | BU158: 144 | BV158: 144 | BW158: 146 | BX158: 149 | BY158: 149 | BZ158: 143 | CA158: 141 | CB158: 139 | CC158: 135 | CD158: 139 | CE158: 138 | CF158: 138 | CG158: 141 | CH158: 141 | CI158: 138 | CJ158: 137 | CK158: 135 | CL158: 139 | CM158: 156 | CN158: 153 | CO158: 154 | CP158: 156 | CQ158: 160 | CR158: 150 | CS158: 146 | CT158: 142 | CU158: 52 | CV158: 49 | CW158: 47 | CX158: 47 | CY158: 46 | CZ158: 45 | DA158: 45 | DB158: 47 | DC158: 48 | DD158: 48 | DE158: 50 | DF158: 48 | DG158: 49 | DH158: 49 | DI158: 48 | DJ158: 48 | DK158: 49 | DL158: 49 | DM158: 50 | DN158: 48 | DO158: 43 | DP158: 44 | DQ158: 44 | DR158: 43 | DS158: 42 | DT158: 45 | DU158: 46 | DV158: 47 | DW158: 149 | DX158: 144 | DY158: 236 | DZ158: 153 | EA158: 167 | EB158: 181 | EC158: 162 | ED158: 204 | EE158: 248 | EF158: 214 | EG158: 219
A159: Burg (Dithmarschen) | B159: Wilster | C159: 1051016 | D159: 1061113 | E159: 11,420 | F159: 53.99837,9.25686 | G159: 53.92247,9.374 | H159: 1.0 | I159: 1.0 | J159: 2.0 | K159: 1.0 | L159: 8,501 | M159: 13,380 | N159: 0 | O159: 0 | P159: 0 | Q159: 12,713 | R159: 349 | S159: 0 | T159: 79 | U159: 0 | V159: 16 | W159: 19 | X159: 15 | Y159: 18 | Z159: 21 | AA159: 24 | AB159: 19 | AC159: 18 | AD159: 21 | AE159: 25 | AF159: 20 | AG159: 18 | AH159: 21 | AI159: 26 | AJ159: 20 | AK159: 18 | AL159: 20 | AM159: 23 | AN159: 19 | AO159: 18 | AP159: 19 | AQ159: 22 | AR159: 24 | AS159: 20 | AT159: 19 | AU159: 22 | AV159: 25 | AW159: 21 | AX159: 19 | AY159: 22 | AZ159: 26 | BA159: 21 | BB159: 19 | BC159: 20 | BD159: 23 | BE159: 20 | BF159: 18 | BG159: 17 | BH159: 17 | BI159: 19 | BJ159: 19 | BK159: 19 | BL159: 15 | BM159: 18 | BN159: 13,310 | BO159: 0 | BP159: 0 | BQ159: 0 | BR159: 34 | BS159: 29 | BT159: 33 | BU159: 35 | BV159: 35 | BW159: 34 | BX159: 34 | BY159: 35 | BZ159: 34 | CA159: 33 | CB159: 33 | CC159: 34 | CD159: 33 | CE159: 32 | CF159: 33 | CG159: 33 | CH159: 33 | CI159: 32 | CJ159: 32 | CK159: 32 | CL159: 35 | CM159: 36 | CN159: 37 | CO159: 36 | CP159: 36 | CQ159: 35 | CR159: 36 | CS159: 35 | CT159: 33 | CU159: 60 | CV159: 55 | CW159: 51 | CX159: 50 | CY159: 52 | CZ159: 51 | DA159: 51 | DB159: 53 | DC159: 54 | DD159: 53 | DE159: 53 | DF159: 54 | DG159: 55 | DH159: 54 | DI159: 53 | DJ159: 54 | DK159: 55 | DL159: 55 | DM159: 55 | DN159: 51 | DO159: 49 | DP159: 48 | DQ159: 49 | DR159: 49 | DS159: 50 | DT159: 50 | DU159: 51 | DV159: 54 | DW159: 18 | DX159: 35 | DY159: 26 | DZ159: 37 | EA159: 20 | EB159: 21 | EC159: 22 | ED159: 19 | EE159: 26 | EF159: 21 | EG159: 22
A160: Heide | B160: Flensburg | C160: 1051044 | D160: 1001000 | E160: 70,290 | F160: 54.19548,9.10174 | G160: 54.7941,9.44703 | H160: 2.5 | I160: 2.0 | J160: 2.0 | K160: 2.0 | L160: 107,364 | M160: 87,470 | N160: 0 | O160: 85,867 | P160: 0 | Q160: 0 | R160: 1,022 | S160: 579 | T160: 0 | U160: 0 | V160: 65 | W160: 71 | X160: 54 | Y160: 72 | Z160: 83 | AA160: 97 | AB160: 77 | AC160: 72 | AD160: 82 | AE160: 95 | AF160: 77 | AG160: 70 | AH160: 81 | AI160: 97 | AJ160: 76 | AK160: 64 | AL160: 74 | AM160: 87 | AN160: 68 | AO160: 68 | AP160: 74 | AQ160: 84 | AR160: 97 | AS160: 78 | AT160: 74 | AU160: 83 | AV160: 95 | AW160: 78 | AX160: 74 | AY160: 82 | AZ160: 97 | BA160: 78 | BB160: 71 | BC160: 76 | BD160: 87 | BE160: 74 | BF160: 66 | BG160: 61 | BH160: 67 | BI160: 73 | BJ160: 71 | BK160: 73 | BL160: 61 | BM160: 72 | BN160: 92,410 | BO160: 0 | BP160: 0 | BQ160: 0 | BR160: 78 | BS160: 69 | BT160: 73 | BU160: 80 | BV160: 81 | BW160: 80 | BX160: 83 | BY160: 83 | BZ160: 80 | CA160: 77 | CB160: 74 | CC160: 71 | CD160: 73 | CE160: 75 | CF160: 73 | CG160: 76 | CH160: 75 | CI160: 73 | CJ160: 72 | CK160: 71 | CL160: 73 | CM160: 91 | CN160: 91 | CO160: 89 | CP160: 91 | CQ160: 90 | CR160: 90 | CS160: 84 | CT160: 76 | CU160: 77 | CV160: 73 | CW160: 66 | CX160: 66 | CY160: 66 | CZ160: 64 | DA160: 64 | DB160: 66 | DC160: 69 | DD160: 72 | DE160: 75 | DF160: 72 | DG160: 71 | DH160: 73 | DI160: 70 | DJ160: 71 | DK160: 73 | DL160: 74 | DM160: 75 | DN160: 72 | DO160: 58 | DP160: 58 | DQ160: 60 | DR160: 58 | DS160: 59 | DT160: 59 | DU160: 63 | DV160: 70 | DW160: 72 | DX160: 81 | DY160: 97 | DZ160: 91 | EA160: 77 | EB160: 83 | EC160: 77 | ED160: 74 | EE160: 97 | EF160: 78 | EG160: 84
A161: Heide | B161: Neumünster | C161: 1051044 | D161: 1004000 | E161: 59,200 | F161: 54.19548,9.10174 | G161: 54.07339,9.98332 | H161: 2.0 | I161: 1.0 | J161: 2.0 | K161: 2.0 | L161: 100,619 | M161: 76,220 | N161: 31,178 | O161: 42,018 | P161: 0 | Q161: 259 | R161: 606 | S161: 560 | T161: 1,594 | U161: 0 | V161: 53 | W161: 64 | X161: 44 | Y161: 59 | Z161: 72 | AA161: 92 | AB161: 66 | AC161: 60 | AD161: 72 | AE161: 89 | AF161: 66 | AG161: 59 | AH161: 72 | AI161: 89 | AJ161: 66 | AK161: 53 | AL161: 61 | AM161: 73 | AN161: 57 | AO161: 61 | AP161: 69 | AQ161: 79 | AR161: 95 | AS161: 75 | AT161: 69 | AU161: 78 | AV161: 92 | AW161: 74 | AX161: 69 | AY161: 78 | AZ161: 93 | BA161: 75 | BB161: 64 | BC161: 68 | BD161: 77 | BE161: 67 | BF161: 54 | BG161: 51 | BH161: 54 | BI161: 65 | BJ161: 63 | BK161: 64 | BL161: 50 | BM161: 57 | BN161: 76,160 | BO161: 0 | BP161: 0 | BQ161: 0 | BR161: 65 | BS161: 55 | BT161: 63 | BU161: 66 | BV161: 66 | BW161: 66 | BX161: 68 | BY161: 67 | BZ161: 66 | CA161: 64 | CB161: 60 | CC161: 60 | CD161: 59 | CE161: 59 | CF161: 59 | CG161: 61 | CH161: 60 | CI161: 60 | CJ161: 59 | CK161: 56 | CL161: 64 | CM161: 73 | CN161: 78 | CO161: 76 | CP161: 77 | CQ161: 75 | CR161: 77 | CS161: 72 | CT161: 63 | CU161: 84 | CV161: 73 | CW161: 70 | CX161: 69 | CY161: 69 | CZ161: 68 | DA161: 68 | DB161: 69 | DC161: 72 | DD161: 77 | DE161: 77 | DF161: 77 | DG161: 77 | DH161: 78 | DI161: 76 | DJ161: 77 | DK161: 77 | DL161: 78 | DM161: 82 | DN161: 72 | DO161: 63 | DP161: 59 | DQ161: 60 | DR161: 60 | DS161: 61 | DT161: 59 | DU161: 64 | DV161: 73 | DW161: 59 | DX161: 66 | DY161: 92 | DZ161: 78 | EA161: 66 | EB161: 72 | EC161: 64 | ED161: 69 | EE161: 95 | EF161: 75 | EG161: 79
A162: Heide | B162: Brunsbüttel | C162: 1051044 | D162: 1051011 | E162: 33,040 | F162: 54.19548,9.10174 | G162: 53.89927,9.13374 | H162: 2.0 | I162: 1.0 | J162: 2.0 | K162: 2.0 | L162: 34,162 | M162: 42,580 | N162: 0 | O162: 38,408 | P162: 0 | Q162: 0 | R162: 2,543 | S162: 0 | T162: 1,310 | U162: 321 | V162: 36 | W162: 39 | X162: 32 | Y162: 41 | Z162: 50 | AA162: 62 | AB162: 47 | AC162: 42 | AD162: 50 | AE162: 62 | AF162: 47 | AG162: 41 | AH162: 50 | AI162: 63 | AJ162: 47 | AK162: 37 | AL162: 43 | AM162: 50 | AN162: 40 | AO162: 37 | AP162: 42 | AQ162: 50 | AR162: 62 | AS162: 47 | AT162: 42 | AU162: 50 | AV162: 62 | AW162: 47 | AX162: 43 | AY162: 50 | AZ162: 63 | BA162: 48 | BB162: 40 | BC162: 43 | BD162: 50 | BE162: 42 | BF162: 38 | BG162: 35 | BH162: 37 | BI162: 40 | BJ162: 39 | BK162: 40 | BL162: 35 | BM162: 44 | BN162: 37,550 | BO162: 0 | BP162: 0 | BQ162: 0 | BR162: 45 | BS162: 38 | BT162: 40 | BU162: 44 | BV162: 46 | BW162: 45 | BX162: 47 | BY162: 47 | BZ162: 47 | CA162: 45 | CB162: 42 | CC162: 39 | CD162: 42 | CE162: 43 | CF162: 41 | CG162: 43 | CH162: 43 | CI162: 44 | CJ162: 42 | CK162: 40 | CL162: 41 | CM162: 46 | CN162: 50 | CO162: 47 | CP162: 49 | CQ162: 49 | CR162: 52 | CS162: 48 | CT162: 42 | CU162: 67 | CV162: 64 | CW162: 59 | CX162: 56 | CY162: 57 | CZ162: 55 | DA162: 55 | DB162: 55 | DC162: 58 | DD162: 62 | DE162: 66 | DF162: 62 | DG162: 61 | DH162: 63 | DI162: 60 | DJ162: 60 | DK162: 59 | DL162: 61 | DM162: 65 | DN162: 63 | DO162: 56 | DP162: 52 | DQ162: 54 | DR162: 53 | DS162: 53 | DT162: 50 | DU162: 54 | DV162: 61 | DW162: 41 | DX162: 47 | DY162: 63 | DZ162: 52 | EA162: 47 | EB162: 50 | EC162: 44 | ED162: 43 | EE162: 63 | EF162: 48 | EG162: 50
A163: Heide | B163: Meldorf | C163: 1051044 | D163: 1051074 | E163: 11,850 | F163: 54.19548,9.10174 | G163: 54.09011,9.07561 | H163: 2.0 | I163: 1.0 | J163: 2.0 | K163: 2.0 | L163: 28,689 | M163: 13,320 | N163: 0 | O163: 11,702 | P163: 0 | Q163: 0 | R163: 799 | S163: 0 | T163: 775 | U163: 47 | V163: 13 | W163: 13 | X163: 12 | Y163: 16 | Z163: 20 | AA163: 28 | AB163: 19 | AC163: 16 | AD163: 20 | AE163: 27 | AF163: 19 | AG163: 16 | AH163: 20 | AI163: 28 | AJ163: 19 | AK163: 14 | AL163: 16 | AM163: 19 | AN163: 15 | AO163: 12 | AP163: 16 | AQ163: 20 | AR163: 28 | AS163: 19 | AT163: 16 | AU163: 20 | AV163: 27 | AW163: 19 | AX163: 16 | AY163: 20 | AZ163: 28 | BA163: 19 | BB163: 14 | BC163: 16 | BD163: 19 | BE163: 15 | BF163: 14 | BG163: 12 | BH163: 13 | BI163: 14 | BJ163: 13 | BK163: 14 | BL163: 12 | BM163: 17 | BN163: 13,250 | BO163: 0 | BP163: 0 | BQ163: 0 | BR163: 19 | BS163: 15 | BT163: 16 | BU163: 18 | BV163: 19 | BW163: 18 | BX163: 19 | BY163: 19 | BZ163: 20 | CA163: 19 | CB163: 17 | CC163: 16 | CD163: 17 | CE163: 18 | CF163: 16 | CG163: 17 | CH163: 17 | CI163: 18 | CJ163: 17 | CK163: 16 | CL163: 17 | CM163: 19 | CN163: 21 | CO163: 19 | CP163: 20 | CQ163: 19 | CR163: 23 | CS163: 20 | CT163: 17 | CU163: 56 | CV163: 52 | CW163: 48 | CX163: 45 | CY163: 46 | CZ163: 45 | DA163: 43 | DB163: 42 | DC163: 45 | DD163: 49 | DE163: 52 | DF163: 49 | DG163: 47 | DH163: 51 | DI163: 49 | DJ163: 49 | DK163: 46 | DL163: 50 | DM163: 53 | DN163: 51 | DO163: 45 | DP163: 41 | DQ163: 45 | DR163: 42 | DS163: 43 | DT163: 37 | DU163: 42 | DV163: 50 | DW163: 16 | DX163: 20 | DY163: 28 | DZ163: 23 | EA163: 19 | EB163: 20 | EC163: 17 | ED163: 16 | EE163: 28 | EF163: 19 | EG163: 20
A164: Heide | B164: Husum | C164: 1051044 | D164: 1054056 | E164: 32,220 | F164: 54.19548,9.10174 | G164: 54.48395,9.06001 | H164: 2.0 | I164: 1.0 | J164: 2.0 | K164: 2.0 | L164: 43,852 | M164: 42,340 | N164: 0 | O164: 37,632 | P164: 0 | Q164: 4,211 | R164: 66 | S164: 0 | T164: 0 | U164: 425 | V164: 33 | W164: 37 | X164: 28 | Y164: 38 | Z164: 46 | AA164: 58 | AB164: 42 | AC164: 38 | AD164: 45 | AE164: 54 | AF164: 42 | AG164: 36 | AH164: 43 | AI164: 52 | AJ164: 40 | AK164: 33 | AL164: 38 | AM164: 45 | AN164: 35 | AO164: 35 | AP164: 39 | AQ164: 47 | AR164: 58 | AS164: 43 | AT164: 39 | AU164: 45 | AV164: 54 | AW164: 43 | AX164: 38 | AY164: 44 | AZ164: 53 | BA164: 41 | BB164: 37 | BC164: 40 | BD164: 46 | BE164: 39 | BF164: 33 | BG164: 31 | BH164: 34 | BI164: 37 | BJ164: 36 | BK164: 37 | BL164: 30 | BM164: 41 | BN164: 42,380 | BO164: 0 | BP164: 0 | BQ164: 0 | BR164: 41 | BS164: 36 | BT164: 38 | BU164: 41 | BV164: 43 | BW164: 42 | BX164: 44 | BY164: 44 | BZ164: 42 | CA164: 40 | CB164: 38 | CC164: 39 | CD164: 37 | CE164: 40 | CF164: 38 | CG164: 39 | CH164: 39 | CI164: 38 | CJ164: 37 | CK164: 36 | CL164: 39 | CM164: 44 | CN164: 50 | CO164: 47 | CP164: 48 | CQ164: 47 | CR164: 47 | CS164: 45 | CT164: 39 | CU164: 72 | CV164: 67 | CW164: 63 | CX164: 60 | CY164: 61 | CZ164: 58 | DA164: 59 | DB164: 61 | DC164: 64 | DD164: 67 | DE164: 65 | DF164: 68 | DG164: 65 | DH164: 68 | DI164: 65 | DJ164: 66 | DK164: 68 | DL164: 69 | DM164: 71 | DN164: 66 | DO164: 58 | DP164: 51 | DQ164: 55 | DR164: 54 | DS164: 54 | DT164: 55 | DU164: 57 | DV164: 65 | DW164: 38 | DX164: 43 | DY164: 58 | DZ164: 50 | EA164: 42 | EB164: 46 | EC164: 40 | ED164: 39 | EE164: 58 | EF164: 43 | EG164: 47
A165: Heide | B165: Niebüll | C165: 1051044 | D165: 1054088 | E165: 68,200 | F165: 54.19548,9.10174 | G165: 54.7874,8.82997 | H165: 2.0 | I165: 1.0 | J165: 2.0 | K165: 2.0 | L165: 31,327 | M165: 85,190 | N165: 0 | O165: 82,034 | P165: 528 | Q165: 0 | R165: 2,624 | S165: 0 | T165: 0 | U165: 0 | V165: 67 | W165: 72 | X165: 55 | Y165: 74 | Z165: 86 | AA165: 100 | AB165: 79 | AC165: 74 | AD165: 86 | AE165: 100 | AF165: 80 | AG165: 72 | AH165: 83 | AI165: 99 | AJ165: 78 | AK165: 65 | AL165: 74 | AM165: 86 | AN165: 69 | AO165: 69 | AP165: 76 | AQ165: 86 | AR165: 100 | AS165: 81 | AT165: 77 | AU165: 86 | AV165: 100 | AW165: 81 | AX165: 76 | AY165: 84 | AZ165: 99 | BA165: 80 | BB165: 72 | BC165: 77 | BD165: 86 | BE165: 75 | BF165: 68 | BG165: 64 | BH165: 69 | BI165: 74 | BJ165: 72 | BK165: 75 | BL165: 68 | BM165: 87 | BN165: 89,190 | BO165: 0 | BP165: 0 | BQ165: 0 | BR165: 79 | BS165: 69 | BT165: 74 | BU165: 79 | BV165: 81 | BW165: 80 | BX165: 83 | BY165: 83 | BZ165: 79 | CA165: 77 | CB165: 73 | CC165: 75 | CD165: 74 | CE165: 75 | CF165: 73 | CG165: 76 | CH165: 75 | CI165: 74 | CJ165: 72 | CK165: 70 | CL165: 76 | CM165: 88 | CN165: 91 | CO165: 88 | CP165: 89 | CQ165: 88 | CR165: 87 | CS165: 83 | CT165: 76 | CU165: 75 | CV165: 69 | CW165: 65 | CX165: 64 | CY165: 64 | CZ165: 62 | DA165: 62 | DB165: 65 | DC165: 67 | DD165: 70 | DE165: 69 | DF165: 69 | DG165: 69 | DH165: 70 | DI165: 67 | DJ165: 69 | DK165: 70 | DL165: 71 | DM165: 74 | DN165: 68 | DO165: 59 | DP165: 57 | DQ165: 58 | DR165: 57 | DS165: 58 | DT165: 59 | DU165: 62 | DV165: 68 | DW165: 74 | DX165: 81 | DY165: 100 | DZ165: 91 | EA165: 79 | EB165: 86 | EC165: 78 | ED165: 76 | EE165: 100 | EF165: 81 | EG165: 86
A166: Heide | B166: Tönning | C166: 1051044 | D166: 1054138 | E166: 17,090 | F166: 54.19548,9.10174 | G166: 54.31554,8.9383 | H166: 2.0 | I166: 1.0 | J166: 2.0 | K166: 2.0 | L166: 26,317 | M166: 25,170 | N166: 0 | O166: 23,508 | P166: 0 | Q166: 0 | R166: 1,666 | S166: 0 | T166: 0 | U166: 0 | V166: 19 | W166: 22 | X166: 16 | Y166: 20 | Z166: 25 | AA166: 30 | AB166: 22 | AC166: 21 | AD166: 25 | AE166: 30 | AF166: 23 | AG166: 20 | AH166: 24 | AI166: 29 | AJ166: 22 | AK166: 19 | AL166: 22 | AM166: 26 | AN166: 20 | AO166: 20 | AP166: 22 | AQ166: 25 | AR166: 30 | AS166: 23 | AT166: 22 | AU166: 25 | AV166: 30 | AW166: 24 | AX166: 22 | AY166: 24 | AZ166: 29 | BA166: 24 | BB166: 22 | BC166: 23 | BD166: 26 | BE166: 23 | BF166: 19 | BG166: 18 | BH166: 19 | BI166: 22 | BJ166: 21 | BK166: 22 | BL166: 18 | BM166: 22 | BN166: 25,070 | BO166: 0 | BP166: 0 | BQ166: 0 | BR166: 25 | BS166: 23 | BT166: 24 | BU166: 25 | BV166: 25 | BW166: 25 | BX166: 26 | BY166: 26 | BZ166: 25 | CA166: 24 | CB166: 24 | CC166: 24 | CD166: 23 | CE166: 24 | CF166: 23 | CG166: 24 | CH166: 23 | CI166: 23 | CJ166: 23 | CK166: 23 | CL166: 25 | CM166: 27 | CN166: 28 | CO166: 28 | CP166: 28 | CQ166: 28 | CR166: 28 | CS166: 26 | CT166: 25 | CU166: 68 | CV166: 65 | CW166: 62 | CX166: 61 | CY166: 61 | CZ166: 59 | DA166: 60 | DB166: 61 | DC166: 63 | DD166: 65 | DE166: 64 | DF166: 66 | DG166: 65 | DH166: 68 | DI166: 65 | DJ166: 66 | DK166: 67 | DL166: 68 | DM166: 68 | DN166: 62 | DO166: 57 | DP166: 55 | DQ166: 55 | DR166: 54 | DS166: 55 | DT166: 55 | DU166: 58 | DV166: 63 | DW166: 20 | DX166: 25 | DY166: 30 | DZ166: 28 | EA166: 22 | EB166: 25 | EC166: 23 | ED166: 22 | EE166: 30 | EF166: 24 | EG166: 25
A167: Heide | B167: Elmshorn | C167: 1051044 | D167: 1056015 | E167: 61,740 | F167: 54.19548,9.10174 | G167: 53.75094,9.66449 | H167: 2.0 | I167: 1.0 | J167: 2.0 | K167: 2.0 | L167: 70,106 | M167: 78,640 | N167: 70,282 | O167: 4,126 | P167: 1,431 | Q167: 0 | R167: 2,027 | S167: 0 | T167: 775 | U167: 0 | V167: 45 | W167: 63 | X167: 34 | Y167: 45 | Z167: 57 | AA167: 75 | AB167: 52 | AC167: 46 | AD167: 56 | AE167: 72 | AF167: 51 | AG167: 46 | AH167: 57 | AI167: 75 | AJ167: 52 | AK167: 43 | AL167: 50 | AM167: 62 | AN167: 46 | AO167: 62 | AP167: 66 | AQ167: 73 | AR167: 83 | AS167: 71 | AT167: 66 | AU167: 70 | AV167: 77 | AW167: 69 | AX167: 67 | AY167: 72 | AZ167: 83 | BA167: 71 | BB167: 64 | BC167: 67 | BD167: 72 | BE167: 66 | BF167: 46 | BG167: 43 | BH167: 45 | BI167: 64 | BJ167: 62 | BK167: 63 | BL167: 42 | BM167: 48 | BN167: 78,350 | BO167: 0 | BP167: 0 | BQ167: 0 | BR167: 52 | BS167: 47 | BT167: 53 | BU167: 52 | BV167: 53 | BW167: 52 | BX167: 53 | BY167: 53 | BZ167: 53 | CA167: 51 | CB167: 49 | CC167: 49 | CD167: 47 | CE167: 46 | CF167: 46 | CG167: 47 | CH167: 46 | CI167: 47 | CJ167: 46 | CK167: 45 | CL167: 59 | CM167: 62 | CN167: 66 | CO167: 63 | CP167: 67 | CQ167: 66 | CR167: 68 | CS167: 62 | CT167: 56 | CU167: 101 | CV167: 89 | CW167: 91 | CX167: 90 | CY167: 91 | CZ167: 89 | DA167: 89 | DB167: 90 | DC167: 93 | DD167: 96 | DE167: 96 | DF167: 102 | DG167: 103 | DH167: 104 | DI167: 101 | DJ167: 102 | DK167: 100 | DL167: 103 | DM167: 104 | DN167: 80 | DO167: 76 | DP167: 72 | DQ167: 74 | DR167: 71 | DS167: 71 | DT167: 70 | DU167: 76 | DV167: 84 | DW167: 46 | DX167: 53 | DY167: 75 | DZ167: 68 | EA167: 52 | EB167: 57 | EC167: 52 | ED167: 67 | EE167: 83 | EF167: 71 | EG167: 73
A168: Heide | B168: Eckernförde | C168: 1051044 | D168: 1058043 | E168: 56,780 | F168: 54.19548,9.10174 | G168: 54.46895,9.83852 | H168: 2.0 | I168: 1.0 | J168: 2.0 | K168: 2.0 | L168: 43,281 | M168: 69,050 | N168: 0 | O168: 6,627 | P168: 60,915 | Q168: 191 | R168: 0 | S168: 0 | T168: 916 | U168: 405 | V168: 56 | W168: 59 | X168: 46 | Y168: 58 | Z168: 68 | AA168: 81 | AB168: 63 | AC168: 59 | AD168: 68 | AE168: 80 | AF168: 64 | AG168: 58 | AH168: 67 | AI168: 79 | AJ168: 62 | AK168: 55 | AL168: 62 | AM168: 71 | AN168: 58 | AO168: 55 | AP168: 60 | AQ168: 68 | AR168: 81 | AS168: 64 | AT168: 61 | AU168: 68 | AV168: 80 | AW168: 65 | AX168: 61 | AY168: 67 | AZ168: 79 | BA168: 64 | BB168: 58 | BC168: 63 | BD168: 71 | BE168: 61 | BF168: 56 | BG168: 51 | BH168: 57 | BI168: 60 | BJ168: 58 | BK168: 60 | BL168: 52 | BM168: 62 | BN168: 67,870 | BO168: 0 | BP168: 0 | BQ168: 0 | BR168: 72 | BS168: 64 | BT168: 68 | BU168: 71 | BV168: 73 | BW168: 73 | BX168: 73 | BY168: 75 | BZ168: 71 | CA168: 71 | CB168: 67 | CC168: 68 | CD168: 68 | CE168: 68 | CF168: 68 | CG168: 67 | CH168: 70 | CI168: 68 | CJ168: 67 | CK168: 64 | CL168: 70 | CM168: 78 | CN168: 79 | CO168: 78 | CP168: 75 | CQ168: 79 | CR168: 79 | CS168: 75 | CT168: 70 | CU168: 65 | CV168: 61 | CW168: 59 | CX168: 57 | CY168: 57 | CZ168: 58 | DA168: 56 | DB168: 59 | DC168: 58 | DD168: 62 | DE168: 61 | DF168: 61 | DG168: 61 | DH168: 61 | DI168: 63 | DJ168: 59 | DK168: 61 | DL168: 62 | DM168: 64 | DN168: 59 | DO168: 53 | DP168: 52 | DQ168: 53 | DR168: 56 | DS168: 53 | DT168: 52 | DU168: 55 | DV168: 60 | DW168: 58 | DX168: 73 | DY168: 81 | DZ168: 79 | EA168: 63 | EB168: 68 | EC168: 66 | ED168: 61 | EE168: 81 | EF168: 64 | EG168: 68
A169: Heide | B169: Rendsburg | C169: 1051044 | D169: 1058135 | E169: 38,530 | F169: 54.19548,9.10174 | G169: 54.3081,9.66072 | H169: 2.0 | I169: 1.0 | J169: 2.0 | K169: 2.0 | L169: 49,039 | M169: 43,380 | N169: 0 | O169: 43,360 | P169: 0 | Q169: 23 | R169: 0 | S169: 0 | T169: 0 | U169: 0 | V169: 36 | W169: 38 | X169: 30 | Y169: 38 | Z169: 46 | AA169: 59 | AB169: 43 | AC169: 39 | AD169: 48 | AE169: 59 | AF169: 44 | AG169: 38 | AH169: 47 | AI169: 59 | AJ169: 44 | AK169: 36 | AL169: 42 | AM169: 51 | AN169: 39 | AO169: 35 | AP169: 40 | AQ169: 47 | AR169: 59 | AS169: 44 | AT169: 41 | AU169: 48 | AV169: 59 | AW169: 45 | AX169: 41 | AY169: 47 | AZ169: 59 | BA169: 45 | BB169: 38 | BC169: 43 | BD169: 51 | BE169: 41 | BF169: 36 | BG169: 34 | BH169: 37 | BI169: 39 | BJ169: 38 | BK169: 39 | BL169: 34 | BM169: 39 | BN169: 43,340 | BO169: 0 | BP169: 0 | BQ169: 0 | BR169: 44 | BS169: 38 | BT169: 46 | BU169: 43 | BV169: 43 | BW169: 43 | BX169: 45 | BY169: 45 | BZ169: 44 | CA169: 43 | CB169: 41 | CC169: 43 | CD169: 41 | CE169: 40 | CF169: 40 | CG169: 42 | CH169: 42 | CI169: 41 | CJ169: 41 | CK169: 39 | CL169: 44 | CM169: 47 | CN169: 46 | CO169: 45 | CP169: 48 | CQ169: 47 | CR169: 47 | CS169: 46 | CT169: 41 | CU169: 68 | CV169: 57 | CW169: 60 | CX169: 61 | CY169: 60 | CZ169: 58 | DA169: 58 | DB169: 59 | DC169: 61 | DD169: 64 | DE169: 60 | DF169: 64 | DG169: 65 | DH169: 65 | DI169: 63 | DJ169: 62 | DK169: 64 | DL169: 63 | DM169: 67 | DN169: 59 | DO169: 56 | DP169: 57 | DQ169: 58 | DR169: 55 | DS169: 56 | DT169: 56 | DU169: 57 | DV169: 63 | DW169: 38 | DX169: 44 | DY169: 59 | DZ169: 47 | EA169: 44 | EB169: 47 | EC169: 43 | ED169: 41 | EE169: 59 | EF169: 45 | EG169: 47
A170: Heide | B170: Kappeln | C170: 1051044 | D170: 1059045 | E170: 74,200 | F170: 54.19548,9.10174 | G170: 54.65951,9.92249 | H170: 2.0 | I170: 1.0 | J170: 2.0 | K170: 2.0 | L170: 30,131 | M170: 93,570 | N170: 0 | O170: 55,405 | P170: 37,250 | Q170: 0 | R170: 0 | S170: 0 | T170: 916 | U170: 0 | V170: 74 | W170: 78 | X170: 62 | Y170: 80 | Z170: 92 | AA170: 110 | AB170: 86 | AC170: 80 | AD170: 91 | AE170: 107 | AF170: 86 | AG170: 78 | AH170: 89 | AI170: 105 | AJ170: 84 | AK170: 74 | AL170: 83 | AM170: 94 | AN170: 77 | AO170: 74 | AP170: 83 | AQ170: 93 | AR170: 110 | AS170: 88 | AT170: 82 | AU170: 92 | AV170: 107 | AW170: 87 | AX170: 82 | AY170: 90 | AZ170: 105 | BA170: 86 | BB170: 79 | BC170: 84 | BD170: 94 | BE170: 81 | BF170: 75 | BG170: 69 | BH170: 76 | BI170: 80 | BJ170: 79 | BK170: 80 | BL170: 71 | BM170: 81 | BN170: 93,720 | BO170: 0 | BP170: 0 | BQ170: 0 | BR170: 90 | BS170: 79 | BT170: 84 | BU170: 89 | BV170: 91 | BW170: 91 | BX170: 93 | BY170: 93 | BZ170: 89 | CA170: 88 | CB170: 84 | CC170: 84 | CD170: 85 | CE170: 84 | CF170: 85 | CG170: 85 | CH170: 87 | CI170: 84 | CJ170: 83 | CK170: 80 | CL170: 86 | CM170: 99 | CN170: 99 | CO170: 98 | CP170: 97 | CQ170: 98 | CR170: 98 | CS170: 93 | CT170: 87 | CU170: 73 | CV170: 70 | CW170: 66 | CX170: 65 | CY170: 65 | CZ170: 64 | DA170: 63 | DB170: 66 | DC170: 67 | DD170: 71 | DE170: 70 | DF170: 68 | DG170: 68 | DH170: 70 | DI170: 69 | DJ170: 68 | DK170: 68 | DL170: 70 | DM170: 74 | DN170: 69 | DO170: 58 | DP170: 58 | DQ170: 61 | DR170: 61 | DS170: 61 | DT170: 59 | DU170: 62 | DV170: 68 | DW170: 80 | DX170: 91 | DY170: 110 | DZ170: 99 | EA170: 86 | EB170: 92 | EC170: 89 | ED170: 83 | EE170: 110 | EF170: 88 | EG170: 93
A171: Heide | B171: Schleswig | C171: 1051044 | D171: 1059075 | E171: 47,280 | F171: 54.19548,9.10174 | G171: 54.52372,9.56332 | H171: 2.0 | I171: 1.0 | J171: 2.0 | K171: 2.0 | L171: 45,688 | M171: 58,950 | N171: 0 | O171: 17,435 | P171: 37,250 | Q171: 0 | R171: 3,250 | S171: 0 | T171: 916 | U171: 94 | V171: 49 | W171: 52 | X171: 41 | Y171: 52 | Z171: 63 | AA171: 77 | AB171: 58 | AC171: 53 | AD171: 62 | AE171: 74 | AF171: 58 | AG171: 52 | AH171: 61 | AI171: 73 | AJ171: 57 | AK171: 49 | AL171: 57 | AM171: 66 | AN171: 53 | AO171: 48 | AP171: 55 | AQ171: 63 | AR171: 77 | AS171: 59 | AT171: 55 | AU171: 62 | AV171: 74 | AW171: 59 | AX171: 55 | AY171: 62 | AZ171: 73 | BA171: 59 | BB171: 52 | BC171: 58 | BD171: 66 | BE171: 55 | BF171: 50 | BG171: 46 | BH171: 50 | BI171: 53 | BJ171: 51 | BK171: 53 | BL171: 47 | BM171: 55 | BN171: 59,070 | BO171: 0 | BP171: 0 | BQ171: 0 | BR171: 59 | BS171: 52 | BT171: 58 | BU171: 58 | BV171: 59 | BW171: 59 | BX171: 60 | BY171: 60 | BZ171: 58 | CA171: 57 | CB171: 54 | CC171: 59 | CD171: 55 | CE171: 56 | CF171: 55 | CG171: 56 | CH171: 56 | CI171: 54 | CJ171: 54 | CK171: 52 | CL171: 61 | CM171: 63 | CN171: 64 | CO171: 63 | CP171: 62 | CQ171: 62 | CR171: 63 | CS171: 61 | CT171: 56 | CU171: 68 | CV171: 61 | CW171: 61 | CX171: 60 | CY171: 61 | CZ171: 59 | DA171: 59 | DB171: 61 | DC171: 62 | DD171: 65 | DE171: 60 | DF171: 64 | DG171: 64 | DH171: 65 | DI171: 63 | DJ171: 64 | DK171: 65 | DL171: 65 | DM171: 68 | DN171: 58 | DO171: 57 | DP171: 56 | DQ171: 56 | DR171: 57 | DS171: 57 | DT171: 57 | DU171: 59 | DV171: 64 | DW171: 52 | DX171: 59 | DY171: 77 | DZ171: 64 | EA171: 58 | EB171: 63 | EC171: 59 | ED171: 55 | EE171: 77 | EF171: 59 | EG171: 63
A172: Heide | B172: Itzehoe | C172: 1051044 | D172: 1061046 | E172: 39,470 | F172: 54.19548,9.10174 | G172: 53.93182,9.50492 | H172: 2.0 | I172: 1.0 | J172: 2.0 | K172: 2.0 | L172: 53,193 | M172: 48,840 | N172: 42,760 | O172: 4,695 | P172: 0 | Q172: 0 | R172: 606 | S172: 0 | T172: 775 | U172: 0 | V172: 28 | W172: 40 | X172: 22 | Y172: 30 | Z172: 38 | AA172: 50 | AB172: 34 | AC172: 30 | AD172: 37 | AE172: 48 | AF172: 34 | AG172: 29 | AH172: 36 | AI172: 47 | AJ172: 33 | AK172: 27 | AL172: 32 | AM172: 39 | AN172: 29 | AO172: 39 | AP172: 43 | AQ172: 47 | AR172: 55 | AS172: 46 | AT172: 42 | AU172: 46 | AV172: 51 | AW172: 45 | AX172: 42 | AY172: 46 | AZ172: 52 | BA172: 45 | BB172: 40 | BC172: 42 | BD172: 44 | BE172: 42 | BF172: 28 | BG172: 27 | BH172: 28 | BI172: 40 | BJ172: 39 | BK172: 40 | BL172: 26 | BM172: 28 | BN172: 47,580 | BO172: 0 | BP172: 0 | BQ172: 0 | BR172: 35 | BS172: 31 | BT172: 35 | BU172: 35 | BV172: 36 | BW172: 35 | BX172: 35 | BY172: 36 | BZ172: 35 | CA172: 34 | CB172: 32 | CC172: 33 | CD172: 31 | CE172: 31 | CF172: 31 | CG172: 32 | CH172: 31 | CI172: 32 | CJ172: 31 | CK172: 30 | CL172: 37 | CM172: 39 | CN172: 46 | CO172: 42 | CP172: 43 | CQ172: 42 | CR172: 44 | CS172: 41 | CT172: 36 | CU172: 96 | CV172: 86 | CW172: 85 | CX172: 83 | CY172: 85 | CZ172: 84 | DA172: 84 | DB172: 84 | DC172: 88 | DD172: 92 | DE172: 91 | DF172: 95 | DG172: 95 | DH172: 97 | DI172: 94 | DJ172: 96 | DK172: 94 | DL172: 96 | DM172: 99 | DN172: 80 | DO172: 75 | DP172: 65 | DQ172: 71 | DR172: 69 | DS172: 71 | DT172: 67 | DU172: 73 | DV172: 82 | DW172: 30 | DX172: 36 | DY172: 50 | DZ172: 46 | EA172: 34 | EB172: 38 | EC172: 32 | ED172: 43 | EE172: 55 | EF172: 46 | EG172: 47
A173: Heide | B173: Hemmoor | C173: 1051044 | D173: 3352022 | E173: 54,950 | F173: 54.19548,9.10174 | G173: 53.7023,9.13907 | H173: 2.0 | I173: 1.0 | J173: 2.0 | K173: 2.0 | L173: 30,283 | M173: 99,100 | N173: 47,903 | O173: 28,623 | P173: 9,452 | Q173: 0 | R173: 6,882 | S173: 0 | T173: 775 | U173: 333 | V173: 116 | W173: 146 | X173: 97 | Y173: 130 | Z173: 157 | AA173: 196 | AB173: 145 | AC173: 126 | AD173: 147 | AE173: 180 | AF173: 138 | AG173: 129 | AH173: 155 | AI173: 200 | AJ173: 146 | AK173: 116 | AL173: 131 | AM173: 154 | AN173: 122 | AO173: 142 | AP173: 158 | AQ173: 176 | AR173: 205 | AS173: 168 | AT173: 153 | AU173: 166 | AV173: 186 | AW173: 161 | AX173: 158 | AY173: 175 | AZ173: 210 | BA173: 171 | BB173: 147 | BC173: 154 | BD173: 166 | BE173: 151 | BF173: 123 | BG173: 117 | BH173: 123 | BI173: 150 | BJ173: 148 | BK173: 150 | BL173: 127 | BM173: 172 | BN173: 99,300 | BO173: 0 | BP173: 0 | BQ173: 0 | BR173: 114 | BS173: 105 | BT173: 114 | BU173: 115 | BV173: 116 | BW173: 116 | BX173: 118 | BY173: 117 | BZ173: 116 | CA173: 114 | CB173: 111 | CC173: 111 | CD173: 110 | CE173: 110 | CF173: 110 | CG173: 111 | CH173: 109 | CI173: 110 | CJ173: 110 | CK173: 107 | CL173: 118 | CM173: 123 | CN173: 126 | CO173: 123 | CP173: 127 | CQ173: 126 | CR173: 126 | CS173: 122 | CT173: 118 | CU173: 56 | CV173: 52 | CW173: 52 | CX173: 51 | CY173: 51 | CZ173: 50 | DA173: 50 | DB173: 51 | DC173: 52 | DD173: 53 | DE173: 53 | DF173: 54 | DG173: 54 | DH173: 54 | DI173: 53 | DJ173: 54 | DK173: 53 | DL173: 54 | DM173: 55 | DN173: 50 | DO173: 48 | DP173: 47 | DQ173: 48 | DR173: 46 | DS173: 47 | DT173: 47 | DU173: 49 | DV173: 50 | DW173: 130 | DX173: 116 | DY173: 200 | DZ173: 126 | EA173: 146 | EB173: 157 | EC173: 139 | ED173: 158 | EE173: 210 | EF173: 171 | EG173: 176
A174: Heide | B174: Stade | C174: 1051044 | D174: 3359038 | E174: 71,280 | F174: 54.19548,9.10174 | G174: 53.5932,9.47033 | H174: 2.0 | I174: 1.0 | J174: 2.0 | K174: 2.0 | L174: 67,800 | M174: 145,670 | N174: 110,013 | O174: 4,314 | P174: 474 | Q174: 20,268 | R174: 9,439 | S174: 0 | T174: 775 | U174: 389 | V174: 92 | W174: 121 | X174: 76 | Y174: 104 | Z174: 128 | AA174: 163 | AB174: 117 | AC174: 99 | AD174: 117 | AE174: 145 | AF174: 109 | AG174: 100 | AH174: 121 | AI174: 160 | AJ174: 115 | AK174: 91 | AL174: 105 | AM174: 124 | AN174: 97 | AO174: 119 | AP174: 132 | AQ174: 147 | AR174: 172 | AS174: 140 | AT174: 127 | AU174: 136 | AV174: 151 | AW174: 132 | AX174: 129 | AY174: 141 | AZ174: 170 | BA174: 140 | BB174: 121 | BC174: 127 | BD174: 137 | BE174: 125 | BF174: 98 | BG174: 93 | BH174: 97 | BI174: 124 | BJ174: 122 | BK174: 123 | BL174: 94 | BM174: 141 | BN174: 151,370 | BO174: 0 | BP174: 0 | BQ174: 0 | BR174: 106 | BS174: 98 | BT174: 105 | BU174: 111 | BV174: 112 | BW174: 108 | BX174: 109 | BY174: 114 | BZ174: 109 | CA174: 103 | CB174: 99 | CC174: 97 | CD174: 101 | CE174: 102 | CF174: 98 | CG174: 98 | CH174: 99 | CI174: 100 | CJ174: 94 | CK174: 92 | CL174: 116 | CM174: 138 | CN174: 141 | CO174: 129 | CP174: 131 | CQ174: 148 | CR174: 137 | CS174: 122 | CT174: 112 | CU174: 90 | CV174: 84 | CW174: 79 | CX174: 78 | CY174: 81 | CZ174: 81 | DA174: 77 | DB174: 81 | DC174: 85 | DD174: 88 | DE174: 90 | DF174: 87 | DG174: 86 | DH174: 90 | DI174: 89 | DJ174: 89 | DK174: 87 | DL174: 93 | DM174: 95 | DN174: 75 | DO174: 63 | DP174: 62 | DQ174: 68 | DR174: 67 | DS174: 59 | DT174: 64 | DU174: 72 | DV174: 78 | DW174: 104 | DX174: 112 | DY174: 163 | DZ174: 141 | EA174: 117 | EB174: 128 | EC174: 109 | ED174: 132 | EE174: 172 | EF174: 140 | EG174: 147
A175: Meldorf | B175: Neumünster | C175: 1051074 | D175: 1004000 | E175: 59,440 | F175: 54.09011,9.07561 | G175: 54.07339,9.98332 | H175: 2.0 | I175: 1.0 | J175: 2.0 | K175: 2.0 | L175: 86,464 | M175: 71,220 | N175: 16,544 | O175: 52,802 | P175: 0 | Q175: 259 | R175: 192 | S175: 560 | T175: 819 | U175: 47 | V175: 52 | W175: 60 | X175: 45 | Y175: 59 | Z175: 70 | AA175: 87 | AB175: 65 | AC175: 60 | AD175: 70 | AE175: 83 | AF175: 65 | AG175: 58 | AH175: 69 | AI175: 82 | AJ175: 63 | AK175: 53 | AL175: 60 | AM175: 70 | AN175: 56 | AO175: 58 | AP175: 65 | AQ175: 74 | AR175: 89 | AS175: 70 | AT175: 65 | AU175: 73 | AV175: 84 | AW175: 69 | AX175: 65 | AY175: 72 | AZ175: 84 | BA175: 69 | BB175: 61 | BC175: 65 | BD175: 72 | BE175: 63 | BF175: 55 | BG175: 52 | BH175: 54 | BI175: 62 | BJ175: 60 | BK175: 61 | BL175: 51 | BM175: 58 | BN175: 71,110 | BO175: 0 | BP175: 0 | BQ175: 0 | BR175: 65 | BS175: 55 | BT175: 62 | BU175: 65 | BV175: 66 | BW175: 66 | BX175: 68 | BY175: 67 | BZ175: 65 | CA175: 63 | CB175: 59 | CC175: 59 | CD175: 60 | CE175: 60 | CF175: 60 | CG175: 61 | CH175: 61 | CI175: 59 | CJ175: 59 | CK175: 56 | CL175: 63 | CM175: 71 | CN175: 76 | CO175: 75 | CP175: 75 | CQ175: 74 | CR175: 74 | CS175: 70 | CT175: 61 | CU175: 78 | CV175: 69 | CW175: 66 | CX175: 65 | CY175: 64 | CZ175: 63 | DA175: 63 | DB175: 65 | DC175: 67 | DD175: 72 | DE175: 72 | DF175: 71 | DG175: 71 | DH175: 71 | DI175: 69 | DJ175: 70 | DK175: 72 | DL175: 72 | DM175: 76 | DN175: 68 | DO175: 60 | DP175: 56 | DQ175: 57 | DR175: 57 | DS175: 58 | DT175: 58 | DU175: 61 | DV175: 70 | DW175: 59 | DX175: 66 | DY175: 87 | DZ175: 76 | EA175: 65 | EB175: 70 | EC175: 64 | ED175: 65 | EE175: 89 | EF175: 70 | EG175: 74
